Workbook

Sheet Revision History (hidden)
B2: Revision History
C3: NStf-Fil
B4: Version | C4: Date | D4: Change | H4: Notes
B5: 0.1 | C5: 2017-08-30 | D5: Rebranding | H5: Finish question status sheet
B6: 0.2 | C6: 2018-01-15 | D6: Updates after meeting with AW | H6: Insert appropriate email hyperlink into cover
B7: 0.3 | C7: 2018-01-25 | D7: Created backsheet, works with automation tool | H7: Row 12-41 in control panel contains validations specific to questions
B8: 0.4 | C8: 2018-01-29 | D8: updated formulas in backsheet to accommodate for "0" defaults in site code | H8: Unsure if site summary needs to be visible to user or not i.e coloured blue or white
B9: 4 | C9: 2018-01-31 | D9: final lockdown and version number updates
B10: 5 | D10: repaired broken image
B11: 6 | C11: 2018-02-28 | D11: validation repairs
B12: 7 | C12: 2018-03-28 | D12: made locked cells selectable for ease of use
B13: 8 | C13: 2018-04-30 | D13: ref data and validation updates
H14: To DO
H16: get correct email address for Cover sheet
H17: Check if Site summary is required - and if it need to be visible. - if so, is this better to be included in the frontsheet?
H18: Move validations to column AA
H19: set validations to appear in control panel
H20: check ref data is up to date - Org code, site code, site speciality
H21: check with Alun as to which validations he requires.
H22: New Backsheet
H23: Remove redudant VBA

Sheet Cover

Sheet Control_Panel
C2: Safe Staffing (Rota Fill Rates and CHPPD) Collection
C4: Please check that the data on this upload template is accurate before being submitted to SDCS. You are reminded that these figures will be published, and it is the responsibility of your organisation that these submitted figures are accurate and in line with national guidance. We will undertake basic validation checks on these figures post submission, and may come back to you with any queries we may have.
E6: RT3 | F6: =VLOOKUP(OrgCodeSelection,Orgs,2,FALSE) -> Royal Brompton And Harefield NHS Foundation Trust
C8: Validations
C9: Please correct all issues listed within the tables below. If the issues are not corrected then the pro forma will fail the validation stage in SDCS.
C13: Control Panel
C14: =M14 ->  | M14: =IF(OrgCodeSelection="","No 'Organisation Code' has been selected. Please choose an organisation","") -> 
C16: Trust - Frontsheet
C17: =IF('Trust - Frontsheet'!AB2="","",'Trust - Frontsheet'!AB2) -> 
C18: =IF('Trust - Frontsheet'!AB3="","",'Trust - Frontsheet'!AB3) -> 
C19: =IF('Trust - Frontsheet'!AB4="","",'Trust - Frontsheet'!AB4) -> 
C20: =IF('Trust - Frontsheet'!AB5="","",'Trust - Frontsheet'!AB5) -> 
C21: =IF('Trust - Frontsheet'!AB6="","",'Trust - Frontsheet'!AB6) -> 
C22: =IF('Trust - Frontsheet'!AB7="","",'Trust - Frontsheet'!AB7) -> 
C23: =IF('Trust - Frontsheet'!AB8="","",'Trust - Frontsheet'!AB8) -> 
C24: =IF('Trust - Frontsheet'!AB9="","",'Trust - Frontsheet'!AB9) -> 
C25: =IF('Trust - Frontsheet'!AD2="","",'Trust - Frontsheet'!AD2) -> 
C26: =IF('Trust - Frontsheet'!AD3="","",'Trust - Frontsheet'!AD3) -> 
C27: =IF('Trust - Frontsheet'!AD4="","",'Trust - Frontsheet'!AD4) -> 
C28: =IF('Trust - Frontsheet'!AD5="","",'Trust - Frontsheet'!AD5) -> 
C29: =IF('Trust - Frontsheet'!AD6="","",'Trust - Frontsheet'!AD6) -> 
C30: =IF('Trust - Frontsheet'!AD7="","",'Trust - Frontsheet'!AD7) -> 
C31: =IF('Trust - Frontsheet'!AD8="","",'Trust - Frontsheet'!AD8) -> 
C32: =IF('Trust - Frontsheet'!AD9="","",'Trust - Frontsheet'!AD9) -> 
C33: =IF('Trust - Frontsheet'!AD10="","",'Trust - Frontsheet'!AD10) -> 
C34: =IF('Trust - Frontsheet'!AD11="","",'Trust - Frontsheet'!AD11) -> 
C35: =IF('Trust - Frontsheet'!AD12="","",'Trust - Frontsheet'!AD12) -> 

Sheet Trust - Frontsheet
AC1: ERRORS | AE1: WARNINGS | AV1: =CONCATENATE(LEFT(AW1, 3),AX1) -> AXGWILTSHIRE HEALTH & CARE (CHIPPENHAM COMMUNITY HOSPITAL) | AW1: AXG01 | AX1: WILTSHIRE HEALTH & CARE (CHIPPENHAM COMMUNITY HOSPITAL) | AY1: AXG01 | AZ1: WILTSHIRE HEALTH & CARE (CHIPPENHAM COMMUNITY HOSPITAL) | BA1: =LEFT(AY1,3) -> AXG
D2: Safe Staffing (Rota Fill Rates and CHPPD) Collection | AB2: =IF(AK214=0,"","Select Site Name in Column E") ->  | AC2: SELECT SITE CODE | AV2: =CONCATENATE(LEFT(AW2, 3),AX2) -> AXGSAVERNAKE COMMUNITY HOSPITAL | AW2: AXG02 | AX2: SAVERNAKE COMMUNITY HOSPITAL | AY2: AXG02 | AZ2: SAVERNAKE COMMUNITY HOSPITAL | BA2: =LEFT(AY2,3) -> AXG
AB3: =IF(AL214=0,"","Select Ward Name in Column F") ->  | AC3: Select Ward Name | AV3: =CONCATENATE(LEFT(AW3, 3),AX3) -> AXGWARMINSTER COMMUNITY HOSPITAL | AW3: AXG03 | AX3: WARMINSTER COMMUNITY HOSPITAL | AY3: AXG03 | AZ3: WARMINSTER COMMUNITY HOSPITAL | BA3: =LEFT(AY3,3) -> AXG
AB4: =IF(E415=0,"","At least one specialty must be selected (Specialty 1) for each row") ->  | AC4: Select speciality | AV4: =CONCATENATE(LEFT(AW4, 3),AX4) -> NHMALDEBURGH COMMUNITY HOSPITAL | AW4: NHM02 | AX4: ALDEBURGH COMMUNITY HOSPITAL | AY4: NHM02 | AZ4: ALDEBURGH COMMUNITY HOSPITAL | BA4: =LEFT(AY4,3) -> NHM
D5: Organisation: | E5: =IF(ISBLANK(Control_Panel!OrgCodeSelection),"",Control_Panel!OrgCodeSelection) -> RT3 | F5: =IF(Control_Panel!OrgNameSelection="","",Control_Panel!OrgNameSelection) -> Royal Brompton And Harefield NHS Foundation Trust | AB5: =IF(F415=0,"","Total number of planned hours must be greater than 0") ->  | AC5: Total planned hours > 0 | AV5: NHMBLUEBIRD LODGE | AW5: NHM03 | AX5: BLUEBIRD LODGE | AY5: NHM03 | AZ5: BLUEBIRD LODGE | BA5: NHM
AB6: =IF(G415=0,"","Total number of actual hours must be greater than 0") ->  | AC6: Total actual hours > 0 | AD6: =IF(H415>0,"One or more wards has less than 1448 actual hours (approx. 2 full time staff)","") ->  | AV6: NHMFELIXSTOWE COMMUNITY HOSPITAL | AW6: NHM05 | AX6: FELIXSTOWE COMMUNITY HOSPITAL | AY6: NHM05 | AZ6: FELIXSTOWE COMMUNITY HOSPITAL | BA6: NHM
F7: Please provide the URL to the page on your trust website where your staffing information is available | AB7: =IF(E5="","",IF(AM416>0,"Duplicate Ward entry within site","")) ->  | AC7: duplicate ward/hospital and spec codes | AD7: =IF(I415>0,"One or more wards has greater than 30000 actual hours (approx. 40 full time staff)","") ->  | AV7: NHMGLASTONBURY COURT | AW7: NHM26 | AX7: GLASTONBURY COURT | AY7: NHM26 | AZ7: GLASTONBURY COURT | BA7: NHM
F8: (Please can you ensure that the URL you attach to the spreadsheet is correct and links to the correct web page and include 'http://' in your URL) | AB8: =IF(AO416>0,"Please do not leave gaps between rows of data.","") ->  | AC8: Avoid gaps in between data rows | AD8: =IF(U415>0,"One or more wards has submitted actual hours but zero CHPPD patients.","") ->  | AV8: NHMNEWMARKET COMMUNITY HOSPITAL | AW8: NHM04 | AX8: NEWMARKET COMMUNITY HOSPITAL | AY8: NHM04 | AZ8: NEWMARKET COMMUNITY HOSPITAL | BA8: NHM
F9: "http://www.rbht.nhs.uk//nurse-staffing/ " | AB9: =IF(AP416>0,"Duplicate speciality codes entered","") ->  | AC9: duplicate speciality codes | AV9: NLXCHIPPENHAM COMMUNITY HOSPITAL | AW9: NLX17 | AX9: CHIPPENHAM COMMUNITY HOSPITAL | AY9: NLX17 | AZ9: CHIPPENHAM COMMUNITY HOSPITAL | BA9: NLX
A10: =IF(E14="",1,0) -> 0 | AB10: =Control_Panel!M14 ->  | AV10: NLXCOSSHAM HOSPITAL | AW10: NLX23 | AX10: COSSHAM HOSPITAL | AY10: NLX23 | AZ10: COSSHAM HOSPITAL | BA10: NLX
F11: Only complete sites your organisation is accountable for | I11: Day | M11: Night | Q11: Day | S11: Night | U11: Care Hours Per Patient Day (CHPPD) | AB11: =D626 ->  | AC11: Site code issue | AV11: NLXDEVIZES COMMUNITY HOSPITAL | AW11: NLX18 | AX11: DEVIZES COMMUNITY HOSPITAL | AY11: NLX18 | AZ11: DEVIZES COMMUNITY HOSPITAL | BA11: NLX
D12: Hospital Site Details | F12: Ward name | G12: Main 2 Specialties on each ward | I12: Registered midwives/nurses | K12: Care Staff | M12: Registered midwives/nurses | O12: Care Staff | Q12: Average fill rate - registered nurses/ midwives (%) | R12: Average fill rate - care staff (%) | S12: Average fill rate - registered nurses/ midwives (%) | T12: Average fill rate - care staff (%) | U12: Cumulative count over the month of patients at 23:59 each day | V12: Registered midwives/ nurses | W12: Care Staff | X12: Overall | AB12: =IF(J622>0, "Please do not enter negative numbers","") ->  | AC12: Do not enter negative numbers | AJ12: VALIDATIONS | AV12: NLXGREYSTONES | AW12: NLX12 | AX12: GREYSTONES | AY12: NLX12 | AZ12: GREYSTONES | BA12: NLX
D13: Site code *The Site code is automatically populated when a Site name is selected | E13: Hospital Site name | G13: Specialty 1 | H13: Specialty 2 | I13: Total monthly planned staff hours | J13: Total monthly actual staff hours | K13: Total monthly planned staff hours | L13: Total monthly actual staff hours | M13: Total monthly planned staff hours | N13: Total monthly actual staff hours | O13: Total monthly planned staff hours | P13: Total monthly actual staff hours | Z13: Specialties | AK13: SITE CODE | AL13: WARD NAME | AV13: NLXHANHAM HEALTH | AW13: NLX27 | AX13: HANHAM HEALTH | AY13: NLX27 | AZ13: HANHAM HEALTH | BA13: NLX
A14: =IF(M215=1,"No Site Selected",IF(N215=1,"No Ward Name","")) ->  | B14: =IF(SUM(E215:G215,M215:N215)>0,1,IF(Y215>0,2,0)) -> 0 | D14: =IF(ISNA(VLOOKUP($E$5&E14,$AV:$AW,2,FALSE)),"",VLOOKUP($E$5&E14,$AV:$AW,2,FALSE)) -> RT302 | E14: ROYAL BROMPTON HOSPITAL - RT302 | F14: PICU | G14: 171 - PAEDIATRIC SURGERY | H14: 321 - PAEDIATRIC CARDIOLOGY | I14: 6750 | J14: 6539 | K14: 1588 | L14: 537 | M14: 6210 | N14: 6069 | O14: 518 | P14: 184 | Q14: =IF(ISERROR(IF($I14="","",J14/I14)),"-",(IF($I14="","",J14/I14))) -> 0.9687407407 | R14: =IF(ISERROR(IF(K14="","",L14/K14)),"-",(IF(K14="","",L14/K14))) -> 0.3381612091 | S14: =IF(ISERROR(IF(M14="","",N14/M14)),"-",(IF(M14="","",N14/M14))) -> 0.977294686 | T14: =IF(ISERROR(IF(O14="","",P14/O14)),"-",IF(O14="","",P14/O14)) -> 0.3552123552 | U14: 499 | V14: =IF(ISERROR(IF($U14="","",SUM(J14,N14)/$U14)),"-",(IF($U14="","",SUM(J14,N14)/$U14))) -> 25.26653307 | W14: =IF(ISERROR(IF($U14="","",SUM(L14,P14)/$U14)),"-",(IF($U14="","",SUM(L14,P14)/$U14))) -> 1.44488978 | X14: =IF(ISERROR(IF($U14="","",SUM(J14,L14,N14,P14)/$U14)),"-",(IF($U14="","",SUM(J14,L14,N14,P14)/$U14))) -> 26.71142285 | Z14: 100 - GENERAL SURGERY | AK14: =IF(M215=1,"No Site Selected","") ->  | AL14: =IF(N215=1,"No Ward Name","") ->  | AV14: NLXHOMELINK & COMMUNITY OPTIONS | AW14: NLX14 | AX14: HOMELINK & COMMUNITY OPTIONS | AY14: NLX14 | AZ14: HOMELINK & COMMUNITY OPTIONS | BA14: NLX
A15: =IF(M216=1,"No Site Selected",IF(N216=1,"No Ward Name","")) ->  | B15: =IF(SUM(E216:G216,M216:N216)>0,1,IF(Y216>0,2,0)) -> 0 | D15: RT302 | E15: ROYAL BROMPTON HOSPITAL - RT302 | F15: Rose Ward | G15: 321 - PAEDIATRIC CARDIOLOGY | H15: 171 - PAEDIATRIC SURGERY | I15: 5625 | J15: 5420 | K15: 1588 | L15: 537 | M15: 5175 | N15: 4497 | O15: 518 | P15: 184 | Q15: =IF(ISERROR(IF($I15="","",J15/I15)),"-",(IF($I15="","",J15/I15))) -> 0.9635555556 | R15: =IF(ISERROR(IF(K15="","",L15/K15)),"-",(IF(K15="","",L15/K15))) -> 0.3381612091 | S15: =IF(ISERROR(IF(M15="","",N15/M15)),"-",(IF(M15="","",N15/M15))) -> 0.8689855072 | T15: =IF(ISERROR(IF(O15="","",P15/O15)),"-",IF(O15="","",P15/O15)) -> 0.3552123552 | U15: 1041 | V15: =IF(ISERROR(IF($U15="","",SUM(J15,N15)/$U15)),"-",(IF($U15="","",SUM(J15,N15)/$U15))) -> 9.526416907 | W15: =IF(ISERROR(IF($U15="","",SUM(L15,P15)/$U15)),"-",(IF($U15="","",SUM(L15,P15)/$U15))) -> 0.6926032661 | X15: =IF(ISERROR(IF($U15="","",SUM(J15,L15,N15,P15)/$U15)),"-",(IF($U15="","",SUM(J15,L15,N15,P15)/$U15))) -> 10.21902017 | Z15: 101 - UROLOGY | AK15: =IF(M216=1,"No Site Selected","") ->  | AL15: =IF(N216=1,"No Ward Name","") ->  | AV15: NLXMELKSHAM COMMUNITY HOSPITAL | AW15: NLX19 | AX15: MELKSHAM COMMUNITY HOSPITAL | AY15: NLX19 | AZ15: MELKSHAM COMMUNITY HOSPITAL | BA15: NLX
A16: =IF(M217=1,"No Site Selected",IF(N217=1,"No Ward Name","")) ->  | B16: =IF(SUM(E217:G217,M217:N217)>0,1,IF(Y217>0,2,0)) -> 0 | D16: RT302 | E16: ROYAL BROMPTON HOSPITAL - RT302 | F16: AICU | G16: 192 - CRITICAL CARE MEDICINE | H16: 170 - CARDIOTHORACIC SURGERY | I16: 7875 | J16: 6701 | K16: 1260 | L16: 776 | M16: 7245 | N16: 6452 | O16: 330 | P16: 117 | Q16: 0.8509206349 | R16: 0.6158730159 | S16: 0.8905452036 | T16: 0.3545454545 | U16: 497 | V16: 26.46478873 | W16: 1.796780684 | X16: 28.26156942 | Z16: 103-BREAST SURGERY | AV16: NLXPAULTON MEMORIAL HOSPITAL | AW16: NLX02 | AX16: PAULTON MEMORIAL HOSPITAL | AY16: NLX02 | AZ16: PAULTON MEMORIAL HOSPITAL | BA16: NLX
A17: =IF(M218=1,"No Site Selected",IF(N218=1,"No Ward Name","")) ->  | B17: 2 | D17: RT302 | E17: ROYAL BROMPTON HOSPITAL - RT302 | F17: Princess Alexandra Ward | G17: 170 - CARDIOTHORACIC SURGERY | H17: 320 - CARDIOLOGY | I17: 2730 | J17: 3133 | K17: 1260 | L17: 783 | M17: 1650 | N17: 1652 | O17: 330 | P17: 227 | Q17: 1.147619048 | R17: 0.6214285714 | S17: 1.001212121 | T17: 0.6878787879 | U17: 1032 | V17: 4.636627907 | W17: 0.9786821705 | X17: 5.615310078 | Z17: 110 - TRAUMA & ORTHOPAEDICS | AV17: NLXST MARTINS HOSPITAL | AW17: NLX01 | AX17: ST MARTINS HOSPITAL | AY17: NLX01 | AZ17: ST MARTINS HOSPITAL | BA17: NLX | BB17: Selected Org:
B18: 0 | D18: RT302 | E18: ROYAL BROMPTON HOSPITAL - RT302 | F18: Elizabeth Ward | G18: 170 - CARDIOTHORACIC SURGERY | H18: 320 - CARDIOLOGY | I18: 4680 | J18: 3946 | K18: 1260 | L18: 776 | M18: 3960 | N18: 2662 | O18: 330 | P18: 128 | Q18: 0.8431623932 | R18: 0.6158730159 | S18: 0.6722222222 | T18: 0.3878787879 | U18: 330 | V18: 20.02424242 | W18: 2.739393939 | X18: 22.76363636 | Z18: 120 - ENT | AV18: NLXTHORNBURY HOSPITAL | AW18: NLX22 | AX18: THORNBURY HOSPITAL | AY18: NLX22 | AZ18: THORNBURY HOSPITAL | BA18: NLX | BB18: =$E$5 -> RT3
B19: 0 | D19: RT302 | E19: ROYAL BROMPTON HOSPITAL - RT302 | F19: Paul Wood Ward | G19: 320 - CARDIOLOGY | H19: 170 - CARDIOTHORACIC SURGERY | I19: 2496 | J19: 2258 | K19: 1260 | L19: 776 | M19: 1320 | N19: 1124 | O19: 330 | P19: 117 | Q19: 0.9046474359 | R19: 0.6158730159 | S19: 0.8515151515 | T19: 0.3545454545 | U19: 496 | V19: 6.818548387 | W19: 1.800403226 | X19: 8.618951613 | Z19: 130 - OPHTHALMOLOGY | AV19: NLXTROWBRIDGE COMMUNITY HOSPITAL | AW19: NLX20 | AX19: TROWBRIDGE COMMUNITY HOSPITAL | AY19: NLX20 | AZ19: TROWBRIDGE COMMUNITY HOSPITAL | BA19: NLX
B20: 0 | D20: RT302 | E20: ROYAL BROMPTON HOSPITAL - RT302 | F20: Sir Reginald Wilson | G20: 320 - CARDIOLOGY | H20: 170 - CARDIOTHORACIC SURGERY | I20: 3900 | J20: 2792 | K20: 1260 | L20: 783 | M20: 1650 | N20: 1563 | O20: 330 | P20: 137 | Q20: 0.7158974359 | R20: 0.6214285714 | S20: 0.9472727273 | T20: 0.4151515152 | U20: 784 | V20: 5.554846939 | W20: 1.173469388 | X20: 6.728316327 | Z20: 140 - ORAL SURGERY | AV20: NQ1ACE (THE CRESCENT, COLCHESTER) | AW20: NQ114 | AX20: ACE (THE CRESCENT, COLCHESTER) | AY20: NQ114 | AZ20: ACE (THE CRESCENT, COLCHESTER) | BA20: NQ1 | BB20: Match:
B21: 2 | D21: RT302 | E21: ROYAL BROMPTON HOSPITAL - RT302 | F21: York Ward | G21: 320 - CARDIOLOGY | H21: 170 - CARDIOTHORACIC SURGERY | I21: 2379 | J21: 2546 | K21: 1260 | L21: 776 | M21: 1650 | N21: 1232 | O21: 330 | P21: 117 | Q21: 1.070197562 | R21: 0.6158730159 | S21: 0.7466666667 | T21: 0.3545454545 | U21: 487 | V21: 7.757700205 | W21: 1.833675565 | X21: 9.59137577 | Z21: 141 - RESTORATIVE DENTISTRY | AV21: NQ1ACE CIC (CLACTON ON SEA) | AW21: NQ101 | AX21: ACE CIC (CLACTON ON SEA) | AY21: NQ101 | AZ21: ACE CIC (CLACTON ON SEA) | BA21: NQ1 | BB21: =MATCH($BB$18,$BA$1:$BA$5100,0) -> 2048
B22: 2 | D22: RT302 | E22: ROYAL BROMPTON HOSPITAL - RT302 | F22: Foulis Ward | G22: 340 - RESPIRATORY MEDICINE | H22: 170 - CARDIOTHORACIC SURGERY | I22: 2223 | J22: 2523 | K22: 465 | L22: 564 | M22: 1650 | N22: 1617 | O22: 319 | P22: 44 | Q22: 1.134952767 | R22: 1.212903226 | S22: 0.98 | T22: 0.1379310345 | U22: 875 | V22: 4.731428571 | W22: 0.6948571429 | X22: 5.426285714 | Z22: 142 - PAEDIATRIC DENTISTRY | AV22: NQ1CLACTON HOSPITAL | AW22: NQ108 | AX22: CLACTON HOSPITAL | AY22: NQ108 | AZ22: CLACTON HOSPITAL | BA22: NQ1 | BB22: Countif:
B23: 2 | D23: RT302 | E23: ROYAL BROMPTON HOSPITAL - RT302 | F23: Victoria Ward | G23: 340 - RESPIRATORY MEDICINE | I23: 2340 | J23: 2667 | K23: 473 | L23: 308 | M23: 1320 | N23: 1331 | O23: 242 | P23: 220 | Q23: 1.13974359 | R23: 0.6511627907 | S23: 1.008333333 | T23: 0.9090909091 | U23: 666 | V23: 6.003003003 | W23: 0.7927927928 | X23: 6.795795796 | Z23: 143 - ORTHODONTICS | AV23: NQ1COLCHESTER GENERAL HOSPITAL | AW23: NQ107 | AX23: COLCHESTER GENERAL HOSPITAL | AY23: NQ107 | AZ23: COLCHESTER GENERAL HOSPITAL | BA23: NQ1 | BB23: =SUM(COUNTIF($AZ$1:$BA$5100,$BB$18)+$BB$21-1) -> 2049
B24: 0 | D24: RT301 | E24: HAREFIELD HOSPITAL - RT301 | F24: Cedar Ward | G24: 170 - CARDIOTHORACIC SURGERY | I24: 2415 | J24: 2277 | K24: 690 | L24: 656 | M24: 1725 | N24: 1415 | O24: 690 | P24: 600 | Q24: 0.9428571429 | R24: 0.9507246377 | S24: 0.8202898551 | T24: 0.8695652174 | U24: 1400 | V24: 2.637142857 | W24: 0.8971428571 | X24: 3.534285714 | Z24: 145 - ORAL & MAXILLO FACIAL SURGERY | AV24: NQ1CONNAUGHT MEWS SUITES 6-10 | AW24: NQ126 | AX24: CONNAUGHT MEWS SUITES 6-10 | AY24: NQ126 | AZ24: CONNAUGHT MEWS SUITES 6-10 | BA24: NQ1 | BB24: Concat Items:
B25: 2 | D25: RT301 | E25: HAREFIELD HOSPITAL - RT301 | F25: Rowan/Fir Tree | G25: 170 - CARDIOTHORACIC SURGERY | H25: 320 - CARDIOLOGY | I25: 4290 | J25: 5471 | K25: 1178 | L25: 858 | M25: 2970 | N25: 2728 | O25: 714 | P25: 730 | Q25: 1.275291375 | R25: 0.7283531409 | S25: 0.9185185185 | T25: 1.022408964 | U25: 1330 | V25: 6.164661654 | W25: 1.193984962 | X25: 7.358646617 | Z25: 150 - NEUROSURGERY | AV25: NQ1CORNERSTONE | AW25: NQ123 | AX25: CORNERSTONE | AY25: NQ123 | AZ25: CORNERSTONE | BA25: NQ1 | BB25: $Ax
B26: 2 | D26: RT301 | E26: HAREFIELD HOSPITAL - RT301 | F26: HDU Harefield Ward | G26: 170 - CARDIOTHORACIC SURGERY | H26: 320 - CARDIOLOGY | I26: 2250 | J26: 1898 | K26: 0 | L26: 0 | M26: 2070 | N26: 1771 | O26: 0 | P26: 0 | Q26: 0.8435555556 | R26: - | S26: 0.8555555556 | T26: - | U26: 278 | V26: 13.19784173 | W26: 0 | X26: 13.19784173 | Z26: 160 - PLASTIC SURGERY | AV26: NQ1FRYATT HOSPITAL | AW26: NQ106 | AX26: FRYATT HOSPITAL | AY26: NQ106 | AZ26: FRYATT HOSPITAL | BA26: NQ1 | BB26: :$Ax
B27: 2 | D27: RT301 | E27: HAREFIELD HOSPITAL - RT301 | F27: ITU | G27: 170 - CARDIOTHORACIC SURGERY | I27: 7125 | J27: 10955 | K27: 1194 | L27: 1008 | M27: 6555 | N27: 8889 | O27: 345 | P27: 345 | Q27: 1.53754386 | R27: 0.8442211055 | S27: 1.356064073 | T27: 1 | U27: 639 | V27: 31.05477308 | W27: 2.117370892 | X27: 33.17214397 | Z27: 170 - CARDIOTHORACIC SURGERY | AV27: NVCASHTEAD HOSPITAL | AW27: NVC01 | AX27: ASHTEAD HOSPITAL | AY27: NVC01 | AZ27: ASHTEAD HOSPITAL | BA27: NVC
B28: 2 | D28: RT301 | E28: HAREFIELD HOSPITAL - RT301 | F28: Maple Ward | G28: 170 - CARDIOTHORACIC SURGERY | I28: 1950 | J28: 1622 | K28: 736 | L28: 518 | M28: 990 | N28: 1070 | O28: 701.5 | P28: 610 | Q28: 0.8317948718 | R28: 0.7038043478 | S28: 1.080808081 | T28: 0.8695652174 | U28: 856 | V28: 3.144859813 | W28: 1.317757009 | X28: 4.462616822 | Z28: 171 - PAEDIATRIC SURGERY | AV28: NVCBLAKELANDS HOSPITAL | AW28: NVC31 | AX28: BLAKELANDS HOSPITAL | AY28: NVC31 | AZ28: BLAKELANDS HOSPITAL | BA28: NVC | BB28: Concat Final:
B29: 0 | D29: RT301 | E29: HAREFIELD HOSPITAL - RT301 | F29: Oak/Acorn | G29: 320 - CARDIOLOGY | H29: 170 - CARDIOTHORACIC SURGERY | I29: 5850 | J29: 4391 | K29: 2333 | L29: 1193 | M29: 3630 | N29: 2825 | O29: 660 | P29: 370 | Q29: 0.7505982906 | R29: 0.5113587655 | S29: 0.7782369146 | T29: 0.5606060606 | U29: 1219 | V29: 5.919606235 | W29: 1.282198523 | X29: 7.201804758 | Z29: 180 - ACCIDENT & EMERGENCY | AV29: NVCBODMIN NHS TREATMENT CENTRE | AW29: NVC24 | AX29: BODMIN NHS TREATMENT CENTRE | AY29: NVC24 | AZ29: BODMIN NHS TREATMENT CENTRE | BA29: NVC | BB29: =CONCATENATE($BB$25,$BB$21,$BB$26,$BB$23) -> $Ax2048:$Ax2049
B30: 0 | D30: RT301 | E30: HAREFIELD HOSPITAL - RT301 | F30: Juniper | G30: 320 - CARDIOLOGY | I30: 2312 | J30: 2229 | K30: 1000 | L30: 772 | M30: 2070 | N30: 1582 | O30: 713 | P30: 419 | Q30: 0.964100346 | R30: 0.772 | S30: 0.7642512077 | T30: 0.587657784 | U30: 233 | V30: 16.35622318 | W30: 5.111587983 | X30: 21.46781116 | Z30: 190 - ANAESTHETICS | AV30: NVCBOSTON WEST HOSPITAL | AW30: NVC27 | AX30: BOSTON WEST HOSPITAL | AY30: NVC27 | AZ30: BOSTON WEST HOSPITAL | BA30: NVC
B31: 0 | Z31: 192 - CRITICAL CARE MEDICINE | AV31: NVCCLIFTON PARK HOSPITAL | AW31: NVC28 | AX31: CLIFTON PARK HOSPITAL | AY31: NVC28 | AZ31: CLIFTON PARK HOSPITAL | BA31: NVC
B32: 0 | Z32: 300 - GENERAL MEDICINE | AV32: NVCCOBALT HOSPITAL | AW32: NVC29 | AX32: COBALT HOSPITAL | AY32: NVC29 | AZ32: COBALT HOSPITAL | BA32: NVC
B33: 0 | Z33: 301 - GASTROENTEROLOGY | AV33: NVCDUCHY HOSPITAL | AW33: NVC04 | AX33: DUCHY HOSPITAL | AY33: NVC04 | AZ33: DUCHY HOSPITAL | BA33: NVC
B34: 0 | Z34: 302 - ENDOCRINOLOGY | AV34: NVCEUXTON HALL HOSPITAL | AW34: NVC05 | AX34: EUXTON HALL HOSPITAL | AY34: NVC05 | AZ34: EUXTON HALL HOSPITAL | BA34: NVC
B35: 0 | Z35: 303 - CLINICAL HAEMATOLOGY | AV35: NVCFITZWILLIAM HOSPITAL | AW35: NVC06 | AX35: FITZWILLIAM HOSPITAL | AY35: NVC06 | AZ35: FITZWILLIAM HOSPITAL | BA35: NVC
B36: 0 | Z36: 304 - CLINICAL PHYSIOLOGY | AV36: NVCFULWOOD HALL HOSPITAL | AW36: NVC07 | AX36: FULWOOD HALL HOSPITAL | AY36: NVC07 | AZ36: FULWOOD HALL HOSPITAL | BA36: NVC
B37: 0 | Z37: 305 - CLINICAL PHARMACOLOGY | AV37: NVCHORTON NHS TREATMENT CENTRE | AW37: NVC25 | AX37: HORTON NHS TREATMENT CENTRE | AY37: NVC25 | AZ37: HORTON NHS TREATMENT CENTRE | BA37: NVC
B38: 0 | Z38: 307-DIABETIC MEDICINE | AV38: NVCMOUNT STUART HOSPITAL | AW38: NVC08 | AX38: MOUNT STUART HOSPITAL | AY38: NVC08 | AZ38: MOUNT STUART HOSPITAL | BA38: NVC
B39: 0 | Z39: 310 - AUDIOLOGICAL MEDICINE | AV39: NVCNEW HALL HOSPITAL | AW39: NVC09 | AX39: NEW HALL HOSPITAL | AY39: NVC09 | AZ39: NEW HALL HOSPITAL | BA39: NVC
B40: 0 | Z40: 313 - CLINICAL IMMUNOLOGY and ALLERGY | AV40: NVCNORTH DOWNS HOSPITAL | AW40: NVC11 | AX40: NORTH DOWNS HOSPITAL | AY40: NVC11 | AZ40: NORTH DOWNS HOSPITAL | BA40: NVC
B41: 0 | Z41: 314 - REHABILITATION | AV41: NVCNOTTINGHAM WOODTHORPE HOSPITAL | AW41: NVC40 | AX41: NOTTINGHAM WOODTHORPE HOSPITAL | AY41: NVC40 | AZ41: NOTTINGHAM WOODTHORPE HOSPITAL | BA41: NVC
B42: 0 | Z42: 315 - PALLIATIVE MEDICINE | AV42: NVCOAKLANDS HOSPITAL | AW42: NVC12 | AX42: OAKLANDS HOSPITAL | AY42: NVC12 | AZ42: OAKLANDS HOSPITAL | BA42: NVC
B43: 0 | Z43: 318- INTERMEDIATE CARE | AV43: NVCOAKS HOSPITAL | AW43: NVC13 | AX43: OAKS HOSPITAL | AY43: NVC13 | AZ43: OAKS HOSPITAL | BA43: NVC
B44: 0 | Z44: 319 - RESPITE CARE | AV44: NVCPARK HILL HOSPITAL | AW44: NVC14 | AX44: PARK HILL HOSPITAL | AY44: NVC14 | AZ44: PARK HILL HOSPITAL | BA44: NVC
B45: 0 | Z45: 320 - CARDIOLOGY | AV45: NVCPINEHILL HOSPITAL | AW45: NVC15 | AX45: PINEHILL HOSPITAL | AY45: NVC15 | AZ45: PINEHILL HOSPITAL | BA45: NVC
B46: 0 | D46: =IF(ISNA(VLOOKUP($E$5&E46,$AV:$AW,2,FALSE)),"",VLOOKUP($E$5&E46,$AV:$AW,2,FALSE)) ->  | Z46: 321 - PAEDIATRIC CARDIOLOGY | AV46: NVCRENACRES HOSPITAL | AW46: NVC16 | AX46: RENACRES HOSPITAL | AY46: NVC16 | AZ46: RENACRES HOSPITAL | BA46: NVC
B47: 0 | Z47: 323- SPINAL INJURIES | AV47: NVCRIVERS HOSPITAL | AW47: NVC19 | AX47: RIVERS HOSPITAL | AY47: NVC19 | AZ47: RIVERS HOSPITAL | BA47: NVC
B48: 0 | Z48: 325 - SPORTS AND EXERCISE MEDICINE | AV48: NVCROWLEY HALL HOSPITAL | AW48: NVC17 | AX48: ROWLEY HALL HOSPITAL | AY48: NVC17 | AZ48: ROWLEY HALL HOSPITAL | BA48: NVC
B49: 0 | Z49: 326 - ACUTE INTERNAL MEDICINE | AV49: NVCSPRINGFIELD HOSPITAL | AW49: NVC18 | AX49: SPRINGFIELD HOSPITAL | AY49: NVC18 | AZ49: SPRINGFIELD HOSPITAL | BA49: NVC
B50: 0 | Z50: 328-STROKE MEDICINE | AV50: NVCTEES VALLEY TREATMENT CENTRE | AW50: NVC35 | AX50: TEES VALLEY TREATMENT CENTRE | AY50: NVC35 | AZ50: TEES VALLEY TREATMENT CENTRE | BA50: NVC
B51: 0 | Z51: 330 - DERMATOLOGY | AV51: NVCTHE BERKSHIRE INDEPENDENT HOSPITAL | AW51: NVC02 | AX51: THE BERKSHIRE INDEPENDENT HOSPITAL | AY51: NVC02 | AZ51: THE BERKSHIRE INDEPENDENT HOSPITAL | BA51: NVC
B52: 0 | Z52: 340 - RESPIRATORY MEDICINE | AV52: NVCTHE WESTBOURNE CENTRE | AW52: NVC44 | AX52: THE WESTBOURNE CENTRE | AY52: NVC44 | AZ52: THE WESTBOURNE CENTRE | BA52: NVC
B53: 0 | Z53: 350 - INFECTIOUS DISEASES | AV53: NVCTHE YORKSHIRE CLINIC | AW53: NVC20 | AX53: THE YORKSHIRE CLINIC | AY53: NVC20 | AZ53: THE YORKSHIRE CLINIC | BA53: NVC
B54: 0 | Z54: 352 - TROPICAL MEDICINE | AV54: NVCWEST MIDLANDS HOSPITAL | AW54: NVC21 | AX54: WEST MIDLANDS HOSPITAL | AY54: NVC21 | AZ54: WEST MIDLANDS HOSPITAL | BA54: NVC
B55: 0 | Z55: 360 - GENITOURINARY MEDICINE | AV55: NVCWINFIELD HOSPITAL | AW55: NVC22 | AX55: WINFIELD HOSPITAL | AY55: NVC22 | AZ55: WINFIELD HOSPITAL | BA55: NVC
B56: 0 | Z56: 361 - NEPHROLOGY | AV56: NVCWOODLAND HOSPITAL | AW56: NVC23 | AX56: WOODLAND HOSPITAL | AY56: NVC23 | AZ56: WOODLAND HOSPITAL | BA56: NVC
B57: 0 | Z57: 370 - MEDICAL ONCOLOGY | AV57: R0AMANCHESTER ROYAL EYE HOSPITAL | AW57: R0A04 | AX57: MANCHESTER ROYAL EYE HOSPITAL | AY57: R0A04 | AZ57: MANCHESTER ROYAL EYE HOSPITAL | BA57: R0A
B58: 0 | Z58: 399-PSYCHIATRY SERVICES | AV58: R0AMANCHESTER ROYAL INFIRMARY | AW58: R0A02 | AX58: MANCHESTER ROYAL INFIRMARY | AY58: R0A02 | AZ58: MANCHESTER ROYAL INFIRMARY | BA58: R0A
B59: 0 | Z59: 400 - NEUROLOGY | AV59: R0AROYAL MANCHESTER CHILDREN'S HOSPITAL | AW59: R0A03 | AX59: ROYAL MANCHESTER CHILDREN'S HOSPITAL | AY59: R0A03 | AZ59: ROYAL MANCHESTER CHILDREN'S HOSPITAL | BA59: R0A
B60: 0 | Z60: 401 - CLINICAL NEURO-PHYSIOLOGY | AV60: R0AST MARY'S HOSPITAL | AW60: R0A05 | AX60: ST MARY'S HOSPITAL | AY60: R0A05 | AZ60: ST MARY'S HOSPITAL | BA60: R0A
B61: 0 | Z61: 410 - RHEUMATOLOGY | AV61: R0ATRAFFORD GENERAL HOSPITAL | AW61: R0A09 | AX61: TRAFFORD GENERAL HOSPITAL | AY61: R0A09 | AZ61: TRAFFORD GENERAL HOSPITAL | BA61: R0A
B62: 0 | Z62: 420 - PAEDIATRICS | AV62: R0AUNIVERSITY DENTAL HOSPITAL | AW62: R0A06 | AX62: UNIVERSITY DENTAL HOSPITAL | AY62: R0A06 | AZ62: UNIVERSITY DENTAL HOSPITAL | BA62: R0A
B63: 0 | Z63: 421 - PAEDIATRIC NEUROLOGY | AV63: R0AWYTHENSHAWE HOSPITAL | AW63: R0A07 | AX63: WYTHENSHAWE HOSPITAL | AY63: R0A07 | AZ63: WYTHENSHAWE HOSPITAL | BA63: R0A
B64: 0 | Z64: 422- NEONATOLOGY | AV64: R1AACONBURY UNIT | AW64: R1ADY | AX64: ACONBURY UNIT | AY64: R1ADY | AZ64: ACONBURY UNIT | BA64: R1A
B65: 0 | Z65: 424- WELL BABIES | AV65: R1AALEXANDRA HOSPITAL | AW65: R1AAL | AX65: ALEXANDRA HOSPITAL | AY65: R1AAL | AZ65: ALEXANDRA HOSPITAL | BA65: R1A
B66: 0 | Z66: 430 - GERIATRIC MEDICINE | AV66: R1AARROWSIDE UNIT (ALEXANDRA HOSPITAL) | AW66: R1A1X | AX66: ARROWSIDE UNIT (ALEXANDRA HOSPITAL) | AY66: R1A1X | AZ66: ARROWSIDE UNIT (ALEXANDRA HOSPITAL) | BA66: R1A
B67: 0 | Z67: 450 - DENTAL MEDICINE SPECIALTIES | AV67: R1ABATCHLEY FIRST NURSERY PLUS | AW67: R1AHC | AX67: BATCHLEY FIRST NURSERY PLUS | AY67: R1AHC | AZ67: BATCHLEY FIRST NURSERY PLUS | BA67: R1A
B68: 0 | Z68: 460 - MEDICAL OPHTHALMOLOGY | AV68: R1ABEACONSIDE AUTISM BASE | AW68: R1A05 | AX68: BEACONSIDE AUTISM BASE | AY68: R1A05 | AZ68: BEACONSIDE AUTISM BASE | BA68: R1A
B69: 0 | Z69: 501 - OBSTETRICS | AV69: R1ABIRMINGHAM CHILDREN'S HOSPITAL | AW69: R1A03 | AX69: BIRMINGHAM CHILDREN'S HOSPITAL | AY69: R1A03 | AZ69: BIRMINGHAM CHILDREN'S HOSPITAL | BA69: R1A
B70: 0 | Z70: 502 - GYNAECOLOGY | AV70: R1ACHURCHVIEW HOUSE | AW70: R1ACD | AX70: CHURCHVIEW HOUSE | AY70: R1ACD | AZ70: CHURCHVIEW HOUSE | BA70: R1A
B71: 0 | Z71: 560- MIDWIFE LED CARE | AV71: R1ACOMM HOSP WARDS (EVESHAM) | AW71: R1ARE | AX71: COMM HOSP WARDS (EVESHAM) | AY71: R1ARE | AZ71: COMM HOSP WARDS (EVESHAM) | BA71: R1A
B72: 0 | Z72: 700- LEARNING DISABILITY | AV72: R1ACOMM HOSP WARDS (MALVERN) | AW72: R1ARG | AX72: COMM HOSP WARDS (MALVERN) | AY72: R1ARG | AZ72: COMM HOSP WARDS (MALVERN) | BA72: R1A
B73: 0 | Z73: 710 - ADULT MENTAL ILLNESS | AV73: R1ACOMM HOSP WARDS (PERSHORE) | AW73: R1ARJ | AX73: COMM HOSP WARDS (PERSHORE) | AY73: R1ARJ | AZ73: COMM HOSP WARDS (PERSHORE) | BA73: R1A
B74: 0 | Z74: 711- CHILD and ADOLESCENT PSYCHIATRY | AV74: R1ACOMM HOSP WARDS (TENBURY) | AW74: R1ARL | AX74: COMM HOSP WARDS (TENBURY) | AY74: R1ARL | AZ74: COMM HOSP WARDS (TENBURY) | BA74: R1A
B75: 0 | Z75: 712 - FORENSIC PSYCHIATRY | AV75: R1ACOMM HOSP WARDS (WF GP UNIT) | AW75: R1ARN | AX75: COMM HOSP WARDS (WF GP UNIT) | AY75: R1ARN | AZ75: COMM HOSP WARDS (WF GP UNIT) | BA75: R1A
B76: 0 | Z76: 713- PSYCHOTHERAPY | AV76: =CONCATENATE(LEFT(AW76, 3),AX76) -> R1ACOMMUNITY FIRST | AW76: R1A94 | AX76: COMMUNITY FIRST | AY76: R1A94 | AZ76: COMMUNITY FIRST | BA76: =LEFT(AY76,3) -> R1A
B77: 0 | Z77: 715 - OLD AGE PSYCHIATRY | AV77: R1ACOMMUNITY HOSP WARDS (POWCH) | AW77: R1ARK | AX77: COMMUNITY HOSP WARDS (POWCH) | AY77: R1ARK | AZ77: COMMUNITY HOSP WARDS (POWCH) | BA77: R1A
B78: 0 | D78: =IF(ISNA(VLOOKUP($E$5&E78,$AV:$AW,2,FALSE)),"",VLOOKUP($E$5&E78,$AV:$AW,2,FALSE)) ->  | Z78: 800 - CLINICAL ONCOLOGY | AV78: R1ACOMMUNITY INREACH EVESHAM | AW78: R1AJX | AX78: COMMUNITY INREACH EVESHAM | AY78: R1AJX | AZ78: COMMUNITY INREACH EVESHAM | BA78: R1A
B79: 0 | Q79: =IF(ISERROR(IF($I79="","",J79/I79)),"-",(IF($I79="","",J79/I79))) ->  | R79: =IF(ISERROR(IF(K79="","",L79/K79)),"-",(IF(K79="","",L79/K79))) ->  | S79: =IF(ISERROR(IF(M79="","",N79/M79)),"-",(IF(M79="","",N79/M79))) ->  | T79: =IF(ISERROR(IF(O79="","",P79/O79)),"-",IF(O79="","",P79/O79)) ->  | V79: =IF(ISERROR(IF($U79="","",SUM(J79,N79)/$U79)),"-",(IF($U79="","",SUM(J79,N79)/$U79))) ->  | W79: =IF(ISERROR(IF($U79="","",SUM(L79,P79)/$U79)),"-",(IF($U79="","",SUM(L79,P79)/$U79))) ->  | X79: =IF(ISERROR(IF($U79="","",SUM(J79,L79,N79,P79)/$U79)),"-",(IF($U79="","",SUM(J79,L79,N79,P79)/$U79))) ->  | Z79: 810 - RADIOLOGY | AK79: =IF(M280=1,"No Site Selected","") ->  | AL79: =IF(N280=1,"No Ward Name","") ->  | AV79: R1ACOMMUNITY INREACH REDDITCH 6 | AW79: R1AJV | AX79: COMMUNITY INREACH REDDITCH 6 | AY79: R1AJV | AZ79: COMMUNITY INREACH REDDITCH 6 | BA79: R1A
B80: =IF(SUM(E281:G281,M281:N281)>0,1,IF(Y281>0,2,0)) -> 0 | Z80: 822 - CHEMICAL PATHOLOGY | AV80: R1ACOMMUNITY INREACH REDDITCH 8 | AW80: R1AJY | AX80: COMMUNITY INREACH REDDITCH 8 | AY80: R1AJY | AZ80: COMMUNITY INREACH REDDITCH 8 | BA80: R1A
A81: =IF(M282=1,"No Site Selected",IF(N282=1,"No Ward Name","")) ->  | B81: 0 | Z81: 823 - HAEMATOLOGY | AV81: R1ACOMMUNITY PAEDESTRICIANS-1 | AW81: R1AQQ | AX81: COMMUNITY PAEDESTRICIANS-1 | AY81: R1AQQ | AZ81: COMMUNITY PAEDESTRICIANS-1 | BA81: R1A
B82: 0 | Z82: 879-COMMUNITY NURSING | AV82: R1ACOMMUNITY UNIT | AW82: R1ADV | AX82: COMMUNITY UNIT | AY82: R1ADV | AZ82: COMMUNITY UNIT | BA82: R1A
B83: 0 | Z83: 901 - OCCUPATIONAL MEDICINE | AV83: R1ACOMMUNITY VENUE | AW83: R1A76 | AX83: COMMUNITY VENUE | AY83: R1A76 | AZ83: COMMUNITY VENUE | BA83: R1A
B84: 0 | Z84: 903- PUBLIC HEALTH MEDICINE | AV84: R1ACOVERCROFT | AW84: R1APF | AX84: COVERCROFT | AY84: R1APF | AZ84: COVERCROFT | BA84: R1A
B85: 0 | Z85: 920 - ORTHOTICS AND PROSTHETICS | AV85: R1ACROMWELL HOUSE | AW85: R1AAV | AX85: CROMWELL HOUSE | AY85: R1AAV | AZ85: CROMWELL HOUSE | BA85: R1A
B86: 0 | Z86: 921 - GENETICS | AV86: R1ACROWNGATE PHYSIOTHERAPY | AW86: R1A82 | AX86: CROWNGATE PHYSIOTHERAPY | AY86: R1A82 | AZ86: CROWNGATE PHYSIOTHERAPY | BA86: R1A
B87: 0 | Z87: 922 - SEXUAL HEALTH SERVICES | AV87: R1ADROITWICH SPA PRIVATE HOSPITAL | AW87: R1AFT | AX87: DROITWICH SPA PRIVATE HOSPITAL | AY87: R1AFT | AZ87: DROITWICH SPA PRIVATE HOSPITAL | BA87: R1A
B88: 0 | Z88: 923 - DIAGNOSTIC PATHOLOGY | AV88: R1AELGAR UNIT | AW88: R1ADW | AX88: ELGAR UNIT | AY88: R1ADW | AZ88: ELGAR UNIT | BA88: R1A
B89: 0 | Z89: 924 - BLOOD DONOR CENTRES | AV89: R1AESTATES BUILDING | AW89: R1ACE | AX89: ESTATES BUILDING | AY89: R1ACE | AZ89: ESTATES BUILDING | BA89: R1A
B90: 0 | Z90: 925 - COMMUNITY CARE SERVICES | AV90: R1AEVESHAM COMMUNITY HOSPITAL | AW90: R1A1P | AX90: EVESHAM COMMUNITY HOSPITAL | AY90: R1A1P | AZ90: EVESHAM COMMUNITY HOSPITAL | BA90: R1A
B91: 0 | Z91: 926 - THERAPY SERVICES | AV91: R1AGOLD HILL CARE HOME | AW91: R1AKK | AX91: GOLD HILL CARE HOME | AY91: R1AKK | AZ91: GOLD HILL CARE HOME | BA91: R1A
B92: 0 | Z92: 927 - PHYSICAL HEALTH REHABILITATION | AV92: R1AHASTINGS CARE HOME | AW92: R1AKG | AX92: HASTINGS CARE HOME | AY92: R1AKG | AZ92: HASTINGS CARE HOME | BA92: R1A
B93: 0 | Z93: 928 - MENTAL HEALTH REHABILITATION | AV93: R1AHILL CREST 1 | AW93: R1APM | AX93: HILL CREST 1 | AY93: R1APM | AZ93: HILL CREST 1 | BA93: R1A
B94: 0 | Z94: 929 - NEURO-REHABILITATION | AV94: R1AHILL CREST 2 | AW94: R1APQ | AX94: HILL CREST 2 | AY94: R1APQ | AZ94: HILL CREST 2 | BA94: R1A
B95: 0 | Z95: 996 - PSYCHIATRIC INTENSIVE CARE UNIT | AV95: R1AHILL CREST MENTAL HEALTH UNIT | AW95: R1A49 | AX95: HILL CREST MENTAL HEALTH UNIT | AY95: R1A49 | AZ95: HILL CREST MENTAL HEALTH UNIT | BA95: R1A
B96: 0 | AV96: R1AHOME FARM TRUST | AW96: R1A89 | AX96: HOME FARM TRUST | AY96: R1A89 | AZ96: HOME FARM TRUST | BA96: R1A
B97: 0 | AV97: R1AHOME TREATMENT 1 | AW97: R1APL | AX97: HOME TREATMENT 1 | AY97: R1APL | AZ97: HOME TREATMENT 1 | BA97: R1A
B98: 0 | AV98: R1AHOME TREATMENT 2 | AW98: R1APN | AX98: HOME TREATMENT 2 | AY98: R1APN | AZ98: HOME TREATMENT 2 | BA98: R1A
B99: 0 | AV99: R1AHOMEWARD BOUND UNIT | AW99: R1ADE | AX99: HOMEWARD BOUND UNIT | AY99: R1ADE | AZ99: HOMEWARD BOUND UNIT | BA99: R1A
B100: 0 | AV100: R1AKEITH WINTER CLOSE MENTAL HEALTH UNIT | AW100: R1A22 | AX100: KEITH WINTER CLOSE MENTAL HEALTH UNIT | AY100: R1A22 | AZ100: KEITH WINTER CLOSE MENTAL HEALTH UNIT | BA100: R1A
B101: 0 | AV101: R1AKEMPSEY PARISH HALL | AW101: R1AHL | AX101: KEMPSEY PARISH HALL | AY101: R1AHL | AZ101: KEMPSEY PARISH HALL | BA101: R1A
B102: 0 | AV102: R1ALICKEY LANGUAGE UNIT | AW102: R1AHV | AX102: LICKEY LANGUAGE UNIT | AY102: R1AHV | AZ102: LICKEY LANGUAGE UNIT | BA102: R1A
B103: 0 | AV103: R1ALINK HORTICULTURIAL NURSERIES - SHELTERED EMPLOYMENT | AW103: R1AAE | AX103: LINK HORTICULTURIAL NURSERIES - SHELTERED EMPLOYMENT | AY103: R1AAE | AZ103: LINK HORTICULTURIAL NURSERIES - SHELTERED EMPLOYMENT | BA103: R1A
B104: 0 | AV104: R1ALUDLOW ROAD | AW104: R1A58 | AX104: LUDLOW ROAD | AY104: R1A58 | AZ104: LUDLOW ROAD | BA104: R1A
B105: 0 | AV105: R1AMALVERN COMMUNITY HOSPITAL | AW105: R1ADC | AX105: MALVERN COMMUNITY HOSPITAL | AY105: R1ADC | AZ105: MALVERN COMMUNITY HOSPITAL | BA105: R1A
B106: 0 | AV106: R1AMATCHBOROUGH FIRST NURSERY PLUS | AW106: R1AHF | AX106: MATCHBOROUGH FIRST NURSERY PLUS | AY106: R1AHF | AZ106: MATCHBOROUGH FIRST NURSERY PLUS | BA106: R1A
B107: 0 | AV107: R1ANEW BROOK | AW107: R1ACF | AX107: NEW BROOK | AY107: R1ACF | AZ107: NEW BROOK | BA107: R1A
B108: 0 | AV108: R1ANEW BROOK UNIT 1 | AW108: R1APK | AX108: NEW BROOK UNIT 1 | AY108: R1APK | AZ108: NEW BROOK UNIT 1 | BA108: R1A
B109: 0 | AV109: R1ANEW BROOK UNIT 2 | AW109: R1APP | AX109: NEW BROOK UNIT 2 | AY109: R1APP | AZ109: NEW BROOK UNIT 2 | BA109: R1A
B110: 0 | D110: =IF(ISNA(VLOOKUP($E$5&E110,$AV:$AW,2,FALSE)),"",VLOOKUP($E$5&E110,$AV:$AW,2,FALSE)) ->  | AV110: R1ANEW CROSS HOSPITAL | AW110: R1A1N | AX110: NEW CROSS HOSPITAL | AY110: R1A1N | AZ110: NEW CROSS HOSPITAL | BA110: R1A
B111: 0 | AV111: R1ANEW HAVEN (MENTAL HEALTH UNIT) | AW111: R1ACC | AX111: NEW HAVEN (MENTAL HEALTH UNIT) | AY111: R1ACC | AZ111: NEW HAVEN (MENTAL HEALTH UNIT) | BA111: R1A
B112: 0 | AV112: R1ANEWTOWN HOSPITAL | AW112: R1A07 | AX112: NEWTOWN HOSPITAL | AY112: R1A07 | AZ112: NEWTOWN HOSPITAL | BA112: R1A
B113: 0 | AV113: R1AORCHARD PLACE | AW113: R1A37 | AX113: ORCHARD PLACE | AY113: R1A37 | AZ113: ORCHARD PLACE | BA113: R1A
B114: 0 | AV114: R1AOSBORNE COURT | AW114: R1ACY | AX114: OSBORNE COURT | AY114: R1ACY | AZ114: OSBORNE COURT | BA114: R1A
B115: 0 | AV115: R1AOT STORES | AW115: R1AGK | AX115: OT STORES | AY115: R1AGK | AZ115: OT STORES | BA115: R1A
B116: 0 | AV116: R1APALLIATIVE CARE (R&B) | AW116: R1AQP | AX116: PALLIATIVE CARE (R&B) | AY116: R1AQP | AZ116: PALLIATIVE CARE (R&B) | BA116: R1A
B117: 0 | AV117: R1APALLIATIVE CARE (SW) | AW117: R1ART | AX117: PALLIATIVE CARE (SW) | AY117: R1ART | AZ117: PALLIATIVE CARE (SW) | BA117: R1A
B118: 0 | AV118: R1APALLIATIVE CARE (WF) | AW118: R1ARR | AX118: PALLIATIVE CARE (WF) | AY118: R1ARR | AZ118: PALLIATIVE CARE (WF) | BA118: R1A
B119: 0 | AV119: R1APARKSIDE MIDDLE AUTISM BASE | AW119: R1AEM | AX119: PARKSIDE MIDDLE AUTISM BASE | AY119: R1AEM | AZ119: PARKSIDE MIDDLE AUTISM BASE | BA119: R1A
B120: 0 | AV120: R1APERSHORE HOSPITAL | AW120: R1ACW | AX120: PERSHORE HOSPITAL | AY120: R1ACW | AZ120: PERSHORE HOSPITAL | BA120: R1A
B121: 0 | AV121: R1APHYSIO UNIT ROSEHILL | AW121: R1AA6 | AX121: PHYSIO UNIT ROSEHILL | AY121: R1AA6 | AZ121: PHYSIO UNIT ROSEHILL | BA121: R1A
B122: 0 | AV122: R1APHYSIO UNIT THORNTON | AW122: R1A1A | AX122: PHYSIO UNIT THORNTON | AY122: R1A1A | AZ122: PHYSIO UNIT THORNTON | BA122: R1A
B123: 0 | AV123: R1APOSTNATAL UNIT | AW123: R1ADM | AX123: POSTNATAL UNIT | AY123: R1ADM | AZ123: POSTNATAL UNIT | BA123: R1A
B124: 0 | AV124: R1APRINCESS OF WALES HOSPITAL | AW124: R1ACG | AX124: PRINCESS OF WALES HOSPITAL | AY124: R1ACG | AZ124: PRINCESS OF WALES HOSPITAL | BA124: R1A
B125: 0 | AV125: R1APUPIL REFERRAL UNIT | AW125: R1A60 | AX125: PUPIL REFERRAL UNIT | AY125: R1A60 | AZ125: PUPIL REFERRAL UNIT | BA125: R1A
B126: 0 | AV126: R1AQUEEN ELIZABETH HOSPITAL | AW126: R1A02 | AX126: QUEEN ELIZABETH HOSPITAL | AY126: R1A02 | AZ126: QUEEN ELIZABETH HOSPITAL | BA126: R1A
B127: 0 | AV127: R1ARIVENDELL | AW127: R1A14 | AX127: RIVENDELL | AY127: R1A14 | AZ127: RIVENDELL | BA127: R1A
B128: 0 | AV128: R1ARIVERBANK NEONATAL UNIT | AW128: R1ADN | AX128: RIVERBANK NEONATAL UNIT | AY128: R1ADN | AZ128: RIVERBANK NEONATAL UNIT | BA128: R1A
B129: 0 | AV129: R1ARUSSELLS HALL HOSPITAL | AW129: R1A56 | AX129: RUSSELLS HALL HOSPITAL | AY129: R1A56 | AZ129: RUSSELLS HALL HOSPITAL | BA129: R1A
B130: 0 | AV130: R1ASILVERBIRCH | AW130: R1ACH | AX130: SILVERBIRCH | AY130: R1ACH | AZ130: SILVERBIRCH | BA130: R1A
B131: 0 | AV131: R1ASTUDDERT KENNEDY OA | AW131: R1APG | AX131: STUDDERT KENNEDY OA | AY131: R1APG | AZ131: STUDDERT KENNEDY OA | BA131: R1A
B132: 0 | AV132: R1ATENBURY COMMUNITY HOSPITAL | AW132: R1AAN | AX132: TENBURY COMMUNITY HOSPITAL | AY132: R1AAN | AZ132: TENBURY COMMUNITY HOSPITAL | BA132: R1A
B133: 0 | AV133: R1ATESCO KIDDERMINSTER | AW133: R1A67 | AX133: TESCO KIDDERMINSTER | AY133: R1A67 | AZ133: TESCO KIDDERMINSTER | BA133: R1A
B134: 0 | AV134: R1ATESCO REDDITCH | AW134: R1A43 | AX134: TESCO REDDITCH | AY134: R1A43 | AZ134: TESCO REDDITCH | BA134: R1A
B135: 0 | AV135: R1ATESCO ST PETERS | AW135: R1A1G | AX135: TESCO ST PETERS | AY135: R1A1G | AZ135: TESCO ST PETERS | BA135: R1A
B136: 0 | AV136: R1ATESCO WARNDON | AW136: R1AA1 | AX136: TESCO WARNDON | AY136: R1AA1 | AZ136: TESCO WARNDON | BA136: R1A
B137: 0 | AV137: R1ATHE FIRS REST HOME | AW137: R1A1F | AX137: THE FIRS REST HOME | AY137: R1A1F | AZ137: THE FIRS REST HOME | BA137: R1A
B138: 0 | AV138: R1ATHE GRANGE | AW138: R1A66 | AX138: THE GRANGE | AY138: R1A66 | AZ138: THE GRANGE | BA138: R1A
B139: 0 | AV139: R1ATHE HIVE | AW139: R1AKX | AX139: THE HIVE | AY139: R1AKX | AZ139: THE HIVE | BA139: R1A
B140: 0 | AV140: =CONCATENATE(LEFT(AW140, 3),AX140) -> R1ATHE OLD VICARAGE | AW140: R1AKL | AX140: THE OLD VICARAGE | AY140: R1AKL | AZ140: THE OLD VICARAGE | BA140: =LEFT(AY140,3) -> R1A
B141: 0 | AV141: R1ATHE PINES | AW141: R1AHX | AX141: THE PINES | AY141: R1AHX | AZ141: THE PINES | BA141: R1A
B142: 0 | D142: =IF(ISNA(VLOOKUP($E$5&E142,$AV:$AW,2,FALSE)),"",VLOOKUP($E$5&E142,$AV:$AW,2,FALSE)) ->  | AV142: R1ATHE ROBERTSON CENTRE (D BLOCK) | AW142: R1ACN | AX142: THE ROBERTSON CENTRE (D BLOCK) | AY142: R1ACN | AZ142: THE ROBERTSON CENTRE (D BLOCK) | BA142: R1A
B143: 0 | Q143: =IF(ISERROR(IF($I143="","",J143/I143)),"-",(IF($I143="","",J143/I143))) ->  | R143: =IF(ISERROR(IF(K143="","",L143/K143)),"-",(IF(K143="","",L143/K143))) ->  | S143: =IF(ISERROR(IF(M143="","",N143/M143)),"-",(IF(M143="","",N143/M143))) ->  | T143: =IF(ISERROR(IF(O143="","",P143/O143)),"-",IF(O143="","",P143/O143)) ->  | V143: =IF(ISERROR(IF($U143="","",SUM(J143,N143)/$U143)),"-",(IF($U143="","",SUM(J143,N143)/$U143))) ->  | W143: =IF(ISERROR(IF($U143="","",SUM(L143,P143)/$U143)),"-",(IF($U143="","",SUM(L143,P143)/$U143))) ->  | X143: =IF(ISERROR(IF($U143="","",SUM(J143,L143,N143,P143)/$U143)),"-",(IF($U143="","",SUM(J143,L143,N143,P143)/$U143))) ->  | AK143: =IF(M344=1,"No Site Selected","") ->  | AL143: =IF(N344=1,"No Ward Name","") ->  | AV143: R1ATHE WOODLANDS | AW143: R1A44 | AX143: THE WOODLANDS | AY143: R1A44 | AZ143: THE WOODLANDS | BA143: R1A
B144: =IF(SUM(E345:G345,M345:N345)>0,1,IF(Y345>0,2,0)) -> 0 | AV144: R1ATIMBERDINE HOME RESIDENTIAL CARE | AW144: R1AHM | AX144: TIMBERDINE HOME RESIDENTIAL CARE | AY144: R1AHM | AZ144: TIMBERDINE HOME RESIDENTIAL CARE | BA144: R1A
A145: =IF(M346=1,"No Site Selected",IF(N346=1,"No Ward Name","")) ->  | B145: 0 | AV145: R1ATOUCHSTONE UNIT | AW145: R1AAD | AX145: TOUCHSTONE UNIT | AY145: R1AAD | AZ145: TOUCHSTONE UNIT | BA145: R1A
B146: 0 | AV146: R1AWALKWOOD MIDDLE AUTISM BASE | AW146: R1A31 | AX146: WALKWOOD MIDDLE AUTISM BASE | AY146: R1A31 | AZ146: WALKWOOD MIDDLE AUTISM BASE | BA146: R1A
B147: 0 | AV147: R1AWALSGRAVE HOSPITAL | AW147: R1A55 | AX147: WALSGRAVE HOSPITAL | AY147: R1A55 | AZ147: WALSGRAVE HOSPITAL | BA147: R1A
B148: 0 | AV148: R1AWASELY HIGH AUTISM BASE | AW148: R1A06 | AX148: WASELY HIGH AUTISM BASE | AY148: R1A06 | AZ148: WASELY HIGH AUTISM BASE | BA148: R1A
B149: 0 | AV149: R1AWATERSIDE | AW149: R1AQG | AX149: WATERSIDE | AY149: R1AQG | AZ149: WATERSIDE | BA149: R1A
B150: 0 | AV150: R1AWATERSIDE CARE HOME | AW150: R1AKR | AX150: WATERSIDE CARE HOME | AY150: R1AKR | AZ150: WATERSIDE CARE HOME | BA150: R1A
B151: 0 | AV151: R1AWATERSIDE MENTAL HEALTH DAY HOSPITAL | AW151: R1A1V | AX151: WATERSIDE MENTAL HEALTH DAY HOSPITAL | AY151: R1A1V | AZ151: WATERSIDE MENTAL HEALTH DAY HOSPITAL | BA151: R1A
B152: 0 | AV152: R1AWHCT HEALTHCARE FEATHERSTONE | AW152: R1AHY | AX152: WHCT HEALTHCARE FEATHERSTONE | AY152: R1AHY | AZ152: WHCT HEALTHCARE FEATHERSTONE | BA152: R1A
B153: 0 | AV153: R1AWILDMOOR MILL FARM | AW153: R1A21 | AX153: WILDMOOR MILL FARM | AY153: R1A21 | AZ153: WILDMOOR MILL FARM | BA153: R1A
B154: 0 | AV154: R1AWISHMOOR REST HOME | AW154: R1AKN | AX154: WISHMOOR REST HOME | AY154: R1AKN | AZ154: WISHMOOR REST HOME | BA154: R1A
B155: 0 | AV155: R1AWOODSIDE | AW155: R1A1C | AX155: WOODSIDE | AY155: R1A1C | AZ155: WOODSIDE | BA155: R1A
B156: 0 | AV156: R1AWORCESTER CITY MH 1 | AW156: R1AQF | AX156: WORCESTER CITY MH 1 | AY156: R1AQF | AZ156: WORCESTER CITY MH 1 | BA156: R1A
B157: 0 | AV157: R1AWORCESTER CITY MH 2 | AW157: R1AQH | AX157: WORCESTER CITY MH 2 | AY157: R1AQH | AZ157: WORCESTER CITY MH 2 | BA157: R1A
B158: 0 | AV158: R1AWORCESTER CITY MH 3 | AW158: R1AQK | AX158: WORCESTER CITY MH 3 | AY158: R1AQK | AZ158: WORCESTER CITY MH 3 | BA158: R1A
B159: 0 | AV159: R1AWORCESTER INTERMEDIATE CARE UNIT (WICU) | AW159: R1A1Q | AX159: WORCESTER INTERMEDIATE CARE UNIT (WICU) | AY159: R1A1Q | AZ159: WORCESTER INTERMEDIATE CARE UNIT (WICU) | BA159: R1A
B160: 0 | AV160: R1AWORCESTERSHIRE ROYAL HOSPITAL | AW160: R1ADP | AX160: WORCESTERSHIRE ROYAL HOSPITAL | AY160: R1ADP | AZ160: WORCESTERSHIRE ROYAL HOSPITAL | BA160: R1A
B161: 0 | AV161: R1AWULSTAN UNIT | AW161: R1AEC | AX161: WULSTAN UNIT | AY161: R1AEC | AZ161: WULSTAN UNIT | BA161: R1A
B162: 0 | AV162: R1AWULSTAN UNIT REHABILITATION | AW162: R1AED | AX162: WULSTAN UNIT REHABILITATION | AY162: R1AED | AZ162: WULSTAN UNIT REHABILITATION | BA162: R1A
B163: 0 | AV163: R1AWYCHAVON OA | AW163: R1AQJ | AX163: WYCHAVON OA | AY163: R1AQJ | AZ163: WYCHAVON OA | BA163: R1A
B164: 0 | AV164: R1CADULT MENTAL HEALTH | AW164: R1C19 | AX164: ADULT MENTAL HEALTH | AY164: R1C19 | AZ164: ADULT MENTAL HEALTH | BA164: R1C
B165: 0 | AV165: R1CAMULREE DAY HOSPITAL | AW165: R1C14 | AX165: AMULREE DAY HOSPITAL | AY165: R1C14 | AZ165: AMULREE DAY HOSPITAL | BA165: R1C
B166: 0 | AV166: R1CASHURST HOSPITAL | AW166: R1C07 | AX166: ASHURST HOSPITAL | AY166: R1C07 | AZ166: ASHURST HOSPITAL | BA166: R1C
B167: 0 | AV167: R1CBEHAVIOUR RESOURCE (BRS) | AW167: R1C54 | AX167: BEHAVIOUR RESOURCE (BRS) | AY167: R1C54 | AZ167: BEHAVIOUR RESOURCE (BRS) | BA167: R1C
B168: 0 | AV168: R1CBRAMBLES WARD | AW168: R1C48 | AX168: BRAMBLES WARD | AY168: R1C48 | AZ168: BRAMBLES WARD | BA168: R1C
B169: 0 | AV169: R1CC&SH ANDOVER | AW169: R1C62 | AX169: C&SH ANDOVER | AY169: R1C62 | AZ169: C&SH ANDOVER | BA169: R1C
B170: 0 | AV170: R1CC&SH BASINGSTOKE | AW170: R1C45 | AX170: C&SH BASINGSTOKE | AY170: R1C45 | AZ170: C&SH BASINGSTOKE | BA170: R1C
B171: 0 | AV171: R1CC&SH PORTSMOUTH | AW171: R1C17 | AX171: C&SH PORTSMOUTH | AY171: R1C17 | AZ171: C&SH PORTSMOUTH | BA171: R1C
B172: 0 | AV172: R1CC&SH SOUTHAMPTON | AW172: R1C51 | AX172: C&SH SOUTHAMPTON | AY172: R1C51 | AZ172: C&SH SOUTHAMPTON | BA172: R1C
B173: 0 | AV173: R1CC&SH WINCHESTER | AW173: R1C58 | AX173: C&SH WINCHESTER | AY173: R1C58 | AZ173: C&SH WINCHESTER | BA173: R1C
B174: 0 | D174: =IF(ISNA(VLOOKUP($E$5&E174,$AV:$AW,2,FALSE)),"",VLOOKUP($E$5&E174,$AV:$AW,2,FALSE)) ->  | AV174: R1CCAMPION PLACE | AW174: R1C90 | AX174: CAMPION PLACE | AY174: R1C90 | AZ174: CAMPION PLACE | BA174: R1C
B175: 0 | AV175: R1CCHASE COMMUNITY HOSPITAL | AW175: R1CG1 | AX175: CHASE COMMUNITY HOSPITAL | AY175: R1CG1 | AZ175: CHASE COMMUNITY HOSPITAL | BA175: R1C
B176: 0 | AV176: R1CCOMMUNITY PAEDIATRICS - EAST | AW176: R1C22 | AX176: COMMUNITY PAEDIATRICS - EAST | AY176: R1C22 | AZ176: COMMUNITY PAEDIATRICS - EAST | BA176: R1C
B177: 0 | AV177: R1CCOMMUNITY PAEDIATRICS - WEST | AW177: R1C55 | AX177: COMMUNITY PAEDIATRICS - WEST | AY177: R1C55 | AZ177: COMMUNITY PAEDIATRICS - WEST | BA177: R1C
B178: 0 | AV178: R1CCOMMUNITY PAEDS N.FOREST | AW178: R1CA6 | AX178: COMMUNITY PAEDS N.FOREST | AY178: R1CA6 | AZ178: COMMUNITY PAEDS N.FOREST | BA178: R1C
B179: 0 | AV179: R1CCROWN HEIGHTS | AW179: R1CH3 | AX179: CROWN HEIGHTS | AY179: R1CH3 | AZ179: CROWN HEIGHTS | BA179: R1C
B180: 0 | AV180: R1CEASTLEIGH DAS | AW180: R1CR3 | AX180: EASTLEIGH DAS | AY180: R1CR3 | AZ180: EASTLEIGH DAS | BA180: R1C
B181: 0 | AV181: R1CELMLEIGH HOSPITAL | AW181: R1CM8 | AX181: ELMLEIGH HOSPITAL | AY181: R1CM8 | AZ181: ELMLEIGH HOSPITAL | BA181: R1C
B182: 0 | AV182: R1CFANSHAWE WARD | AW182: R1C49 | AX182: FANSHAWE WARD | AY182: R1C49 | AZ182: FANSHAWE WARD | BA182: R1C
B183: 0 | AV183: R1CFAREHAM COMMUNITY HOSPITAL | AW183: R1CF4 | AX183: FAREHAM COMMUNITY HOSPITAL | AY183: R1CF4 | AZ183: FAREHAM COMMUNITY HOSPITAL | BA183: R1C
B184: 0 | AV184: R1CFAREHAM REACH UNIT | AW184: R1C89 | AX184: FAREHAM REACH UNIT | AY184: R1C89 | AZ184: FAREHAM REACH UNIT | BA184: R1C
B185: 0 | AV185: R1CFENWICK HOSPITAL | AW185: R1CT7 | AX185: FENWICK HOSPITAL | AY185: R1CT7 | AZ185: FENWICK HOSPITAL | BA185: R1C
B186: 0 | AV186: R1CFLEET COMMUNITY HOSPITAL | AW186: R1CG3 | AX186: FLEET COMMUNITY HOSPITAL | AY186: R1CG3 | AZ186: FLEET COMMUNITY HOSPITAL | BA186: R1C
B187: 0 | AV187: R1CFRITH COTTAGE DAS | AW187: R1C09 | AX187: FRITH COTTAGE DAS | AY187: R1C09 | AZ187: FRITH COTTAGE DAS | BA187: R1C
B188: 0 | AV188: R1CGOSPORT WAR MEMORIAL HOSPITAL | AW188: R1C70 | AX188: GOSPORT WAR MEMORIAL HOSPITAL | AY188: R1C70 | AZ188: GOSPORT WAR MEMORIAL HOSPITAL | BA188: R1C
B189: 0 | AV189: R1CHAVANT WAR MEMORIAL HOSPITAL | AW189: R1CJ2 | AX189: HAVANT WAR MEMORIAL HOSPITAL | AY189: R1CJ2 | AZ189: HAVANT WAR MEMORIAL HOSPITAL | BA189: R1C
B190: 0 | AV190: R1CHOOK SHADIE AT THE BASE | AW190: R1CE8 | AX190: HOOK SHADIE AT THE BASE | AY190: R1CE8 | AZ190: HOOK SHADIE AT THE BASE | BA190: R1C
B191: 0 | AV191: R1CHUNTERCOMBE MANOR HOSPITAL | AW191: R1CA9 | AX191: HUNTERCOMBE MANOR HOSPITAL | AY191: R1CA9 | AZ191: HUNTERCOMBE MANOR HOSPITAL | BA191: R1C
B192: 0 | AV192: R1CHYTHE HOSPITAL | AW192: R1CG7 | AX192: HYTHE HOSPITAL | AY192: R1CG7 | AZ192: HYTHE HOSPITAL | BA192: R1C
B193: 0 | AV193: R1CINSCAPE | AW193: R1C95 | AX193: INSCAPE | AY193: R1C95 | AZ193: INSCAPE | BA193: R1C
B194: 0 | AV194: R1CINTEGRATED DRUG TREATMENT | AW194: R1C59 | AX194: INTEGRATED DRUG TREATMENT | AY194: R1C59 | AZ194: INTEGRATED DRUG TREATMENT | BA194: R1C
B195: 0 | AV195: R1CLOWER MOUNTBATTON GALLERY | AW195: R1C12 | AX195: LOWER MOUNTBATTON GALLERY | AY195: R1C12 | AZ195: LOWER MOUNTBATTON GALLERY | BA195: R1C
B196: 0 | AV196: R1CLYMINGTON NEW FOREST HOSPITAL | AW196: R1CG4 | AX196: LYMINGTON NEW FOREST HOSPITAL | AY196: R1CG4 | AZ196: LYMINGTON NEW FOREST HOSPITAL | BA196: R1C
B197: 0 | AV197: R1CMILFORD WAR MEMORIAL HOSPITAL | AW197: R1CG5 | AX197: MILFORD WAR MEMORIAL HOSPITAL | AY197: R1CG5 | AZ197: MILFORD WAR MEMORIAL HOSPITAL | BA197: R1C
B198: 0 | AV198: R1CMINOR INJURIES UNIT | AW198: R1CH0 | AX198: MINOR INJURIES UNIT | AY198: R1CH0 | AZ198: MINOR INJURIES UNIT | BA198: R1C
B199: 0 | AV199: R1CMOORGREEN HOSPITAL | AW199: R1C02 | AX199: MOORGREEN HOSPITAL | AY199: R1C02 | AZ199: MOORGREEN HOSPITAL | BA199: R1C
B200: 0 | AV200: R1CNEW FOREST DAS | AW200: R1C65 | AX200: NEW FOREST DAS | AY200: R1C65 | AZ200: NEW FOREST DAS | BA200: R1C
... 818 more rows

Sheet Validation (hidden)
A2: Requested validations | B2: FFT IP validation code
A4: ERRORS:
A5: 1) Organisation code must be selected;
A6: 3) An ODS site code must be selected for each row;
A7: 4) A ward name must be entered for each row;
A8: 5) At least one specialty must be selected (Specialty 1) for each row;
A9: 6) Specialties (Specialty 1 and Specialty 2) must be selected from drop downs; | B9: internal?
A10: 7) Total planned hours for each row must be greater than zero;
A11: 8) Total actual hours for each row must be greater than zero;
A12: 9) There should be no gaps between each row; | B12: ?
A13: 10) Duplication of a ward name within a site. | B13: "=IF($AA$816>0,"Duplicate 'Ward name' (Col D), with the same specialty(s) (Col L and Col M), has been provided for at least 1 'Hospital Site'(Col C)","")" | C13: does not work in the other sheets!!
A14: WARNINGS:
A15: 1) One or more wards has a day nurse fill rate > 100%;
A16: 2) One or more wards has a day care staff fill rate > 100%;
A17: 3) One or more wards has a night nurse fill rate > 100%;
A18: 4) One or more wards has a night care staff fill rate > 100%;
A19: 5) One or more wards has less than 1448 actual hours (approx. 2 full time staff);
A20: 6) One or more wards has more than 30 000 actual hours (approx. 40 full time staff);
A21: 7) One or more wards has submitted actual hours but zero CHPPD patients.
A25: Other
A27: no duplicate speciality codes | B27: "=IF(Y816>0,"The same 'Specialty' (Col L and Col M) can not be selected twice","")"
A28: all relevant cells to be filled in | B28: "=IF(T816>0,"Data not complete for all rows",IF(W816>0,"Data not complete for all rows",""))"
A30: Fix ODS ref data
C47: a | D47: 1 | E47: p | K47: =CONCATENATE(C47,D47,E47,F47) -> a1p | L47: =(IF(COUNTIF($K$47:$K$59,K47)>1,1,0))=1 -> FALSE
C48: b | D48: 2 | E48: o | K48: =CONCATENATE(C48,D48,E48,F48) -> b2o | L48: =(IF(COUNTIF($K$47:$K$59,K48)>1,1,0))=1 -> FALSE
C49: c | D49: 3 | E49: i | K49: c3i | L49: FALSE
C50: d | D50: 4 | E50: u | K50: d4u | L50: FALSE
C51: e | D51: 5 | E51: y | K51: e5y | L51: FALSE
C52: f | D52: 6 | E52: t | K52: f6t | L52: FALSE
C53: g | D53: 7 | E53: r | K53: g7r | L53: FALSE
C54: h | D54: 8 | E54: e | K54: h8e | L54: FALSE
C55: i | D55: 9 | E55: s | K55: i9s | L55: FALSE
C56: j | D56: 10 | E56: w | K56: j10w | L56: FALSE
C57: w | D57: 13 | E57: w | K57: w13w | L57: TRUE
C58: w | D58: 13 | E58: w | K58: w13w | L58: TRUE
C59: w | D59: 13 | E59: w | F59: q | K59: w13wq | L59: FALSE

Sheet Index (hidden)
A1: Lookups | F1: Provider Orgs | J1: Concatenation | K1: Natural Key | N1: Provider Orgs | O1: CHPPD
A2: Columns | B2: Row | F2: RTQ | G2: 2gether NHS Foundation Trust | J2: April_2017-18 | K2: 10166 | N2: RTQ | O2: N
A3: 1 | B3: 1 | F3: REM | G3: Aintree University Hospital NHS Foundation Trust | J3: May_2017-18 | K3: 10167 | N3: RTV | O3: N
A4: 1 | B4: 2 | F4: RCF | G4: Airedale NHS Foundation Trust | J4: June_2017-18 | K4: 10168 | N4: REM | O4: Y
A5: 1 | B5: 3 | F5: RBS | G5: Alder Hey Children's NHS Foundation Trust | J5: July_2017-18 | K5: 10169 | N5: RCF | O5: Y
A6: 1 | B6: 4 | F6: NQ1 | G6: Anglian Community Enterprise | J6: August_2017-18 | K6: 10170 | N6: RBS | O6: Y
A7: 1 | B7: 5 | F7: RTK | G7: Ashford And St Peter's Hospitals NHS Foundation Trust | J7: September_2017-18 | K7: 10171 | N7: NQ1 | O7: N
A8: 1 | B8: 6 | F8: RVN | G8: Avon and Wiltshire Mental Health Partnership NHS Trust | J8: October_2017-18 | K8: 10172 | N8: RTK | O8: Y
A9: 1 | B9: 7 | F9: RF4 | G9: Barking, Havering And Redbridge University Hospitals NHS Trust | J9: November_2017-18 | K9: 10173 | N9: RVN | O9: N
A10: 1 | B10: 8 | F10: RRP | G10: Barnet, Enfield and Haringey Mental Health NHS Trust | J10: December_2017-18 | K10: 10174 | N10: RF4 | O10: Y
A11: 1 | B11: 9 | F11: RFF | G11: Barnsley Hospital NHS Foundation Trust | J11: January_2017-18 | K11: 10175 | N11: RRP | O11: N
A12: 1 | B12: 10 | F12: R1H | G12: Barts Health NHS Trust | J12: February_2017-18 | K12: 10176 | N12: RFF | O12: Y
A13: 1 | B13: 11 | F13: RDD | G13: Basildon And Thurrock University Hospitals NHS Foundation Trust | J13: March_2017-18 | K13: 10177 | N13: R1H | O13: Y
A14: 1 | B14: 12 | F14: RC1 | G14: Bedford Hospital NHS Trust | N14: RDD | O14: Y
A15: 1 | B15: 13 | F15: RWX | G15: Berkshire Healthcare NHS Foundation Trust | N15: RC1 | O15: Y
A16: 1 | B16: 14 | F16: RXT | G16: Birmingham and Solihull Mental Health NHS Foundation Trust | N16: RWX | O16: N
A17: 1 | B17: 15 | F17: RYW | G17: Birmingham Community HealthCare NHS Trust | N17: RXT | O17: N
A18: 1 | B18: 16 | F18: RQ3 | G18: Birmingham Women's and Children's Hospital NHS Foundation Trust | N18: RQ3 | O18: Y
A19: 1 | B19: 17 | F19: TAJ | G19: Black Country Partnership NHS Foundation Trust | N19: RYW | O19: N
A20: 1 | B20: 18 | F20: RXL | G20: Blackpool Teaching Hospitals NHS Foundation Trust | N20: RLU | O20: Y
A21: 1 | B21: 19 | F21: RMC | G21: Bolton NHS Foundation Trust | N21: TAJ | O21: N
A22: 1 | B22: 20 | F22: TAD | G22: Bradford District Care Trust | N22: RXL | O22: Y
A23: 1 | B23: 21 | F23: RAE | G23: Bradford Teaching Hospitals NHS Foundation Trust | N23: RMC | O23: Y
A24: 1 | B24: 22 | F24: RY2 | G24: Bridgewater Community Healthcare NHS Trust | N24: TAD | O24: N
A25: 1 | B25: 23 | F25: RXH | G25: Brighton And Sussex University Hospitals NHS Trust | N25: RAE | O25: Y
A26: 1 | B26: 24 | F26: RXQ | G26: Buckinghamshire Healthcare NHS Trust | N26: RY2 | O26: N
A27: 1 | B27: 25 | F27: RJF | G27: Burton Hospitals NHS Foundation Trust | N27: RXH | O27: Y
A28: 1 | B28: 26 | F28: RWY | G28: Calderdale And Huddersfield NHS Foundation Trust | N28: RXQ | O28: Y
A29: 1 | B29: 27 | F29: RGT | G29: Cambridge University Hospitals NHS Foundation Trust | N29: RJF | O29: Y
A30: 1 | B30: 28 | F30: RT1 | G30: Cambridgeshire And Peterborough NHS Foundation Trust | N30: RWY | O30: Y
A31: 1 | B31: 29 | F31: RYV | G31: Cambridgeshire Community Services NHS Trust | N31: RGT | O31: Y
A32: 1 | B32: 30 | F32: TAF | G32: Camden And Islington NHS Foundation Trust | N32: RT1 | O32: N
A33: 1 | B33: 31 | F33: RV3 | G33: Central and North West London NHS Foundation Trust | N33: RYV | O33: N
A34: 1 | B34: 32 | F34: RYX | G34: Central London Community Healthcare NHS Trust | N34: TAF | O34: N
A35: 1 | B35: 33 | F35: RQM | G35: Chelsea And Westminster Hospital NHS Foundation Trust | N35: RV3 | O35: N
A36: 1 | B36: 34 | F36: RXA | G36: Cheshire and Wirral Partnership NHS Foundation Trust | N36: RYX | O36: N
A37: 1 | B37: 35 | F37: RFS | G37: Chesterfield Royal Hospital NHS Foundation Trust | N37: RW3 | O37: Y
A38: 1 | B38: 36 | F38: RLN | G38: City Hospitals Sunderland NHS Foundation Trust | N38: RQM | O38: Y
A39: 1 | B39: 37 | F39: RDE | G39: Colchester Hospital University NHS Foundation Trust | N39: RXA | O39: N
A40: 1 | B40: 38 | F40: RJ8 | G40: Cornwall Partnership NHS Foundation Trust | N40: RFS | O40: Y
A41: 1 | B41: 39 | F41: RJR | G41: Countess Of Chester Hospital NHS Foundation Trust | N41: RLN | O41: Y
A42: 1 | B42: 40 | F42: RXP | G42: County Durham And Darlington NHS Foundation Trust | N42: RDE | O42: Y
A43: 1 | B43: 41 | F43: RYG | G43: Coventry and Warwickshire Partnership NHS Trust | N43: RJ8 | O43: N
A44: 1 | B44: 42 | F44: RJ6 | G44: Croydon Health Services NHS Trust | N44: RJR | O44: Y
A45: 1 | B45: 43 | F45: RNN | G45: Cumbria Partnership NHS Foundation Trust | N45: RXP | O45: Y
A46: 1 | B46: 44 | F46: RN7 | G46: Dartford And Gravesham NHS Trust | N46: RYG | O46: N
A47: 1 | B47: 45 | F47: RTG | G47: Derby Hospitals NHS Foundation Trust | N47: RJ6 | O47: Y
A48: 1 | B48: 46 | F48: RY8 | G48: Derbyshire Community Health Services NHS Trust | N48: RNN | O48: N
A49: 1 | B49: 47 | F49: RXM | G49: Derbyshire Healthcare NHS Foundation Trust | N49: RN7 | O49: Y
A50: 1 | B50: 48 | F50: RWV | G50: Devon Partnership NHS Trust | N50: RTG | O50: Y
A51: 1 | B51: 49 | F51: RP5 | G51: Doncaster And Bassetlaw Hospitals NHS Foundation Trust | N51: RY8 | O51: N
A52: 1 | B52: 50 | F52: RBD | G52: Dorset County Hospital NHS Foundation Trust | N52: RXM | O52: N
A53: 1 | B53: 51 | F53: RDY | G53: Dorset HealthCare University NHS Foundation Trust | N53: RWV | O53: N
A54: 1 | B54: 52 | F54: RYK | G54: Dudley and Walsall Mental Health Partnership NHS Trust | N54: RP5 | O54: Y
A55: 1 | B55: 53 | F55: RWH | G55: East And North Hertfordshire NHS Trust | N55: RBD | O55: Y
A56: 1 | B56: 54 | F56: RJN | G56: East Cheshire NHS Trust | N56: RDY | O56: N
A57: 1 | B57: 55 | F57: RVV | G57: East Kent Hospitals University NHS Foundation Trust | N57: RYK | O57: N
A58: 1 | B58: 56 | F58: RXR | G58: East Lancashire Hospitals NHS Trust | N58: RWH | O58: Y
A59: 1 | B59: 57 | F59: RWK | G59: East London Foundation Trust | N59: RJN | O59: Y
A60: 1 | B60: 58 | F60: RXC | G60: East Sussex Healthcare NHS Trust | N60: RVV | O60: Y
A61: 1 | B61: 59 | F61: RVR | G61: Epsom And St Helier University Hospitals NHS Trust | N61: RXR | O61: Y
A62: 1 | B62: 60 | F62: R1L | G62: Essex Partnership University NHS Foundation Trust | N62: RWK | O62: N
A63: 1 | B63: 61 | F63: RDU | G63: Frimley Park Hospital NHS Foundation Trust | N63: RXC | O63: Y
A64: 1 | B64: 62 | F64: RR7 | G64: Gateshead Health NHS Foundation Trust | N64: RVR | O64: Y
A65: 1 | B65: 63 | F65: RLT | G65: George Eliot Hospital NHS Trust | N65: RDU | O65: Y
A66: 1 | B66: 64 | F66: R1J | G66: Gloucestershire Care Services NHS Trust | N66: RR7 | O66: Y
A67: 1 | B67: 65 | F67: RTE | G67: Gloucestershire Hospitals NHS Foundation Trust | N67: RLT | O67: Y
A68: 1 | B68: 66 | F68: RP4 | G68: Great Ormond Street Hospital For Children NHS Foundation Trust | N68: R1J | O68: N
A69: 1 | B69: 67 | F69: RN3 | G69: Great Western Hospitals NHS Foundation Trust | N69: RTE | O69: Y
A70: 1 | B70: 68 | F70: RXV | G70: Greater Manchester Mental Health NHS Foundation Trust | N70: RP4 | O70: Y
A71: 1 | B71: 69 | F71: RJ1 | G71: Guy's And St Thomas' NHS Foundation Trust | N71: RN3 | O71: Y
A72: 1 | B72: 70 | F72: RN5 | G72: Hampshire Hospitals NHS Foundation Trust | N72: RXV | O72: N
A73: 1 | B73: 71 | F73: RCD | G73: Harrogate And District NHS Foundation Trust | N73: RJ1 | O73: Y
A74: 1 | B74: 72 | F74: RR1 | G74: Heart Of England NHS Foundation Trust | N74: RN5 | O74: Y
A75: 1 | B75: 73 | F75: RY4 | G75: Hertfordshire Community NHS Trust | N75: RCD | O75: Y
A76: 1 | B76: 74 | F76: RWR | G76: Hertfordshire Partnership University NHS Foundation Trust | N76: RR1 | O76: Y
A77: 1 | B77: 75 | F77: RQX | G77: Homerton University Hospital NHS Foundation Trust | N77: RY4 | O77: N
A78: 1 | B78: 76 | F78: RY9 | G78: Hounslow And Richmond Community Healthcare NHS Trust | N78: RWR | O78: N
A79: 1 | B79: 77 | F79: RWA | G79: Hull And East Yorkshire Hospitals NHS Trust | N79: RQQ | O79: Y
A80: 1 | B80: 78 | F80: RV9 | G80: Humber NHS Foundation Trust | N80: RQX | O80: Y
A81: 1 | B81: 79 | F81: RYJ | G81: Imperial College Healthcare NHS Trust | N81: RY9 | O81: N
A82: 1 | B82: 80 | F82: RGQ | G82: Ipswich Hospital NHS Trust | N82: RWA | O82: Y
A83: 1 | B83: 81 | F83: R1F | G83: Isle Of Wight NHS Trust | N83: RV9 | O83: N
A84: 1 | B84: 82 | F84: RGP | G84: James Paget University Hospitals NHS Foundation Trust | N84: RYJ | O84: Y
A85: 1 | B85: 83 | F85: RXY | G85: Kent And Medway NHS And Social Care Partnership Trust | N85: RGQ | O85: Y
A86: 1 | B86: 84 | F86: RYY | G86: Kent Community Health NHS Trust | N86: R1F | O86: Y
A87: 1 | B87: 85 | F87: RNQ | G87: Kettering General Hospital NHS Foundation Trust | N87: RGP | O87: Y
A88: 1 | B88: 86 | F88: RJZ | G88: King's College Hospital NHS Foundation Trust | N88: RXY | O88: N
A89: 1 | B89: 87 | F89: RAX | G89: Kingston Hospital NHS Trust | N89: RYY | O89: N
A90: 1 | B90: 88 | F90: RW5 | G90: Lancashire Care NHS Foundation trust | N90: RNQ | O90: Y
A91: 1 | B91: 89 | F91: RXN | G91: Lancashire Teaching Hospitals NHS Foundation Trust | N91: RJZ | O91: Y
A92: 1 | B92: 90 | F92: RGD | G92: Leeds and York Partnership NHS Foundation Trust | N92: RAX | O92: Y
A93: 1 | B93: 91 | F93: RY6 | G93: Leeds Community Healthcare NHS Trust | N93: RW5 | O93: N
A94: 1 | B94: 92 | F94: RR8 | G94: Leeds Teaching Hospitals NHS Trust | N94: RXN | O94: Y
A95: 1 | B95: 93 | F95: RT5 | G95: Leicestershire Partnership NHS Trust | N95: RGD | O95: N
A96: 1 | B96: 94 | F96: RJ2 | G96: Lewisham and Greenwich NHS Trust | N96: RY6 | O96: N
A97: 1 | B97: 95 | F97: RY5 | G97: Lincolnshire Community Health Services NHS Trust | N97: RR8 | O97: Y
A98: 1 | B98: 96 | F98: RP7 | G98: Lincolnshire Partnership NHS Foundation Trust | N98: RT5 | O98: N
A99: 1 | B99: 97 | F99: RY1 | G99: Liverpool Community Health NHS Trust | N99: RJ2 | O99: Y
A100: 1 | B100: 98 | F100: RBQ | G100: Liverpool Heart And Chest NHS Foundation Trust | N100: RY5 | O100: N
A101: 1 | B101: 99 | F101: REP | G101: Liverpool Women's NHS Foundation Trust | N101: RP7 | O101: N
A102: 1 | B102: 100 | F102: R1K | G102: London North West Healthcare NHS Trust | N102: RY1 | O102: N
A103: 1 | B103: 101 | F103: RC9 | G103: Luton And Dunstable Hospital NHS Foundation Trust | N103: RBQ | O103: Y
A104: 1 | B104: 102 | F104: RWF | G104: Maidstone And Tunbridge Wells NHS Trust | N104: REP | O104: Y
A105: 1 | B105: 103 | F105: R0A | G105: Manchester University NHS Foundation Trust | N105: R1K | O105: Y
A106: 1 | B106: 104 | F106: RPA | G106: Medway NHS Foundation Trust | N106: RC9 | O106: Y
A107: 1 | B107: 105 | F107: RW4 | G107: Mersey Care NHS Trust | N107: RWF | O107: Y
A108: 1 | B108: 106 | F108: RBT | G108: Mid Cheshire Hospitals NHS Foundation Trust | N108: RPA | O108: Y
A109: 1 | B109: 107 | F109: RQ8 | G109: Mid Essex Hospital Services NHS Trust | N109: RW4 | O109: N
A110: 1 | B110: 108 | F110: RJD | G110: Mid Staffordshire NHS Foundation Trust | N110: RBT | O110: Y
A111: 1 | B111: 109 | F111: RXF | G111: Mid Yorkshire Hospitals NHS Trust | N111: RQ8 | O111: Y
A112: 1 | B112: 110 | F112: RD8 | G112: Milton Keynes Hospital NHS Foundation Trust | N112: RJD | O112: N
A113: 1 | B113: 111 | F113: RP6 | G113: Moorfields Eye Hospital NHS Foundation Trust | N113: RXF | O113: Y
A114: 1 | B114: 112 | F114: RM1 | G114: Norfolk And Norwich University Hospitals NHS Foundation Trust | N114: RD8 | O114: Y
A115: 1 | B115: 113 | F115: RMY | G115: Norfolk and Suffolk NHS Foundation Trust | N115: RP6 | O115: Y
A116: 1 | B116: 114 | F116: RY3 | G116: Norfolk Community Health And Care NHS Trust | N116: RM1 | O116: Y
A117: 1 | B117: 115 | F117: RVJ | G117: North Bristol NHS Trust | N117: RMY | O117: N
A118: 1 | B118: 116 | F118: RNL | G118: North Cumbria University Hospitals NHS Trust | N118: RY3 | O118: N
A119: 1 | B119: 117 | F119: RAT | G119: North East London NHS Foundation Trust | N119: RVJ | O119: Y
A120: 1 | B120: 118 | F120: RAP | G120: North Middlesex University Hospital NHS Trust | N120: RNL | O120: Y
A121: 1 | B121: 119 | F121: RLY | G121: North Staffordshire Combined Healthcare NHS Trust | N121: RAT | O121: N
A122: 1 | B122: 120 | F122: RVW | G122: North Tees And Hartlepool NHS Foundation Trust | N122: RRD | O122: N
A123: 1 | B123: 121 | F123: RGN | G123: North West Anglia NHS Foundation Trust | N123: RAP | O123: Y
A124: 1 | B124: 122 | F124: RTV | G124: North West Boroughs Healthcare NHS Foundation Trust | N124: RLY | O124: N
A125: 1 | B125: 123 | F125: RNS | G125: Northampton General Hospital NHS Trust | N125: RVW | O125: Y
A126: 1 | B126: 124 | F126: RP1 | G126: Northamptonshire Healthcare NHS Foundation Trust | N126: RNS | O126: Y
A127: 1 | B127: 125 | F127: RBZ | G127: Northern Devon Healthcare NHS Trust | N127: RP1 | O127: N
A128: 1 | B128: 126 | F128: RJL | G128: Northern Lincolnshire And Goole Hospitals NHS Foundation Trust | N128: RBZ | O128: Y
A129: 1 | B129: 127 | F129: RX4 | G129: Northumberland, Tyne and Wear NHS Foundation Trust | N129: RJL | O129: Y
A130: 1 | B130: 128 | F130: RTF | G130: Northumbria Healthcare NHS Foundation Trust | N130: RX4 | O130: N
A131: 1 | B131: 129 | F131: RX1 | G131: Nottingham University Hospitals NHS Trust | N131: RTF | O131: Y
A132: 1 | B132: 130 | F132: RHA | G132: Nottinghamshire Healthcare NHS Trust | N132: RX1 | O132: Y
A133: 1 | B133: 131 | F133: RNU | G133: Oxford Health NHS Foundation Trust | N133: RHA | O133: N
A134: 1 | B134: 132 | F134: RTH | G134: Oxford University Hospitals NHS Trust | N134: RNU | O134: N
A135: 1 | B135: 133 | F135: RPG | G135: Oxleas NHS Foundation Trust | N135: RTH | O135: Y
A136: 1 | B136: 134 | F136: RGM | G136: Papworth Hospital NHS Foundation Trust | N136: RPG | O136: N
A137: 1 | B137: 135 | F137: RW6 | G137: Pennine Acute Hospitals NHS Trust | N137: RGM | O137: Y
A138: 1 | B138: 136 | F138: RT2 | G138: Pennine Care NHS Foundation Trust | N138: RW6 | O138: Y
A139: 1 | B139: 137 | F139: RK9 | G139: Plymouth Hospitals NHS Trust | N139: RT2 | O139: N
A140: 1 | B140: 138 | F140: RD3 | G140: Poole Hospital NHS Foundation Trust | N140: RGN | O140: Y
A141: 1 | B141: 139 | F141: RHU | G141: Portsmouth Hospitals NHS Trust | N141: RK9 | O141: Y
A142: 1 | B142: 140 | F142: RPC | G142: Queen Victoria Hospital NHS Foundation Trust | N142: RD3 | O142: Y
A143: 1 | B143: 141 | F143: NVC | G143: Ramsay Healthcare UK Operations Limited | N143: RHU | O143: Y
A144: 1 | B144: 142 | F144: RXE | G144: Rotherham Doncaster and South Humber NHS Foundation Trust | N144: RPC | O144: Y
A145: 1 | B145: 143 | F145: RHW | G145: Royal Berkshire NHS Foundation Trust | N145: NVC | O145: N
A146: 1 | B146: 144 | F146: RT3 | G146: Royal Brompton And Harefield NHS Foundation Trust | N146: RXE | O146: N
A147: 1 | B147: 145 | F147: REF | G147: Royal Cornwall Hospitals NHS Trust | N147: RHW | O147: Y
A148: 1 | B148: 146 | F148: RH8 | G148: Royal Devon And Exeter NHS Foundation Trust | N148: RT3 | O148: Y
A149: 1 | B149: 147 | F149: RAL | G149: Royal Free London NHS Foundation Trust | N149: REF | O149: Y
A150: 1 | B150: 148 | F150: RQ6 | G150: Royal Liverpool And Broadgreen University Hospitals NHS Trust | N150: RH8 | O150: Y
A151: 1 | B151: 149 | F151: RBB | G151: Royal National Hospital For Rheumatic Diseases NHS Foundation Trust | N151: RAL | O151: Y
A152: 1 | B152: 150 | F152: RAN | G152: Royal National Orthopaedic Hospital NHS Trust | N152: RQ6 | O152: Y
A153: 1 | B153: 151 | F153: RA2 | G153: Royal Surrey County Hospital NHS Foundation Trust | N153: RBB | O153: N
A154: 1 | B154: 152 | F154: RD1 | G154: Royal United Hospital Bath NHS Trust | N154: RAN | O154: Y
A155: 1 | B155: 153 | F155: RM3 | G155: Salford Royal NHS Foundation Trust | N155: RA2 | O155: Y
A156: 1 | B156: 154 | F156: RNZ | G156: Salisbury NHS Foundation Trust | N156: RD1 | O156: Y
A157: 1 | B157: 155 | F157: RXK | G157: Sandwell And West Birmingham Hospitals NHS Trust | N157: RM3 | O157: Y
A158: 1 | B158: 156 | F158: RCU | G158: Sheffield Children's NHS Foundation Trust | N158: RNZ | O158: Y
A159: 1 | B159: 157 | F159: TAH | G159: Sheffield Health & Social Care NHS Foundation Trust | N159: RXK | O159: Y
A160: 1 | B160: 158 | F160: RHQ | G160: Sheffield Teaching Hospitals NHS Foundation Trust | N160: RCU | O160: Y
A161: 1 | B161: 159 | F161: RK5 | G161: Sherwood Forest Hospitals NHS Foundation Trust | N161: TAH | O161: N
A162: 1 | B162: 160 | F162: RXW | G162: Shrewsbury And Telford Hospital NHS Trust | N162: RHQ | O162: Y
A163: 1 | B163: 161 | F163: R1D | G163: Shropshire Community Health NHS Trust | N163: RK5 | O163: Y
A164: 1 | B164: 162 | F164: NLX | G164: Sirona Care & Health | N164: RXW | O164: Y
A165: 1 | B165: 163 | F165: R1C | G165: Solent NHS Trust | N165: R1D | O165: N
A166: 1 | B166: 164 | F166: RH5 | G166: Somerset Partnership NHS Foundation Trust | N166: NLX | O166: N
A167: 1 | B167: 165 | F167: RV5 | G167: South London And Maudsley NHS Foundation Trust | N167: R1C | O167: N
A168: 1 | B168: 166 | F168: RRE | G168: South Staffordshire And Shropshire Healthcare NHS Foundation Trust | N168: RH5 | O168: N
A169: 1 | B169: 167 | F169: RTR | G169: South Tees Hospitals NHS Foundation Trust | N169: RWN | O169: N
A170: 1 | B170: 168 | F170: RE9 | G170: South Tyneside NHS Foundation Trust | N170: RV5 | O170: N
A171: 1 | B171: 169 | F171: RJC | G171: South Warwickshire NHS Foundation Trust | N171: RYQ | O171: N
A172: 1 | B172: 170 | F172: RQY | G172: South West London And St George's Mental Health NHS Trust | N172: RRE | O172: N
A173: 1 | B173: 171 | F173: RXG | G173: South West Yorkshire Partnership NHS Foundation Trust | N173: RTR | O173: Y
A174: 1 | B174: 172 | F174: RAJ | G174: Southend University Hospital NHS Foundation Trust | N174: RE9 | O174: Y
A175: 1 | B175: 173 | F175: RW1 | G175: Southern Health NHS Foundation Trust | N175: RJC | O175: Y
A176: 1 | B176: 174 | F176: RVY | G176: Southport And Ormskirk Hospital NHS Trust | N176: RQY | O176: N
A177: 1 | B177: 175 | F177: RJ7 | G177: St George's Healthcare NHS Trust | N177: RXG | O177: N
A178: 1 | B178: 176 | F178: RBN | G178: St Helens And Knowsley Hospitals NHS Trust | N178: RAJ | O178: Y
A179: 1 | B179: 177 | F179: R1E | G179: Staffordshire and Stoke on Trent Partnership NHS Trust | N179: RW1 | O179: N
A180: 1 | B180: 178 | F180: RWJ | G180: Stockport NHS Foundation Trust | N180: RVY | O180: Y
A181: 1 | B181: 179 | F181: NHM | G181: Suffolk Community Healthcare | N181: RJ7 | O181: Y
A182: 1 | B182: 180 | F182: RXX | G182: Surrey and Borders Partnership NHS Foundation Trust | N182: RBN | O182: Y
A183: 1 | B183: 181 | F183: RTP | G183: Surrey And Sussex Healthcare NHS Trust | N183: R1E | O183: N
A184: 1 | B184: 182 | F184: RDR | G184: Sussex Community NHS Trust | N184: RWJ | O184: Y
A185: 1 | B185: 183 | F185: RX2 | G185: Sussex Partnership NHS Foundation Trust | N185: NHM | O185: N
A186: 1 | B186: 184 | F186: RMP | G186: Tameside Hospital NHS Foundation Trust | N186: RXX | O186: N
A187: 1 | B187: 185 | F187: RBA | G187: Taunton And Somerset NHS Foundation Trust | N187: RTP | O187: Y
A188: 1 | B188: 186 | F188: RNK | G188: Tavistock And Portman NHS Foundation Trust | N188: RDR | O188: N
A189: 1 | B189: 187 | F189: RX3 | G189: Tees, Esk and Wear Valleys NHS Foundation Trust | N189: RX2 | O189: N
A190: 1 | B190: 188 | F190: RBV | G190: The Christie NHS Foundation Trust | N190: RMP | O190: Y
A191: 1 | B191: 189 | F191: REN | G191: The Clatterbridge Cancer Centre NHS Foundation Trust | N191: RBA | O191: Y
A192: 1 | B192: 190 | F192: RNA | G192: The Dudley Group NHS Foundation Trust | N192: RNK | O192: N
A193: 1 | B193: 191 | F193: RAS | G193: The Hillingdon Hospitals NHS Foundation Trust | N193: RX3 | O193: N
A194: 1 | B194: 192 | F194: RTD | G194: The Newcastle Upon Tyne Hospitals NHS Foundation Trust | N194: RBV | O194: Y
A195: 1 | B195: 193 | F195: RQW | G195: The Princess Alexandra Hospital NHS Trust | N195: REN | O195: Y
A196: 1 | B196: 194 | F196: RCX | G196: The Queen Elizabeth Hospital, King's Lynn, NHS Foundation Trust | N196: RNA | O196: Y
A197: 1 | B197: 195 | F197: RL1 | G197: The Robert Jones And Agnes Hunt Orthopaedic Hospital NHS Foundation Trust | N197: RAS | O197: Y
A198: 1 | B198: 196 | F198: RFR | G198: The Rotherham NHS Foundation Trust | N198: RTD | O198: Y
A199: 1 | B199: 197 | F199: RDZ | G199: The Royal Bournemouth And Christchurch Hospitals NHS Foundation Trust | N199: RQW | O199: Y
A200: 1 | B200: 198 | F200: RPY | G200: The Royal Marsden NHS Foundation Trust | N200: RCX | O200: Y
... 2602 more rows

Sheet Backsheet (hidden)
A1: Site Code:K | B1: Site Name | C1: Ward | D1: Specialty 1 | E1: Specialty 2 | F1: Day Nurse Plan:N | G1: Day Nurse Actual:N | H1: Day Care Plan:N | I1: Day Care Actual:N | J1: Night Nurse Plan:N | K1: Night Nurse Actual:N | L1: Night Care Plan:N | M1: Night Care Actual:N | N1: Day Nurse Fill Rate:N | O1: Day Care Fill Rate:N | P1: Night Nurse Fill Rate:N | Q1: Night Care Fill Rate:N | R1: Total Patients (CHPPD):N | S1: Nurse CHPPD:N | T1: Care CHPPD:N | U1: Overall CHPPD:N | V1: Url Staffing Url
A2: =IF('Trust - Frontsheet'!D14=0,"",IF('Trust - Frontsheet'!D14="","",'Trust - Frontsheet'!D14)) -> RT302 | B2: =IF(ISBLANK('Trust - Frontsheet'!E14),"",'Trust - Frontsheet'!E14) -> ROYAL BROMPTON HOSPITAL - RT302 | C2: =IF(ISBLANK('Trust - Frontsheet'!F14),"",'Trust - Frontsheet'!F14) -> PICU | D2: =IF(ISBLANK('Trust - Frontsheet'!G14),"",'Trust - Frontsheet'!G14) -> 171 - PAEDIATRIC SURGERY | E2: =IF(ISBLANK('Trust - Frontsheet'!H14),"",'Trust - Frontsheet'!H14) -> 321 - PAEDIATRIC CARDIOLOGY | F2: ='Trust - Frontsheet'!I14 -> 6750 | G2: ='Trust - Frontsheet'!J14 -> 6539 | H2: ='Trust - Frontsheet'!K14 -> 1588 | I2: ='Trust - Frontsheet'!L14 -> 537 | J2: ='Trust - Frontsheet'!M14 -> 6210 | K2: ='Trust - Frontsheet'!N14 -> 6069 | L2: ='Trust - Frontsheet'!O14 -> 518 | M2: ='Trust - Frontsheet'!P14 -> 184 | N2: =IF('Trust - Frontsheet'!Q14="",0,('Trust - Frontsheet'!Q14)) -> 0.9687407407 | O2: =IF('Trust - Frontsheet'!R14="",0,('Trust - Frontsheet'!R14)) -> 0.3381612091 | P2: =IF('Trust - Frontsheet'!S14="",0,('Trust - Frontsheet'!S14)) -> 0.977294686 | Q2: =IF('Trust - Frontsheet'!T14="",0,('Trust - Frontsheet'!T14)) -> 0.3552123552 | R2: ='Trust - Frontsheet'!U14 -> 499 | S2: =IF('Trust - Frontsheet'!V14="",0,('Trust - Frontsheet'!V14)) -> 25.26653307 | T2: =IF('Trust - Frontsheet'!W14="",0,('Trust - Frontsheet'!W14)) -> 1.44488978 | U2: =IF('Trust - Frontsheet'!X14="",0,('Trust - Frontsheet'!X14)) -> 26.71142285 | V2: =IF(A2="","",(IF(ISBLANK('Trust - Frontsheet'!F9),"",'Trust - Frontsheet'!F9))) -> "http://www.rbht.nhs.uk//nurse-staffing/ "
A3: =IF('Trust - Frontsheet'!D15=0,"",IF('Trust - Frontsheet'!D15="","",'Trust - Frontsheet'!D15)) -> RT302 | B3: =IF(ISBLANK('Trust - Frontsheet'!E15),"",'Trust - Frontsheet'!E15) -> ROYAL BROMPTON HOSPITAL - RT302 | C3: =IF(ISBLANK('Trust - Frontsheet'!F15),"",'Trust - Frontsheet'!F15) -> Rose Ward | D3: =IF(ISBLANK('Trust - Frontsheet'!G15),"",'Trust - Frontsheet'!G15) -> 321 - PAEDIATRIC CARDIOLOGY | E3: =IF(ISBLANK('Trust - Frontsheet'!H15),"",'Trust - Frontsheet'!H15) -> 171 - PAEDIATRIC SURGERY | F3: ='Trust - Frontsheet'!I15 -> 5625 | G3: ='Trust - Frontsheet'!J15 -> 5420 | H3: ='Trust - Frontsheet'!K15 -> 1588 | I3: ='Trust - Frontsheet'!L15 -> 537 | J3: ='Trust - Frontsheet'!M15 -> 5175 | K3: ='Trust - Frontsheet'!N15 -> 4497 | L3: ='Trust - Frontsheet'!O15 -> 518 | M3: ='Trust - Frontsheet'!P15 -> 184 | N3: =IF('Trust - Frontsheet'!Q15="",0,('Trust - Frontsheet'!Q15)) -> 0.9635555556 | O3: =IF('Trust - Frontsheet'!R15="",0,('Trust - Frontsheet'!R15)) -> 0.3381612091 | P3: =IF('Trust - Frontsheet'!S15="",0,('Trust - Frontsheet'!S15)) -> 0.8689855072 | Q3: =IF('Trust - Frontsheet'!T15="",0,('Trust - Frontsheet'!T15)) -> 0.3552123552 | R3: ='Trust - Frontsheet'!U15 -> 1041 | S3: =IF('Trust - Frontsheet'!V15="",0,('Trust - Frontsheet'!V15)) -> 9.526416907 | T3: =IF('Trust - Frontsheet'!W15="",0,('Trust - Frontsheet'!W15)) -> 0.6926032661 | U3: =IF('Trust - Frontsheet'!X15="",0,('Trust - Frontsheet'!X15)) -> 10.21902017 | V3: =IF(A3="","",(IF(ISBLANK('Trust - Frontsheet'!F9),"",'Trust - Frontsheet'!F9))) -> "http://www.rbht.nhs.uk//nurse-staffing/ "
A4: =IF('Trust - Frontsheet'!D16=0,"",IF('Trust - Frontsheet'!D16="","",'Trust - Frontsheet'!D16)) -> RT302 | B4: =IF(ISBLANK('Trust - Frontsheet'!E16),"",'Trust - Frontsheet'!E16) -> ROYAL BROMPTON HOSPITAL - RT302 | C4: =IF(ISBLANK('Trust - Frontsheet'!F16),"",'Trust - Frontsheet'!F16) -> AICU | D4: =IF(ISBLANK('Trust - Frontsheet'!G16),"",'Trust - Frontsheet'!G16) -> 192 - CRITICAL CARE MEDICINE | E4: =IF(ISBLANK('Trust - Frontsheet'!H16),"",'Trust - Frontsheet'!H16) -> 170 - CARDIOTHORACIC SURGERY | F4: ='Trust - Frontsheet'!I16 -> 7875 | G4: ='Trust - Frontsheet'!J16 -> 6701 | H4: ='Trust - Frontsheet'!K16 -> 1260 | I4: ='Trust - Frontsheet'!L16 -> 776 | J4: ='Trust - Frontsheet'!M16 -> 7245 | K4: ='Trust - Frontsheet'!N16 -> 6452 | L4: ='Trust - Frontsheet'!O16 -> 330 | M4: ='Trust - Frontsheet'!P16 -> 117 | N4: =IF('Trust - Frontsheet'!Q16="",0,('Trust - Frontsheet'!Q16)) -> 0.8509206349 | O4: =IF('Trust - Frontsheet'!R16="",0,('Trust - Frontsheet'!R16)) -> 0.6158730159 | P4: =IF('Trust - Frontsheet'!S16="",0,('Trust - Frontsheet'!S16)) -> 0.8905452036 | Q4: =IF('Trust - Frontsheet'!T16="",0,('Trust - Frontsheet'!T16)) -> 0.3545454545 | R4: ='Trust - Frontsheet'!U16 -> 497 | S4: =IF('Trust - Frontsheet'!V16="",0,('Trust - Frontsheet'!V16)) -> 26.46478873 | T4: =IF('Trust - Frontsheet'!W16="",0,('Trust - Frontsheet'!W16)) -> 1.796780684 | U4: =IF('Trust - Frontsheet'!X16="",0,('Trust - Frontsheet'!X16)) -> 28.26156942 | V4: =IF(A4="","",(IF(ISBLANK('Trust - Frontsheet'!F9),"",'Trust - Frontsheet'!F9))) -> "http://www.rbht.nhs.uk//nurse-staffing/ "
A5: =IF('Trust - Frontsheet'!D17=0,"",IF('Trust - Frontsheet'!D17="","",'Trust - Frontsheet'!D17)) -> RT302 | B5: =IF(ISBLANK('Trust - Frontsheet'!E17),"",'Trust - Frontsheet'!E17) -> ROYAL BROMPTON HOSPITAL - RT302 | C5: =IF(ISBLANK('Trust - Frontsheet'!F17),"",'Trust - Frontsheet'!F17) -> Princess Alexandra Ward | D5: =IF(ISBLANK('Trust - Frontsheet'!G17),"",'Trust - Frontsheet'!G17) -> 170 - CARDIOTHORACIC SURGERY | E5: =IF(ISBLANK('Trust - Frontsheet'!H17),"",'Trust - Frontsheet'!H17) -> 320 - CARDIOLOGY | F5: ='Trust - Frontsheet'!I17 -> 2730 | G5: ='Trust - Frontsheet'!J17 -> 3133 | H5: ='Trust - Frontsheet'!K17 -> 1260 | I5: ='Trust - Frontsheet'!L17 -> 783 | J5: ='Trust - Frontsheet'!M17 -> 1650 | K5: ='Trust - Frontsheet'!N17 -> 1652 | L5: ='Trust - Frontsheet'!O17 -> 330 | M5: ='Trust - Frontsheet'!P17 -> 227 | N5: =IF('Trust - Frontsheet'!Q17="",0,('Trust - Frontsheet'!Q17)) -> 1.147619048 | O5: =IF('Trust - Frontsheet'!R17="",0,('Trust - Frontsheet'!R17)) -> 0.6214285714 | P5: =IF('Trust - Frontsheet'!S17="",0,('Trust - Frontsheet'!S17)) -> 1.001212121 | Q5: =IF('Trust - Frontsheet'!T17="",0,('Trust - Frontsheet'!T17)) -> 0.6878787879 | R5: ='Trust - Frontsheet'!U17 -> 1032 | S5: =IF('Trust - Frontsheet'!V17="",0,('Trust - Frontsheet'!V17)) -> 4.636627907 | T5: =IF('Trust - Frontsheet'!W17="",0,('Trust - Frontsheet'!W17)) -> 0.9786821705 | U5: =IF('Trust - Frontsheet'!X17="",0,('Trust - Frontsheet'!X17)) -> 5.615310078 | V5: =IF(A5="","",(IF(ISBLANK('Trust - Frontsheet'!F9),"",'Trust - Frontsheet'!F9))) -> "http://www.rbht.nhs.uk//nurse-staffing/ "
A6: =IF('Trust - Frontsheet'!D18=0,"",IF('Trust - Frontsheet'!D18="","",'Trust - Frontsheet'!D18)) -> RT302 | B6: =IF(ISBLANK('Trust - Frontsheet'!E18),"",'Trust - Frontsheet'!E18) -> ROYAL BROMPTON HOSPITAL - RT302 | C6: =IF(ISBLANK('Trust - Frontsheet'!F18),"",'Trust - Frontsheet'!F18) -> Elizabeth Ward | D6: =IF(ISBLANK('Trust - Frontsheet'!G18),"",'Trust - Frontsheet'!G18) -> 170 - CARDIOTHORACIC SURGERY | E6: =IF(ISBLANK('Trust - Frontsheet'!H18),"",'Trust - Frontsheet'!H18) -> 320 - CARDIOLOGY | F6: ='Trust - Frontsheet'!I18 -> 4680 | G6: ='Trust - Frontsheet'!J18 -> 3946 | H6: ='Trust - Frontsheet'!K18 -> 1260 | I6: ='Trust - Frontsheet'!L18 -> 776 | J6: ='Trust - Frontsheet'!M18 -> 3960 | K6: ='Trust - Frontsheet'!N18 -> 2662 | L6: ='Trust - Frontsheet'!O18 -> 330 | M6: ='Trust - Frontsheet'!P18 -> 128 | N6: =IF('Trust - Frontsheet'!Q18="",0,('Trust - Frontsheet'!Q18)) -> 0.8431623932 | O6: =IF('Trust - Frontsheet'!R18="",0,('Trust - Frontsheet'!R18)) -> 0.6158730159 | P6: =IF('Trust - Frontsheet'!S18="",0,('Trust - Frontsheet'!S18)) -> 0.6722222222 | Q6: =IF('Trust - Frontsheet'!T18="",0,('Trust - Frontsheet'!T18)) -> 0.3878787879 | R6: ='Trust - Frontsheet'!U18 -> 330 | S6: =IF('Trust - Frontsheet'!V18="",0,('Trust - Frontsheet'!V18)) -> 20.02424242 | T6: =IF('Trust - Frontsheet'!W18="",0,('Trust - Frontsheet'!W18)) -> 2.739393939 | U6: =IF('Trust - Frontsheet'!X18="",0,('Trust - Frontsheet'!X18)) -> 22.76363636 | V6: =IF(A6="","",(IF(ISBLANK('Trust - Frontsheet'!F9),"",'Trust - Frontsheet'!F9))) -> "http://www.rbht.nhs.uk//nurse-staffing/ "
A7: =IF('Trust - Frontsheet'!D19=0,"",IF('Trust - Frontsheet'!D19="","",'Trust - Frontsheet'!D19)) -> RT302 | B7: =IF(ISBLANK('Trust - Frontsheet'!E19),"",'Trust - Frontsheet'!E19) -> ROYAL BROMPTON HOSPITAL - RT302 | C7: =IF(ISBLANK('Trust - Frontsheet'!F19),"",'Trust - Frontsheet'!F19) -> Paul Wood Ward | D7: =IF(ISBLANK('Trust - Frontsheet'!G19),"",'Trust - Frontsheet'!G19) -> 320 - CARDIOLOGY | E7: =IF(ISBLANK('Trust - Frontsheet'!H19),"",'Trust - Frontsheet'!H19) -> 170 - CARDIOTHORACIC SURGERY | F7: ='Trust - Frontsheet'!I19 -> 2496 | G7: ='Trust - Frontsheet'!J19 -> 2258 | H7: ='Trust - Frontsheet'!K19 -> 1260 | I7: ='Trust - Frontsheet'!L19 -> 776 | J7: ='Trust - Frontsheet'!M19 -> 1320 | K7: ='Trust - Frontsheet'!N19 -> 1124 | L7: ='Trust - Frontsheet'!O19 -> 330 | M7: ='Trust - Frontsheet'!P19 -> 117 | N7: =IF('Trust - Frontsheet'!Q19="",0,('Trust - Frontsheet'!Q19)) -> 0.9046474359 | O7: =IF('Trust - Frontsheet'!R19="",0,('Trust - Frontsheet'!R19)) -> 0.6158730159 | P7: =IF('Trust - Frontsheet'!S19="",0,('Trust - Frontsheet'!S19)) -> 0.8515151515 | Q7: =IF('Trust - Frontsheet'!T19="",0,('Trust - Frontsheet'!T19)) -> 0.3545454545 | R7: ='Trust - Frontsheet'!U19 -> 496 | S7: =IF('Trust - Frontsheet'!V19="",0,('Trust - Frontsheet'!V19)) -> 6.818548387 | T7: =IF('Trust - Frontsheet'!W19="",0,('Trust - Frontsheet'!W19)) -> 1.800403226 | U7: =IF('Trust - Frontsheet'!X19="",0,('Trust - Frontsheet'!X19)) -> 8.618951613 | V7: =IF(A7="","",(IF(ISBLANK('Trust - Frontsheet'!F9),"",'Trust - Frontsheet'!F9))) -> "http://www.rbht.nhs.uk//nurse-staffing/ "
A8: =IF('Trust - Frontsheet'!D20=0,"",IF('Trust - Frontsheet'!D20="","",'Trust - Frontsheet'!D20)) -> RT302 | B8: =IF(ISBLANK('Trust - Frontsheet'!E20),"",'Trust - Frontsheet'!E20) -> ROYAL BROMPTON HOSPITAL - RT302 | C8: =IF(ISBLANK('Trust - Frontsheet'!F20),"",'Trust - Frontsheet'!F20) -> Sir Reginald Wilson | D8: =IF(ISBLANK('Trust - Frontsheet'!G20),"",'Trust - Frontsheet'!G20) -> 320 - CARDIOLOGY | E8: =IF(ISBLANK('Trust - Frontsheet'!H20),"",'Trust - Frontsheet'!H20) -> 170 - CARDIOTHORACIC SURGERY | F8: ='Trust - Frontsheet'!I20 -> 3900 | G8: ='Trust - Frontsheet'!J20 -> 2792 | H8: ='Trust - Frontsheet'!K20 -> 1260 | I8: ='Trust - Frontsheet'!L20 -> 783 | J8: ='Trust - Frontsheet'!M20 -> 1650 | K8: ='Trust - Frontsheet'!N20 -> 1563 | L8: ='Trust - Frontsheet'!O20 -> 330 | M8: ='Trust - Frontsheet'!P20 -> 137 | N8: =IF('Trust - Frontsheet'!Q20="",0,('Trust - Frontsheet'!Q20)) -> 0.7158974359 | O8: =IF('Trust - Frontsheet'!R20="",0,('Trust - Frontsheet'!R20)) -> 0.6214285714 | P8: =IF('Trust - Frontsheet'!S20="",0,('Trust - Frontsheet'!S20)) -> 0.9472727273 | Q8: =IF('Trust - Frontsheet'!T20="",0,('Trust - Frontsheet'!T20)) -> 0.4151515152 | R8: ='Trust - Frontsheet'!U20 -> 784 | S8: =IF('Trust - Frontsheet'!V20="",0,('Trust - Frontsheet'!V20)) -> 5.554846939 | T8: =IF('Trust - Frontsheet'!W20="",0,('Trust - Frontsheet'!W20)) -> 1.173469388 | U8: =IF('Trust - Frontsheet'!X20="",0,('Trust - Frontsheet'!X20)) -> 6.728316327 | V8: =IF(A8="","",(IF(ISBLANK('Trust - Frontsheet'!F9),"",'Trust - Frontsheet'!F9))) -> "http://www.rbht.nhs.uk//nurse-staffing/ "
A9: =IF('Trust - Frontsheet'!D21=0,"",IF('Trust - Frontsheet'!D21="","",'Trust - Frontsheet'!D21)) -> RT302 | B9: =IF(ISBLANK('Trust - Frontsheet'!E21),"",'Trust - Frontsheet'!E21) -> ROYAL BROMPTON HOSPITAL - RT302 | C9: =IF(ISBLANK('Trust - Frontsheet'!F21),"",'Trust - Frontsheet'!F21) -> York Ward | D9: =IF(ISBLANK('Trust - Frontsheet'!G21),"",'Trust - Frontsheet'!G21) -> 320 - CARDIOLOGY | E9: =IF(ISBLANK('Trust - Frontsheet'!H21),"",'Trust - Frontsheet'!H21) -> 170 - CARDIOTHORACIC SURGERY | F9: ='Trust - Frontsheet'!I21 -> 2379 | G9: ='Trust - Frontsheet'!J21 -> 2546 | H9: ='Trust - Frontsheet'!K21 -> 1260 | I9: ='Trust - Frontsheet'!L21 -> 776 | J9: ='Trust - Frontsheet'!M21 -> 1650 | K9: ='Trust - Frontsheet'!N21 -> 1232 | L9: ='Trust - Frontsheet'!O21 -> 330 | M9: ='Trust - Frontsheet'!P21 -> 117 | N9: =IF('Trust - Frontsheet'!Q21="",0,('Trust - Frontsheet'!Q21)) -> 1.070197562 | O9: =IF('Trust - Frontsheet'!R21="",0,('Trust - Frontsheet'!R21)) -> 0.6158730159 | P9: =IF('Trust - Frontsheet'!S21="",0,('Trust - Frontsheet'!S21)) -> 0.7466666667 | Q9: =IF('Trust - Frontsheet'!T21="",0,('Trust - Frontsheet'!T21)) -> 0.3545454545 | R9: ='Trust - Frontsheet'!U21 -> 487 | S9: =IF('Trust - Frontsheet'!V21="",0,('Trust - Frontsheet'!V21)) -> 7.757700205 | T9: =IF('Trust - Frontsheet'!W21="",0,('Trust - Frontsheet'!W21)) -> 1.833675565 | U9: =IF('Trust - Frontsheet'!X21="",0,('Trust - Frontsheet'!X21)) -> 9.59137577 | V9: =IF(A9="","",(IF(ISBLANK('Trust - Frontsheet'!F9),"",'Trust - Frontsheet'!F9))) -> "http://www.rbht.nhs.uk//nurse-staffing/ "
A10: =IF('Trust - Frontsheet'!D22=0,"",IF('Trust - Frontsheet'!D22="","",'Trust - Frontsheet'!D22)) -> RT302 | B10: =IF(ISBLANK('Trust - Frontsheet'!E22),"",'Trust - Frontsheet'!E22) -> ROYAL BROMPTON HOSPITAL - RT302 | C10: =IF(ISBLANK('Trust - Frontsheet'!F22),"",'Trust - Frontsheet'!F22) -> Foulis Ward | D10: =IF(ISBLANK('Trust - Frontsheet'!G22),"",'Trust - Frontsheet'!G22) -> 340 - RESPIRATORY MEDICINE | E10: =IF(ISBLANK('Trust - Frontsheet'!H22),"",'Trust - Frontsheet'!H22) -> 170 - CARDIOTHORACIC SURGERY | F10: ='Trust - Frontsheet'!I22 -> 2223 | G10: ='Trust - Frontsheet'!J22 -> 2523 | H10: ='Trust - Frontsheet'!K22 -> 465 | I10: ='Trust - Frontsheet'!L22 -> 564 | J10: ='Trust - Frontsheet'!M22 -> 1650 | K10: ='Trust - Frontsheet'!N22 -> 1617 | L10: ='Trust - Frontsheet'!O22 -> 319 | M10: ='Trust - Frontsheet'!P22 -> 44 | N10: =IF('Trust - Frontsheet'!Q22="",0,('Trust - Frontsheet'!Q22)) -> 1.134952767 | O10: =IF('Trust - Frontsheet'!R22="",0,('Trust - Frontsheet'!R22)) -> 1.212903226 | P10: =IF('Trust - Frontsheet'!S22="",0,('Trust - Frontsheet'!S22)) -> 0.98 | Q10: =IF('Trust - Frontsheet'!T22="",0,('Trust - Frontsheet'!T22)) -> 0.1379310345 | R10: ='Trust - Frontsheet'!U22 -> 875 | S10: =IF('Trust - Frontsheet'!V22="",0,('Trust - Frontsheet'!V22)) -> 4.731428571 | T10: =IF('Trust - Frontsheet'!W22="",0,('Trust - Frontsheet'!W22)) -> 0.6948571429 | U10: =IF('Trust - Frontsheet'!X22="",0,('Trust - Frontsheet'!X22)) -> 5.426285714 | V10: =IF(A10="","",(IF(ISBLANK('Trust - Frontsheet'!F9),"",'Trust - Frontsheet'!F9))) -> "http://www.rbht.nhs.uk//nurse-staffing/ "
A11: =IF('Trust - Frontsheet'!D23=0,"",IF('Trust - Frontsheet'!D23="","",'Trust - Frontsheet'!D23)) -> RT302 | B11: =IF(ISBLANK('Trust - Frontsheet'!E23),"",'Trust - Frontsheet'!E23) -> ROYAL BROMPTON HOSPITAL - RT302 | C11: =IF(ISBLANK('Trust - Frontsheet'!F23),"",'Trust - Frontsheet'!F23) -> Victoria Ward | D11: =IF(ISBLANK('Trust - Frontsheet'!G23),"",'Trust - Frontsheet'!G23) -> 340 - RESPIRATORY MEDICINE | E11: =IF(ISBLANK('Trust - Frontsheet'!H23),"",'Trust - Frontsheet'!H23) ->  | F11: ='Trust - Frontsheet'!I23 -> 2340 | G11: ='Trust - Frontsheet'!J23 -> 2667 | H11: ='Trust - Frontsheet'!K23 -> 473 | I11: ='Trust - Frontsheet'!L23 -> 308 | J11: ='Trust - Frontsheet'!M23 -> 1320 | K11: ='Trust - Frontsheet'!N23 -> 1331 | L11: ='Trust - Frontsheet'!O23 -> 242 | M11: ='Trust - Frontsheet'!P23 -> 220 | N11: =IF('Trust - Frontsheet'!Q23="",0,('Trust - Frontsheet'!Q23)) -> 1.13974359 | O11: =IF('Trust - Frontsheet'!R23="",0,('Trust - Frontsheet'!R23)) -> 0.6511627907 | P11: =IF('Trust - Frontsheet'!S23="",0,('Trust - Frontsheet'!S23)) -> 1.008333333 | Q11: =IF('Trust - Frontsheet'!T23="",0,('Trust - Frontsheet'!T23)) -> 0.9090909091 | R11: ='Trust - Frontsheet'!U23 -> 666 | S11: =IF('Trust - Frontsheet'!V23="",0,('Trust - Frontsheet'!V23)) -> 6.003003003 | T11: =IF('Trust - Frontsheet'!W23="",0,('Trust - Frontsheet'!W23)) -> 0.7927927928 | U11: =IF('Trust - Frontsheet'!X23="",0,('Trust - Frontsheet'!X23)) -> 6.795795796 | V11: =IF(A11="","",(IF(ISBLANK('Trust - Frontsheet'!F9),"",'Trust - Frontsheet'!F9))) -> "http://www.rbht.nhs.uk//nurse-staffing/ "
A12: =IF('Trust - Frontsheet'!D24=0,"",IF('Trust - Frontsheet'!D24="","",'Trust - Frontsheet'!D24)) -> RT301 | B12: =IF(ISBLANK('Trust - Frontsheet'!E24),"",'Trust - Frontsheet'!E24) -> HAREFIELD HOSPITAL - RT301 | C12: =IF(ISBLANK('Trust - Frontsheet'!F24),"",'Trust - Frontsheet'!F24) -> Cedar Ward | D12: =IF(ISBLANK('Trust - Frontsheet'!G24),"",'Trust - Frontsheet'!G24) -> 170 - CARDIOTHORACIC SURGERY | E12: =IF(ISBLANK('Trust - Frontsheet'!H24),"",'Trust - Frontsheet'!H24) ->  | F12: ='Trust - Frontsheet'!I24 -> 2415 | G12: ='Trust - Frontsheet'!J24 -> 2277 | H12: ='Trust - Frontsheet'!K24 -> 690 | I12: ='Trust - Frontsheet'!L24 -> 656 | J12: ='Trust - Frontsheet'!M24 -> 1725 | K12: ='Trust - Frontsheet'!N24 -> 1415 | L12: ='Trust - Frontsheet'!O24 -> 690 | M12: ='Trust - Frontsheet'!P24 -> 600 | N12: =IF('Trust - Frontsheet'!Q24="",0,('Trust - Frontsheet'!Q24)) -> 0.9428571429 | O12: =IF('Trust - Frontsheet'!R24="",0,('Trust - Frontsheet'!R24)) -> 0.9507246377 | P12: =IF('Trust - Frontsheet'!S24="",0,('Trust - Frontsheet'!S24)) -> 0.8202898551 | Q12: =IF('Trust - Frontsheet'!T24="",0,('Trust - Frontsheet'!T24)) -> 0.8695652174 | R12: ='Trust - Frontsheet'!U24 -> 1400 | S12: =IF('Trust - Frontsheet'!V24="",0,('Trust - Frontsheet'!V24)) -> 2.637142857 | T12: =IF('Trust - Frontsheet'!W24="",0,('Trust - Frontsheet'!W24)) -> 0.8971428571 | U12: =IF('Trust - Frontsheet'!X24="",0,('Trust - Frontsheet'!X24)) -> 3.534285714 | V12: =IF(A12="","",(IF(ISBLANK('Trust - Frontsheet'!F9),"",'Trust - Frontsheet'!F9))) -> "http://www.rbht.nhs.uk//nurse-staffing/ "
A13: =IF('Trust - Frontsheet'!D25=0,"",IF('Trust - Frontsheet'!D25="","",'Trust - Frontsheet'!D25)) -> RT301 | B13: =IF(ISBLANK('Trust - Frontsheet'!E25),"",'Trust - Frontsheet'!E25) -> HAREFIELD HOSPITAL - RT301 | C13: =IF(ISBLANK('Trust - Frontsheet'!F25),"",'Trust - Frontsheet'!F25) -> Rowan/Fir Tree | D13: =IF(ISBLANK('Trust - Frontsheet'!G25),"",'Trust - Frontsheet'!G25) -> 170 - CARDIOTHORACIC SURGERY | E13: =IF(ISBLANK('Trust - Frontsheet'!H25),"",'Trust - Frontsheet'!H25) -> 320 - CARDIOLOGY | F13: ='Trust - Frontsheet'!I25 -> 4290 | G13: ='Trust - Frontsheet'!J25 -> 5471 | H13: ='Trust - Frontsheet'!K25 -> 1178 | I13: ='Trust - Frontsheet'!L25 -> 858 | J13: ='Trust - Frontsheet'!M25 -> 2970 | K13: ='Trust - Frontsheet'!N25 -> 2728 | L13: ='Trust - Frontsheet'!O25 -> 714 | M13: ='Trust - Frontsheet'!P25 -> 730 | N13: =IF('Trust - Frontsheet'!Q25="",0,('Trust - Frontsheet'!Q25)) -> 1.275291375 | O13: =IF('Trust - Frontsheet'!R25="",0,('Trust - Frontsheet'!R25)) -> 0.7283531409 | P13: =IF('Trust - Frontsheet'!S25="",0,('Trust - Frontsheet'!S25)) -> 0.9185185185 | Q13: =IF('Trust - Frontsheet'!T25="",0,('Trust - Frontsheet'!T25)) -> 1.022408964 | R13: ='Trust - Frontsheet'!U25 -> 1330 | S13: =IF('Trust - Frontsheet'!V25="",0,('Trust - Frontsheet'!V25)) -> 6.164661654 | T13: =IF('Trust - Frontsheet'!W25="",0,('Trust - Frontsheet'!W25)) -> 1.193984962 | U13: =IF('Trust - Frontsheet'!X25="",0,('Trust - Frontsheet'!X25)) -> 7.358646617 | V13: =IF(A13="","",(IF(ISBLANK('Trust - Frontsheet'!F9),"",'Trust - Frontsheet'!F9))) -> "http://www.rbht.nhs.uk//nurse-staffing/ "
A14: =IF('Trust - Frontsheet'!D26=0,"",IF('Trust - Frontsheet'!D26="","",'Trust - Frontsheet'!D26)) -> RT301 | B14: =IF(ISBLANK('Trust - Frontsheet'!E26),"",'Trust - Frontsheet'!E26) -> HAREFIELD HOSPITAL - RT301 | C14: =IF(ISBLANK('Trust - Frontsheet'!F26),"",'Trust - Frontsheet'!F26) -> HDU Harefield Ward | D14: =IF(ISBLANK('Trust - Frontsheet'!G26),"",'Trust - Frontsheet'!G26) -> 170 - CARDIOTHORACIC SURGERY | E14: =IF(ISBLANK('Trust - Frontsheet'!H26),"",'Trust - Frontsheet'!H26) -> 320 - CARDIOLOGY | F14: ='Trust - Frontsheet'!I26 -> 2250 | G14: ='Trust - Frontsheet'!J26 -> 1898 | H14: ='Trust - Frontsheet'!K26 -> 0 | I14: ='Trust - Frontsheet'!L26 -> 0 | J14: ='Trust - Frontsheet'!M26 -> 2070 | K14: ='Trust - Frontsheet'!N26 -> 1771 | L14: ='Trust - Frontsheet'!O26 -> 0 | M14: ='Trust - Frontsheet'!P26 -> 0 | N14: =IF('Trust - Frontsheet'!Q26="",0,('Trust - Frontsheet'!Q26)) -> 0.8435555556 | O14: =IF('Trust - Frontsheet'!R26="",0,('Trust - Frontsheet'!R26)) -> - | P14: =IF('Trust - Frontsheet'!S26="",0,('Trust - Frontsheet'!S26)) -> 0.8555555556 | Q14: =IF('Trust - Frontsheet'!T26="",0,('Trust - Frontsheet'!T26)) -> - | R14: ='Trust - Frontsheet'!U26 -> 278 | S14: =IF('Trust - Frontsheet'!V26="",0,('Trust - Frontsheet'!V26)) -> 13.19784173 | T14: =IF('Trust - Frontsheet'!W26="",0,('Trust - Frontsheet'!W26)) -> 0 | U14: =IF('Trust - Frontsheet'!X26="",0,('Trust - Frontsheet'!X26)) -> 13.19784173 | V14: =IF(A14="","",(IF(ISBLANK('Trust - Frontsheet'!F9),"",'Trust - Frontsheet'!F9))) -> "http://www.rbht.nhs.uk//nurse-staffing/ "
A15: =IF('Trust - Frontsheet'!D27=0,"",IF('Trust - Frontsheet'!D27="","",'Trust - Frontsheet'!D27)) -> RT301 | B15: =IF(ISBLANK('Trust - Frontsheet'!E27),"",'Trust - Frontsheet'!E27) -> HAREFIELD HOSPITAL - RT301 | C15: =IF(ISBLANK('Trust - Frontsheet'!F27),"",'Trust - Frontsheet'!F27) -> ITU | D15: =IF(ISBLANK('Trust - Frontsheet'!G27),"",'Trust - Frontsheet'!G27) -> 170 - CARDIOTHORACIC SURGERY | E15: =IF(ISBLANK('Trust - Frontsheet'!H27),"",'Trust - Frontsheet'!H27) ->  | F15: ='Trust - Frontsheet'!I27 -> 7125 | G15: ='Trust - Frontsheet'!J27 -> 10955 | H15: ='Trust - Frontsheet'!K27 -> 1194 | I15: ='Trust - Frontsheet'!L27 -> 1008 | J15: ='Trust - Frontsheet'!M27 -> 6555 | K15: ='Trust - Frontsheet'!N27 -> 8889 | L15: ='Trust - Frontsheet'!O27 -> 345 | M15: ='Trust - Frontsheet'!P27 -> 345 | N15: =IF('Trust - Frontsheet'!Q27="",0,('Trust - Frontsheet'!Q27)) -> 1.53754386 | O15: =IF('Trust - Frontsheet'!R27="",0,('Trust - Frontsheet'!R27)) -> 0.8442211055 | P15: =IF('Trust - Frontsheet'!S27="",0,('Trust - Frontsheet'!S27)) -> 1.356064073 | Q15: =IF('Trust - Frontsheet'!T27="",0,('Trust - Frontsheet'!T27)) -> 1 | R15: ='Trust - Frontsheet'!U27 -> 639 | S15: =IF('Trust - Frontsheet'!V27="",0,('Trust - Frontsheet'!V27)) -> 31.05477308 | T15: =IF('Trust - Frontsheet'!W27="",0,('Trust - Frontsheet'!W27)) -> 2.117370892 | U15: =IF('Trust - Frontsheet'!X27="",0,('Trust - Frontsheet'!X27)) -> 33.17214397 | V15: =IF(A15="","",(IF(ISBLANK('Trust - Frontsheet'!F9),"",'Trust - Frontsheet'!F9))) -> "http://www.rbht.nhs.uk//nurse-staffing/ "
A16: =IF('Trust - Frontsheet'!D28=0,"",IF('Trust - Frontsheet'!D28="","",'Trust - Frontsheet'!D28)) -> RT301 | B16: =IF(ISBLANK('Trust - Frontsheet'!E28),"",'Trust - Frontsheet'!E28) -> HAREFIELD HOSPITAL - RT301 | C16: =IF(ISBLANK('Trust - Frontsheet'!F28),"",'Trust - Frontsheet'!F28) -> Maple Ward | D16: =IF(ISBLANK('Trust - Frontsheet'!G28),"",'Trust - Frontsheet'!G28) -> 170 - CARDIOTHORACIC SURGERY | E16: =IF(ISBLANK('Trust - Frontsheet'!H28),"",'Trust - Frontsheet'!H28) ->  | F16: ='Trust - Frontsheet'!I28 -> 1950 | G16: ='Trust - Frontsheet'!J28 -> 1622 | H16: ='Trust - Frontsheet'!K28 -> 736 | I16: ='Trust - Frontsheet'!L28 -> 518 | J16: ='Trust - Frontsheet'!M28 -> 990 | K16: ='Trust - Frontsheet'!N28 -> 1070 | L16: ='Trust - Frontsheet'!O28 -> 701.5 | M16: ='Trust - Frontsheet'!P28 -> 610 | N16: =IF('Trust - Frontsheet'!Q28="",0,('Trust - Frontsheet'!Q28)) -> 0.8317948718 | O16: =IF('Trust - Frontsheet'!R28="",0,('Trust - Frontsheet'!R28)) -> 0.7038043478 | P16: =IF('Trust - Frontsheet'!S28="",0,('Trust - Frontsheet'!S28)) -> 1.080808081 | Q16: =IF('Trust - Frontsheet'!T28="",0,('Trust - Frontsheet'!T28)) -> 0.8695652174 | R16: ='Trust - Frontsheet'!U28 -> 856 | S16: =IF('Trust - Frontsheet'!V28="",0,('Trust - Frontsheet'!V28)) -> 3.144859813 | T16: =IF('Trust - Frontsheet'!W28="",0,('Trust - Frontsheet'!W28)) -> 1.317757009 | U16: =IF('Trust - Frontsheet'!X28="",0,('Trust - Frontsheet'!X28)) -> 4.462616822 | V16: =IF(A16="","",(IF(ISBLANK('Trust - Frontsheet'!F9),"",'Trust - Frontsheet'!F9))) -> "http://www.rbht.nhs.uk//nurse-staffing/ "
A17: =IF('Trust - Frontsheet'!D29=0,"",IF('Trust - Frontsheet'!D29="","",'Trust - Frontsheet'!D29)) -> RT301 | B17: =IF(ISBLANK('Trust - Frontsheet'!E29),"",'Trust - Frontsheet'!E29) -> HAREFIELD HOSPITAL - RT301 | C17: =IF(ISBLANK('Trust - Frontsheet'!F29),"",'Trust - Frontsheet'!F29) -> Oak/Acorn | D17: =IF(ISBLANK('Trust - Frontsheet'!G29),"",'Trust - Frontsheet'!G29) -> 320 - CARDIOLOGY | E17: =IF(ISBLANK('Trust - Frontsheet'!H29),"",'Trust - Frontsheet'!H29) -> 170 - CARDIOTHORACIC SURGERY | F17: ='Trust - Frontsheet'!I29 -> 5850 | G17: ='Trust - Frontsheet'!J29 -> 4391 | H17: ='Trust - Frontsheet'!K29 -> 2333 | I17: ='Trust - Frontsheet'!L29 -> 1193 | J17: ='Trust - Frontsheet'!M29 -> 3630 | K17: ='Trust - Frontsheet'!N29 -> 2825 | L17: ='Trust - Frontsheet'!O29 -> 660 | M17: ='Trust - Frontsheet'!P29 -> 370 | N17: =IF('Trust - Frontsheet'!Q29="",0,('Trust - Frontsheet'!Q29)) -> 0.7505982906 | O17: =IF('Trust - Frontsheet'!R29="",0,('Trust - Frontsheet'!R29)) -> 0.5113587655 | P17: =IF('Trust - Frontsheet'!S29="",0,('Trust - Frontsheet'!S29)) -> 0.7782369146 | Q17: =IF('Trust - Frontsheet'!T29="",0,('Trust - Frontsheet'!T29)) -> 0.5606060606 | R17: ='Trust - Frontsheet'!U29 -> 1219 | S17: =IF('Trust - Frontsheet'!V29="",0,('Trust - Frontsheet'!V29)) -> 5.919606235 | T17: =IF('Trust - Frontsheet'!W29="",0,('Trust - Frontsheet'!W29)) -> 1.282198523 | U17: =IF('Trust - Frontsheet'!X29="",0,('Trust - Frontsheet'!X29)) -> 7.201804758 | V17: =IF(A17="","",(IF(ISBLANK('Trust - Frontsheet'!F9),"",'Trust - Frontsheet'!F9))) -> "http://www.rbht.nhs.uk//nurse-staffing/ "
A18: =IF('Trust - Frontsheet'!D30=0,"",IF('Trust - Frontsheet'!D30="","",'Trust - Frontsheet'!D30)) -> RT301 | B18: =IF(ISBLANK('Trust - Frontsheet'!E30),"",'Trust - Frontsheet'!E30) -> HAREFIELD HOSPITAL - RT301 | C18: =IF(ISBLANK('Trust - Frontsheet'!F30),"",'Trust - Frontsheet'!F30) -> Juniper | D18: =IF(ISBLANK('Trust - Frontsheet'!G30),"",'Trust - Frontsheet'!G30) -> 320 - CARDIOLOGY | E18: =IF(ISBLANK('Trust - Frontsheet'!H30),"",'Trust - Frontsheet'!H30) ->  | F18: ='Trust - Frontsheet'!I30 -> 2312 | G18: ='Trust - Frontsheet'!J30 -> 2229 | H18: ='Trust - Frontsheet'!K30 -> 1000 | I18: ='Trust - Frontsheet'!L30 -> 772 | J18: ='Trust - Frontsheet'!M30 -> 2070 | K18: ='Trust - Frontsheet'!N30 -> 1582 | L18: ='Trust - Frontsheet'!O30 -> 713 | M18: ='Trust - Frontsheet'!P30 -> 419 | N18: =IF('Trust - Frontsheet'!Q30="",0,('Trust - Frontsheet'!Q30)) -> 0.964100346 | O18: =IF('Trust - Frontsheet'!R30="",0,('Trust - Frontsheet'!R30)) -> 0.772 | P18: =IF('Trust - Frontsheet'!S30="",0,('Trust - Frontsheet'!S30)) -> 0.7642512077 | Q18: =IF('Trust - Frontsheet'!T30="",0,('Trust - Frontsheet'!T30)) -> 0.587657784 | R18: ='Trust - Frontsheet'!U30 -> 233 | S18: =IF('Trust - Frontsheet'!V30="",0,('Trust - Frontsheet'!V30)) -> 16.35622318 | T18: =IF('Trust - Frontsheet'!W30="",0,('Trust - Frontsheet'!W30)) -> 5.111587983 | U18: =IF('Trust - Frontsheet'!X30="",0,('Trust - Frontsheet'!X30)) -> 21.46781116 | V18: =IF(A18="","",(IF(ISBLANK('Trust - Frontsheet'!F9),"",'Trust - Frontsheet'!F9))) -> "http://www.rbht.nhs.uk//nurse-staffing/ "
A19: =IF('Trust - Frontsheet'!D31=0,"",IF('Trust - Frontsheet'!D31="","",'Trust - Frontsheet'!D31)) ->  | B19: =IF(ISBLANK('Trust - Frontsheet'!E31),"",'Trust - Frontsheet'!E31) ->  | C19: =IF(ISBLANK('Trust - Frontsheet'!F31),"",'Trust - Frontsheet'!F31) ->  | D19: =IF(ISBLANK('Trust - Frontsheet'!G31),"",'Trust - Frontsheet'!G31) ->  | E19: =IF(ISBLANK('Trust - Frontsheet'!H31),"",'Trust - Frontsheet'!H31) ->  | F19: ='Trust - Frontsheet'!I31 -> 0 | G19: ='Trust - Frontsheet'!J31 -> 0 | H19: ='Trust - Frontsheet'!K31 -> 0 | I19: ='Trust - Frontsheet'!L31 -> 0 | J19: ='Trust - Frontsheet'!M31 -> 0 | K19: ='Trust - Frontsheet'!N31 -> 0 | L19: ='Trust - Frontsheet'!O31 -> 0 | M19: ='Trust - Frontsheet'!P31 -> 0 | N19: =IF('Trust - Frontsheet'!Q31="",0,('Trust - Frontsheet'!Q31)) -> 0 | O19: =IF('Trust - Frontsheet'!R31="",0,('Trust - Frontsheet'!R31)) -> 0 | P19: =IF('Trust - Frontsheet'!S31="",0,('Trust - Frontsheet'!S31)) -> 0 | Q19: =IF('Trust - Frontsheet'!T31="",0,('Trust - Frontsheet'!T31)) -> 0 | R19: ='Trust - Frontsheet'!U31 -> 0 | S19: =IF('Trust - Frontsheet'!V31="",0,('Trust - Frontsheet'!V31)) -> 0 | T19: =IF('Trust - Frontsheet'!W31="",0,('Trust - Frontsheet'!W31)) -> 0 | U19: =IF('Trust - Frontsheet'!X31="",0,('Trust - Frontsheet'!X31)) -> 0 | V19: =IF(A19="","",(IF(ISBLANK('Trust - Frontsheet'!F9),"",'Trust - Frontsheet'!F9))) -> 
A20: =IF('Trust - Frontsheet'!D32=0,"",IF('Trust - Frontsheet'!D32="","",'Trust - Frontsheet'!D32)) ->  | B20: =IF(ISBLANK('Trust - Frontsheet'!E32),"",'Trust - Frontsheet'!E32) ->  | C20: =IF(ISBLANK('Trust - Frontsheet'!F32),"",'Trust - Frontsheet'!F32) ->  | D20: =IF(ISBLANK('Trust - Frontsheet'!G32),"",'Trust - Frontsheet'!G32) ->  | E20: =IF(ISBLANK('Trust - Frontsheet'!H32),"",'Trust - Frontsheet'!H32) ->  | F20: ='Trust - Frontsheet'!I32 -> 0 | G20: ='Trust - Frontsheet'!J32 -> 0 | H20: ='Trust - Frontsheet'!K32 -> 0 | I20: ='Trust - Frontsheet'!L32 -> 0 | J20: ='Trust - Frontsheet'!M32 -> 0 | K20: ='Trust - Frontsheet'!N32 -> 0 | L20: ='Trust - Frontsheet'!O32 -> 0 | M20: ='Trust - Frontsheet'!P32 -> 0 | N20: =IF('Trust - Frontsheet'!Q32="",0,('Trust - Frontsheet'!Q32)) -> 0 | O20: =IF('Trust - Frontsheet'!R32="",0,('Trust - Frontsheet'!R32)) -> 0 | P20: =IF('Trust - Frontsheet'!S32="",0,('Trust - Frontsheet'!S32)) -> 0 | Q20: =IF('Trust - Frontsheet'!T32="",0,('Trust - Frontsheet'!T32)) -> 0 | R20: ='Trust - Frontsheet'!U32 -> 0 | S20: =IF('Trust - Frontsheet'!V32="",0,('Trust - Frontsheet'!V32)) -> 0 | T20: =IF('Trust - Frontsheet'!W32="",0,('Trust - Frontsheet'!W32)) -> 0 | U20: =IF('Trust - Frontsheet'!X32="",0,('Trust - Frontsheet'!X32)) -> 0 | V20: =IF(A20="","",(IF(ISBLANK('Trust - Frontsheet'!F9),"",'Trust - Frontsheet'!F9))) -> 
A21: =IF('Trust - Frontsheet'!D33=0,"",IF('Trust - Frontsheet'!D33="","",'Trust - Frontsheet'!D33)) ->  | B21: =IF(ISBLANK('Trust - Frontsheet'!E33),"",'Trust - Frontsheet'!E33) ->  | C21: =IF(ISBLANK('Trust - Frontsheet'!F33),"",'Trust - Frontsheet'!F33) ->  | D21: =IF(ISBLANK('Trust - Frontsheet'!G33),"",'Trust - Frontsheet'!G33) ->  | E21: =IF(ISBLANK('Trust - Frontsheet'!H33),"",'Trust - Frontsheet'!H33) ->  | F21: ='Trust - Frontsheet'!I33 -> 0 | G21: ='Trust - Frontsheet'!J33 -> 0 | H21: ='Trust - Frontsheet'!K33 -> 0 | I21: ='Trust - Frontsheet'!L33 -> 0 | J21: ='Trust - Frontsheet'!M33 -> 0 | K21: ='Trust - Frontsheet'!N33 -> 0 | L21: ='Trust - Frontsheet'!O33 -> 0 | M21: ='Trust - Frontsheet'!P33 -> 0 | N21: =IF('Trust - Frontsheet'!Q33="",0,('Trust - Frontsheet'!Q33)) -> 0 | O21: =IF('Trust - Frontsheet'!R33="",0,('Trust - Frontsheet'!R33)) -> 0 | P21: =IF('Trust - Frontsheet'!S33="",0,('Trust - Frontsheet'!S33)) -> 0 | Q21: =IF('Trust - Frontsheet'!T33="",0,('Trust - Frontsheet'!T33)) -> 0 | R21: ='Trust - Frontsheet'!U33 -> 0 | S21: =IF('Trust - Frontsheet'!V33="",0,('Trust - Frontsheet'!V33)) -> 0 | T21: =IF('Trust - Frontsheet'!W33="",0,('Trust - Frontsheet'!W33)) -> 0 | U21: =IF('Trust - Frontsheet'!X33="",0,('Trust - Frontsheet'!X33)) -> 0 | V21: =IF(A21="","",(IF(ISBLANK('Trust - Frontsheet'!F9),"",'Trust - Frontsheet'!F9))) -> 
A22: =IF('Trust - Frontsheet'!D34=0,"",IF('Trust - Frontsheet'!D34="","",'Trust - Frontsheet'!D34)) ->  | B22: =IF(ISBLANK('Trust - Frontsheet'!E34),"",'Trust - Frontsheet'!E34) ->  | C22: =IF(ISBLANK('Trust - Frontsheet'!F34),"",'Trust - Frontsheet'!F34) ->  | D22: =IF(ISBLANK('Trust - Frontsheet'!G34),"",'Trust - Frontsheet'!G34) ->  | E22: =IF(ISBLANK('Trust - Frontsheet'!H34),"",'Trust - Frontsheet'!H34) ->  | F22: ='Trust - Frontsheet'!I34 -> 0 | G22: ='Trust - Frontsheet'!J34 -> 0 | H22: ='Trust - Frontsheet'!K34 -> 0 | I22: ='Trust - Frontsheet'!L34 -> 0 | J22: ='Trust - Frontsheet'!M34 -> 0 | K22: ='Trust - Frontsheet'!N34 -> 0 | L22: ='Trust - Frontsheet'!O34 -> 0 | M22: ='Trust - Frontsheet'!P34 -> 0 | N22: =IF('Trust - Frontsheet'!Q34="",0,('Trust - Frontsheet'!Q34)) -> 0 | O22: =IF('Trust - Frontsheet'!R34="",0,('Trust - Frontsheet'!R34)) -> 0 | P22: =IF('Trust - Frontsheet'!S34="",0,('Trust - Frontsheet'!S34)) -> 0 | Q22: =IF('Trust - Frontsheet'!T34="",0,('Trust - Frontsheet'!T34)) -> 0 | R22: ='Trust - Frontsheet'!U34 -> 0 | S22: =IF('Trust - Frontsheet'!V34="",0,('Trust - Frontsheet'!V34)) -> 0 | T22: =IF('Trust - Frontsheet'!W34="",0,('Trust - Frontsheet'!W34)) -> 0 | U22: =IF('Trust - Frontsheet'!X34="",0,('Trust - Frontsheet'!X34)) -> 0 | V22: =IF(A22="","",(IF(ISBLANK('Trust - Frontsheet'!F9),"",'Trust - Frontsheet'!F9))) -> 
A23: =IF('Trust - Frontsheet'!D35=0,"",IF('Trust - Frontsheet'!D35="","",'Trust - Frontsheet'!D35)) ->  | B23: =IF(ISBLANK('Trust - Frontsheet'!E35),"",'Trust - Frontsheet'!E35) ->  | C23: =IF(ISBLANK('Trust - Frontsheet'!F35),"",'Trust - Frontsheet'!F35) ->  | D23: =IF(ISBLANK('Trust - Frontsheet'!G35),"",'Trust - Frontsheet'!G35) ->  | E23: =IF(ISBLANK('Trust - Frontsheet'!H35),"",'Trust - Frontsheet'!H35) ->  | F23: ='Trust - Frontsheet'!I35 -> 0 | G23: ='Trust - Frontsheet'!J35 -> 0 | H23: ='Trust - Frontsheet'!K35 -> 0 | I23: ='Trust - Frontsheet'!L35 -> 0 | J23: ='Trust - Frontsheet'!M35 -> 0 | K23: ='Trust - Frontsheet'!N35 -> 0 | L23: ='Trust - Frontsheet'!O35 -> 0 | M23: ='Trust - Frontsheet'!P35 -> 0 | N23: =IF('Trust - Frontsheet'!Q35="",0,('Trust - Frontsheet'!Q35)) -> 0 | O23: =IF('Trust - Frontsheet'!R35="",0,('Trust - Frontsheet'!R35)) -> 0 | P23: =IF('Trust - Frontsheet'!S35="",0,('Trust - Frontsheet'!S35)) -> 0 | Q23: =IF('Trust - Frontsheet'!T35="",0,('Trust - Frontsheet'!T35)) -> 0 | R23: ='Trust - Frontsheet'!U35 -> 0 | S23: =IF('Trust - Frontsheet'!V35="",0,('Trust - Frontsheet'!V35)) -> 0 | T23: =IF('Trust - Frontsheet'!W35="",0,('Trust - Frontsheet'!W35)) -> 0 | U23: =IF('Trust - Frontsheet'!X35="",0,('Trust - Frontsheet'!X35)) -> 0 | V23: =IF(A23="","",(IF(ISBLANK('Trust - Frontsheet'!F9),"",'Trust - Frontsheet'!F9))) -> 
A24: =IF('Trust - Frontsheet'!D36=0,"",IF('Trust - Frontsheet'!D36="","",'Trust - Frontsheet'!D36)) ->  | B24: =IF(ISBLANK('Trust - Frontsheet'!E36),"",'Trust - Frontsheet'!E36) ->  | C24: =IF(ISBLANK('Trust - Frontsheet'!F36),"",'Trust - Frontsheet'!F36) ->  | D24: =IF(ISBLANK('Trust - Frontsheet'!G36),"",'Trust - Frontsheet'!G36) ->  | E24: =IF(ISBLANK('Trust - Frontsheet'!H36),"",'Trust - Frontsheet'!H36) ->  | F24: ='Trust - Frontsheet'!I36 -> 0 | G24: ='Trust - Frontsheet'!J36 -> 0 | H24: ='Trust - Frontsheet'!K36 -> 0 | I24: ='Trust - Frontsheet'!L36 -> 0 | J24: ='Trust - Frontsheet'!M36 -> 0 | K24: ='Trust - Frontsheet'!N36 -> 0 | L24: ='Trust - Frontsheet'!O36 -> 0 | M24: ='Trust - Frontsheet'!P36 -> 0 | N24: =IF('Trust - Frontsheet'!Q36="",0,('Trust - Frontsheet'!Q36)) -> 0 | O24: =IF('Trust - Frontsheet'!R36="",0,('Trust - Frontsheet'!R36)) -> 0 | P24: =IF('Trust - Frontsheet'!S36="",0,('Trust - Frontsheet'!S36)) -> 0 | Q24: =IF('Trust - Frontsheet'!T36="",0,('Trust - Frontsheet'!T36)) -> 0 | R24: ='Trust - Frontsheet'!U36 -> 0 | S24: =IF('Trust - Frontsheet'!V36="",0,('Trust - Frontsheet'!V36)) -> 0 | T24: =IF('Trust - Frontsheet'!W36="",0,('Trust - Frontsheet'!W36)) -> 0 | U24: =IF('Trust - Frontsheet'!X36="",0,('Trust - Frontsheet'!X36)) -> 0 | V24: =IF(A24="","",(IF(ISBLANK('Trust - Frontsheet'!F9),"",'Trust - Frontsheet'!F9))) -> 
A25: =IF('Trust - Frontsheet'!D37=0,"",IF('Trust - Frontsheet'!D37="","",'Trust - Frontsheet'!D37)) ->  | B25: =IF(ISBLANK('Trust - Frontsheet'!E37),"",'Trust - Frontsheet'!E37) ->  | C25: =IF(ISBLANK('Trust - Frontsheet'!F37),"",'Trust - Frontsheet'!F37) ->  | D25: =IF(ISBLANK('Trust - Frontsheet'!G37),"",'Trust - Frontsheet'!G37) ->  | E25: =IF(ISBLANK('Trust - Frontsheet'!H37),"",'Trust - Frontsheet'!H37) ->  | F25: ='Trust - Frontsheet'!I37 -> 0 | G25: ='Trust - Frontsheet'!J37 -> 0 | H25: ='Trust - Frontsheet'!K37 -> 0 | I25: ='Trust - Frontsheet'!L37 -> 0 | J25: ='Trust - Frontsheet'!M37 -> 0 | K25: ='Trust - Frontsheet'!N37 -> 0 | L25: ='Trust - Frontsheet'!O37 -> 0 | M25: ='Trust - Frontsheet'!P37 -> 0 | N25: =IF('Trust - Frontsheet'!Q37="",0,('Trust - Frontsheet'!Q37)) -> 0 | O25: =IF('Trust - Frontsheet'!R37="",0,('Trust - Frontsheet'!R37)) -> 0 | P25: =IF('Trust - Frontsheet'!S37="",0,('Trust - Frontsheet'!S37)) -> 0 | Q25: =IF('Trust - Frontsheet'!T37="",0,('Trust - Frontsheet'!T37)) -> 0 | R25: ='Trust - Frontsheet'!U37 -> 0 | S25: =IF('Trust - Frontsheet'!V37="",0,('Trust - Frontsheet'!V37)) -> 0 | T25: =IF('Trust - Frontsheet'!W37="",0,('Trust - Frontsheet'!W37)) -> 0 | U25: =IF('Trust - Frontsheet'!X37="",0,('Trust - Frontsheet'!X37)) -> 0 | V25: =IF(A25="","",(IF(ISBLANK('Trust - Frontsheet'!F9),"",'Trust - Frontsheet'!F9))) -> 
A26: =IF('Trust - Frontsheet'!D38=0,"",IF('Trust - Frontsheet'!D38="","",'Trust - Frontsheet'!D38)) ->  | B26: =IF(ISBLANK('Trust - Frontsheet'!E38),"",'Trust - Frontsheet'!E38) ->  | C26: =IF(ISBLANK('Trust - Frontsheet'!F38),"",'Trust - Frontsheet'!F38) ->  | D26: =IF(ISBLANK('Trust - Frontsheet'!G38),"",'Trust - Frontsheet'!G38) ->  | E26: =IF(ISBLANK('Trust - Frontsheet'!H38),"",'Trust - Frontsheet'!H38) ->  | F26: ='Trust - Frontsheet'!I38 -> 0 | G26: ='Trust - Frontsheet'!J38 -> 0 | H26: ='Trust - Frontsheet'!K38 -> 0 | I26: ='Trust - Frontsheet'!L38 -> 0 | J26: ='Trust - Frontsheet'!M38 -> 0 | K26: ='Trust - Frontsheet'!N38 -> 0 | L26: ='Trust - Frontsheet'!O38 -> 0 | M26: ='Trust - Frontsheet'!P38 -> 0 | N26: =IF('Trust - Frontsheet'!Q38="",0,('Trust - Frontsheet'!Q38)) -> 0 | O26: =IF('Trust - Frontsheet'!R38="",0,('Trust - Frontsheet'!R38)) -> 0 | P26: =IF('Trust - Frontsheet'!S38="",0,('Trust - Frontsheet'!S38)) -> 0 | Q26: =IF('Trust - Frontsheet'!T38="",0,('Trust - Frontsheet'!T38)) -> 0 | R26: ='Trust - Frontsheet'!U38 -> 0 | S26: =IF('Trust - Frontsheet'!V38="",0,('Trust - Frontsheet'!V38)) -> 0 | T26: =IF('Trust - Frontsheet'!W38="",0,('Trust - Frontsheet'!W38)) -> 0 | U26: =IF('Trust - Frontsheet'!X38="",0,('Trust - Frontsheet'!X38)) -> 0 | V26: =IF(A26="","",(IF(ISBLANK('Trust - Frontsheet'!F9),"",'Trust - Frontsheet'!F9))) -> 
A27: =IF('Trust - Frontsheet'!D39=0,"",IF('Trust - Frontsheet'!D39="","",'Trust - Frontsheet'!D39)) ->  | B27: =IF(ISBLANK('Trust - Frontsheet'!E39),"",'Trust - Frontsheet'!E39) ->  | C27: =IF(ISBLANK('Trust - Frontsheet'!F39),"",'Trust - Frontsheet'!F39) ->  | D27: =IF(ISBLANK('Trust - Frontsheet'!G39),"",'Trust - Frontsheet'!G39) ->  | E27: =IF(ISBLANK('Trust - Frontsheet'!H39),"",'Trust - Frontsheet'!H39) ->  | F27: ='Trust - Frontsheet'!I39 -> 0 | G27: ='Trust - Frontsheet'!J39 -> 0 | H27: ='Trust - Frontsheet'!K39 -> 0 | I27: ='Trust - Frontsheet'!L39 -> 0 | J27: ='Trust - Frontsheet'!M39 -> 0 | K27: ='Trust - Frontsheet'!N39 -> 0 | L27: ='Trust - Frontsheet'!O39 -> 0 | M27: ='Trust - Frontsheet'!P39 -> 0 | N27: =IF('Trust - Frontsheet'!Q39="",0,('Trust - Frontsheet'!Q39)) -> 0 | O27: =IF('Trust - Frontsheet'!R39="",0,('Trust - Frontsheet'!R39)) -> 0 | P27: =IF('Trust - Frontsheet'!S39="",0,('Trust - Frontsheet'!S39)) -> 0 | Q27: =IF('Trust - Frontsheet'!T39="",0,('Trust - Frontsheet'!T39)) -> 0 | R27: ='Trust - Frontsheet'!U39 -> 0 | S27: =IF('Trust - Frontsheet'!V39="",0,('Trust - Frontsheet'!V39)) -> 0 | T27: =IF('Trust - Frontsheet'!W39="",0,('Trust - Frontsheet'!W39)) -> 0 | U27: =IF('Trust - Frontsheet'!X39="",0,('Trust - Frontsheet'!X39)) -> 0 | V27: =IF(A27="","",(IF(ISBLANK('Trust - Frontsheet'!F9),"",'Trust - Frontsheet'!F9))) -> 
A28: =IF('Trust - Frontsheet'!D40=0,"",IF('Trust - Frontsheet'!D40="","",'Trust - Frontsheet'!D40)) ->  | B28: =IF(ISBLANK('Trust - Frontsheet'!E40),"",'Trust - Frontsheet'!E40) ->  | C28: =IF(ISBLANK('Trust - Frontsheet'!F40),"",'Trust - Frontsheet'!F40) ->  | D28: =IF(ISBLANK('Trust - Frontsheet'!G40),"",'Trust - Frontsheet'!G40) ->  | E28: =IF(ISBLANK('Trust - Frontsheet'!H40),"",'Trust - Frontsheet'!H40) ->  | F28: ='Trust - Frontsheet'!I40 -> 0 | G28: ='Trust - Frontsheet'!J40 -> 0 | H28: ='Trust - Frontsheet'!K40 -> 0 | I28: ='Trust - Frontsheet'!L40 -> 0 | J28: ='Trust - Frontsheet'!M40 -> 0 | K28: ='Trust - Frontsheet'!N40 -> 0 | L28: ='Trust - Frontsheet'!O40 -> 0 | M28: ='Trust - Frontsheet'!P40 -> 0 | N28: =IF('Trust - Frontsheet'!Q40="",0,('Trust - Frontsheet'!Q40)) -> 0 | O28: =IF('Trust - Frontsheet'!R40="",0,('Trust - Frontsheet'!R40)) -> 0 | P28: =IF('Trust - Frontsheet'!S40="",0,('Trust - Frontsheet'!S40)) -> 0 | Q28: =IF('Trust - Frontsheet'!T40="",0,('Trust - Frontsheet'!T40)) -> 0 | R28: ='Trust - Frontsheet'!U40 -> 0 | S28: =IF('Trust - Frontsheet'!V40="",0,('Trust - Frontsheet'!V40)) -> 0 | T28: =IF('Trust - Frontsheet'!W40="",0,('Trust - Frontsheet'!W40)) -> 0 | U28: =IF('Trust - Frontsheet'!X40="",0,('Trust - Frontsheet'!X40)) -> 0 | V28: =IF(A28="","",(IF(ISBLANK('Trust - Frontsheet'!F9),"",'Trust - Frontsheet'!F9))) -> 
A29: =IF('Trust - Frontsheet'!D41=0,"",IF('Trust - Frontsheet'!D41="","",'Trust - Frontsheet'!D41)) ->  | B29: =IF(ISBLANK('Trust - Frontsheet'!E41),"",'Trust - Frontsheet'!E41) ->  | C29: =IF(ISBLANK('Trust - Frontsheet'!F41),"",'Trust - Frontsheet'!F41) ->  | D29: =IF(ISBLANK('Trust - Frontsheet'!G41),"",'Trust - Frontsheet'!G41) ->  | E29: =IF(ISBLANK('Trust - Frontsheet'!H41),"",'Trust - Frontsheet'!H41) ->  | F29: ='Trust - Frontsheet'!I41 -> 0 | G29: ='Trust - Frontsheet'!J41 -> 0 | H29: ='Trust - Frontsheet'!K41 -> 0 | I29: ='Trust - Frontsheet'!L41 -> 0 | J29: ='Trust - Frontsheet'!M41 -> 0 | K29: ='Trust - Frontsheet'!N41 -> 0 | L29: ='Trust - Frontsheet'!O41 -> 0 | M29: ='Trust - Frontsheet'!P41 -> 0 | N29: =IF('Trust - Frontsheet'!Q41="",0,('Trust - Frontsheet'!Q41)) -> 0 | O29: =IF('Trust - Frontsheet'!R41="",0,('Trust - Frontsheet'!R41)) -> 0 | P29: =IF('Trust - Frontsheet'!S41="",0,('Trust - Frontsheet'!S41)) -> 0 | Q29: =IF('Trust - Frontsheet'!T41="",0,('Trust - Frontsheet'!T41)) -> 0 | R29: ='Trust - Frontsheet'!U41 -> 0 | S29: =IF('Trust - Frontsheet'!V41="",0,('Trust - Frontsheet'!V41)) -> 0 | T29: =IF('Trust - Frontsheet'!W41="",0,('Trust - Frontsheet'!W41)) -> 0 | U29: =IF('Trust - Frontsheet'!X41="",0,('Trust - Frontsheet'!X41)) -> 0 | V29: =IF(A29="","",(IF(ISBLANK('Trust - Frontsheet'!F9),"",'Trust - Frontsheet'!F9))) -> 
A30: =IF('Trust - Frontsheet'!D42=0,"",IF('Trust - Frontsheet'!D42="","",'Trust - Frontsheet'!D42)) ->  | B30: =IF(ISBLANK('Trust - Frontsheet'!E42),"",'Trust - Frontsheet'!E42) ->  | C30: =IF(ISBLANK('Trust - Frontsheet'!F42),"",'Trust - Frontsheet'!F42) ->  | D30: =IF(ISBLANK('Trust - Frontsheet'!G42),"",'Trust - Frontsheet'!G42) ->  | E30: =IF(ISBLANK('Trust - Frontsheet'!H42),"",'Trust - Frontsheet'!H42) ->  | F30: ='Trust - Frontsheet'!I42 -> 0 | G30: ='Trust - Frontsheet'!J42 -> 0 | H30: ='Trust - Frontsheet'!K42 -> 0 | I30: ='Trust - Frontsheet'!L42 -> 0 | J30: ='Trust - Frontsheet'!M42 -> 0 | K30: ='Trust - Frontsheet'!N42 -> 0 | L30: ='Trust - Frontsheet'!O42 -> 0 | M30: ='Trust - Frontsheet'!P42 -> 0 | N30: =IF('Trust - Frontsheet'!Q42="",0,('Trust - Frontsheet'!Q42)) -> 0 | O30: =IF('Trust - Frontsheet'!R42="",0,('Trust - Frontsheet'!R42)) -> 0 | P30: =IF('Trust - Frontsheet'!S42="",0,('Trust - Frontsheet'!S42)) -> 0 | Q30: =IF('Trust - Frontsheet'!T42="",0,('Trust - Frontsheet'!T42)) -> 0 | R30: ='Trust - Frontsheet'!U42 -> 0 | S30: =IF('Trust - Frontsheet'!V42="",0,('Trust - Frontsheet'!V42)) -> 0 | T30: =IF('Trust - Frontsheet'!W42="",0,('Trust - Frontsheet'!W42)) -> 0 | U30: =IF('Trust - Frontsheet'!X42="",0,('Trust - Frontsheet'!X42)) -> 0 | V30: =IF(A30="","",(IF(ISBLANK('Trust - Frontsheet'!F9),"",'Trust - Frontsheet'!F9))) -> 
A31: =IF('Trust - Frontsheet'!D43=0,"",IF('Trust - Frontsheet'!D43="","",'Trust - Frontsheet'!D43)) ->  | B31: =IF(ISBLANK('Trust - Frontsheet'!E43),"",'Trust - Frontsheet'!E43) ->  | C31: =IF(ISBLANK('Trust - Frontsheet'!F43),"",'Trust - Frontsheet'!F43) ->  | D31: =IF(ISBLANK('Trust - Frontsheet'!G43),"",'Trust - Frontsheet'!G43) ->  | E31: =IF(ISBLANK('Trust - Frontsheet'!H43),"",'Trust - Frontsheet'!H43) ->  | F31: ='Trust - Frontsheet'!I43 -> 0 | G31: ='Trust - Frontsheet'!J43 -> 0 | H31: ='Trust - Frontsheet'!K43 -> 0 | I31: ='Trust - Frontsheet'!L43 -> 0 | J31: ='Trust - Frontsheet'!M43 -> 0 | K31: ='Trust - Frontsheet'!N43 -> 0 | L31: ='Trust - Frontsheet'!O43 -> 0 | M31: ='Trust - Frontsheet'!P43 -> 0 | N31: =IF('Trust - Frontsheet'!Q43="",0,('Trust - Frontsheet'!Q43)) -> 0 | O31: =IF('Trust - Frontsheet'!R43="",0,('Trust - Frontsheet'!R43)) -> 0 | P31: =IF('Trust - Frontsheet'!S43="",0,('Trust - Frontsheet'!S43)) -> 0 | Q31: =IF('Trust - Frontsheet'!T43="",0,('Trust - Frontsheet'!T43)) -> 0 | R31: ='Trust - Frontsheet'!U43 -> 0 | S31: =IF('Trust - Frontsheet'!V43="",0,('Trust - Frontsheet'!V43)) -> 0 | T31: =IF('Trust - Frontsheet'!W43="",0,('Trust - Frontsheet'!W43)) -> 0 | U31: =IF('Trust - Frontsheet'!X43="",0,('Trust - Frontsheet'!X43)) -> 0 | V31: =IF(A31="","",(IF(ISBLANK('Trust - Frontsheet'!F9),"",'Trust - Frontsheet'!F9))) -> 
A32: =IF('Trust - Frontsheet'!D44=0,"",IF('Trust - Frontsheet'!D44="","",'Trust - Frontsheet'!D44)) ->  | B32: =IF(ISBLANK('Trust - Frontsheet'!E44),"",'Trust - Frontsheet'!E44) ->  | C32: =IF(ISBLANK('Trust - Frontsheet'!F44),"",'Trust - Frontsheet'!F44) ->  | D32: =IF(ISBLANK('Trust - Frontsheet'!G44),"",'Trust - Frontsheet'!G44) ->  | E32: =IF(ISBLANK('Trust - Frontsheet'!H44),"",'Trust - Frontsheet'!H44) ->  | F32: ='Trust - Frontsheet'!I44 -> 0 | G32: ='Trust - Frontsheet'!J44 -> 0 | H32: ='Trust - Frontsheet'!K44 -> 0 | I32: ='Trust - Frontsheet'!L44 -> 0 | J32: ='Trust - Frontsheet'!M44 -> 0 | K32: ='Trust - Frontsheet'!N44 -> 0 | L32: ='Trust - Frontsheet'!O44 -> 0 | M32: ='Trust - Frontsheet'!P44 -> 0 | N32: =IF('Trust - Frontsheet'!Q44="",0,('Trust - Frontsheet'!Q44)) -> 0 | O32: =IF('Trust - Frontsheet'!R44="",0,('Trust - Frontsheet'!R44)) -> 0 | P32: =IF('Trust - Frontsheet'!S44="",0,('Trust - Frontsheet'!S44)) -> 0 | Q32: =IF('Trust - Frontsheet'!T44="",0,('Trust - Frontsheet'!T44)) -> 0 | R32: ='Trust - Frontsheet'!U44 -> 0 | S32: =IF('Trust - Frontsheet'!V44="",0,('Trust - Frontsheet'!V44)) -> 0 | T32: =IF('Trust - Frontsheet'!W44="",0,('Trust - Frontsheet'!W44)) -> 0 | U32: =IF('Trust - Frontsheet'!X44="",0,('Trust - Frontsheet'!X44)) -> 0 | V32: =IF(A32="","",(IF(ISBLANK('Trust - Frontsheet'!F9),"",'Trust - Frontsheet'!F9))) -> 
A33: =IF('Trust - Frontsheet'!D45=0,"",IF('Trust - Frontsheet'!D45="","",'Trust - Frontsheet'!D45)) ->  | B33: =IF(ISBLANK('Trust - Frontsheet'!E45),"",'Trust - Frontsheet'!E45) ->  | C33: =IF(ISBLANK('Trust - Frontsheet'!F45),"",'Trust - Frontsheet'!F45) ->  | D33: =IF(ISBLANK('Trust - Frontsheet'!G45),"",'Trust - Frontsheet'!G45) ->  | E33: =IF(ISBLANK('Trust - Frontsheet'!H45),"",'Trust - Frontsheet'!H45) ->  | F33: ='Trust - Frontsheet'!I45 -> 0 | G33: ='Trust - Frontsheet'!J45 -> 0 | H33: ='Trust - Frontsheet'!K45 -> 0 | I33: ='Trust - Frontsheet'!L45 -> 0 | J33: ='Trust - Frontsheet'!M45 -> 0 | K33: ='Trust - Frontsheet'!N45 -> 0 | L33: ='Trust - Frontsheet'!O45 -> 0 | M33: ='Trust - Frontsheet'!P45 -> 0 | N33: =IF('Trust - Frontsheet'!Q45="",0,('Trust - Frontsheet'!Q45)) -> 0 | O33: =IF('Trust - Frontsheet'!R45="",0,('Trust - Frontsheet'!R45)) -> 0 | P33: =IF('Trust - Frontsheet'!S45="",0,('Trust - Frontsheet'!S45)) -> 0 | Q33: =IF('Trust - Frontsheet'!T45="",0,('Trust - Frontsheet'!T45)) -> 0 | R33: ='Trust - Frontsheet'!U45 -> 0 | S33: =IF('Trust - Frontsheet'!V45="",0,('Trust - Frontsheet'!V45)) -> 0 | T33: =IF('Trust - Frontsheet'!W45="",0,('Trust - Frontsheet'!W45)) -> 0 | U33: =IF('Trust - Frontsheet'!X45="",0,('Trust - Frontsheet'!X45)) -> 0 | V33: =IF(A33="","",(IF(ISBLANK('Trust - Frontsheet'!F9),"",'Trust - Frontsheet'!F9))) -> 
A34: =IF('Trust - Frontsheet'!D46=0,"",IF('Trust - Frontsheet'!D46="","",'Trust - Frontsheet'!D46)) ->  | B34: =IF(ISBLANK('Trust - Frontsheet'!E46),"",'Trust - Frontsheet'!E46) ->  | C34: =IF(ISBLANK('Trust - Frontsheet'!F46),"",'Trust - Frontsheet'!F46) ->  | D34: =IF(ISBLANK('Trust - Frontsheet'!G46),"",'Trust - Frontsheet'!G46) ->  | E34: =IF(ISBLANK('Trust - Frontsheet'!H46),"",'Trust - Frontsheet'!H46) ->  | F34: ='Trust - Frontsheet'!I46 -> 0 | G34: ='Trust - Frontsheet'!J46 -> 0 | H34: ='Trust - Frontsheet'!K46 -> 0 | I34: ='Trust - Frontsheet'!L46 -> 0 | J34: ='Trust - Frontsheet'!M46 -> 0 | K34: ='Trust - Frontsheet'!N46 -> 0 | L34: ='Trust - Frontsheet'!O46 -> 0 | M34: ='Trust - Frontsheet'!P46 -> 0 | N34: =IF('Trust - Frontsheet'!Q46="",0,('Trust - Frontsheet'!Q46)) -> 0 | O34: =IF('Trust - Frontsheet'!R46="",0,('Trust - Frontsheet'!R46)) -> 0 | P34: =IF('Trust - Frontsheet'!S46="",0,('Trust - Frontsheet'!S46)) -> 0 | Q34: =IF('Trust - Frontsheet'!T46="",0,('Trust - Frontsheet'!T46)) -> 0 | R34: ='Trust - Frontsheet'!U46 -> 0 | S34: =IF('Trust - Frontsheet'!V46="",0,('Trust - Frontsheet'!V46)) -> 0 | T34: =IF('Trust - Frontsheet'!W46="",0,('Trust - Frontsheet'!W46)) -> 0 | U34: =IF('Trust - Frontsheet'!X46="",0,('Trust - Frontsheet'!X46)) -> 0 | V34: =IF(A34="","",(IF(ISBLANK('Trust - Frontsheet'!F9),"",'Trust - Frontsheet'!F9))) -> 
A35: =IF('Trust - Frontsheet'!D47=0,"",IF('Trust - Frontsheet'!D47="","",'Trust - Frontsheet'!D47)) ->  | B35: =IF(ISBLANK('Trust - Frontsheet'!E47),"",'Trust - Frontsheet'!E47) ->  | C35: =IF(ISBLANK('Trust - Frontsheet'!F47),"",'Trust - Frontsheet'!F47) ->  | D35: =IF(ISBLANK('Trust - Frontsheet'!G47),"",'Trust - Frontsheet'!G47) ->  | E35: =IF(ISBLANK('Trust - Frontsheet'!H47),"",'Trust - Frontsheet'!H47) ->  | F35: ='Trust - Frontsheet'!I47 -> 0 | G35: ='Trust - Frontsheet'!J47 -> 0 | H35: ='Trust - Frontsheet'!K47 -> 0 | I35: ='Trust - Frontsheet'!L47 -> 0 | J35: ='Trust - Frontsheet'!M47 -> 0 | K35: ='Trust - Frontsheet'!N47 -> 0 | L35: ='Trust - Frontsheet'!O47 -> 0 | M35: ='Trust - Frontsheet'!P47 -> 0 | N35: =IF('Trust - Frontsheet'!Q47="",0,('Trust - Frontsheet'!Q47)) -> 0 | O35: =IF('Trust - Frontsheet'!R47="",0,('Trust - Frontsheet'!R47)) -> 0 | P35: =IF('Trust - Frontsheet'!S47="",0,('Trust - Frontsheet'!S47)) -> 0 | Q35: =IF('Trust - Frontsheet'!T47="",0,('Trust - Frontsheet'!T47)) -> 0 | R35: ='Trust - Frontsheet'!U47 -> 0 | S35: =IF('Trust - Frontsheet'!V47="",0,('Trust - Frontsheet'!V47)) -> 0 | T35: =IF('Trust - Frontsheet'!W47="",0,('Trust - Frontsheet'!W47)) -> 0 | U35: =IF('Trust - Frontsheet'!X47="",0,('Trust - Frontsheet'!X47)) -> 0 | V35: =IF(A35="","",(IF(ISBLANK('Trust - Frontsheet'!F9),"",'Trust - Frontsheet'!F9))) -> 
A36: =IF('Trust - Frontsheet'!D48=0,"",IF('Trust - Frontsheet'!D48="","",'Trust - Frontsheet'!D48)) ->  | B36: =IF(ISBLANK('Trust - Frontsheet'!E48),"",'Trust - Frontsheet'!E48) ->  | C36: =IF(ISBLANK('Trust - Frontsheet'!F48),"",'Trust - Frontsheet'!F48) ->  | D36: =IF(ISBLANK('Trust - Frontsheet'!G48),"",'Trust - Frontsheet'!G48) ->  | E36: =IF(ISBLANK('Trust - Frontsheet'!H48),"",'Trust - Frontsheet'!H48) ->  | F36: ='Trust - Frontsheet'!I48 -> 0 | G36: ='Trust - Frontsheet'!J48 -> 0 | H36: ='Trust - Frontsheet'!K48 -> 0 | I36: ='Trust - Frontsheet'!L48 -> 0 | J36: ='Trust - Frontsheet'!M48 -> 0 | K36: ='Trust - Frontsheet'!N48 -> 0 | L36: ='Trust - Frontsheet'!O48 -> 0 | M36: ='Trust - Frontsheet'!P48 -> 0 | N36: =IF('Trust - Frontsheet'!Q48="",0,('Trust - Frontsheet'!Q48)) -> 0 | O36: =IF('Trust - Frontsheet'!R48="",0,('Trust - Frontsheet'!R48)) -> 0 | P36: =IF('Trust - Frontsheet'!S48="",0,('Trust - Frontsheet'!S48)) -> 0 | Q36: =IF('Trust - Frontsheet'!T48="",0,('Trust - Frontsheet'!T48)) -> 0 | R36: ='Trust - Frontsheet'!U48 -> 0 | S36: =IF('Trust - Frontsheet'!V48="",0,('Trust - Frontsheet'!V48)) -> 0 | T36: =IF('Trust - Frontsheet'!W48="",0,('Trust - Frontsheet'!W48)) -> 0 | U36: =IF('Trust - Frontsheet'!X48="",0,('Trust - Frontsheet'!X48)) -> 0 | V36: =IF(A36="","",(IF(ISBLANK('Trust - Frontsheet'!F9),"",'Trust - Frontsheet'!F9))) -> 
A37: =IF('Trust - Frontsheet'!D49=0,"",IF('Trust - Frontsheet'!D49="","",'Trust - Frontsheet'!D49)) ->  | B37: =IF(ISBLANK('Trust - Frontsheet'!E49),"",'Trust - Frontsheet'!E49) ->  | C37: =IF(ISBLANK('Trust - Frontsheet'!F49),"",'Trust - Frontsheet'!F49) ->  | D37: =IF(ISBLANK('Trust - Frontsheet'!G49),"",'Trust - Frontsheet'!G49) ->  | E37: =IF(ISBLANK('Trust - Frontsheet'!H49),"",'Trust - Frontsheet'!H49) ->  | F37: ='Trust - Frontsheet'!I49 -> 0 | G37: ='Trust - Frontsheet'!J49 -> 0 | H37: ='Trust - Frontsheet'!K49 -> 0 | I37: ='Trust - Frontsheet'!L49 -> 0 | J37: ='Trust - Frontsheet'!M49 -> 0 | K37: ='Trust - Frontsheet'!N49 -> 0 | L37: ='Trust - Frontsheet'!O49 -> 0 | M37: ='Trust - Frontsheet'!P49 -> 0 | N37: =IF('Trust - Frontsheet'!Q49="",0,('Trust - Frontsheet'!Q49)) -> 0 | O37: =IF('Trust - Frontsheet'!R49="",0,('Trust - Frontsheet'!R49)) -> 0 | P37: =IF('Trust - Frontsheet'!S49="",0,('Trust - Frontsheet'!S49)) -> 0 | Q37: =IF('Trust - Frontsheet'!T49="",0,('Trust - Frontsheet'!T49)) -> 0 | R37: ='Trust - Frontsheet'!U49 -> 0 | S37: =IF('Trust - Frontsheet'!V49="",0,('Trust - Frontsheet'!V49)) -> 0 | T37: =IF('Trust - Frontsheet'!W49="",0,('Trust - Frontsheet'!W49)) -> 0 | U37: =IF('Trust - Frontsheet'!X49="",0,('Trust - Frontsheet'!X49)) -> 0 | V37: =IF(A37="","",(IF(ISBLANK('Trust - Frontsheet'!F9),"",'Trust - Frontsheet'!F9))) -> 
A38: =IF('Trust - Frontsheet'!D50=0,"",IF('Trust - Frontsheet'!D50="","",'Trust - Frontsheet'!D50)) ->  | B38: =IF(ISBLANK('Trust - Frontsheet'!E50),"",'Trust - Frontsheet'!E50) ->  | C38: =IF(ISBLANK('Trust - Frontsheet'!F50),"",'Trust - Frontsheet'!F50) ->  | D38: =IF(ISBLANK('Trust - Frontsheet'!G50),"",'Trust - Frontsheet'!G50) ->  | E38: =IF(ISBLANK('Trust - Frontsheet'!H50),"",'Trust - Frontsheet'!H50) ->  | F38: ='Trust - Frontsheet'!I50 -> 0 | G38: ='Trust - Frontsheet'!J50 -> 0 | H38: ='Trust - Frontsheet'!K50 -> 0 | I38: ='Trust - Frontsheet'!L50 -> 0 | J38: ='Trust - Frontsheet'!M50 -> 0 | K38: ='Trust - Frontsheet'!N50 -> 0 | L38: ='Trust - Frontsheet'!O50 -> 0 | M38: ='Trust - Frontsheet'!P50 -> 0 | N38: =IF('Trust - Frontsheet'!Q50="",0,('Trust - Frontsheet'!Q50)) -> 0 | O38: =IF('Trust - Frontsheet'!R50="",0,('Trust - Frontsheet'!R50)) -> 0 | P38: =IF('Trust - Frontsheet'!S50="",0,('Trust - Frontsheet'!S50)) -> 0 | Q38: =IF('Trust - Frontsheet'!T50="",0,('Trust - Frontsheet'!T50)) -> 0 | R38: ='Trust - Frontsheet'!U50 -> 0 | S38: =IF('Trust - Frontsheet'!V50="",0,('Trust - Frontsheet'!V50)) -> 0 | T38: =IF('Trust - Frontsheet'!W50="",0,('Trust - Frontsheet'!W50)) -> 0 | U38: =IF('Trust - Frontsheet'!X50="",0,('Trust - Frontsheet'!X50)) -> 0 | V38: =IF(A38="","",(IF(ISBLANK('Trust - Frontsheet'!F9),"",'Trust - Frontsheet'!F9))) -> 
A39: =IF('Trust - Frontsheet'!D51=0,"",IF('Trust - Frontsheet'!D51="","",'Trust - Frontsheet'!D51)) ->  | B39: =IF(ISBLANK('Trust - Frontsheet'!E51),"",'Trust - Frontsheet'!E51) ->  | C39: =IF(ISBLANK('Trust - Frontsheet'!F51),"",'Trust - Frontsheet'!F51) ->  | D39: =IF(ISBLANK('Trust - Frontsheet'!G51),"",'Trust - Frontsheet'!G51) ->  | E39: =IF(ISBLANK('Trust - Frontsheet'!H51),"",'Trust - Frontsheet'!H51) ->  | F39: ='Trust - Frontsheet'!I51 -> 0 | G39: ='Trust - Frontsheet'!J51 -> 0 | H39: ='Trust - Frontsheet'!K51 -> 0 | I39: ='Trust - Frontsheet'!L51 -> 0 | J39: ='Trust - Frontsheet'!M51 -> 0 | K39: ='Trust - Frontsheet'!N51 -> 0 | L39: ='Trust - Frontsheet'!O51 -> 0 | M39: ='Trust - Frontsheet'!P51 -> 0 | N39: =IF('Trust - Frontsheet'!Q51="",0,('Trust - Frontsheet'!Q51)) -> 0 | O39: =IF('Trust - Frontsheet'!R51="",0,('Trust - Frontsheet'!R51)) -> 0 | P39: =IF('Trust - Frontsheet'!S51="",0,('Trust - Frontsheet'!S51)) -> 0 | Q39: =IF('Trust - Frontsheet'!T51="",0,('Trust - Frontsheet'!T51)) -> 0 | R39: ='Trust - Frontsheet'!U51 -> 0 | S39: =IF('Trust - Frontsheet'!V51="",0,('Trust - Frontsheet'!V51)) -> 0 | T39: =IF('Trust - Frontsheet'!W51="",0,('Trust - Frontsheet'!W51)) -> 0 | U39: =IF('Trust - Frontsheet'!X51="",0,('Trust - Frontsheet'!X51)) -> 0 | V39: =IF(A39="","",(IF(ISBLANK('Trust - Frontsheet'!F9),"",'Trust - Frontsheet'!F9))) -> 
A40: =IF('Trust - Frontsheet'!D52=0,"",IF('Trust - Frontsheet'!D52="","",'Trust - Frontsheet'!D52)) ->  | B40: =IF(ISBLANK('Trust - Frontsheet'!E52),"",'Trust - Frontsheet'!E52) ->  | C40: =IF(ISBLANK('Trust - Frontsheet'!F52),"",'Trust - Frontsheet'!F52) ->  | D40: =IF(ISBLANK('Trust - Frontsheet'!G52),"",'Trust - Frontsheet'!G52) ->  | E40: =IF(ISBLANK('Trust - Frontsheet'!H52),"",'Trust - Frontsheet'!H52) ->  | F40: ='Trust - Frontsheet'!I52 -> 0 | G40: ='Trust - Frontsheet'!J52 -> 0 | H40: ='Trust - Frontsheet'!K52 -> 0 | I40: ='Trust - Frontsheet'!L52 -> 0 | J40: ='Trust - Frontsheet'!M52 -> 0 | K40: ='Trust - Frontsheet'!N52 -> 0 | L40: ='Trust - Frontsheet'!O52 -> 0 | M40: ='Trust - Frontsheet'!P52 -> 0 | N40: =IF('Trust - Frontsheet'!Q52="",0,('Trust - Frontsheet'!Q52)) -> 0 | O40: =IF('Trust - Frontsheet'!R52="",0,('Trust - Frontsheet'!R52)) -> 0 | P40: =IF('Trust - Frontsheet'!S52="",0,('Trust - Frontsheet'!S52)) -> 0 | Q40: =IF('Trust - Frontsheet'!T52="",0,('Trust - Frontsheet'!T52)) -> 0 | R40: ='Trust - Frontsheet'!U52 -> 0 | S40: =IF('Trust - Frontsheet'!V52="",0,('Trust - Frontsheet'!V52)) -> 0 | T40: =IF('Trust - Frontsheet'!W52="",0,('Trust - Frontsheet'!W52)) -> 0 | U40: =IF('Trust - Frontsheet'!X52="",0,('Trust - Frontsheet'!X52)) -> 0 | V40: =IF(A40="","",(IF(ISBLANK('Trust - Frontsheet'!F9),"",'Trust - Frontsheet'!F9))) -> 
A41: =IF('Trust - Frontsheet'!D53=0,"",IF('Trust - Frontsheet'!D53="","",'Trust - Frontsheet'!D53)) ->  | B41: =IF(ISBLANK('Trust - Frontsheet'!E53),"",'Trust - Frontsheet'!E53) ->  | C41: =IF(ISBLANK('Trust - Frontsheet'!F53),"",'Trust - Frontsheet'!F53) ->  | D41: =IF(ISBLANK('Trust - Frontsheet'!G53),"",'Trust - Frontsheet'!G53) ->  | E41: =IF(ISBLANK('Trust - Frontsheet'!H53),"",'Trust - Frontsheet'!H53) ->  | F41: ='Trust - Frontsheet'!I53 -> 0 | G41: ='Trust - Frontsheet'!J53 -> 0 | H41: ='Trust - Frontsheet'!K53 -> 0 | I41: ='Trust - Frontsheet'!L53 -> 0 | J41: ='Trust - Frontsheet'!M53 -> 0 | K41: ='Trust - Frontsheet'!N53 -> 0 | L41: ='Trust - Frontsheet'!O53 -> 0 | M41: ='Trust - Frontsheet'!P53 -> 0 | N41: =IF('Trust - Frontsheet'!Q53="",0,('Trust - Frontsheet'!Q53)) -> 0 | O41: =IF('Trust - Frontsheet'!R53="",0,('Trust - Frontsheet'!R53)) -> 0 | P41: =IF('Trust - Frontsheet'!S53="",0,('Trust - Frontsheet'!S53)) -> 0 | Q41: =IF('Trust - Frontsheet'!T53="",0,('Trust - Frontsheet'!T53)) -> 0 | R41: ='Trust - Frontsheet'!U53 -> 0 | S41: =IF('Trust - Frontsheet'!V53="",0,('Trust - Frontsheet'!V53)) -> 0 | T41: =IF('Trust - Frontsheet'!W53="",0,('Trust - Frontsheet'!W53)) -> 0 | U41: =IF('Trust - Frontsheet'!X53="",0,('Trust - Frontsheet'!X53)) -> 0 | V41: =IF(A41="","",(IF(ISBLANK('Trust - Frontsheet'!F9),"",'Trust - Frontsheet'!F9))) -> 
A42: =IF('Trust - Frontsheet'!D54=0,"",IF('Trust - Frontsheet'!D54="","",'Trust - Frontsheet'!D54)) ->  | B42: =IF(ISBLANK('Trust - Frontsheet'!E54),"",'Trust - Frontsheet'!E54) ->  | C42: =IF(ISBLANK('Trust - Frontsheet'!F54),"",'Trust - Frontsheet'!F54) ->  | D42: =IF(ISBLANK('Trust - Frontsheet'!G54),"",'Trust - Frontsheet'!G54) ->  | E42: =IF(ISBLANK('Trust - Frontsheet'!H54),"",'Trust - Frontsheet'!H54) ->  | F42: ='Trust - Frontsheet'!I54 -> 0 | G42: ='Trust - Frontsheet'!J54 -> 0 | H42: ='Trust - Frontsheet'!K54 -> 0 | I42: ='Trust - Frontsheet'!L54 -> 0 | J42: ='Trust - Frontsheet'!M54 -> 0 | K42: ='Trust - Frontsheet'!N54 -> 0 | L42: ='Trust - Frontsheet'!O54 -> 0 | M42: ='Trust - Frontsheet'!P54 -> 0 | N42: =IF('Trust - Frontsheet'!Q54="",0,('Trust - Frontsheet'!Q54)) -> 0 | O42: =IF('Trust - Frontsheet'!R54="",0,('Trust - Frontsheet'!R54)) -> 0 | P42: =IF('Trust - Frontsheet'!S54="",0,('Trust - Frontsheet'!S54)) -> 0 | Q42: =IF('Trust - Frontsheet'!T54="",0,('Trust - Frontsheet'!T54)) -> 0 | R42: ='Trust - Frontsheet'!U54 -> 0 | S42: =IF('Trust - Frontsheet'!V54="",0,('Trust - Frontsheet'!V54)) -> 0 | T42: =IF('Trust - Frontsheet'!W54="",0,('Trust - Frontsheet'!W54)) -> 0 | U42: =IF('Trust - Frontsheet'!X54="",0,('Trust - Frontsheet'!X54)) -> 0 | V42: =IF(A42="","",(IF(ISBLANK('Trust - Frontsheet'!F9),"",'Trust - Frontsheet'!F9))) -> 
A43: =IF('Trust - Frontsheet'!D55=0,"",IF('Trust - Frontsheet'!D55="","",'Trust - Frontsheet'!D55)) ->  | B43: =IF(ISBLANK('Trust - Frontsheet'!E55),"",'Trust - Frontsheet'!E55) ->  | C43: =IF(ISBLANK('Trust - Frontsheet'!F55),"",'Trust - Frontsheet'!F55) ->  | D43: =IF(ISBLANK('Trust - Frontsheet'!G55),"",'Trust - Frontsheet'!G55) ->  | E43: =IF(ISBLANK('Trust - Frontsheet'!H55),"",'Trust - Frontsheet'!H55) ->  | F43: ='Trust - Frontsheet'!I55 -> 0 | G43: ='Trust - Frontsheet'!J55 -> 0 | H43: ='Trust - Frontsheet'!K55 -> 0 | I43: ='Trust - Frontsheet'!L55 -> 0 | J43: ='Trust - Frontsheet'!M55 -> 0 | K43: ='Trust - Frontsheet'!N55 -> 0 | L43: ='Trust - Frontsheet'!O55 -> 0 | M43: ='Trust - Frontsheet'!P55 -> 0 | N43: =IF('Trust - Frontsheet'!Q55="",0,('Trust - Frontsheet'!Q55)) -> 0 | O43: =IF('Trust - Frontsheet'!R55="",0,('Trust - Frontsheet'!R55)) -> 0 | P43: =IF('Trust - Frontsheet'!S55="",0,('Trust - Frontsheet'!S55)) -> 0 | Q43: =IF('Trust - Frontsheet'!T55="",0,('Trust - Frontsheet'!T55)) -> 0 | R43: ='Trust - Frontsheet'!U55 -> 0 | S43: =IF('Trust - Frontsheet'!V55="",0,('Trust - Frontsheet'!V55)) -> 0 | T43: =IF('Trust - Frontsheet'!W55="",0,('Trust - Frontsheet'!W55)) -> 0 | U43: =IF('Trust - Frontsheet'!X55="",0,('Trust - Frontsheet'!X55)) -> 0 | V43: =IF(A43="","",(IF(ISBLANK('Trust - Frontsheet'!F9),"",'Trust - Frontsheet'!F9))) -> 
A44: =IF('Trust - Frontsheet'!D56=0,"",IF('Trust - Frontsheet'!D56="","",'Trust - Frontsheet'!D56)) ->  | B44: =IF(ISBLANK('Trust - Frontsheet'!E56),"",'Trust - Frontsheet'!E56) ->  | C44: =IF(ISBLANK('Trust - Frontsheet'!F56),"",'Trust - Frontsheet'!F56) ->  | D44: =IF(ISBLANK('Trust - Frontsheet'!G56),"",'Trust - Frontsheet'!G56) ->  | E44: =IF(ISBLANK('Trust - Frontsheet'!H56),"",'Trust - Frontsheet'!H56) ->  | F44: ='Trust - Frontsheet'!I56 -> 0 | G44: ='Trust - Frontsheet'!J56 -> 0 | H44: ='Trust - Frontsheet'!K56 -> 0 | I44: ='Trust - Frontsheet'!L56 -> 0 | J44: ='Trust - Frontsheet'!M56 -> 0 | K44: ='Trust - Frontsheet'!N56 -> 0 | L44: ='Trust - Frontsheet'!O56 -> 0 | M44: ='Trust - Frontsheet'!P56 -> 0 | N44: =IF('Trust - Frontsheet'!Q56="",0,('Trust - Frontsheet'!Q56)) -> 0 | O44: =IF('Trust - Frontsheet'!R56="",0,('Trust - Frontsheet'!R56)) -> 0 | P44: =IF('Trust - Frontsheet'!S56="",0,('Trust - Frontsheet'!S56)) -> 0 | Q44: =IF('Trust - Frontsheet'!T56="",0,('Trust - Frontsheet'!T56)) -> 0 | R44: ='Trust - Frontsheet'!U56 -> 0 | S44: =IF('Trust - Frontsheet'!V56="",0,('Trust - Frontsheet'!V56)) -> 0 | T44: =IF('Trust - Frontsheet'!W56="",0,('Trust - Frontsheet'!W56)) -> 0 | U44: =IF('Trust - Frontsheet'!X56="",0,('Trust - Frontsheet'!X56)) -> 0 | V44: =IF(A44="","",(IF(ISBLANK('Trust - Frontsheet'!F9),"",'Trust - Frontsheet'!F9))) -> 
A45: =IF('Trust - Frontsheet'!D57=0,"",IF('Trust - Frontsheet'!D57="","",'Trust - Frontsheet'!D57)) ->  | B45: =IF(ISBLANK('Trust - Frontsheet'!E57),"",'Trust - Frontsheet'!E57) ->  | C45: =IF(ISBLANK('Trust - Frontsheet'!F57),"",'Trust - Frontsheet'!F57) ->  | D45: =IF(ISBLANK('Trust - Frontsheet'!G57),"",'Trust - Frontsheet'!G57) ->  | E45: =IF(ISBLANK('Trust - Frontsheet'!H57),"",'Trust - Frontsheet'!H57) ->  | F45: ='Trust - Frontsheet'!I57 -> 0 | G45: ='Trust - Frontsheet'!J57 -> 0 | H45: ='Trust - Frontsheet'!K57 -> 0 | I45: ='Trust - Frontsheet'!L57 -> 0 | J45: ='Trust - Frontsheet'!M57 -> 0 | K45: ='Trust - Frontsheet'!N57 -> 0 | L45: ='Trust - Frontsheet'!O57 -> 0 | M45: ='Trust - Frontsheet'!P57 -> 0 | N45: =IF('Trust - Frontsheet'!Q57="",0,('Trust - Frontsheet'!Q57)) -> 0 | O45: =IF('Trust - Frontsheet'!R57="",0,('Trust - Frontsheet'!R57)) -> 0 | P45: =IF('Trust - Frontsheet'!S57="",0,('Trust - Frontsheet'!S57)) -> 0 | Q45: =IF('Trust - Frontsheet'!T57="",0,('Trust - Frontsheet'!T57)) -> 0 | R45: ='Trust - Frontsheet'!U57 -> 0 | S45: =IF('Trust - Frontsheet'!V57="",0,('Trust - Frontsheet'!V57)) -> 0 | T45: =IF('Trust - Frontsheet'!W57="",0,('Trust - Frontsheet'!W57)) -> 0 | U45: =IF('Trust - Frontsheet'!X57="",0,('Trust - Frontsheet'!X57)) -> 0 | V45: =IF(A45="","",(IF(ISBLANK('Trust - Frontsheet'!F9),"",'Trust - Frontsheet'!F9))) -> 
A46: =IF('Trust - Frontsheet'!D58=0,"",IF('Trust - Frontsheet'!D58="","",'Trust - Frontsheet'!D58)) ->  | B46: =IF(ISBLANK('Trust - Frontsheet'!E58),"",'Trust - Frontsheet'!E58) ->  | C46: =IF(ISBLANK('Trust - Frontsheet'!F58),"",'Trust - Frontsheet'!F58) ->  | D46: =IF(ISBLANK('Trust - Frontsheet'!G58),"",'Trust - Frontsheet'!G58) ->  | E46: =IF(ISBLANK('Trust - Frontsheet'!H58),"",'Trust - Frontsheet'!H58) ->  | F46: ='Trust - Frontsheet'!I58 -> 0 | G46: ='Trust - Frontsheet'!J58 -> 0 | H46: ='Trust - Frontsheet'!K58 -> 0 | I46: ='Trust - Frontsheet'!L58 -> 0 | J46: ='Trust - Frontsheet'!M58 -> 0 | K46: ='Trust - Frontsheet'!N58 -> 0 | L46: ='Trust - Frontsheet'!O58 -> 0 | M46: ='Trust - Frontsheet'!P58 -> 0 | N46: =IF('Trust - Frontsheet'!Q58="",0,('Trust - Frontsheet'!Q58)) -> 0 | O46: =IF('Trust - Frontsheet'!R58="",0,('Trust - Frontsheet'!R58)) -> 0 | P46: =IF('Trust - Frontsheet'!S58="",0,('Trust - Frontsheet'!S58)) -> 0 | Q46: =IF('Trust - Frontsheet'!T58="",0,('Trust - Frontsheet'!T58)) -> 0 | R46: ='Trust - Frontsheet'!U58 -> 0 | S46: =IF('Trust - Frontsheet'!V58="",0,('Trust - Frontsheet'!V58)) -> 0 | T46: =IF('Trust - Frontsheet'!W58="",0,('Trust - Frontsheet'!W58)) -> 0 | U46: =IF('Trust - Frontsheet'!X58="",0,('Trust - Frontsheet'!X58)) -> 0 | V46: =IF(A46="","",(IF(ISBLANK('Trust - Frontsheet'!F9),"",'Trust - Frontsheet'!F9))) -> 
A47: =IF('Trust - Frontsheet'!D59=0,"",IF('Trust - Frontsheet'!D59="","",'Trust - Frontsheet'!D59)) ->  | B47: =IF(ISBLANK('Trust - Frontsheet'!E59),"",'Trust - Frontsheet'!E59) ->  | C47: =IF(ISBLANK('Trust - Frontsheet'!F59),"",'Trust - Frontsheet'!F59) ->  | D47: =IF(ISBLANK('Trust - Frontsheet'!G59),"",'Trust - Frontsheet'!G59) ->  | E47: =IF(ISBLANK('Trust - Frontsheet'!H59),"",'Trust - Frontsheet'!H59) ->  | F47: ='Trust - Frontsheet'!I59 -> 0 | G47: ='Trust - Frontsheet'!J59 -> 0 | H47: ='Trust - Frontsheet'!K59 -> 0 | I47: ='Trust - Frontsheet'!L59 -> 0 | J47: ='Trust - Frontsheet'!M59 -> 0 | K47: ='Trust - Frontsheet'!N59 -> 0 | L47: ='Trust - Frontsheet'!O59 -> 0 | M47: ='Trust - Frontsheet'!P59 -> 0 | N47: =IF('Trust - Frontsheet'!Q59="",0,('Trust - Frontsheet'!Q59)) -> 0 | O47: =IF('Trust - Frontsheet'!R59="",0,('Trust - Frontsheet'!R59)) -> 0 | P47: =IF('Trust - Frontsheet'!S59="",0,('Trust - Frontsheet'!S59)) -> 0 | Q47: =IF('Trust - Frontsheet'!T59="",0,('Trust - Frontsheet'!T59)) -> 0 | R47: ='Trust - Frontsheet'!U59 -> 0 | S47: =IF('Trust - Frontsheet'!V59="",0,('Trust - Frontsheet'!V59)) -> 0 | T47: =IF('Trust - Frontsheet'!W59="",0,('Trust - Frontsheet'!W59)) -> 0 | U47: =IF('Trust - Frontsheet'!X59="",0,('Trust - Frontsheet'!X59)) -> 0 | V47: =IF(A47="","",(IF(ISBLANK('Trust - Frontsheet'!F9),"",'Trust - Frontsheet'!F9))) -> 
A48: =IF('Trust - Frontsheet'!D60=0,"",IF('Trust - Frontsheet'!D60="","",'Trust - Frontsheet'!D60)) ->  | B48: =IF(ISBLANK('Trust - Frontsheet'!E60),"",'Trust - Frontsheet'!E60) ->  | C48: =IF(ISBLANK('Trust - Frontsheet'!F60),"",'Trust - Frontsheet'!F60) ->  | D48: =IF(ISBLANK('Trust - Frontsheet'!G60),"",'Trust - Frontsheet'!G60) ->  | E48: =IF(ISBLANK('Trust - Frontsheet'!H60),"",'Trust - Frontsheet'!H60) ->  | F48: ='Trust - Frontsheet'!I60 -> 0 | G48: ='Trust - Frontsheet'!J60 -> 0 | H48: ='Trust - Frontsheet'!K60 -> 0 | I48: ='Trust - Frontsheet'!L60 -> 0 | J48: ='Trust - Frontsheet'!M60 -> 0 | K48: ='Trust - Frontsheet'!N60 -> 0 | L48: ='Trust - Frontsheet'!O60 -> 0 | M48: ='Trust - Frontsheet'!P60 -> 0 | N48: =IF('Trust - Frontsheet'!Q60="",0,('Trust - Frontsheet'!Q60)) -> 0 | O48: =IF('Trust - Frontsheet'!R60="",0,('Trust - Frontsheet'!R60)) -> 0 | P48: =IF('Trust - Frontsheet'!S60="",0,('Trust - Frontsheet'!S60)) -> 0 | Q48: =IF('Trust - Frontsheet'!T60="",0,('Trust - Frontsheet'!T60)) -> 0 | R48: ='Trust - Frontsheet'!U60 -> 0 | S48: =IF('Trust - Frontsheet'!V60="",0,('Trust - Frontsheet'!V60)) -> 0 | T48: =IF('Trust - Frontsheet'!W60="",0,('Trust - Frontsheet'!W60)) -> 0 | U48: =IF('Trust - Frontsheet'!X60="",0,('Trust - Frontsheet'!X60)) -> 0 | V48: =IF(A48="","",(IF(ISBLANK('Trust - Frontsheet'!F9),"",'Trust - Frontsheet'!F9))) -> 
A49: =IF('Trust - Frontsheet'!D61=0,"",IF('Trust - Frontsheet'!D61="","",'Trust - Frontsheet'!D61)) ->  | B49: =IF(ISBLANK('Trust - Frontsheet'!E61),"",'Trust - Frontsheet'!E61) ->  | C49: =IF(ISBLANK('Trust - Frontsheet'!F61),"",'Trust - Frontsheet'!F61) ->  | D49: =IF(ISBLANK('Trust - Frontsheet'!G61),"",'Trust - Frontsheet'!G61) ->  | E49: =IF(ISBLANK('Trust - Frontsheet'!H61),"",'Trust - Frontsheet'!H61) ->  | F49: ='Trust - Frontsheet'!I61 -> 0 | G49: ='Trust - Frontsheet'!J61 -> 0 | H49: ='Trust - Frontsheet'!K61 -> 0 | I49: ='Trust - Frontsheet'!L61 -> 0 | J49: ='Trust - Frontsheet'!M61 -> 0 | K49: ='Trust - Frontsheet'!N61 -> 0 | L49: ='Trust - Frontsheet'!O61 -> 0 | M49: ='Trust - Frontsheet'!P61 -> 0 | N49: =IF('Trust - Frontsheet'!Q61="",0,('Trust - Frontsheet'!Q61)) -> 0 | O49: =IF('Trust - Frontsheet'!R61="",0,('Trust - Frontsheet'!R61)) -> 0 | P49: =IF('Trust - Frontsheet'!S61="",0,('Trust - Frontsheet'!S61)) -> 0 | Q49: =IF('Trust - Frontsheet'!T61="",0,('Trust - Frontsheet'!T61)) -> 0 | R49: ='Trust - Frontsheet'!U61 -> 0 | S49: =IF('Trust - Frontsheet'!V61="",0,('Trust - Frontsheet'!V61)) -> 0 | T49: =IF('Trust - Frontsheet'!W61="",0,('Trust - Frontsheet'!W61)) -> 0 | U49: =IF('Trust - Frontsheet'!X61="",0,('Trust - Frontsheet'!X61)) -> 0 | V49: =IF(A49="","",(IF(ISBLANK('Trust - Frontsheet'!F9),"",'Trust - Frontsheet'!F9))) -> 
A50: =IF('Trust - Frontsheet'!D62=0,"",IF('Trust - Frontsheet'!D62="","",'Trust - Frontsheet'!D62)) ->  | B50: =IF(ISBLANK('Trust - Frontsheet'!E62),"",'Trust - Frontsheet'!E62) ->  | C50: =IF(ISBLANK('Trust - Frontsheet'!F62),"",'Trust - Frontsheet'!F62) ->  | D50: =IF(ISBLANK('Trust - Frontsheet'!G62),"",'Trust - Frontsheet'!G62) ->  | E50: =IF(ISBLANK('Trust - Frontsheet'!H62),"",'Trust - Frontsheet'!H62) ->  | F50: ='Trust - Frontsheet'!I62 -> 0 | G50: ='Trust - Frontsheet'!J62 -> 0 | H50: ='Trust - Frontsheet'!K62 -> 0 | I50: ='Trust - Frontsheet'!L62 -> 0 | J50: ='Trust - Frontsheet'!M62 -> 0 | K50: ='Trust - Frontsheet'!N62 -> 0 | L50: ='Trust - Frontsheet'!O62 -> 0 | M50: ='Trust - Frontsheet'!P62 -> 0 | N50: =IF('Trust - Frontsheet'!Q62="",0,('Trust - Frontsheet'!Q62)) -> 0 | O50: =IF('Trust - Frontsheet'!R62="",0,('Trust - Frontsheet'!R62)) -> 0 | P50: =IF('Trust - Frontsheet'!S62="",0,('Trust - Frontsheet'!S62)) -> 0 | Q50: =IF('Trust - Frontsheet'!T62="",0,('Trust - Frontsheet'!T62)) -> 0 | R50: ='Trust - Frontsheet'!U62 -> 0 | S50: =IF('Trust - Frontsheet'!V62="",0,('Trust - Frontsheet'!V62)) -> 0 | T50: =IF('Trust - Frontsheet'!W62="",0,('Trust - Frontsheet'!W62)) -> 0 | U50: =IF('Trust - Frontsheet'!X62="",0,('Trust - Frontsheet'!X62)) -> 0 | V50: =IF(A50="","",(IF(ISBLANK('Trust - Frontsheet'!F9),"",'Trust - Frontsheet'!F9))) -> 
A51: =IF('Trust - Frontsheet'!D63=0,"",IF('Trust - Frontsheet'!D63="","",'Trust - Frontsheet'!D63)) ->  | B51: =IF(ISBLANK('Trust - Frontsheet'!E63),"",'Trust - Frontsheet'!E63) ->  | C51: =IF(ISBLANK('Trust - Frontsheet'!F63),"",'Trust - Frontsheet'!F63) ->  | D51: =IF(ISBLANK('Trust - Frontsheet'!G63),"",'Trust - Frontsheet'!G63) ->  | E51: =IF(ISBLANK('Trust - Frontsheet'!H63),"",'Trust - Frontsheet'!H63) ->  | F51: ='Trust - Frontsheet'!I63 -> 0 | G51: ='Trust - Frontsheet'!J63 -> 0 | H51: ='Trust - Frontsheet'!K63 -> 0 | I51: ='Trust - Frontsheet'!L63 -> 0 | J51: ='Trust - Frontsheet'!M63 -> 0 | K51: ='Trust - Frontsheet'!N63 -> 0 | L51: ='Trust - Frontsheet'!O63 -> 0 | M51: ='Trust - Frontsheet'!P63 -> 0 | N51: =IF('Trust - Frontsheet'!Q63="",0,('Trust - Frontsheet'!Q63)) -> 0 | O51: =IF('Trust - Frontsheet'!R63="",0,('Trust - Frontsheet'!R63)) -> 0 | P51: =IF('Trust - Frontsheet'!S63="",0,('Trust - Frontsheet'!S63)) -> 0 | Q51: =IF('Trust - Frontsheet'!T63="",0,('Trust - Frontsheet'!T63)) -> 0 | R51: ='Trust - Frontsheet'!U63 -> 0 | S51: =IF('Trust - Frontsheet'!V63="",0,('Trust - Frontsheet'!V63)) -> 0 | T51: =IF('Trust - Frontsheet'!W63="",0,('Trust - Frontsheet'!W63)) -> 0 | U51: =IF('Trust - Frontsheet'!X63="",0,('Trust - Frontsheet'!X63)) -> 0 | V51: =IF(A51="","",(IF(ISBLANK('Trust - Frontsheet'!F9),"",'Trust - Frontsheet'!F9))) -> 
A52: =IF('Trust - Frontsheet'!D64=0,"",IF('Trust - Frontsheet'!D64="","",'Trust - Frontsheet'!D64)) ->  | B52: =IF(ISBLANK('Trust - Frontsheet'!E64),"",'Trust - Frontsheet'!E64) ->  | C52: =IF(ISBLANK('Trust - Frontsheet'!F64),"",'Trust - Frontsheet'!F64) ->  | D52: =IF(ISBLANK('Trust - Frontsheet'!G64),"",'Trust - Frontsheet'!G64) ->  | E52: =IF(ISBLANK('Trust - Frontsheet'!H64),"",'Trust - Frontsheet'!H64) ->  | F52: ='Trust - Frontsheet'!I64 -> 0 | G52: ='Trust - Frontsheet'!J64 -> 0 | H52: ='Trust - Frontsheet'!K64 -> 0 | I52: ='Trust - Frontsheet'!L64 -> 0 | J52: ='Trust - Frontsheet'!M64 -> 0 | K52: ='Trust - Frontsheet'!N64 -> 0 | L52: ='Trust - Frontsheet'!O64 -> 0 | M52: ='Trust - Frontsheet'!P64 -> 0 | N52: =IF('Trust - Frontsheet'!Q64="",0,('Trust - Frontsheet'!Q64)) -> 0 | O52: =IF('Trust - Frontsheet'!R64="",0,('Trust - Frontsheet'!R64)) -> 0 | P52: =IF('Trust - Frontsheet'!S64="",0,('Trust - Frontsheet'!S64)) -> 0 | Q52: =IF('Trust - Frontsheet'!T64="",0,('Trust - Frontsheet'!T64)) -> 0 | R52: ='Trust - Frontsheet'!U64 -> 0 | S52: =IF('Trust - Frontsheet'!V64="",0,('Trust - Frontsheet'!V64)) -> 0 | T52: =IF('Trust - Frontsheet'!W64="",0,('Trust - Frontsheet'!W64)) -> 0 | U52: =IF('Trust - Frontsheet'!X64="",0,('Trust - Frontsheet'!X64)) -> 0 | V52: =IF(A52="","",(IF(ISBLANK('Trust - Frontsheet'!F9),"",'Trust - Frontsheet'!F9))) -> 
A53: =IF('Trust - Frontsheet'!D65=0,"",IF('Trust - Frontsheet'!D65="","",'Trust - Frontsheet'!D65)) ->  | B53: =IF(ISBLANK('Trust - Frontsheet'!E65),"",'Trust - Frontsheet'!E65) ->  | C53: =IF(ISBLANK('Trust - Frontsheet'!F65),"",'Trust - Frontsheet'!F65) ->  | D53: =IF(ISBLANK('Trust - Frontsheet'!G65),"",'Trust - Frontsheet'!G65) ->  | E53: =IF(ISBLANK('Trust - Frontsheet'!H65),"",'Trust - Frontsheet'!H65) ->  | F53: ='Trust - Frontsheet'!I65 -> 0 | G53: ='Trust - Frontsheet'!J65 -> 0 | H53: ='Trust - Frontsheet'!K65 -> 0 | I53: ='Trust - Frontsheet'!L65 -> 0 | J53: ='Trust - Frontsheet'!M65 -> 0 | K53: ='Trust - Frontsheet'!N65 -> 0 | L53: ='Trust - Frontsheet'!O65 -> 0 | M53: ='Trust - Frontsheet'!P65 -> 0 | N53: =IF('Trust - Frontsheet'!Q65="",0,('Trust - Frontsheet'!Q65)) -> 0 | O53: =IF('Trust - Frontsheet'!R65="",0,('Trust - Frontsheet'!R65)) -> 0 | P53: =IF('Trust - Frontsheet'!S65="",0,('Trust - Frontsheet'!S65)) -> 0 | Q53: =IF('Trust - Frontsheet'!T65="",0,('Trust - Frontsheet'!T65)) -> 0 | R53: ='Trust - Frontsheet'!U65 -> 0 | S53: =IF('Trust - Frontsheet'!V65="",0,('Trust - Frontsheet'!V65)) -> 0 | T53: =IF('Trust - Frontsheet'!W65="",0,('Trust - Frontsheet'!W65)) -> 0 | U53: =IF('Trust - Frontsheet'!X65="",0,('Trust - Frontsheet'!X65)) -> 0 | V53: =IF(A53="","",(IF(ISBLANK('Trust - Frontsheet'!F9),"",'Trust - Frontsheet'!F9))) -> 
A54: =IF('Trust - Frontsheet'!D66=0,"",IF('Trust - Frontsheet'!D66="","",'Trust - Frontsheet'!D66)) ->  | B54: =IF(ISBLANK('Trust - Frontsheet'!E66),"",'Trust - Frontsheet'!E66) ->  | C54: =IF(ISBLANK('Trust - Frontsheet'!F66),"",'Trust - Frontsheet'!F66) ->  | D54: =IF(ISBLANK('Trust - Frontsheet'!G66),"",'Trust - Frontsheet'!G66) ->  | E54: =IF(ISBLANK('Trust - Frontsheet'!H66),"",'Trust - Frontsheet'!H66) ->  | F54: ='Trust - Frontsheet'!I66 -> 0 | G54: ='Trust - Frontsheet'!J66 -> 0 | H54: ='Trust - Frontsheet'!K66 -> 0 | I54: ='Trust - Frontsheet'!L66 -> 0 | J54: ='Trust - Frontsheet'!M66 -> 0 | K54: ='Trust - Frontsheet'!N66 -> 0 | L54: ='Trust - Frontsheet'!O66 -> 0 | M54: ='Trust - Frontsheet'!P66 -> 0 | N54: =IF('Trust - Frontsheet'!Q66="",0,('Trust - Frontsheet'!Q66)) -> 0 | O54: =IF('Trust - Frontsheet'!R66="",0,('Trust - Frontsheet'!R66)) -> 0 | P54: =IF('Trust - Frontsheet'!S66="",0,('Trust - Frontsheet'!S66)) -> 0 | Q54: =IF('Trust - Frontsheet'!T66="",0,('Trust - Frontsheet'!T66)) -> 0 | R54: ='Trust - Frontsheet'!U66 -> 0 | S54: =IF('Trust - Frontsheet'!V66="",0,('Trust - Frontsheet'!V66)) -> 0 | T54: =IF('Trust - Frontsheet'!W66="",0,('Trust - Frontsheet'!W66)) -> 0 | U54: =IF('Trust - Frontsheet'!X66="",0,('Trust - Frontsheet'!X66)) -> 0 | V54: =IF(A54="","",(IF(ISBLANK('Trust - Frontsheet'!F9),"",'Trust - Frontsheet'!F9))) -> 
A55: =IF('Trust - Frontsheet'!D67=0,"",IF('Trust - Frontsheet'!D67="","",'Trust - Frontsheet'!D67)) ->  | B55: =IF(ISBLANK('Trust - Frontsheet'!E67),"",'Trust - Frontsheet'!E67) ->  | C55: =IF(ISBLANK('Trust - Frontsheet'!F67),"",'Trust - Frontsheet'!F67) ->  | D55: =IF(ISBLANK('Trust - Frontsheet'!G67),"",'Trust - Frontsheet'!G67) ->  | E55: =IF(ISBLANK('Trust - Frontsheet'!H67),"",'Trust - Frontsheet'!H67) ->  | F55: ='Trust - Frontsheet'!I67 -> 0 | G55: ='Trust - Frontsheet'!J67 -> 0 | H55: ='Trust - Frontsheet'!K67 -> 0 | I55: ='Trust - Frontsheet'!L67 -> 0 | J55: ='Trust - Frontsheet'!M67 -> 0 | K55: ='Trust - Frontsheet'!N67 -> 0 | L55: ='Trust - Frontsheet'!O67 -> 0 | M55: ='Trust - Frontsheet'!P67 -> 0 | N55: =IF('Trust - Frontsheet'!Q67="",0,('Trust - Frontsheet'!Q67)) -> 0 | O55: =IF('Trust - Frontsheet'!R67="",0,('Trust - Frontsheet'!R67)) -> 0 | P55: =IF('Trust - Frontsheet'!S67="",0,('Trust - Frontsheet'!S67)) -> 0 | Q55: =IF('Trust - Frontsheet'!T67="",0,('Trust - Frontsheet'!T67)) -> 0 | R55: ='Trust - Frontsheet'!U67 -> 0 | S55: =IF('Trust - Frontsheet'!V67="",0,('Trust - Frontsheet'!V67)) -> 0 | T55: =IF('Trust - Frontsheet'!W67="",0,('Trust - Frontsheet'!W67)) -> 0 | U55: =IF('Trust - Frontsheet'!X67="",0,('Trust - Frontsheet'!X67)) -> 0 | V55: =IF(A55="","",(IF(ISBLANK('Trust - Frontsheet'!F9),"",'Trust - Frontsheet'!F9))) -> 
A56: =IF('Trust - Frontsheet'!D68=0,"",IF('Trust - Frontsheet'!D68="","",'Trust - Frontsheet'!D68)) ->  | B56: =IF(ISBLANK('Trust - Frontsheet'!E68),"",'Trust - Frontsheet'!E68) ->  | C56: =IF(ISBLANK('Trust - Frontsheet'!F68),"",'Trust - Frontsheet'!F68) ->  | D56: =IF(ISBLANK('Trust - Frontsheet'!G68),"",'Trust - Frontsheet'!G68) ->  | E56: =IF(ISBLANK('Trust - Frontsheet'!H68),"",'Trust - Frontsheet'!H68) ->  | F56: ='Trust - Frontsheet'!I68 -> 0 | G56: ='Trust - Frontsheet'!J68 -> 0 | H56: ='Trust - Frontsheet'!K68 -> 0 | I56: ='Trust - Frontsheet'!L68 -> 0 | J56: ='Trust - Frontsheet'!M68 -> 0 | K56: ='Trust - Frontsheet'!N68 -> 0 | L56: ='Trust - Frontsheet'!O68 -> 0 | M56: ='Trust - Frontsheet'!P68 -> 0 | N56: =IF('Trust - Frontsheet'!Q68="",0,('Trust - Frontsheet'!Q68)) -> 0 | O56: =IF('Trust - Frontsheet'!R68="",0,('Trust - Frontsheet'!R68)) -> 0 | P56: =IF('Trust - Frontsheet'!S68="",0,('Trust - Frontsheet'!S68)) -> 0 | Q56: =IF('Trust - Frontsheet'!T68="",0,('Trust - Frontsheet'!T68)) -> 0 | R56: ='Trust - Frontsheet'!U68 -> 0 | S56: =IF('Trust - Frontsheet'!V68="",0,('Trust - Frontsheet'!V68)) -> 0 | T56: =IF('Trust - Frontsheet'!W68="",0,('Trust - Frontsheet'!W68)) -> 0 | U56: =IF('Trust - Frontsheet'!X68="",0,('Trust - Frontsheet'!X68)) -> 0 | V56: =IF(A56="","",(IF(ISBLANK('Trust - Frontsheet'!F9),"",'Trust - Frontsheet'!F9))) -> 
A57: =IF('Trust - Frontsheet'!D69=0,"",IF('Trust - Frontsheet'!D69="","",'Trust - Frontsheet'!D69)) ->  | B57: =IF(ISBLANK('Trust - Frontsheet'!E69),"",'Trust - Frontsheet'!E69) ->  | C57: =IF(ISBLANK('Trust - Frontsheet'!F69),"",'Trust - Frontsheet'!F69) ->  | D57: =IF(ISBLANK('Trust - Frontsheet'!G69),"",'Trust - Frontsheet'!G69) ->  | E57: =IF(ISBLANK('Trust - Frontsheet'!H69),"",'Trust - Frontsheet'!H69) ->  | F57: ='Trust - Frontsheet'!I69 -> 0 | G57: ='Trust - Frontsheet'!J69 -> 0 | H57: ='Trust - Frontsheet'!K69 -> 0 | I57: ='Trust - Frontsheet'!L69 -> 0 | J57: ='Trust - Frontsheet'!M69 -> 0 | K57: ='Trust - Frontsheet'!N69 -> 0 | L57: ='Trust - Frontsheet'!O69 -> 0 | M57: ='Trust - Frontsheet'!P69 -> 0 | N57: =IF('Trust - Frontsheet'!Q69="",0,('Trust - Frontsheet'!Q69)) -> 0 | O57: =IF('Trust - Frontsheet'!R69="",0,('Trust - Frontsheet'!R69)) -> 0 | P57: =IF('Trust - Frontsheet'!S69="",0,('Trust - Frontsheet'!S69)) -> 0 | Q57: =IF('Trust - Frontsheet'!T69="",0,('Trust - Frontsheet'!T69)) -> 0 | R57: ='Trust - Frontsheet'!U69 -> 0 | S57: =IF('Trust - Frontsheet'!V69="",0,('Trust - Frontsheet'!V69)) -> 0 | T57: =IF('Trust - Frontsheet'!W69="",0,('Trust - Frontsheet'!W69)) -> 0 | U57: =IF('Trust - Frontsheet'!X69="",0,('Trust - Frontsheet'!X69)) -> 0 | V57: =IF(A57="","",(IF(ISBLANK('Trust - Frontsheet'!F9),"",'Trust - Frontsheet'!F9))) -> 
A58: =IF('Trust - Frontsheet'!D70=0,"",IF('Trust - Frontsheet'!D70="","",'Trust - Frontsheet'!D70)) ->  | B58: =IF(ISBLANK('Trust - Frontsheet'!E70),"",'Trust - Frontsheet'!E70) ->  | C58: =IF(ISBLANK('Trust - Frontsheet'!F70),"",'Trust - Frontsheet'!F70) ->  | D58: =IF(ISBLANK('Trust - Frontsheet'!G70),"",'Trust - Frontsheet'!G70) ->  | E58: =IF(ISBLANK('Trust - Frontsheet'!H70),"",'Trust - Frontsheet'!H70) ->  | F58: ='Trust - Frontsheet'!I70 -> 0 | G58: ='Trust - Frontsheet'!J70 -> 0 | H58: ='Trust - Frontsheet'!K70 -> 0 | I58: ='Trust - Frontsheet'!L70 -> 0 | J58: ='Trust - Frontsheet'!M70 -> 0 | K58: ='Trust - Frontsheet'!N70 -> 0 | L58: ='Trust - Frontsheet'!O70 -> 0 | M58: ='Trust - Frontsheet'!P70 -> 0 | N58: =IF('Trust - Frontsheet'!Q70="",0,('Trust - Frontsheet'!Q70)) -> 0 | O58: =IF('Trust - Frontsheet'!R70="",0,('Trust - Frontsheet'!R70)) -> 0 | P58: =IF('Trust - Frontsheet'!S70="",0,('Trust - Frontsheet'!S70)) -> 0 | Q58: =IF('Trust - Frontsheet'!T70="",0,('Trust - Frontsheet'!T70)) -> 0 | R58: ='Trust - Frontsheet'!U70 -> 0 | S58: =IF('Trust - Frontsheet'!V70="",0,('Trust - Frontsheet'!V70)) -> 0 | T58: =IF('Trust - Frontsheet'!W70="",0,('Trust - Frontsheet'!W70)) -> 0 | U58: =IF('Trust - Frontsheet'!X70="",0,('Trust - Frontsheet'!X70)) -> 0 | V58: =IF(A58="","",(IF(ISBLANK('Trust - Frontsheet'!F9),"",'Trust - Frontsheet'!F9))) -> 
A59: =IF('Trust - Frontsheet'!D71=0,"",IF('Trust - Frontsheet'!D71="","",'Trust - Frontsheet'!D71)) ->  | B59: =IF(ISBLANK('Trust - Frontsheet'!E71),"",'Trust - Frontsheet'!E71) ->  | C59: =IF(ISBLANK('Trust - Frontsheet'!F71),"",'Trust - Frontsheet'!F71) ->  | D59: =IF(ISBLANK('Trust - Frontsheet'!G71),"",'Trust - Frontsheet'!G71) ->  | E59: =IF(ISBLANK('Trust - Frontsheet'!H71),"",'Trust - Frontsheet'!H71) ->  | F59: ='Trust - Frontsheet'!I71 -> 0 | G59: ='Trust - Frontsheet'!J71 -> 0 | H59: ='Trust - Frontsheet'!K71 -> 0 | I59: ='Trust - Frontsheet'!L71 -> 0 | J59: ='Trust - Frontsheet'!M71 -> 0 | K59: ='Trust - Frontsheet'!N71 -> 0 | L59: ='Trust - Frontsheet'!O71 -> 0 | M59: ='Trust - Frontsheet'!P71 -> 0 | N59: =IF('Trust - Frontsheet'!Q71="",0,('Trust - Frontsheet'!Q71)) -> 0 | O59: =IF('Trust - Frontsheet'!R71="",0,('Trust - Frontsheet'!R71)) -> 0 | P59: =IF('Trust - Frontsheet'!S71="",0,('Trust - Frontsheet'!S71)) -> 0 | Q59: =IF('Trust - Frontsheet'!T71="",0,('Trust - Frontsheet'!T71)) -> 0 | R59: ='Trust - Frontsheet'!U71 -> 0 | S59: =IF('Trust - Frontsheet'!V71="",0,('Trust - Frontsheet'!V71)) -> 0 | T59: =IF('Trust - Frontsheet'!W71="",0,('Trust - Frontsheet'!W71)) -> 0 | U59: =IF('Trust - Frontsheet'!X71="",0,('Trust - Frontsheet'!X71)) -> 0 | V59: =IF(A59="","",(IF(ISBLANK('Trust - Frontsheet'!F9),"",'Trust - Frontsheet'!F9))) -> 
A60: =IF('Trust - Frontsheet'!D72=0,"",IF('Trust - Frontsheet'!D72="","",'Trust - Frontsheet'!D72)) ->  | B60: =IF(ISBLANK('Trust - Frontsheet'!E72),"",'Trust - Frontsheet'!E72) ->  | C60: =IF(ISBLANK('Trust - Frontsheet'!F72),"",'Trust - Frontsheet'!F72) ->  | D60: =IF(ISBLANK('Trust - Frontsheet'!G72),"",'Trust - Frontsheet'!G72) ->  | E60: =IF(ISBLANK('Trust - Frontsheet'!H72),"",'Trust - Frontsheet'!H72) ->  | F60: ='Trust - Frontsheet'!I72 -> 0 | G60: ='Trust - Frontsheet'!J72 -> 0 | H60: ='Trust - Frontsheet'!K72 -> 0 | I60: ='Trust - Frontsheet'!L72 -> 0 | J60: ='Trust - Frontsheet'!M72 -> 0 | K60: ='Trust - Frontsheet'!N72 -> 0 | L60: ='Trust - Frontsheet'!O72 -> 0 | M60: ='Trust - Frontsheet'!P72 -> 0 | N60: =IF('Trust - Frontsheet'!Q72="",0,('Trust - Frontsheet'!Q72)) -> 0 | O60: =IF('Trust - Frontsheet'!R72="",0,('Trust - Frontsheet'!R72)) -> 0 | P60: =IF('Trust - Frontsheet'!S72="",0,('Trust - Frontsheet'!S72)) -> 0 | Q60: =IF('Trust - Frontsheet'!T72="",0,('Trust - Frontsheet'!T72)) -> 0 | R60: ='Trust - Frontsheet'!U72 -> 0 | S60: =IF('Trust - Frontsheet'!V72="",0,('Trust - Frontsheet'!V72)) -> 0 | T60: =IF('Trust - Frontsheet'!W72="",0,('Trust - Frontsheet'!W72)) -> 0 | U60: =IF('Trust - Frontsheet'!X72="",0,('Trust - Frontsheet'!X72)) -> 0 | V60: =IF(A60="","",(IF(ISBLANK('Trust - Frontsheet'!F9),"",'Trust - Frontsheet'!F9))) -> 
A61: =IF('Trust - Frontsheet'!D73=0,"",IF('Trust - Frontsheet'!D73="","",'Trust - Frontsheet'!D73)) ->  | B61: =IF(ISBLANK('Trust - Frontsheet'!E73),"",'Trust - Frontsheet'!E73) ->  | C61: =IF(ISBLANK('Trust - Frontsheet'!F73),"",'Trust - Frontsheet'!F73) ->  | D61: =IF(ISBLANK('Trust - Frontsheet'!G73),"",'Trust - Frontsheet'!G73) ->  | E61: =IF(ISBLANK('Trust - Frontsheet'!H73),"",'Trust - Frontsheet'!H73) ->  | F61: ='Trust - Frontsheet'!I73 -> 0 | G61: ='Trust - Frontsheet'!J73 -> 0 | H61: ='Trust - Frontsheet'!K73 -> 0 | I61: ='Trust - Frontsheet'!L73 -> 0 | J61: ='Trust - Frontsheet'!M73 -> 0 | K61: ='Trust - Frontsheet'!N73 -> 0 | L61: ='Trust - Frontsheet'!O73 -> 0 | M61: ='Trust - Frontsheet'!P73 -> 0 | N61: =IF('Trust - Frontsheet'!Q73="",0,('Trust - Frontsheet'!Q73)) -> 0 | O61: =IF('Trust - Frontsheet'!R73="",0,('Trust - Frontsheet'!R73)) -> 0 | P61: =IF('Trust - Frontsheet'!S73="",0,('Trust - Frontsheet'!S73)) -> 0 | Q61: =IF('Trust - Frontsheet'!T73="",0,('Trust - Frontsheet'!T73)) -> 0 | R61: ='Trust - Frontsheet'!U73 -> 0 | S61: =IF('Trust - Frontsheet'!V73="",0,('Trust - Frontsheet'!V73)) -> 0 | T61: =IF('Trust - Frontsheet'!W73="",0,('Trust - Frontsheet'!W73)) -> 0 | U61: =IF('Trust - Frontsheet'!X73="",0,('Trust - Frontsheet'!X73)) -> 0 | V61: =IF(A61="","",(IF(ISBLANK('Trust - Frontsheet'!F9),"",'Trust - Frontsheet'!F9))) -> 
A62: =IF('Trust - Frontsheet'!D74=0,"",IF('Trust - Frontsheet'!D74="","",'Trust - Frontsheet'!D74)) ->  | B62: =IF(ISBLANK('Trust - Frontsheet'!E74),"",'Trust - Frontsheet'!E74) ->  | C62: =IF(ISBLANK('Trust - Frontsheet'!F74),"",'Trust - Frontsheet'!F74) ->  | D62: =IF(ISBLANK('Trust - Frontsheet'!G74),"",'Trust - Frontsheet'!G74) ->  | E62: =IF(ISBLANK('Trust - Frontsheet'!H74),"",'Trust - Frontsheet'!H74) ->  | F62: ='Trust - Frontsheet'!I74 -> 0 | G62: ='Trust - Frontsheet'!J74 -> 0 | H62: ='Trust - Frontsheet'!K74 -> 0 | I62: ='Trust - Frontsheet'!L74 -> 0 | J62: ='Trust - Frontsheet'!M74 -> 0 | K62: ='Trust - Frontsheet'!N74 -> 0 | L62: ='Trust - Frontsheet'!O74 -> 0 | M62: ='Trust - Frontsheet'!P74 -> 0 | N62: =IF('Trust - Frontsheet'!Q74="",0,('Trust - Frontsheet'!Q74)) -> 0 | O62: =IF('Trust - Frontsheet'!R74="",0,('Trust - Frontsheet'!R74)) -> 0 | P62: =IF('Trust - Frontsheet'!S74="",0,('Trust - Frontsheet'!S74)) -> 0 | Q62: =IF('Trust - Frontsheet'!T74="",0,('Trust - Frontsheet'!T74)) -> 0 | R62: ='Trust - Frontsheet'!U74 -> 0 | S62: =IF('Trust - Frontsheet'!V74="",0,('Trust - Frontsheet'!V74)) -> 0 | T62: =IF('Trust - Frontsheet'!W74="",0,('Trust - Frontsheet'!W74)) -> 0 | U62: =IF('Trust - Frontsheet'!X74="",0,('Trust - Frontsheet'!X74)) -> 0 | V62: =IF(A62="","",(IF(ISBLANK('Trust - Frontsheet'!F9),"",'Trust - Frontsheet'!F9))) -> 
A63: =IF('Trust - Frontsheet'!D75=0,"",IF('Trust - Frontsheet'!D75="","",'Trust - Frontsheet'!D75)) ->  | B63: =IF(ISBLANK('Trust - Frontsheet'!E75),"",'Trust - Frontsheet'!E75) ->  | C63: =IF(ISBLANK('Trust - Frontsheet'!F75),"",'Trust - Frontsheet'!F75) ->  | D63: =IF(ISBLANK('Trust - Frontsheet'!G75),"",'Trust - Frontsheet'!G75) ->  | E63: =IF(ISBLANK('Trust - Frontsheet'!H75),"",'Trust - Frontsheet'!H75) ->  | F63: ='Trust - Frontsheet'!I75 -> 0 | G63: ='Trust - Frontsheet'!J75 -> 0 | H63: ='Trust - Frontsheet'!K75 -> 0 | I63: ='Trust - Frontsheet'!L75 -> 0 | J63: ='Trust - Frontsheet'!M75 -> 0 | K63: ='Trust - Frontsheet'!N75 -> 0 | L63: ='Trust - Frontsheet'!O75 -> 0 | M63: ='Trust - Frontsheet'!P75 -> 0 | N63: =IF('Trust - Frontsheet'!Q75="",0,('Trust - Frontsheet'!Q75)) -> 0 | O63: =IF('Trust - Frontsheet'!R75="",0,('Trust - Frontsheet'!R75)) -> 0 | P63: =IF('Trust - Frontsheet'!S75="",0,('Trust - Frontsheet'!S75)) -> 0 | Q63: =IF('Trust - Frontsheet'!T75="",0,('Trust - Frontsheet'!T75)) -> 0 | R63: ='Trust - Frontsheet'!U75 -> 0 | S63: =IF('Trust - Frontsheet'!V75="",0,('Trust - Frontsheet'!V75)) -> 0 | T63: =IF('Trust - Frontsheet'!W75="",0,('Trust - Frontsheet'!W75)) -> 0 | U63: =IF('Trust - Frontsheet'!X75="",0,('Trust - Frontsheet'!X75)) -> 0 | V63: =IF(A63="","",(IF(ISBLANK('Trust - Frontsheet'!F9),"",'Trust - Frontsheet'!F9))) -> 
A64: =IF('Trust - Frontsheet'!D76=0,"",IF('Trust - Frontsheet'!D76="","",'Trust - Frontsheet'!D76)) ->  | B64: =IF(ISBLANK('Trust - Frontsheet'!E76),"",'Trust - Frontsheet'!E76) ->  | C64: =IF(ISBLANK('Trust - Frontsheet'!F76),"",'Trust - Frontsheet'!F76) ->  | D64: =IF(ISBLANK('Trust - Frontsheet'!G76),"",'Trust - Frontsheet'!G76) ->  | E64: =IF(ISBLANK('Trust - Frontsheet'!H76),"",'Trust - Frontsheet'!H76) ->  | F64: ='Trust - Frontsheet'!I76 -> 0 | G64: ='Trust - Frontsheet'!J76 -> 0 | H64: ='Trust - Frontsheet'!K76 -> 0 | I64: ='Trust - Frontsheet'!L76 -> 0 | J64: ='Trust - Frontsheet'!M76 -> 0 | K64: ='Trust - Frontsheet'!N76 -> 0 | L64: ='Trust - Frontsheet'!O76 -> 0 | M64: ='Trust - Frontsheet'!P76 -> 0 | N64: =IF('Trust - Frontsheet'!Q76="",0,('Trust - Frontsheet'!Q76)) -> 0 | O64: =IF('Trust - Frontsheet'!R76="",0,('Trust - Frontsheet'!R76)) -> 0 | P64: =IF('Trust - Frontsheet'!S76="",0,('Trust - Frontsheet'!S76)) -> 0 | Q64: =IF('Trust - Frontsheet'!T76="",0,('Trust - Frontsheet'!T76)) -> 0 | R64: ='Trust - Frontsheet'!U76 -> 0 | S64: =IF('Trust - Frontsheet'!V76="",0,('Trust - Frontsheet'!V76)) -> 0 | T64: =IF('Trust - Frontsheet'!W76="",0,('Trust - Frontsheet'!W76)) -> 0 | U64: =IF('Trust - Frontsheet'!X76="",0,('Trust - Frontsheet'!X76)) -> 0 | V64: =IF(A64="","",(IF(ISBLANK('Trust - Frontsheet'!F9),"",'Trust - Frontsheet'!F9))) -> 
A65: =IF('Trust - Frontsheet'!D77=0,"",IF('Trust - Frontsheet'!D77="","",'Trust - Frontsheet'!D77)) ->  | B65: =IF(ISBLANK('Trust - Frontsheet'!E77),"",'Trust - Frontsheet'!E77) ->  | C65: =IF(ISBLANK('Trust - Frontsheet'!F77),"",'Trust - Frontsheet'!F77) ->  | D65: =IF(ISBLANK('Trust - Frontsheet'!G77),"",'Trust - Frontsheet'!G77) ->  | E65: =IF(ISBLANK('Trust - Frontsheet'!H77),"",'Trust - Frontsheet'!H77) ->  | F65: ='Trust - Frontsheet'!I77 -> 0 | G65: ='Trust - Frontsheet'!J77 -> 0 | H65: ='Trust - Frontsheet'!K77 -> 0 | I65: ='Trust - Frontsheet'!L77 -> 0 | J65: ='Trust - Frontsheet'!M77 -> 0 | K65: ='Trust - Frontsheet'!N77 -> 0 | L65: ='Trust - Frontsheet'!O77 -> 0 | M65: ='Trust - Frontsheet'!P77 -> 0 | N65: =IF('Trust - Frontsheet'!Q77="",0,('Trust - Frontsheet'!Q77)) -> 0 | O65: =IF('Trust - Frontsheet'!R77="",0,('Trust - Frontsheet'!R77)) -> 0 | P65: =IF('Trust - Frontsheet'!S77="",0,('Trust - Frontsheet'!S77)) -> 0 | Q65: =IF('Trust - Frontsheet'!T77="",0,('Trust - Frontsheet'!T77)) -> 0 | R65: ='Trust - Frontsheet'!U77 -> 0 | S65: =IF('Trust - Frontsheet'!V77="",0,('Trust - Frontsheet'!V77)) -> 0 | T65: =IF('Trust - Frontsheet'!W77="",0,('Trust - Frontsheet'!W77)) -> 0 | U65: =IF('Trust - Frontsheet'!X77="",0,('Trust - Frontsheet'!X77)) -> 0 | V65: =IF(A65="","",(IF(ISBLANK('Trust - Frontsheet'!F9),"",'Trust - Frontsheet'!F9))) -> 
A66: =IF('Trust - Frontsheet'!D78=0,"",IF('Trust - Frontsheet'!D78="","",'Trust - Frontsheet'!D78)) ->  | B66: =IF(ISBLANK('Trust - Frontsheet'!E78),"",'Trust - Frontsheet'!E78) ->  | C66: =IF(ISBLANK('Trust - Frontsheet'!F78),"",'Trust - Frontsheet'!F78) ->  | D66: =IF(ISBLANK('Trust - Frontsheet'!G78),"",'Trust - Frontsheet'!G78) ->  | E66: =IF(ISBLANK('Trust - Frontsheet'!H78),"",'Trust - Frontsheet'!H78) ->  | F66: ='Trust - Frontsheet'!I78 -> 0 | G66: ='Trust - Frontsheet'!J78 -> 0 | H66: ='Trust - Frontsheet'!K78 -> 0 | I66: ='Trust - Frontsheet'!L78 -> 0 | J66: ='Trust - Frontsheet'!M78 -> 0 | K66: ='Trust - Frontsheet'!N78 -> 0 | L66: ='Trust - Frontsheet'!O78 -> 0 | M66: ='Trust - Frontsheet'!P78 -> 0 | N66: =IF('Trust - Frontsheet'!Q78="",0,('Trust - Frontsheet'!Q78)) -> 0 | O66: =IF('Trust - Frontsheet'!R78="",0,('Trust - Frontsheet'!R78)) -> 0 | P66: =IF('Trust - Frontsheet'!S78="",0,('Trust - Frontsheet'!S78)) -> 0 | Q66: =IF('Trust - Frontsheet'!T78="",0,('Trust - Frontsheet'!T78)) -> 0 | R66: ='Trust - Frontsheet'!U78 -> 0 | S66: =IF('Trust - Frontsheet'!V78="",0,('Trust - Frontsheet'!V78)) -> 0 | T66: =IF('Trust - Frontsheet'!W78="",0,('Trust - Frontsheet'!W78)) -> 0 | U66: =IF('Trust - Frontsheet'!X78="",0,('Trust - Frontsheet'!X78)) -> 0 | V66: =IF(A66="","",(IF(ISBLANK('Trust - Frontsheet'!F9),"",'Trust - Frontsheet'!F9))) -> 
A67: =IF('Trust - Frontsheet'!D79=0,"",IF('Trust - Frontsheet'!D79="","",'Trust - Frontsheet'!D79)) ->  | B67: =IF(ISBLANK('Trust - Frontsheet'!E79),"",'Trust - Frontsheet'!E79) ->  | C67: =IF(ISBLANK('Trust - Frontsheet'!F79),"",'Trust - Frontsheet'!F79) ->  | D67: =IF(ISBLANK('Trust - Frontsheet'!G79),"",'Trust - Frontsheet'!G79) ->  | E67: =IF(ISBLANK('Trust - Frontsheet'!H79),"",'Trust - Frontsheet'!H79) ->  | F67: ='Trust - Frontsheet'!I79 -> 0 | G67: ='Trust - Frontsheet'!J79 -> 0 | H67: ='Trust - Frontsheet'!K79 -> 0 | I67: ='Trust - Frontsheet'!L79 -> 0 | J67: ='Trust - Frontsheet'!M79 -> 0 | K67: ='Trust - Frontsheet'!N79 -> 0 | L67: ='Trust - Frontsheet'!O79 -> 0 | M67: ='Trust - Frontsheet'!P79 -> 0 | N67: =IF('Trust - Frontsheet'!Q79="",0,('Trust - Frontsheet'!Q79)) -> 0 | O67: =IF('Trust - Frontsheet'!R79="",0,('Trust - Frontsheet'!R79)) -> 0 | P67: =IF('Trust - Frontsheet'!S79="",0,('Trust - Frontsheet'!S79)) -> 0 | Q67: =IF('Trust - Frontsheet'!T79="",0,('Trust - Frontsheet'!T79)) -> 0 | R67: ='Trust - Frontsheet'!U79 -> 0 | S67: =IF('Trust - Frontsheet'!V79="",0,('Trust - Frontsheet'!V79)) -> 0 | T67: =IF('Trust - Frontsheet'!W79="",0,('Trust - Frontsheet'!W79)) -> 0 | U67: =IF('Trust - Frontsheet'!X79="",0,('Trust - Frontsheet'!X79)) -> 0 | V67: =IF(A67="","",(IF(ISBLANK('Trust - Frontsheet'!F9),"",'Trust - Frontsheet'!F9))) -> 
A68: =IF('Trust - Frontsheet'!D80=0,"",IF('Trust - Frontsheet'!D80="","",'Trust - Frontsheet'!D80)) ->  | B68: =IF(ISBLANK('Trust - Frontsheet'!E80),"",'Trust - Frontsheet'!E80) ->  | C68: =IF(ISBLANK('Trust - Frontsheet'!F80),"",'Trust - Frontsheet'!F80) ->  | D68: =IF(ISBLANK('Trust - Frontsheet'!G80),"",'Trust - Frontsheet'!G80) ->  | E68: =IF(ISBLANK('Trust - Frontsheet'!H80),"",'Trust - Frontsheet'!H80) ->  | F68: ='Trust - Frontsheet'!I80 -> 0 | G68: ='Trust - Frontsheet'!J80 -> 0 | H68: ='Trust - Frontsheet'!K80 -> 0 | I68: ='Trust - Frontsheet'!L80 -> 0 | J68: ='Trust - Frontsheet'!M80 -> 0 | K68: ='Trust - Frontsheet'!N80 -> 0 | L68: ='Trust - Frontsheet'!O80 -> 0 | M68: ='Trust - Frontsheet'!P80 -> 0 | N68: =IF('Trust - Frontsheet'!Q80="",0,('Trust - Frontsheet'!Q80)) -> 0 | O68: =IF('Trust - Frontsheet'!R80="",0,('Trust - Frontsheet'!R80)) -> 0 | P68: =IF('Trust - Frontsheet'!S80="",0,('Trust - Frontsheet'!S80)) -> 0 | Q68: =IF('Trust - Frontsheet'!T80="",0,('Trust - Frontsheet'!T80)) -> 0 | R68: ='Trust - Frontsheet'!U80 -> 0 | S68: =IF('Trust - Frontsheet'!V80="",0,('Trust - Frontsheet'!V80)) -> 0 | T68: =IF('Trust - Frontsheet'!W80="",0,('Trust - Frontsheet'!W80)) -> 0 | U68: =IF('Trust - Frontsheet'!X80="",0,('Trust - Frontsheet'!X80)) -> 0 | V68: =IF(A68="","",(IF(ISBLANK('Trust - Frontsheet'!F9),"",'Trust - Frontsheet'!F9))) -> 
A69: =IF('Trust - Frontsheet'!D81=0,"",IF('Trust - Frontsheet'!D81="","",'Trust - Frontsheet'!D81)) ->  | B69: =IF(ISBLANK('Trust - Frontsheet'!E81),"",'Trust - Frontsheet'!E81) ->  | C69: =IF(ISBLANK('Trust - Frontsheet'!F81),"",'Trust - Frontsheet'!F81) ->  | D69: =IF(ISBLANK('Trust - Frontsheet'!G81),"",'Trust - Frontsheet'!G81) ->  | E69: =IF(ISBLANK('Trust - Frontsheet'!H81),"",'Trust - Frontsheet'!H81) ->  | F69: ='Trust - Frontsheet'!I81 -> 0 | G69: ='Trust - Frontsheet'!J81 -> 0 | H69: ='Trust - Frontsheet'!K81 -> 0 | I69: ='Trust - Frontsheet'!L81 -> 0 | J69: ='Trust - Frontsheet'!M81 -> 0 | K69: ='Trust - Frontsheet'!N81 -> 0 | L69: ='Trust - Frontsheet'!O81 -> 0 | M69: ='Trust - Frontsheet'!P81 -> 0 | N69: =IF('Trust - Frontsheet'!Q81="",0,('Trust - Frontsheet'!Q81)) -> 0 | O69: =IF('Trust - Frontsheet'!R81="",0,('Trust - Frontsheet'!R81)) -> 0 | P69: =IF('Trust - Frontsheet'!S81="",0,('Trust - Frontsheet'!S81)) -> 0 | Q69: =IF('Trust - Frontsheet'!T81="",0,('Trust - Frontsheet'!T81)) -> 0 | R69: ='Trust - Frontsheet'!U81 -> 0 | S69: =IF('Trust - Frontsheet'!V81="",0,('Trust - Frontsheet'!V81)) -> 0 | T69: =IF('Trust - Frontsheet'!W81="",0,('Trust - Frontsheet'!W81)) -> 0 | U69: =IF('Trust - Frontsheet'!X81="",0,('Trust - Frontsheet'!X81)) -> 0 | V69: =IF(A69="","",(IF(ISBLANK('Trust - Frontsheet'!F9),"",'Trust - Frontsheet'!F9))) -> 
A70: =IF('Trust - Frontsheet'!D82=0,"",IF('Trust - Frontsheet'!D82="","",'Trust - Frontsheet'!D82)) ->  | B70: =IF(ISBLANK('Trust - Frontsheet'!E82),"",'Trust - Frontsheet'!E82) ->  | C70: =IF(ISBLANK('Trust - Frontsheet'!F82),"",'Trust - Frontsheet'!F82) ->  | D70: =IF(ISBLANK('Trust - Frontsheet'!G82),"",'Trust - Frontsheet'!G82) ->  | E70: =IF(ISBLANK('Trust - Frontsheet'!H82),"",'Trust - Frontsheet'!H82) ->  | F70: ='Trust - Frontsheet'!I82 -> 0 | G70: ='Trust - Frontsheet'!J82 -> 0 | H70: ='Trust - Frontsheet'!K82 -> 0 | I70: ='Trust - Frontsheet'!L82 -> 0 | J70: ='Trust - Frontsheet'!M82 -> 0 | K70: ='Trust - Frontsheet'!N82 -> 0 | L70: ='Trust - Frontsheet'!O82 -> 0 | M70: ='Trust - Frontsheet'!P82 -> 0 | N70: =IF('Trust - Frontsheet'!Q82="",0,('Trust - Frontsheet'!Q82)) -> 0 | O70: =IF('Trust - Frontsheet'!R82="",0,('Trust - Frontsheet'!R82)) -> 0 | P70: =IF('Trust - Frontsheet'!S82="",0,('Trust - Frontsheet'!S82)) -> 0 | Q70: =IF('Trust - Frontsheet'!T82="",0,('Trust - Frontsheet'!T82)) -> 0 | R70: ='Trust - Frontsheet'!U82 -> 0 | S70: =IF('Trust - Frontsheet'!V82="",0,('Trust - Frontsheet'!V82)) -> 0 | T70: =IF('Trust - Frontsheet'!W82="",0,('Trust - Frontsheet'!W82)) -> 0 | U70: =IF('Trust - Frontsheet'!X82="",0,('Trust - Frontsheet'!X82)) -> 0 | V70: =IF(A70="","",(IF(ISBLANK('Trust - Frontsheet'!F9),"",'Trust - Frontsheet'!F9))) -> 
A71: =IF('Trust - Frontsheet'!D83=0,"",IF('Trust - Frontsheet'!D83="","",'Trust - Frontsheet'!D83)) ->  | B71: =IF(ISBLANK('Trust - Frontsheet'!E83),"",'Trust - Frontsheet'!E83) ->  | C71: =IF(ISBLANK('Trust - Frontsheet'!F83),"",'Trust - Frontsheet'!F83) ->  | D71: =IF(ISBLANK('Trust - Frontsheet'!G83),"",'Trust - Frontsheet'!G83) ->  | E71: =IF(ISBLANK('Trust - Frontsheet'!H83),"",'Trust - Frontsheet'!H83) ->  | F71: ='Trust - Frontsheet'!I83 -> 0 | G71: ='Trust - Frontsheet'!J83 -> 0 | H71: ='Trust - Frontsheet'!K83 -> 0 | I71: ='Trust - Frontsheet'!L83 -> 0 | J71: ='Trust - Frontsheet'!M83 -> 0 | K71: ='Trust - Frontsheet'!N83 -> 0 | L71: ='Trust - Frontsheet'!O83 -> 0 | M71: ='Trust - Frontsheet'!P83 -> 0 | N71: =IF('Trust - Frontsheet'!Q83="",0,('Trust - Frontsheet'!Q83)) -> 0 | O71: =IF('Trust - Frontsheet'!R83="",0,('Trust - Frontsheet'!R83)) -> 0 | P71: =IF('Trust - Frontsheet'!S83="",0,('Trust - Frontsheet'!S83)) -> 0 | Q71: =IF('Trust - Frontsheet'!T83="",0,('Trust - Frontsheet'!T83)) -> 0 | R71: ='Trust - Frontsheet'!U83 -> 0 | S71: =IF('Trust - Frontsheet'!V83="",0,('Trust - Frontsheet'!V83)) -> 0 | T71: =IF('Trust - Frontsheet'!W83="",0,('Trust - Frontsheet'!W83)) -> 0 | U71: =IF('Trust - Frontsheet'!X83="",0,('Trust - Frontsheet'!X83)) -> 0 | V71: =IF(A71="","",(IF(ISBLANK('Trust - Frontsheet'!F9),"",'Trust - Frontsheet'!F9))) -> 
A72: =IF('Trust - Frontsheet'!D84=0,"",IF('Trust - Frontsheet'!D84="","",'Trust - Frontsheet'!D84)) ->  | B72: =IF(ISBLANK('Trust - Frontsheet'!E84),"",'Trust - Frontsheet'!E84) ->  | C72: =IF(ISBLANK('Trust - Frontsheet'!F84),"",'Trust - Frontsheet'!F84) ->  | D72: =IF(ISBLANK('Trust - Frontsheet'!G84),"",'Trust - Frontsheet'!G84) ->  | E72: =IF(ISBLANK('Trust - Frontsheet'!H84),"",'Trust - Frontsheet'!H84) ->  | F72: ='Trust - Frontsheet'!I84 -> 0 | G72: ='Trust - Frontsheet'!J84 -> 0 | H72: ='Trust - Frontsheet'!K84 -> 0 | I72: ='Trust - Frontsheet'!L84 -> 0 | J72: ='Trust - Frontsheet'!M84 -> 0 | K72: ='Trust - Frontsheet'!N84 -> 0 | L72: ='Trust - Frontsheet'!O84 -> 0 | M72: ='Trust - Frontsheet'!P84 -> 0 | N72: =IF('Trust - Frontsheet'!Q84="",0,('Trust - Frontsheet'!Q84)) -> 0 | O72: =IF('Trust - Frontsheet'!R84="",0,('Trust - Frontsheet'!R84)) -> 0 | P72: =IF('Trust - Frontsheet'!S84="",0,('Trust - Frontsheet'!S84)) -> 0 | Q72: =IF('Trust - Frontsheet'!T84="",0,('Trust - Frontsheet'!T84)) -> 0 | R72: ='Trust - Frontsheet'!U84 -> 0 | S72: =IF('Trust - Frontsheet'!V84="",0,('Trust - Frontsheet'!V84)) -> 0 | T72: =IF('Trust - Frontsheet'!W84="",0,('Trust - Frontsheet'!W84)) -> 0 | U72: =IF('Trust - Frontsheet'!X84="",0,('Trust - Frontsheet'!X84)) -> 0 | V72: =IF(A72="","",(IF(ISBLANK('Trust - Frontsheet'!F9),"",'Trust - Frontsheet'!F9))) -> 
A73: =IF('Trust - Frontsheet'!D85=0,"",IF('Trust - Frontsheet'!D85="","",'Trust - Frontsheet'!D85)) ->  | B73: =IF(ISBLANK('Trust - Frontsheet'!E85),"",'Trust - Frontsheet'!E85) ->  | C73: =IF(ISBLANK('Trust - Frontsheet'!F85),"",'Trust - Frontsheet'!F85) ->  | D73: =IF(ISBLANK('Trust - Frontsheet'!G85),"",'Trust - Frontsheet'!G85) ->  | E73: =IF(ISBLANK('Trust - Frontsheet'!H85),"",'Trust - Frontsheet'!H85) ->  | F73: ='Trust - Frontsheet'!I85 -> 0 | G73: ='Trust - Frontsheet'!J85 -> 0 | H73: ='Trust - Frontsheet'!K85 -> 0 | I73: ='Trust - Frontsheet'!L85 -> 0 | J73: ='Trust - Frontsheet'!M85 -> 0 | K73: ='Trust - Frontsheet'!N85 -> 0 | L73: ='Trust - Frontsheet'!O85 -> 0 | M73: ='Trust - Frontsheet'!P85 -> 0 | N73: =IF('Trust - Frontsheet'!Q85="",0,('Trust - Frontsheet'!Q85)) -> 0 | O73: =IF('Trust - Frontsheet'!R85="",0,('Trust - Frontsheet'!R85)) -> 0 | P73: =IF('Trust - Frontsheet'!S85="",0,('Trust - Frontsheet'!S85)) -> 0 | Q73: =IF('Trust - Frontsheet'!T85="",0,('Trust - Frontsheet'!T85)) -> 0 | R73: ='Trust - Frontsheet'!U85 -> 0 | S73: =IF('Trust - Frontsheet'!V85="",0,('Trust - Frontsheet'!V85)) -> 0 | T73: =IF('Trust - Frontsheet'!W85="",0,('Trust - Frontsheet'!W85)) -> 0 | U73: =IF('Trust - Frontsheet'!X85="",0,('Trust - Frontsheet'!X85)) -> 0 | V73: =IF(A73="","",(IF(ISBLANK('Trust - Frontsheet'!F9),"",'Trust - Frontsheet'!F9))) -> 
A74: =IF('Trust - Frontsheet'!D86=0,"",IF('Trust - Frontsheet'!D86="","",'Trust - Frontsheet'!D86)) ->  | B74: =IF(ISBLANK('Trust - Frontsheet'!E86),"",'Trust - Frontsheet'!E86) ->  | C74: =IF(ISBLANK('Trust - Frontsheet'!F86),"",'Trust - Frontsheet'!F86) ->  | D74: =IF(ISBLANK('Trust - Frontsheet'!G86),"",'Trust - Frontsheet'!G86) ->  | E74: =IF(ISBLANK('Trust - Frontsheet'!H86),"",'Trust - Frontsheet'!H86) ->  | F74: ='Trust - Frontsheet'!I86 -> 0 | G74: ='Trust - Frontsheet'!J86 -> 0 | H74: ='Trust - Frontsheet'!K86 -> 0 | I74: ='Trust - Frontsheet'!L86 -> 0 | J74: ='Trust - Frontsheet'!M86 -> 0 | K74: ='Trust - Frontsheet'!N86 -> 0 | L74: ='Trust - Frontsheet'!O86 -> 0 | M74: ='Trust - Frontsheet'!P86 -> 0 | N74: =IF('Trust - Frontsheet'!Q86="",0,('Trust - Frontsheet'!Q86)) -> 0 | O74: =IF('Trust - Frontsheet'!R86="",0,('Trust - Frontsheet'!R86)) -> 0 | P74: =IF('Trust - Frontsheet'!S86="",0,('Trust - Frontsheet'!S86)) -> 0 | Q74: =IF('Trust - Frontsheet'!T86="",0,('Trust - Frontsheet'!T86)) -> 0 | R74: ='Trust - Frontsheet'!U86 -> 0 | S74: =IF('Trust - Frontsheet'!V86="",0,('Trust - Frontsheet'!V86)) -> 0 | T74: =IF('Trust - Frontsheet'!W86="",0,('Trust - Frontsheet'!W86)) -> 0 | U74: =IF('Trust - Frontsheet'!X86="",0,('Trust - Frontsheet'!X86)) -> 0 | V74: =IF(A74="","",(IF(ISBLANK('Trust - Frontsheet'!F9),"",'Trust - Frontsheet'!F9))) -> 
A75: =IF('Trust - Frontsheet'!D87=0,"",IF('Trust - Frontsheet'!D87="","",'Trust - Frontsheet'!D87)) ->  | B75: =IF(ISBLANK('Trust - Frontsheet'!E87),"",'Trust - Frontsheet'!E87) ->  | C75: =IF(ISBLANK('Trust - Frontsheet'!F87),"",'Trust - Frontsheet'!F87) ->  | D75: =IF(ISBLANK('Trust - Frontsheet'!G87),"",'Trust - Frontsheet'!G87) ->  | E75: =IF(ISBLANK('Trust - Frontsheet'!H87),"",'Trust - Frontsheet'!H87) ->  | F75: ='Trust - Frontsheet'!I87 -> 0 | G75: ='Trust - Frontsheet'!J87 -> 0 | H75: ='Trust - Frontsheet'!K87 -> 0 | I75: ='Trust - Frontsheet'!L87 -> 0 | J75: ='Trust - Frontsheet'!M87 -> 0 | K75: ='Trust - Frontsheet'!N87 -> 0 | L75: ='Trust - Frontsheet'!O87 -> 0 | M75: ='Trust - Frontsheet'!P87 -> 0 | N75: =IF('Trust - Frontsheet'!Q87="",0,('Trust - Frontsheet'!Q87)) -> 0 | O75: =IF('Trust - Frontsheet'!R87="",0,('Trust - Frontsheet'!R87)) -> 0 | P75: =IF('Trust - Frontsheet'!S87="",0,('Trust - Frontsheet'!S87)) -> 0 | Q75: =IF('Trust - Frontsheet'!T87="",0,('Trust - Frontsheet'!T87)) -> 0 | R75: ='Trust - Frontsheet'!U87 -> 0 | S75: =IF('Trust - Frontsheet'!V87="",0,('Trust - Frontsheet'!V87)) -> 0 | T75: =IF('Trust - Frontsheet'!W87="",0,('Trust - Frontsheet'!W87)) -> 0 | U75: =IF('Trust - Frontsheet'!X87="",0,('Trust - Frontsheet'!X87)) -> 0 | V75: =IF(A75="","",(IF(ISBLANK('Trust - Frontsheet'!F9),"",'Trust - Frontsheet'!F9))) -> 
A76: =IF('Trust - Frontsheet'!D88=0,"",IF('Trust - Frontsheet'!D88="","",'Trust - Frontsheet'!D88)) ->  | B76: =IF(ISBLANK('Trust - Frontsheet'!E88),"",'Trust - Frontsheet'!E88) ->  | C76: =IF(ISBLANK('Trust - Frontsheet'!F88),"",'Trust - Frontsheet'!F88) ->  | D76: =IF(ISBLANK('Trust - Frontsheet'!G88),"",'Trust - Frontsheet'!G88) ->  | E76: =IF(ISBLANK('Trust - Frontsheet'!H88),"",'Trust - Frontsheet'!H88) ->  | F76: ='Trust - Frontsheet'!I88 -> 0 | G76: ='Trust - Frontsheet'!J88 -> 0 | H76: ='Trust - Frontsheet'!K88 -> 0 | I76: ='Trust - Frontsheet'!L88 -> 0 | J76: ='Trust - Frontsheet'!M88 -> 0 | K76: ='Trust - Frontsheet'!N88 -> 0 | L76: ='Trust - Frontsheet'!O88 -> 0 | M76: ='Trust - Frontsheet'!P88 -> 0 | N76: =IF('Trust - Frontsheet'!Q88="",0,('Trust - Frontsheet'!Q88)) -> 0 | O76: =IF('Trust - Frontsheet'!R88="",0,('Trust - Frontsheet'!R88)) -> 0 | P76: =IF('Trust - Frontsheet'!S88="",0,('Trust - Frontsheet'!S88)) -> 0 | Q76: =IF('Trust - Frontsheet'!T88="",0,('Trust - Frontsheet'!T88)) -> 0 | R76: ='Trust - Frontsheet'!U88 -> 0 | S76: =IF('Trust - Frontsheet'!V88="",0,('Trust - Frontsheet'!V88)) -> 0 | T76: =IF('Trust - Frontsheet'!W88="",0,('Trust - Frontsheet'!W88)) -> 0 | U76: =IF('Trust - Frontsheet'!X88="",0,('Trust - Frontsheet'!X88)) -> 0 | V76: =IF(A76="","",(IF(ISBLANK('Trust - Frontsheet'!F9),"",'Trust - Frontsheet'!F9))) -> 
A77: =IF('Trust - Frontsheet'!D89=0,"",IF('Trust - Frontsheet'!D89="","",'Trust - Frontsheet'!D89)) ->  | B77: =IF(ISBLANK('Trust - Frontsheet'!E89),"",'Trust - Frontsheet'!E89) ->  | C77: =IF(ISBLANK('Trust - Frontsheet'!F89),"",'Trust - Frontsheet'!F89) ->  | D77: =IF(ISBLANK('Trust - Frontsheet'!G89),"",'Trust - Frontsheet'!G89) ->  | E77: =IF(ISBLANK('Trust - Frontsheet'!H89),"",'Trust - Frontsheet'!H89) ->  | F77: ='Trust - Frontsheet'!I89 -> 0 | G77: ='Trust - Frontsheet'!J89 -> 0 | H77: ='Trust - Frontsheet'!K89 -> 0 | I77: ='Trust - Frontsheet'!L89 -> 0 | J77: ='Trust - Frontsheet'!M89 -> 0 | K77: ='Trust - Frontsheet'!N89 -> 0 | L77: ='Trust - Frontsheet'!O89 -> 0 | M77: ='Trust - Frontsheet'!P89 -> 0 | N77: =IF('Trust - Frontsheet'!Q89="",0,('Trust - Frontsheet'!Q89)) -> 0 | O77: =IF('Trust - Frontsheet'!R89="",0,('Trust - Frontsheet'!R89)) -> 0 | P77: =IF('Trust - Frontsheet'!S89="",0,('Trust - Frontsheet'!S89)) -> 0 | Q77: =IF('Trust - Frontsheet'!T89="",0,('Trust - Frontsheet'!T89)) -> 0 | R77: ='Trust - Frontsheet'!U89 -> 0 | S77: =IF('Trust - Frontsheet'!V89="",0,('Trust - Frontsheet'!V89)) -> 0 | T77: =IF('Trust - Frontsheet'!W89="",0,('Trust - Frontsheet'!W89)) -> 0 | U77: =IF('Trust - Frontsheet'!X89="",0,('Trust - Frontsheet'!X89)) -> 0 | V77: =IF(A77="","",(IF(ISBLANK('Trust - Frontsheet'!F9),"",'Trust - Frontsheet'!F9))) -> 
A78: =IF('Trust - Frontsheet'!D90=0,"",IF('Trust - Frontsheet'!D90="","",'Trust - Frontsheet'!D90)) ->  | B78: =IF(ISBLANK('Trust - Frontsheet'!E90),"",'Trust - Frontsheet'!E90) ->  | C78: =IF(ISBLANK('Trust - Frontsheet'!F90),"",'Trust - Frontsheet'!F90) ->  | D78: =IF(ISBLANK('Trust - Frontsheet'!G90),"",'Trust - Frontsheet'!G90) ->  | E78: =IF(ISBLANK('Trust - Frontsheet'!H90),"",'Trust - Frontsheet'!H90) ->  | F78: ='Trust - Frontsheet'!I90 -> 0 | G78: ='Trust - Frontsheet'!J90 -> 0 | H78: ='Trust - Frontsheet'!K90 -> 0 | I78: ='Trust - Frontsheet'!L90 -> 0 | J78: ='Trust - Frontsheet'!M90 -> 0 | K78: ='Trust - Frontsheet'!N90 -> 0 | L78: ='Trust - Frontsheet'!O90 -> 0 | M78: ='Trust - Frontsheet'!P90 -> 0 | N78: =IF('Trust - Frontsheet'!Q90="",0,('Trust - Frontsheet'!Q90)) -> 0 | O78: =IF('Trust - Frontsheet'!R90="",0,('Trust - Frontsheet'!R90)) -> 0 | P78: =IF('Trust - Frontsheet'!S90="",0,('Trust - Frontsheet'!S90)) -> 0 | Q78: =IF('Trust - Frontsheet'!T90="",0,('Trust - Frontsheet'!T90)) -> 0 | R78: ='Trust - Frontsheet'!U90 -> 0 | S78: =IF('Trust - Frontsheet'!V90="",0,('Trust - Frontsheet'!V90)) -> 0 | T78: =IF('Trust - Frontsheet'!W90="",0,('Trust - Frontsheet'!W90)) -> 0 | U78: =IF('Trust - Frontsheet'!X90="",0,('Trust - Frontsheet'!X90)) -> 0 | V78: =IF(A78="","",(IF(ISBLANK('Trust - Frontsheet'!F9),"",'Trust - Frontsheet'!F9))) -> 
A79: =IF('Trust - Frontsheet'!D91=0,"",IF('Trust - Frontsheet'!D91="","",'Trust - Frontsheet'!D91)) ->  | B79: =IF(ISBLANK('Trust - Frontsheet'!E91),"",'Trust - Frontsheet'!E91) ->  | C79: =IF(ISBLANK('Trust - Frontsheet'!F91),"",'Trust - Frontsheet'!F91) ->  | D79: =IF(ISBLANK('Trust - Frontsheet'!G91),"",'Trust - Frontsheet'!G91) ->  | E79: =IF(ISBLANK('Trust - Frontsheet'!H91),"",'Trust - Frontsheet'!H91) ->  | F79: ='Trust - Frontsheet'!I91 -> 0 | G79: ='Trust - Frontsheet'!J91 -> 0 | H79: ='Trust - Frontsheet'!K91 -> 0 | I79: ='Trust - Frontsheet'!L91 -> 0 | J79: ='Trust - Frontsheet'!M91 -> 0 | K79: ='Trust - Frontsheet'!N91 -> 0 | L79: ='Trust - Frontsheet'!O91 -> 0 | M79: ='Trust - Frontsheet'!P91 -> 0 | N79: =IF('Trust - Frontsheet'!Q91="",0,('Trust - Frontsheet'!Q91)) -> 0 | O79: =IF('Trust - Frontsheet'!R91="",0,('Trust - Frontsheet'!R91)) -> 0 | P79: =IF('Trust - Frontsheet'!S91="",0,('Trust - Frontsheet'!S91)) -> 0 | Q79: =IF('Trust - Frontsheet'!T91="",0,('Trust - Frontsheet'!T91)) -> 0 | R79: ='Trust - Frontsheet'!U91 -> 0 | S79: =IF('Trust - Frontsheet'!V91="",0,('Trust - Frontsheet'!V91)) -> 0 | T79: =IF('Trust - Frontsheet'!W91="",0,('Trust - Frontsheet'!W91)) -> 0 | U79: =IF('Trust - Frontsheet'!X91="",0,('Trust - Frontsheet'!X91)) -> 0 | V79: =IF(A79="","",(IF(ISBLANK('Trust - Frontsheet'!F9),"",'Trust - Frontsheet'!F9))) -> 
A80: =IF('Trust - Frontsheet'!D92=0,"",IF('Trust - Frontsheet'!D92="","",'Trust - Frontsheet'!D92)) ->  | B80: =IF(ISBLANK('Trust - Frontsheet'!E92),"",'Trust - Frontsheet'!E92) ->  | C80: =IF(ISBLANK('Trust - Frontsheet'!F92),"",'Trust - Frontsheet'!F92) ->  | D80: =IF(ISBLANK('Trust - Frontsheet'!G92),"",'Trust - Frontsheet'!G92) ->  | E80: =IF(ISBLANK('Trust - Frontsheet'!H92),"",'Trust - Frontsheet'!H92) ->  | F80: ='Trust - Frontsheet'!I92 -> 0 | G80: ='Trust - Frontsheet'!J92 -> 0 | H80: ='Trust - Frontsheet'!K92 -> 0 | I80: ='Trust - Frontsheet'!L92 -> 0 | J80: ='Trust - Frontsheet'!M92 -> 0 | K80: ='Trust - Frontsheet'!N92 -> 0 | L80: ='Trust - Frontsheet'!O92 -> 0 | M80: ='Trust - Frontsheet'!P92 -> 0 | N80: =IF('Trust - Frontsheet'!Q92="",0,('Trust - Frontsheet'!Q92)) -> 0 | O80: =IF('Trust - Frontsheet'!R92="",0,('Trust - Frontsheet'!R92)) -> 0 | P80: =IF('Trust - Frontsheet'!S92="",0,('Trust - Frontsheet'!S92)) -> 0 | Q80: =IF('Trust - Frontsheet'!T92="",0,('Trust - Frontsheet'!T92)) -> 0 | R80: ='Trust - Frontsheet'!U92 -> 0 | S80: =IF('Trust - Frontsheet'!V92="",0,('Trust - Frontsheet'!V92)) -> 0 | T80: =IF('Trust - Frontsheet'!W92="",0,('Trust - Frontsheet'!W92)) -> 0 | U80: =IF('Trust - Frontsheet'!X92="",0,('Trust - Frontsheet'!X92)) -> 0 | V80: =IF(A80="","",(IF(ISBLANK('Trust - Frontsheet'!F9),"",'Trust - Frontsheet'!F9))) -> 
A81: =IF('Trust - Frontsheet'!D93=0,"",IF('Trust - Frontsheet'!D93="","",'Trust - Frontsheet'!D93)) ->  | B81: =IF(ISBLANK('Trust - Frontsheet'!E93),"",'Trust - Frontsheet'!E93) ->  | C81: =IF(ISBLANK('Trust - Frontsheet'!F93),"",'Trust - Frontsheet'!F93) ->  | D81: =IF(ISBLANK('Trust - Frontsheet'!G93),"",'Trust - Frontsheet'!G93) ->  | E81: =IF(ISBLANK('Trust - Frontsheet'!H93),"",'Trust - Frontsheet'!H93) ->  | F81: ='Trust - Frontsheet'!I93 -> 0 | G81: ='Trust - Frontsheet'!J93 -> 0 | H81: ='Trust - Frontsheet'!K93 -> 0 | I81: ='Trust - Frontsheet'!L93 -> 0 | J81: ='Trust - Frontsheet'!M93 -> 0 | K81: ='Trust - Frontsheet'!N93 -> 0 | L81: ='Trust - Frontsheet'!O93 -> 0 | M81: ='Trust - Frontsheet'!P93 -> 0 | N81: =IF('Trust - Frontsheet'!Q93="",0,('Trust - Frontsheet'!Q93)) -> 0 | O81: =IF('Trust - Frontsheet'!R93="",0,('Trust - Frontsheet'!R93)) -> 0 | P81: =IF('Trust - Frontsheet'!S93="",0,('Trust - Frontsheet'!S93)) -> 0 | Q81: =IF('Trust - Frontsheet'!T93="",0,('Trust - Frontsheet'!T93)) -> 0 | R81: ='Trust - Frontsheet'!U93 -> 0 | S81: =IF('Trust - Frontsheet'!V93="",0,('Trust - Frontsheet'!V93)) -> 0 | T81: =IF('Trust - Frontsheet'!W93="",0,('Trust - Frontsheet'!W93)) -> 0 | U81: =IF('Trust - Frontsheet'!X93="",0,('Trust - Frontsheet'!X93)) -> 0 | V81: =IF(A81="","",(IF(ISBLANK('Trust - Frontsheet'!F9),"",'Trust - Frontsheet'!F9))) -> 
A82: =IF('Trust - Frontsheet'!D94=0,"",IF('Trust - Frontsheet'!D94="","",'Trust - Frontsheet'!D94)) ->  | B82: =IF(ISBLANK('Trust - Frontsheet'!E94),"",'Trust - Frontsheet'!E94) ->  | C82: =IF(ISBLANK('Trust - Frontsheet'!F94),"",'Trust - Frontsheet'!F94) ->  | D82: =IF(ISBLANK('Trust - Frontsheet'!G94),"",'Trust - Frontsheet'!G94) ->  | E82: =IF(ISBLANK('Trust - Frontsheet'!H94),"",'Trust - Frontsheet'!H94) ->  | F82: ='Trust - Frontsheet'!I94 -> 0 | G82: ='Trust - Frontsheet'!J94 -> 0 | H82: ='Trust - Frontsheet'!K94 -> 0 | I82: ='Trust - Frontsheet'!L94 -> 0 | J82: ='Trust - Frontsheet'!M94 -> 0 | K82: ='Trust - Frontsheet'!N94 -> 0 | L82: ='Trust - Frontsheet'!O94 -> 0 | M82: ='Trust - Frontsheet'!P94 -> 0 | N82: =IF('Trust - Frontsheet'!Q94="",0,('Trust - Frontsheet'!Q94)) -> 0 | O82: =IF('Trust - Frontsheet'!R94="",0,('Trust - Frontsheet'!R94)) -> 0 | P82: =IF('Trust - Frontsheet'!S94="",0,('Trust - Frontsheet'!S94)) -> 0 | Q82: =IF('Trust - Frontsheet'!T94="",0,('Trust - Frontsheet'!T94)) -> 0 | R82: ='Trust - Frontsheet'!U94 -> 0 | S82: =IF('Trust - Frontsheet'!V94="",0,('Trust - Frontsheet'!V94)) -> 0 | T82: =IF('Trust - Frontsheet'!W94="",0,('Trust - Frontsheet'!W94)) -> 0 | U82: =IF('Trust - Frontsheet'!X94="",0,('Trust - Frontsheet'!X94)) -> 0 | V82: =IF(A82="","",(IF(ISBLANK('Trust - Frontsheet'!F9),"",'Trust - Frontsheet'!F9))) -> 
A83: =IF('Trust - Frontsheet'!D95=0,"",IF('Trust - Frontsheet'!D95="","",'Trust - Frontsheet'!D95)) ->  | B83: =IF(ISBLANK('Trust - Frontsheet'!E95),"",'Trust - Frontsheet'!E95) ->  | C83: =IF(ISBLANK('Trust - Frontsheet'!F95),"",'Trust - Frontsheet'!F95) ->  | D83: =IF(ISBLANK('Trust - Frontsheet'!G95),"",'Trust - Frontsheet'!G95) ->  | E83: =IF(ISBLANK('Trust - Frontsheet'!H95),"",'Trust - Frontsheet'!H95) ->  | F83: ='Trust - Frontsheet'!I95 -> 0 | G83: ='Trust - Frontsheet'!J95 -> 0 | H83: ='Trust - Frontsheet'!K95 -> 0 | I83: ='Trust - Frontsheet'!L95 -> 0 | J83: ='Trust - Frontsheet'!M95 -> 0 | K83: ='Trust - Frontsheet'!N95 -> 0 | L83: ='Trust - Frontsheet'!O95 -> 0 | M83: ='Trust - Frontsheet'!P95 -> 0 | N83: =IF('Trust - Frontsheet'!Q95="",0,('Trust - Frontsheet'!Q95)) -> 0 | O83: =IF('Trust - Frontsheet'!R95="",0,('Trust - Frontsheet'!R95)) -> 0 | P83: =IF('Trust - Frontsheet'!S95="",0,('Trust - Frontsheet'!S95)) -> 0 | Q83: =IF('Trust - Frontsheet'!T95="",0,('Trust - Frontsheet'!T95)) -> 0 | R83: ='Trust - Frontsheet'!U95 -> 0 | S83: =IF('Trust - Frontsheet'!V95="",0,('Trust - Frontsheet'!V95)) -> 0 | T83: =IF('Trust - Frontsheet'!W95="",0,('Trust - Frontsheet'!W95)) -> 0 | U83: =IF('Trust - Frontsheet'!X95="",0,('Trust - Frontsheet'!X95)) -> 0 | V83: =IF(A83="","",(IF(ISBLANK('Trust - Frontsheet'!F9),"",'Trust - Frontsheet'!F9))) -> 
A84: =IF('Trust - Frontsheet'!D96=0,"",IF('Trust - Frontsheet'!D96="","",'Trust - Frontsheet'!D96)) ->  | B84: =IF(ISBLANK('Trust - Frontsheet'!E96),"",'Trust - Frontsheet'!E96) ->  | C84: =IF(ISBLANK('Trust - Frontsheet'!F96),"",'Trust - Frontsheet'!F96) ->  | D84: =IF(ISBLANK('Trust - Frontsheet'!G96),"",'Trust - Frontsheet'!G96) ->  | E84: =IF(ISBLANK('Trust - Frontsheet'!H96),"",'Trust - Frontsheet'!H96) ->  | F84: ='Trust - Frontsheet'!I96 -> 0 | G84: ='Trust - Frontsheet'!J96 -> 0 | H84: ='Trust - Frontsheet'!K96 -> 0 | I84: ='Trust - Frontsheet'!L96 -> 0 | J84: ='Trust - Frontsheet'!M96 -> 0 | K84: ='Trust - Frontsheet'!N96 -> 0 | L84: ='Trust - Frontsheet'!O96 -> 0 | M84: ='Trust - Frontsheet'!P96 -> 0 | N84: =IF('Trust - Frontsheet'!Q96="",0,('Trust - Frontsheet'!Q96)) -> 0 | O84: =IF('Trust - Frontsheet'!R96="",0,('Trust - Frontsheet'!R96)) -> 0 | P84: =IF('Trust - Frontsheet'!S96="",0,('Trust - Frontsheet'!S96)) -> 0 | Q84: =IF('Trust - Frontsheet'!T96="",0,('Trust - Frontsheet'!T96)) -> 0 | R84: ='Trust - Frontsheet'!U96 -> 0 | S84: =IF('Trust - Frontsheet'!V96="",0,('Trust - Frontsheet'!V96)) -> 0 | T84: =IF('Trust - Frontsheet'!W96="",0,('Trust - Frontsheet'!W96)) -> 0 | U84: =IF('Trust - Frontsheet'!X96="",0,('Trust - Frontsheet'!X96)) -> 0 | V84: =IF(A84="","",(IF(ISBLANK('Trust - Frontsheet'!F9),"",'Trust - Frontsheet'!F9))) -> 
A85: =IF('Trust - Frontsheet'!D97=0,"",IF('Trust - Frontsheet'!D97="","",'Trust - Frontsheet'!D97)) ->  | B85: =IF(ISBLANK('Trust - Frontsheet'!E97),"",'Trust - Frontsheet'!E97) ->  | C85: =IF(ISBLANK('Trust - Frontsheet'!F97),"",'Trust - Frontsheet'!F97) ->  | D85: =IF(ISBLANK('Trust - Frontsheet'!G97),"",'Trust - Frontsheet'!G97) ->  | E85: =IF(ISBLANK('Trust - Frontsheet'!H97),"",'Trust - Frontsheet'!H97) ->  | F85: ='Trust - Frontsheet'!I97 -> 0 | G85: ='Trust - Frontsheet'!J97 -> 0 | H85: ='Trust - Frontsheet'!K97 -> 0 | I85: ='Trust - Frontsheet'!L97 -> 0 | J85: ='Trust - Frontsheet'!M97 -> 0 | K85: ='Trust - Frontsheet'!N97 -> 0 | L85: ='Trust - Frontsheet'!O97 -> 0 | M85: ='Trust - Frontsheet'!P97 -> 0 | N85: =IF('Trust - Frontsheet'!Q97="",0,('Trust - Frontsheet'!Q97)) -> 0 | O85: =IF('Trust - Frontsheet'!R97="",0,('Trust - Frontsheet'!R97)) -> 0 | P85: =IF('Trust - Frontsheet'!S97="",0,('Trust - Frontsheet'!S97)) -> 0 | Q85: =IF('Trust - Frontsheet'!T97="",0,('Trust - Frontsheet'!T97)) -> 0 | R85: ='Trust - Frontsheet'!U97 -> 0 | S85: =IF('Trust - Frontsheet'!V97="",0,('Trust - Frontsheet'!V97)) -> 0 | T85: =IF('Trust - Frontsheet'!W97="",0,('Trust - Frontsheet'!W97)) -> 0 | U85: =IF('Trust - Frontsheet'!X97="",0,('Trust - Frontsheet'!X97)) -> 0 | V85: =IF(A85="","",(IF(ISBLANK('Trust - Frontsheet'!F9),"",'Trust - Frontsheet'!F9))) -> 
A86: =IF('Trust - Frontsheet'!D98=0,"",IF('Trust - Frontsheet'!D98="","",'Trust - Frontsheet'!D98)) ->  | B86: =IF(ISBLANK('Trust - Frontsheet'!E98),"",'Trust - Frontsheet'!E98) ->  | C86: =IF(ISBLANK('Trust - Frontsheet'!F98),"",'Trust - Frontsheet'!F98) ->  | D86: =IF(ISBLANK('Trust - Frontsheet'!G98),"",'Trust - Frontsheet'!G98) ->  | E86: =IF(ISBLANK('Trust - Frontsheet'!H98),"",'Trust - Frontsheet'!H98) ->  | F86: ='Trust - Frontsheet'!I98 -> 0 | G86: ='Trust - Frontsheet'!J98 -> 0 | H86: ='Trust - Frontsheet'!K98 -> 0 | I86: ='Trust - Frontsheet'!L98 -> 0 | J86: ='Trust - Frontsheet'!M98 -> 0 | K86: ='Trust - Frontsheet'!N98 -> 0 | L86: ='Trust - Frontsheet'!O98 -> 0 | M86: ='Trust - Frontsheet'!P98 -> 0 | N86: =IF('Trust - Frontsheet'!Q98="",0,('Trust - Frontsheet'!Q98)) -> 0 | O86: =IF('Trust - Frontsheet'!R98="",0,('Trust - Frontsheet'!R98)) -> 0 | P86: =IF('Trust - Frontsheet'!S98="",0,('Trust - Frontsheet'!S98)) -> 0 | Q86: =IF('Trust - Frontsheet'!T98="",0,('Trust - Frontsheet'!T98)) -> 0 | R86: ='Trust - Frontsheet'!U98 -> 0 | S86: =IF('Trust - Frontsheet'!V98="",0,('Trust - Frontsheet'!V98)) -> 0 | T86: =IF('Trust - Frontsheet'!W98="",0,('Trust - Frontsheet'!W98)) -> 0 | U86: =IF('Trust - Frontsheet'!X98="",0,('Trust - Frontsheet'!X98)) -> 0 | V86: =IF(A86="","",(IF(ISBLANK('Trust - Frontsheet'!F9),"",'Trust - Frontsheet'!F9))) -> 
A87: =IF('Trust - Frontsheet'!D99=0,"",IF('Trust - Frontsheet'!D99="","",'Trust - Frontsheet'!D99)) ->  | B87: =IF(ISBLANK('Trust - Frontsheet'!E99),"",'Trust - Frontsheet'!E99) ->  | C87: =IF(ISBLANK('Trust - Frontsheet'!F99),"",'Trust - Frontsheet'!F99) ->  | D87: =IF(ISBLANK('Trust - Frontsheet'!G99),"",'Trust - Frontsheet'!G99) ->  | E87: =IF(ISBLANK('Trust - Frontsheet'!H99),"",'Trust - Frontsheet'!H99) ->  | F87: ='Trust - Frontsheet'!I99 -> 0 | G87: ='Trust - Frontsheet'!J99 -> 0 | H87: ='Trust - Frontsheet'!K99 -> 0 | I87: ='Trust - Frontsheet'!L99 -> 0 | J87: ='Trust - Frontsheet'!M99 -> 0 | K87: ='Trust - Frontsheet'!N99 -> 0 | L87: ='Trust - Frontsheet'!O99 -> 0 | M87: ='Trust - Frontsheet'!P99 -> 0 | N87: =IF('Trust - Frontsheet'!Q99="",0,('Trust - Frontsheet'!Q99)) -> 0 | O87: =IF('Trust - Frontsheet'!R99="",0,('Trust - Frontsheet'!R99)) -> 0 | P87: =IF('Trust - Frontsheet'!S99="",0,('Trust - Frontsheet'!S99)) -> 0 | Q87: =IF('Trust - Frontsheet'!T99="",0,('Trust - Frontsheet'!T99)) -> 0 | R87: ='Trust - Frontsheet'!U99 -> 0 | S87: =IF('Trust - Frontsheet'!V99="",0,('Trust - Frontsheet'!V99)) -> 0 | T87: =IF('Trust - Frontsheet'!W99="",0,('Trust - Frontsheet'!W99)) -> 0 | U87: =IF('Trust - Frontsheet'!X99="",0,('Trust - Frontsheet'!X99)) -> 0 | V87: =IF(A87="","",(IF(ISBLANK('Trust - Frontsheet'!F9),"",'Trust - Frontsheet'!F9))) -> 
A88: =IF('Trust - Frontsheet'!D100=0,"",IF('Trust - Frontsheet'!D100="","",'Trust - Frontsheet'!D100)) ->  | B88: =IF(ISBLANK('Trust - Frontsheet'!E100),"",'Trust - Frontsheet'!E100) ->  | C88: =IF(ISBLANK('Trust - Frontsheet'!F100),"",'Trust - Frontsheet'!F100) ->  | D88: =IF(ISBLANK('Trust - Frontsheet'!G100),"",'Trust - Frontsheet'!G100) ->  | E88: =IF(ISBLANK('Trust - Frontsheet'!H100),"",'Trust - Frontsheet'!H100) ->  | F88: ='Trust - Frontsheet'!I100 -> 0 | G88: ='Trust - Frontsheet'!J100 -> 0 | H88: ='Trust - Frontsheet'!K100 -> 0 | I88: ='Trust - Frontsheet'!L100 -> 0 | J88: ='Trust - Frontsheet'!M100 -> 0 | K88: ='Trust - Frontsheet'!N100 -> 0 | L88: ='Trust - Frontsheet'!O100 -> 0 | M88: ='Trust - Frontsheet'!P100 -> 0 | N88: =IF('Trust - Frontsheet'!Q100="",0,('Trust - Frontsheet'!Q100)) -> 0 | O88: =IF('Trust - Frontsheet'!R100="",0,('Trust - Frontsheet'!R100)) -> 0 | P88: =IF('Trust - Frontsheet'!S100="",0,('Trust - Frontsheet'!S100)) -> 0 | Q88: =IF('Trust - Frontsheet'!T100="",0,('Trust - Frontsheet'!T100)) -> 0 | R88: ='Trust - Frontsheet'!U100 -> 0 | S88: =IF('Trust - Frontsheet'!V100="",0,('Trust - Frontsheet'!V100)) -> 0 | T88: =IF('Trust - Frontsheet'!W100="",0,('Trust - Frontsheet'!W100)) -> 0 | U88: =IF('Trust - Frontsheet'!X100="",0,('Trust - Frontsheet'!X100)) -> 0 | V88: =IF(A88="","",(IF(ISBLANK('Trust - Frontsheet'!F9),"",'Trust - Frontsheet'!F9))) -> 
A89: =IF('Trust - Frontsheet'!D101=0,"",IF('Trust - Frontsheet'!D101="","",'Trust - Frontsheet'!D101)) ->  | B89: =IF(ISBLANK('Trust - Frontsheet'!E101),"",'Trust - Frontsheet'!E101) ->  | C89: =IF(ISBLANK('Trust - Frontsheet'!F101),"",'Trust - Frontsheet'!F101) ->  | D89: =IF(ISBLANK('Trust - Frontsheet'!G101),"",'Trust - Frontsheet'!G101) ->  | E89: =IF(ISBLANK('Trust - Frontsheet'!H101),"",'Trust - Frontsheet'!H101) ->  | F89: ='Trust - Frontsheet'!I101 -> 0 | G89: ='Trust - Frontsheet'!J101 -> 0 | H89: ='Trust - Frontsheet'!K101 -> 0 | I89: ='Trust - Frontsheet'!L101 -> 0 | J89: ='Trust - Frontsheet'!M101 -> 0 | K89: ='Trust - Frontsheet'!N101 -> 0 | L89: ='Trust - Frontsheet'!O101 -> 0 | M89: ='Trust - Frontsheet'!P101 -> 0 | N89: =IF('Trust - Frontsheet'!Q101="",0,('Trust - Frontsheet'!Q101)) -> 0 | O89: =IF('Trust - Frontsheet'!R101="",0,('Trust - Frontsheet'!R101)) -> 0 | P89: =IF('Trust - Frontsheet'!S101="",0,('Trust - Frontsheet'!S101)) -> 0 | Q89: =IF('Trust - Frontsheet'!T101="",0,('Trust - Frontsheet'!T101)) -> 0 | R89: ='Trust - Frontsheet'!U101 -> 0 | S89: =IF('Trust - Frontsheet'!V101="",0,('Trust - Frontsheet'!V101)) -> 0 | T89: =IF('Trust - Frontsheet'!W101="",0,('Trust - Frontsheet'!W101)) -> 0 | U89: =IF('Trust - Frontsheet'!X101="",0,('Trust - Frontsheet'!X101)) -> 0 | V89: =IF(A89="","",(IF(ISBLANK('Trust - Frontsheet'!F9),"",'Trust - Frontsheet'!F9))) -> 
A90: =IF('Trust - Frontsheet'!D102=0,"",IF('Trust - Frontsheet'!D102="","",'Trust - Frontsheet'!D102)) ->  | B90: =IF(ISBLANK('Trust - Frontsheet'!E102),"",'Trust - Frontsheet'!E102) ->  | C90: =IF(ISBLANK('Trust - Frontsheet'!F102),"",'Trust - Frontsheet'!F102) ->  | D90: =IF(ISBLANK('Trust - Frontsheet'!G102),"",'Trust - Frontsheet'!G102) ->  | E90: =IF(ISBLANK('Trust - Frontsheet'!H102),"",'Trust - Frontsheet'!H102) ->  | F90: ='Trust - Frontsheet'!I102 -> 0 | G90: ='Trust - Frontsheet'!J102 -> 0 | H90: ='Trust - Frontsheet'!K102 -> 0 | I90: ='Trust - Frontsheet'!L102 -> 0 | J90: ='Trust - Frontsheet'!M102 -> 0 | K90: ='Trust - Frontsheet'!N102 -> 0 | L90: ='Trust - Frontsheet'!O102 -> 0 | M90: ='Trust - Frontsheet'!P102 -> 0 | N90: =IF('Trust - Frontsheet'!Q102="",0,('Trust - Frontsheet'!Q102)) -> 0 | O90: =IF('Trust - Frontsheet'!R102="",0,('Trust - Frontsheet'!R102)) -> 0 | P90: =IF('Trust - Frontsheet'!S102="",0,('Trust - Frontsheet'!S102)) -> 0 | Q90: =IF('Trust - Frontsheet'!T102="",0,('Trust - Frontsheet'!T102)) -> 0 | R90: ='Trust - Frontsheet'!U102 -> 0 | S90: =IF('Trust - Frontsheet'!V102="",0,('Trust - Frontsheet'!V102)) -> 0 | T90: =IF('Trust - Frontsheet'!W102="",0,('Trust - Frontsheet'!W102)) -> 0 | U90: =IF('Trust - Frontsheet'!X102="",0,('Trust - Frontsheet'!X102)) -> 0 | V90: =IF(A90="","",(IF(ISBLANK('Trust - Frontsheet'!F9),"",'Trust - Frontsheet'!F9))) -> 
A91: =IF('Trust - Frontsheet'!D103=0,"",IF('Trust - Frontsheet'!D103="","",'Trust - Frontsheet'!D103)) ->  | B91: =IF(ISBLANK('Trust - Frontsheet'!E103),"",'Trust - Frontsheet'!E103) ->  | C91: =IF(ISBLANK('Trust - Frontsheet'!F103),"",'Trust - Frontsheet'!F103) ->  | D91: =IF(ISBLANK('Trust - Frontsheet'!G103),"",'Trust - Frontsheet'!G103) ->  | E91: =IF(ISBLANK('Trust - Frontsheet'!H103),"",'Trust - Frontsheet'!H103) ->  | F91: ='Trust - Frontsheet'!I103 -> 0 | G91: ='Trust - Frontsheet'!J103 -> 0 | H91: ='Trust - Frontsheet'!K103 -> 0 | I91: ='Trust - Frontsheet'!L103 -> 0 | J91: ='Trust - Frontsheet'!M103 -> 0 | K91: ='Trust - Frontsheet'!N103 -> 0 | L91: ='Trust - Frontsheet'!O103 -> 0 | M91: ='Trust - Frontsheet'!P103 -> 0 | N91: =IF('Trust - Frontsheet'!Q103="",0,('Trust - Frontsheet'!Q103)) -> 0 | O91: =IF('Trust - Frontsheet'!R103="",0,('Trust - Frontsheet'!R103)) -> 0 | P91: =IF('Trust - Frontsheet'!S103="",0,('Trust - Frontsheet'!S103)) -> 0 | Q91: =IF('Trust - Frontsheet'!T103="",0,('Trust - Frontsheet'!T103)) -> 0 | R91: ='Trust - Frontsheet'!U103 -> 0 | S91: =IF('Trust - Frontsheet'!V103="",0,('Trust - Frontsheet'!V103)) -> 0 | T91: =IF('Trust - Frontsheet'!W103="",0,('Trust - Frontsheet'!W103)) -> 0 | U91: =IF('Trust - Frontsheet'!X103="",0,('Trust - Frontsheet'!X103)) -> 0 | V91: =IF(A91="","",(IF(ISBLANK('Trust - Frontsheet'!F9),"",'Trust - Frontsheet'!F9))) -> 
A92: =IF('Trust - Frontsheet'!D104=0,"",IF('Trust - Frontsheet'!D104="","",'Trust - Frontsheet'!D104)) ->  | B92: =IF(ISBLANK('Trust - Frontsheet'!E104),"",'Trust - Frontsheet'!E104) ->  | C92: =IF(ISBLANK('Trust - Frontsheet'!F104),"",'Trust - Frontsheet'!F104) ->  | D92: =IF(ISBLANK('Trust - Frontsheet'!G104),"",'Trust - Frontsheet'!G104) ->  | E92: =IF(ISBLANK('Trust - Frontsheet'!H104),"",'Trust - Frontsheet'!H104) ->  | F92: ='Trust - Frontsheet'!I104 -> 0 | G92: ='Trust - Frontsheet'!J104 -> 0 | H92: ='Trust - Frontsheet'!K104 -> 0 | I92: ='Trust - Frontsheet'!L104 -> 0 | J92: ='Trust - Frontsheet'!M104 -> 0 | K92: ='Trust - Frontsheet'!N104 -> 0 | L92: ='Trust - Frontsheet'!O104 -> 0 | M92: ='Trust - Frontsheet'!P104 -> 0 | N92: =IF('Trust - Frontsheet'!Q104="",0,('Trust - Frontsheet'!Q104)) -> 0 | O92: =IF('Trust - Frontsheet'!R104="",0,('Trust - Frontsheet'!R104)) -> 0 | P92: =IF('Trust - Frontsheet'!S104="",0,('Trust - Frontsheet'!S104)) -> 0 | Q92: =IF('Trust - Frontsheet'!T104="",0,('Trust - Frontsheet'!T104)) -> 0 | R92: ='Trust - Frontsheet'!U104 -> 0 | S92: =IF('Trust - Frontsheet'!V104="",0,('Trust - Frontsheet'!V104)) -> 0 | T92: =IF('Trust - Frontsheet'!W104="",0,('Trust - Frontsheet'!W104)) -> 0 | U92: =IF('Trust - Frontsheet'!X104="",0,('Trust - Frontsheet'!X104)) -> 0 | V92: =IF(A92="","",(IF(ISBLANK('Trust - Frontsheet'!F9),"",'Trust - Frontsheet'!F9))) -> 
A93: =IF('Trust - Frontsheet'!D105=0,"",IF('Trust - Frontsheet'!D105="","",'Trust - Frontsheet'!D105)) ->  | B93: =IF(ISBLANK('Trust - Frontsheet'!E105),"",'Trust - Frontsheet'!E105) ->  | C93: =IF(ISBLANK('Trust - Frontsheet'!F105),"",'Trust - Frontsheet'!F105) ->  | D93: =IF(ISBLANK('Trust - Frontsheet'!G105),"",'Trust - Frontsheet'!G105) ->  | E93: =IF(ISBLANK('Trust - Frontsheet'!H105),"",'Trust - Frontsheet'!H105) ->  | F93: ='Trust - Frontsheet'!I105 -> 0 | G93: ='Trust - Frontsheet'!J105 -> 0 | H93: ='Trust - Frontsheet'!K105 -> 0 | I93: ='Trust - Frontsheet'!L105 -> 0 | J93: ='Trust - Frontsheet'!M105 -> 0 | K93: ='Trust - Frontsheet'!N105 -> 0 | L93: ='Trust - Frontsheet'!O105 -> 0 | M93: ='Trust - Frontsheet'!P105 -> 0 | N93: =IF('Trust - Frontsheet'!Q105="",0,('Trust - Frontsheet'!Q105)) -> 0 | O93: =IF('Trust - Frontsheet'!R105="",0,('Trust - Frontsheet'!R105)) -> 0 | P93: =IF('Trust - Frontsheet'!S105="",0,('Trust - Frontsheet'!S105)) -> 0 | Q93: =IF('Trust - Frontsheet'!T105="",0,('Trust - Frontsheet'!T105)) -> 0 | R93: ='Trust - Frontsheet'!U105 -> 0 | S93: =IF('Trust - Frontsheet'!V105="",0,('Trust - Frontsheet'!V105)) -> 0 | T93: =IF('Trust - Frontsheet'!W105="",0,('Trust - Frontsheet'!W105)) -> 0 | U93: =IF('Trust - Frontsheet'!X105="",0,('Trust - Frontsheet'!X105)) -> 0 | V93: =IF(A93="","",(IF(ISBLANK('Trust - Frontsheet'!F9),"",'Trust - Frontsheet'!F9))) -> 
A94: =IF('Trust - Frontsheet'!D106=0,"",IF('Trust - Frontsheet'!D106="","",'Trust - Frontsheet'!D106)) ->  | B94: =IF(ISBLANK('Trust - Frontsheet'!E106),"",'Trust - Frontsheet'!E106) ->  | C94: =IF(ISBLANK('Trust - Frontsheet'!F106),"",'Trust - Frontsheet'!F106) ->  | D94: =IF(ISBLANK('Trust - Frontsheet'!G106),"",'Trust - Frontsheet'!G106) ->  | E94: =IF(ISBLANK('Trust - Frontsheet'!H106),"",'Trust - Frontsheet'!H106) ->  | F94: ='Trust - Frontsheet'!I106 -> 0 | G94: ='Trust - Frontsheet'!J106 -> 0 | H94: ='Trust - Frontsheet'!K106 -> 0 | I94: ='Trust - Frontsheet'!L106 -> 0 | J94: ='Trust - Frontsheet'!M106 -> 0 | K94: ='Trust - Frontsheet'!N106 -> 0 | L94: ='Trust - Frontsheet'!O106 -> 0 | M94: ='Trust - Frontsheet'!P106 -> 0 | N94: =IF('Trust - Frontsheet'!Q106="",0,('Trust - Frontsheet'!Q106)) -> 0 | O94: =IF('Trust - Frontsheet'!R106="",0,('Trust - Frontsheet'!R106)) -> 0 | P94: =IF('Trust - Frontsheet'!S106="",0,('Trust - Frontsheet'!S106)) -> 0 | Q94: =IF('Trust - Frontsheet'!T106="",0,('Trust - Frontsheet'!T106)) -> 0 | R94: ='Trust - Frontsheet'!U106 -> 0 | S94: =IF('Trust - Frontsheet'!V106="",0,('Trust - Frontsheet'!V106)) -> 0 | T94: =IF('Trust - Frontsheet'!W106="",0,('Trust - Frontsheet'!W106)) -> 0 | U94: =IF('Trust - Frontsheet'!X106="",0,('Trust - Frontsheet'!X106)) -> 0 | V94: =IF(A94="","",(IF(ISBLANK('Trust - Frontsheet'!F9),"",'Trust - Frontsheet'!F9))) -> 
A95: =IF('Trust - Frontsheet'!D107=0,"",IF('Trust - Frontsheet'!D107="","",'Trust - Frontsheet'!D107)) ->  | B95: =IF(ISBLANK('Trust - Frontsheet'!E107),"",'Trust - Frontsheet'!E107) ->  | C95: =IF(ISBLANK('Trust - Frontsheet'!F107),"",'Trust - Frontsheet'!F107) ->  | D95: =IF(ISBLANK('Trust - Frontsheet'!G107),"",'Trust - Frontsheet'!G107) ->  | E95: =IF(ISBLANK('Trust - Frontsheet'!H107),"",'Trust - Frontsheet'!H107) ->  | F95: ='Trust - Frontsheet'!I107 -> 0 | G95: ='Trust - Frontsheet'!J107 -> 0 | H95: ='Trust - Frontsheet'!K107 -> 0 | I95: ='Trust - Frontsheet'!L107 -> 0 | J95: ='Trust - Frontsheet'!M107 -> 0 | K95: ='Trust - Frontsheet'!N107 -> 0 | L95: ='Trust - Frontsheet'!O107 -> 0 | M95: ='Trust - Frontsheet'!P107 -> 0 | N95: =IF('Trust - Frontsheet'!Q107="",0,('Trust - Frontsheet'!Q107)) -> 0 | O95: =IF('Trust - Frontsheet'!R107="",0,('Trust - Frontsheet'!R107)) -> 0 | P95: =IF('Trust - Frontsheet'!S107="",0,('Trust - Frontsheet'!S107)) -> 0 | Q95: =IF('Trust - Frontsheet'!T107="",0,('Trust - Frontsheet'!T107)) -> 0 | R95: ='Trust - Frontsheet'!U107 -> 0 | S95: =IF('Trust - Frontsheet'!V107="",0,('Trust - Frontsheet'!V107)) -> 0 | T95: =IF('Trust - Frontsheet'!W107="",0,('Trust - Frontsheet'!W107)) -> 0 | U95: =IF('Trust - Frontsheet'!X107="",0,('Trust - Frontsheet'!X107)) -> 0 | V95: =IF(A95="","",(IF(ISBLANK('Trust - Frontsheet'!F9),"",'Trust - Frontsheet'!F9))) -> 
A96: =IF('Trust - Frontsheet'!D108=0,"",IF('Trust - Frontsheet'!D108="","",'Trust - Frontsheet'!D108)) ->  | B96: =IF(ISBLANK('Trust - Frontsheet'!E108),"",'Trust - Frontsheet'!E108) ->  | C96: =IF(ISBLANK('Trust - Frontsheet'!F108),"",'Trust - Frontsheet'!F108) ->  | D96: =IF(ISBLANK('Trust - Frontsheet'!G108),"",'Trust - Frontsheet'!G108) ->  | E96: =IF(ISBLANK('Trust - Frontsheet'!H108),"",'Trust - Frontsheet'!H108) ->  | F96: ='Trust - Frontsheet'!I108 -> 0 | G96: ='Trust - Frontsheet'!J108 -> 0 | H96: ='Trust - Frontsheet'!K108 -> 0 | I96: ='Trust - Frontsheet'!L108 -> 0 | J96: ='Trust - Frontsheet'!M108 -> 0 | K96: ='Trust - Frontsheet'!N108 -> 0 | L96: ='Trust - Frontsheet'!O108 -> 0 | M96: ='Trust - Frontsheet'!P108 -> 0 | N96: =IF('Trust - Frontsheet'!Q108="",0,('Trust - Frontsheet'!Q108)) -> 0 | O96: =IF('Trust - Frontsheet'!R108="",0,('Trust - Frontsheet'!R108)) -> 0 | P96: =IF('Trust - Frontsheet'!S108="",0,('Trust - Frontsheet'!S108)) -> 0 | Q96: =IF('Trust - Frontsheet'!T108="",0,('Trust - Frontsheet'!T108)) -> 0 | R96: ='Trust - Frontsheet'!U108 -> 0 | S96: =IF('Trust - Frontsheet'!V108="",0,('Trust - Frontsheet'!V108)) -> 0 | T96: =IF('Trust - Frontsheet'!W108="",0,('Trust - Frontsheet'!W108)) -> 0 | U96: =IF('Trust - Frontsheet'!X108="",0,('Trust - Frontsheet'!X108)) -> 0 | V96: =IF(A96="","",(IF(ISBLANK('Trust - Frontsheet'!F9),"",'Trust - Frontsheet'!F9))) -> 
A97: =IF('Trust - Frontsheet'!D109=0,"",IF('Trust - Frontsheet'!D109="","",'Trust - Frontsheet'!D109)) ->  | B97: =IF(ISBLANK('Trust - Frontsheet'!E109),"",'Trust - Frontsheet'!E109) ->  | C97: =IF(ISBLANK('Trust - Frontsheet'!F109),"",'Trust - Frontsheet'!F109) ->  | D97: =IF(ISBLANK('Trust - Frontsheet'!G109),"",'Trust - Frontsheet'!G109) ->  | E97: =IF(ISBLANK('Trust - Frontsheet'!H109),"",'Trust - Frontsheet'!H109) ->  | F97: ='Trust - Frontsheet'!I109 -> 0 | G97: ='Trust - Frontsheet'!J109 -> 0 | H97: ='Trust - Frontsheet'!K109 -> 0 | I97: ='Trust - Frontsheet'!L109 -> 0 | J97: ='Trust - Frontsheet'!M109 -> 0 | K97: ='Trust - Frontsheet'!N109 -> 0 | L97: ='Trust - Frontsheet'!O109 -> 0 | M97: ='Trust - Frontsheet'!P109 -> 0 | N97: =IF('Trust - Frontsheet'!Q109="",0,('Trust - Frontsheet'!Q109)) -> 0 | O97: =IF('Trust - Frontsheet'!R109="",0,('Trust - Frontsheet'!R109)) -> 0 | P97: =IF('Trust - Frontsheet'!S109="",0,('Trust - Frontsheet'!S109)) -> 0 | Q97: =IF('Trust - Frontsheet'!T109="",0,('Trust - Frontsheet'!T109)) -> 0 | R97: ='Trust - Frontsheet'!U109 -> 0 | S97: =IF('Trust - Frontsheet'!V109="",0,('Trust - Frontsheet'!V109)) -> 0 | T97: =IF('Trust - Frontsheet'!W109="",0,('Trust - Frontsheet'!W109)) -> 0 | U97: =IF('Trust - Frontsheet'!X109="",0,('Trust - Frontsheet'!X109)) -> 0 | V97: =IF(A97="","",(IF(ISBLANK('Trust - Frontsheet'!F9),"",'Trust - Frontsheet'!F9))) -> 
A98: =IF('Trust - Frontsheet'!D110=0,"",IF('Trust - Frontsheet'!D110="","",'Trust - Frontsheet'!D110)) ->  | B98: =IF(ISBLANK('Trust - Frontsheet'!E110),"",'Trust - Frontsheet'!E110) ->  | C98: =IF(ISBLANK('Trust - Frontsheet'!F110),"",'Trust - Frontsheet'!F110) ->  | D98: =IF(ISBLANK('Trust - Frontsheet'!G110),"",'Trust - Frontsheet'!G110) ->  | E98: =IF(ISBLANK('Trust - Frontsheet'!H110),"",'Trust - Frontsheet'!H110) ->  | F98: ='Trust - Frontsheet'!I110 -> 0 | G98: ='Trust - Frontsheet'!J110 -> 0 | H98: ='Trust - Frontsheet'!K110 -> 0 | I98: ='Trust - Frontsheet'!L110 -> 0 | J98: ='Trust - Frontsheet'!M110 -> 0 | K98: ='Trust - Frontsheet'!N110 -> 0 | L98: ='Trust - Frontsheet'!O110 -> 0 | M98: ='Trust - Frontsheet'!P110 -> 0 | N98: =IF('Trust - Frontsheet'!Q110="",0,('Trust - Frontsheet'!Q110)) -> 0 | O98: =IF('Trust - Frontsheet'!R110="",0,('Trust - Frontsheet'!R110)) -> 0 | P98: =IF('Trust - Frontsheet'!S110="",0,('Trust - Frontsheet'!S110)) -> 0 | Q98: =IF('Trust - Frontsheet'!T110="",0,('Trust - Frontsheet'!T110)) -> 0 | R98: ='Trust - Frontsheet'!U110 -> 0 | S98: =IF('Trust - Frontsheet'!V110="",0,('Trust - Frontsheet'!V110)) -> 0 | T98: =IF('Trust - Frontsheet'!W110="",0,('Trust - Frontsheet'!W110)) -> 0 | U98: =IF('Trust - Frontsheet'!X110="",0,('Trust - Frontsheet'!X110)) -> 0 | V98: =IF(A98="","",(IF(ISBLANK('Trust - Frontsheet'!F9),"",'Trust - Frontsheet'!F9))) -> 
A99: =IF('Trust - Frontsheet'!D111=0,"",IF('Trust - Frontsheet'!D111="","",'Trust - Frontsheet'!D111)) ->  | B99: =IF(ISBLANK('Trust - Frontsheet'!E111),"",'Trust - Frontsheet'!E111) ->  | C99: =IF(ISBLANK('Trust - Frontsheet'!F111),"",'Trust - Frontsheet'!F111) ->  | D99: =IF(ISBLANK('Trust - Frontsheet'!G111),"",'Trust - Frontsheet'!G111) ->  | E99: =IF(ISBLANK('Trust - Frontsheet'!H111),"",'Trust - Frontsheet'!H111) ->  | F99: ='Trust - Frontsheet'!I111 -> 0 | G99: ='Trust - Frontsheet'!J111 -> 0 | H99: ='Trust - Frontsheet'!K111 -> 0 | I99: ='Trust - Frontsheet'!L111 -> 0 | J99: ='Trust - Frontsheet'!M111 -> 0 | K99: ='Trust - Frontsheet'!N111 -> 0 | L99: ='Trust - Frontsheet'!O111 -> 0 | M99: ='Trust - Frontsheet'!P111 -> 0 | N99: =IF('Trust - Frontsheet'!Q111="",0,('Trust - Frontsheet'!Q111)) -> 0 | O99: =IF('Trust - Frontsheet'!R111="",0,('Trust - Frontsheet'!R111)) -> 0 | P99: =IF('Trust - Frontsheet'!S111="",0,('Trust - Frontsheet'!S111)) -> 0 | Q99: =IF('Trust - Frontsheet'!T111="",0,('Trust - Frontsheet'!T111)) -> 0 | R99: ='Trust - Frontsheet'!U111 -> 0 | S99: =IF('Trust - Frontsheet'!V111="",0,('Trust - Frontsheet'!V111)) -> 0 | T99: =IF('Trust - Frontsheet'!W111="",0,('Trust - Frontsheet'!W111)) -> 0 | U99: =IF('Trust - Frontsheet'!X111="",0,('Trust - Frontsheet'!X111)) -> 0 | V99: =IF(A99="","",(IF(ISBLANK('Trust - Frontsheet'!F9),"",'Trust - Frontsheet'!F9))) -> 
A100: =IF('Trust - Frontsheet'!D112=0,"",IF('Trust - Frontsheet'!D112="","",'Trust - Frontsheet'!D112)) ->  | B100: =IF(ISBLANK('Trust - Frontsheet'!E112),"",'Trust - Frontsheet'!E112) ->  | C100: =IF(ISBLANK('Trust - Frontsheet'!F112),"",'Trust - Frontsheet'!F112) ->  | D100: =IF(ISBLANK('Trust - Frontsheet'!G112),"",'Trust - Frontsheet'!G112) ->  | E100: =IF(ISBLANK('Trust - Frontsheet'!H112),"",'Trust - Frontsheet'!H112) ->  | F100: ='Trust - Frontsheet'!I112 -> 0 | G100: ='Trust - Frontsheet'!J112 -> 0 | H100: ='Trust - Frontsheet'!K112 -> 0 | I100: ='Trust - Frontsheet'!L112 -> 0 | J100: ='Trust - Frontsheet'!M112 -> 0 | K100: ='Trust - Frontsheet'!N112 -> 0 | L100: ='Trust - Frontsheet'!O112 -> 0 | M100: ='Trust - Frontsheet'!P112 -> 0 | N100: =IF('Trust - Frontsheet'!Q112="",0,('Trust - Frontsheet'!Q112)) -> 0 | O100: =IF('Trust - Frontsheet'!R112="",0,('Trust - Frontsheet'!R112)) -> 0 | P100: =IF('Trust - Frontsheet'!S112="",0,('Trust - Frontsheet'!S112)) -> 0 | Q100: =IF('Trust - Frontsheet'!T112="",0,('Trust - Frontsheet'!T112)) -> 0 | R100: ='Trust - Frontsheet'!U112 -> 0 | S100: =IF('Trust - Frontsheet'!V112="",0,('Trust - Frontsheet'!V112)) -> 0 | T100: =IF('Trust - Frontsheet'!W112="",0,('Trust - Frontsheet'!W112)) -> 0 | U100: =IF('Trust - Frontsheet'!X112="",0,('Trust - Frontsheet'!X112)) -> 0 | V100: =IF(A100="","",(IF(ISBLANK('Trust - Frontsheet'!F9),"",'Trust - Frontsheet'!F9))) -> 
A101: =IF('Trust - Frontsheet'!D113=0,"",IF('Trust - Frontsheet'!D113="","",'Trust - Frontsheet'!D113)) ->  | B101: =IF(ISBLANK('Trust - Frontsheet'!E113),"",'Trust - Frontsheet'!E113) ->  | C101: =IF(ISBLANK('Trust - Frontsheet'!F113),"",'Trust - Frontsheet'!F113) ->  | D101: =IF(ISBLANK('Trust - Frontsheet'!G113),"",'Trust - Frontsheet'!G113) ->  | E101: =IF(ISBLANK('Trust - Frontsheet'!H113),"",'Trust - Frontsheet'!H113) ->  | F101: ='Trust - Frontsheet'!I113 -> 0 | G101: ='Trust - Frontsheet'!J113 -> 0 | H101: ='Trust - Frontsheet'!K113 -> 0 | I101: ='Trust - Frontsheet'!L113 -> 0 | J101: ='Trust - Frontsheet'!M113 -> 0 | K101: ='Trust - Frontsheet'!N113 -> 0 | L101: ='Trust - Frontsheet'!O113 -> 0 | M101: ='Trust - Frontsheet'!P113 -> 0 | N101: =IF('Trust - Frontsheet'!Q113="",0,('Trust - Frontsheet'!Q113)) -> 0 | O101: =IF('Trust - Frontsheet'!R113="",0,('Trust - Frontsheet'!R113)) -> 0 | P101: =IF('Trust - Frontsheet'!S113="",0,('Trust - Frontsheet'!S113)) -> 0 | Q101: =IF('Trust - Frontsheet'!T113="",0,('Trust - Frontsheet'!T113)) -> 0 | R101: ='Trust - Frontsheet'!U113 -> 0 | S101: =IF('Trust - Frontsheet'!V113="",0,('Trust - Frontsheet'!V113)) -> 0 | T101: =IF('Trust - Frontsheet'!W113="",0,('Trust - Frontsheet'!W113)) -> 0 | U101: =IF('Trust - Frontsheet'!X113="",0,('Trust - Frontsheet'!X113)) -> 0 | V101: =IF(A101="","",(IF(ISBLANK('Trust - Frontsheet'!F9),"",'Trust - Frontsheet'!F9))) -> 
A102: =IF('Trust - Frontsheet'!D114=0,"",IF('Trust - Frontsheet'!D114="","",'Trust - Frontsheet'!D114)) ->  | B102: =IF(ISBLANK('Trust - Frontsheet'!E114),"",'Trust - Frontsheet'!E114) ->  | C102: =IF(ISBLANK('Trust - Frontsheet'!F114),"",'Trust - Frontsheet'!F114) ->  | D102: =IF(ISBLANK('Trust - Frontsheet'!G114),"",'Trust - Frontsheet'!G114) ->  | E102: =IF(ISBLANK('Trust - Frontsheet'!H114),"",'Trust - Frontsheet'!H114) ->  | F102: ='Trust - Frontsheet'!I114 -> 0 | G102: ='Trust - Frontsheet'!J114 -> 0 | H102: ='Trust - Frontsheet'!K114 -> 0 | I102: ='Trust - Frontsheet'!L114 -> 0 | J102: ='Trust - Frontsheet'!M114 -> 0 | K102: ='Trust - Frontsheet'!N114 -> 0 | L102: ='Trust - Frontsheet'!O114 -> 0 | M102: ='Trust - Frontsheet'!P114 -> 0 | N102: =IF('Trust - Frontsheet'!Q114="",0,('Trust - Frontsheet'!Q114)) -> 0 | O102: =IF('Trust - Frontsheet'!R114="",0,('Trust - Frontsheet'!R114)) -> 0 | P102: =IF('Trust - Frontsheet'!S114="",0,('Trust - Frontsheet'!S114)) -> 0 | Q102: =IF('Trust - Frontsheet'!T114="",0,('Trust - Frontsheet'!T114)) -> 0 | R102: ='Trust - Frontsheet'!U114 -> 0 | S102: =IF('Trust - Frontsheet'!V114="",0,('Trust - Frontsheet'!V114)) -> 0 | T102: =IF('Trust - Frontsheet'!W114="",0,('Trust - Frontsheet'!W114)) -> 0 | U102: =IF('Trust - Frontsheet'!X114="",0,('Trust - Frontsheet'!X114)) -> 0 | V102: =IF(A102="","",(IF(ISBLANK('Trust - Frontsheet'!F9),"",'Trust - Frontsheet'!F9))) -> 
A103: =IF('Trust - Frontsheet'!D115=0,"",IF('Trust - Frontsheet'!D115="","",'Trust - Frontsheet'!D115)) ->  | B103: =IF(ISBLANK('Trust - Frontsheet'!E115),"",'Trust - Frontsheet'!E115) ->  | C103: =IF(ISBLANK('Trust - Frontsheet'!F115),"",'Trust - Frontsheet'!F115) ->  | D103: =IF(ISBLANK('Trust - Frontsheet'!G115),"",'Trust - Frontsheet'!G115) ->  | E103: =IF(ISBLANK('Trust - Frontsheet'!H115),"",'Trust - Frontsheet'!H115) ->  | F103: ='Trust - Frontsheet'!I115 -> 0 | G103: ='Trust - Frontsheet'!J115 -> 0 | H103: ='Trust - Frontsheet'!K115 -> 0 | I103: ='Trust - Frontsheet'!L115 -> 0 | J103: ='Trust - Frontsheet'!M115 -> 0 | K103: ='Trust - Frontsheet'!N115 -> 0 | L103: ='Trust - Frontsheet'!O115 -> 0 | M103: ='Trust - Frontsheet'!P115 -> 0 | N103: =IF('Trust - Frontsheet'!Q115="",0,('Trust - Frontsheet'!Q115)) -> 0 | O103: =IF('Trust - Frontsheet'!R115="",0,('Trust - Frontsheet'!R115)) -> 0 | P103: =IF('Trust - Frontsheet'!S115="",0,('Trust - Frontsheet'!S115)) -> 0 | Q103: =IF('Trust - Frontsheet'!T115="",0,('Trust - Frontsheet'!T115)) -> 0 | R103: ='Trust - Frontsheet'!U115 -> 0 | S103: =IF('Trust - Frontsheet'!V115="",0,('Trust - Frontsheet'!V115)) -> 0 | T103: =IF('Trust - Frontsheet'!W115="",0,('Trust - Frontsheet'!W115)) -> 0 | U103: =IF('Trust - Frontsheet'!X115="",0,('Trust - Frontsheet'!X115)) -> 0 | V103: =IF(A103="","",(IF(ISBLANK('Trust - Frontsheet'!F9),"",'Trust - Frontsheet'!F9))) -> 
A104: =IF('Trust - Frontsheet'!D116=0,"",IF('Trust - Frontsheet'!D116="","",'Trust - Frontsheet'!D116)) ->  | B104: =IF(ISBLANK('Trust - Frontsheet'!E116),"",'Trust - Frontsheet'!E116) ->  | C104: =IF(ISBLANK('Trust - Frontsheet'!F116),"",'Trust - Frontsheet'!F116) ->  | D104: =IF(ISBLANK('Trust - Frontsheet'!G116),"",'Trust - Frontsheet'!G116) ->  | E104: =IF(ISBLANK('Trust - Frontsheet'!H116),"",'Trust - Frontsheet'!H116) ->  | F104: ='Trust - Frontsheet'!I116 -> 0 | G104: ='Trust - Frontsheet'!J116 -> 0 | H104: ='Trust - Frontsheet'!K116 -> 0 | I104: ='Trust - Frontsheet'!L116 -> 0 | J104: ='Trust - Frontsheet'!M116 -> 0 | K104: ='Trust - Frontsheet'!N116 -> 0 | L104: ='Trust - Frontsheet'!O116 -> 0 | M104: ='Trust - Frontsheet'!P116 -> 0 | N104: =IF('Trust - Frontsheet'!Q116="",0,('Trust - Frontsheet'!Q116)) -> 0 | O104: =IF('Trust - Frontsheet'!R116="",0,('Trust - Frontsheet'!R116)) -> 0 | P104: =IF('Trust - Frontsheet'!S116="",0,('Trust - Frontsheet'!S116)) -> 0 | Q104: =IF('Trust - Frontsheet'!T116="",0,('Trust - Frontsheet'!T116)) -> 0 | R104: ='Trust - Frontsheet'!U116 -> 0 | S104: =IF('Trust - Frontsheet'!V116="",0,('Trust - Frontsheet'!V116)) -> 0 | T104: =IF('Trust - Frontsheet'!W116="",0,('Trust - Frontsheet'!W116)) -> 0 | U104: =IF('Trust - Frontsheet'!X116="",0,('Trust - Frontsheet'!X116)) -> 0 | V104: =IF(A104="","",(IF(ISBLANK('Trust - Frontsheet'!F9),"",'Trust - Frontsheet'!F9))) -> 
A105: =IF('Trust - Frontsheet'!D117=0,"",IF('Trust - Frontsheet'!D117="","",'Trust - Frontsheet'!D117)) ->  | B105: =IF(ISBLANK('Trust - Frontsheet'!E117),"",'Trust - Frontsheet'!E117) ->  | C105: =IF(ISBLANK('Trust - Frontsheet'!F117),"",'Trust - Frontsheet'!F117) ->  | D105: =IF(ISBLANK('Trust - Frontsheet'!G117),"",'Trust - Frontsheet'!G117) ->  | E105: =IF(ISBLANK('Trust - Frontsheet'!H117),"",'Trust - Frontsheet'!H117) ->  | F105: ='Trust - Frontsheet'!I117 -> 0 | G105: ='Trust - Frontsheet'!J117 -> 0 | H105: ='Trust - Frontsheet'!K117 -> 0 | I105: ='Trust - Frontsheet'!L117 -> 0 | J105: ='Trust - Frontsheet'!M117 -> 0 | K105: ='Trust - Frontsheet'!N117 -> 0 | L105: ='Trust - Frontsheet'!O117 -> 0 | M105: ='Trust - Frontsheet'!P117 -> 0 | N105: =IF('Trust - Frontsheet'!Q117="",0,('Trust - Frontsheet'!Q117)) -> 0 | O105: =IF('Trust - Frontsheet'!R117="",0,('Trust - Frontsheet'!R117)) -> 0 | P105: =IF('Trust - Frontsheet'!S117="",0,('Trust - Frontsheet'!S117)) -> 0 | Q105: =IF('Trust - Frontsheet'!T117="",0,('Trust - Frontsheet'!T117)) -> 0 | R105: ='Trust - Frontsheet'!U117 -> 0 | S105: =IF('Trust - Frontsheet'!V117="",0,('Trust - Frontsheet'!V117)) -> 0 | T105: =IF('Trust - Frontsheet'!W117="",0,('Trust - Frontsheet'!W117)) -> 0 | U105: =IF('Trust - Frontsheet'!X117="",0,('Trust - Frontsheet'!X117)) -> 0 | V105: =IF(A105="","",(IF(ISBLANK('Trust - Frontsheet'!F9),"",'Trust - Frontsheet'!F9))) -> 
A106: =IF('Trust - Frontsheet'!D118=0,"",IF('Trust - Frontsheet'!D118="","",'Trust - Frontsheet'!D118)) ->  | B106: =IF(ISBLANK('Trust - Frontsheet'!E118),"",'Trust - Frontsheet'!E118) ->  | C106: =IF(ISBLANK('Trust - Frontsheet'!F118),"",'Trust - Frontsheet'!F118) ->  | D106: =IF(ISBLANK('Trust - Frontsheet'!G118),"",'Trust - Frontsheet'!G118) ->  | E106: =IF(ISBLANK('Trust - Frontsheet'!H118),"",'Trust - Frontsheet'!H118) ->  | F106: ='Trust - Frontsheet'!I118 -> 0 | G106: ='Trust - Frontsheet'!J118 -> 0 | H106: ='Trust - Frontsheet'!K118 -> 0 | I106: ='Trust - Frontsheet'!L118 -> 0 | J106: ='Trust - Frontsheet'!M118 -> 0 | K106: ='Trust - Frontsheet'!N118 -> 0 | L106: ='Trust - Frontsheet'!O118 -> 0 | M106: ='Trust - Frontsheet'!P118 -> 0 | N106: =IF('Trust - Frontsheet'!Q118="",0,('Trust - Frontsheet'!Q118)) -> 0 | O106: =IF('Trust - Frontsheet'!R118="",0,('Trust - Frontsheet'!R118)) -> 0 | P106: =IF('Trust - Frontsheet'!S118="",0,('Trust - Frontsheet'!S118)) -> 0 | Q106: =IF('Trust - Frontsheet'!T118="",0,('Trust - Frontsheet'!T118)) -> 0 | R106: ='Trust - Frontsheet'!U118 -> 0 | S106: =IF('Trust - Frontsheet'!V118="",0,('Trust - Frontsheet'!V118)) -> 0 | T106: =IF('Trust - Frontsheet'!W118="",0,('Trust - Frontsheet'!W118)) -> 0 | U106: =IF('Trust - Frontsheet'!X118="",0,('Trust - Frontsheet'!X118)) -> 0 | V106: =IF(A106="","",(IF(ISBLANK('Trust - Frontsheet'!F9),"",'Trust - Frontsheet'!F9))) -> 
A107: =IF('Trust - Frontsheet'!D119=0,"",IF('Trust - Frontsheet'!D119="","",'Trust - Frontsheet'!D119)) ->  | B107: =IF(ISBLANK('Trust - Frontsheet'!E119),"",'Trust - Frontsheet'!E119) ->  | C107: =IF(ISBLANK('Trust - Frontsheet'!F119),"",'Trust - Frontsheet'!F119) ->  | D107: =IF(ISBLANK('Trust - Frontsheet'!G119),"",'Trust - Frontsheet'!G119) ->  | E107: =IF(ISBLANK('Trust - Frontsheet'!H119),"",'Trust - Frontsheet'!H119) ->  | F107: ='Trust - Frontsheet'!I119 -> 0 | G107: ='Trust - Frontsheet'!J119 -> 0 | H107: ='Trust - Frontsheet'!K119 -> 0 | I107: ='Trust - Frontsheet'!L119 -> 0 | J107: ='Trust - Frontsheet'!M119 -> 0 | K107: ='Trust - Frontsheet'!N119 -> 0 | L107: ='Trust - Frontsheet'!O119 -> 0 | M107: ='Trust - Frontsheet'!P119 -> 0 | N107: =IF('Trust - Frontsheet'!Q119="",0,('Trust - Frontsheet'!Q119)) -> 0 | O107: =IF('Trust - Frontsheet'!R119="",0,('Trust - Frontsheet'!R119)) -> 0 | P107: =IF('Trust - Frontsheet'!S119="",0,('Trust - Frontsheet'!S119)) -> 0 | Q107: =IF('Trust - Frontsheet'!T119="",0,('Trust - Frontsheet'!T119)) -> 0 | R107: ='Trust - Frontsheet'!U119 -> 0 | S107: =IF('Trust - Frontsheet'!V119="",0,('Trust - Frontsheet'!V119)) -> 0 | T107: =IF('Trust - Frontsheet'!W119="",0,('Trust - Frontsheet'!W119)) -> 0 | U107: =IF('Trust - Frontsheet'!X119="",0,('Trust - Frontsheet'!X119)) -> 0 | V107: =IF(A107="","",(IF(ISBLANK('Trust - Frontsheet'!F9),"",'Trust - Frontsheet'!F9))) -> 
A108: =IF('Trust - Frontsheet'!D120=0,"",IF('Trust - Frontsheet'!D120="","",'Trust - Frontsheet'!D120)) ->  | B108: =IF(ISBLANK('Trust - Frontsheet'!E120),"",'Trust - Frontsheet'!E120) ->  | C108: =IF(ISBLANK('Trust - Frontsheet'!F120),"",'Trust - Frontsheet'!F120) ->  | D108: =IF(ISBLANK('Trust - Frontsheet'!G120),"",'Trust - Frontsheet'!G120) ->  | E108: =IF(ISBLANK('Trust - Frontsheet'!H120),"",'Trust - Frontsheet'!H120) ->  | F108: ='Trust - Frontsheet'!I120 -> 0 | G108: ='Trust - Frontsheet'!J120 -> 0 | H108: ='Trust - Frontsheet'!K120 -> 0 | I108: ='Trust - Frontsheet'!L120 -> 0 | J108: ='Trust - Frontsheet'!M120 -> 0 | K108: ='Trust - Frontsheet'!N120 -> 0 | L108: ='Trust - Frontsheet'!O120 -> 0 | M108: ='Trust - Frontsheet'!P120 -> 0 | N108: =IF('Trust - Frontsheet'!Q120="",0,('Trust - Frontsheet'!Q120)) -> 0 | O108: =IF('Trust - Frontsheet'!R120="",0,('Trust - Frontsheet'!R120)) -> 0 | P108: =IF('Trust - Frontsheet'!S120="",0,('Trust - Frontsheet'!S120)) -> 0 | Q108: =IF('Trust - Frontsheet'!T120="",0,('Trust - Frontsheet'!T120)) -> 0 | R108: ='Trust - Frontsheet'!U120 -> 0 | S108: =IF('Trust - Frontsheet'!V120="",0,('Trust - Frontsheet'!V120)) -> 0 | T108: =IF('Trust - Frontsheet'!W120="",0,('Trust - Frontsheet'!W120)) -> 0 | U108: =IF('Trust - Frontsheet'!X120="",0,('Trust - Frontsheet'!X120)) -> 0 | V108: =IF(A108="","",(IF(ISBLANK('Trust - Frontsheet'!F9),"",'Trust - Frontsheet'!F9))) -> 
A109: =IF('Trust - Frontsheet'!D121=0,"",IF('Trust - Frontsheet'!D121="","",'Trust - Frontsheet'!D121)) ->  | B109: =IF(ISBLANK('Trust - Frontsheet'!E121),"",'Trust - Frontsheet'!E121) ->  | C109: =IF(ISBLANK('Trust - Frontsheet'!F121),"",'Trust - Frontsheet'!F121) ->  | D109: =IF(ISBLANK('Trust - Frontsheet'!G121),"",'Trust - Frontsheet'!G121) ->  | E109: =IF(ISBLANK('Trust - Frontsheet'!H121),"",'Trust - Frontsheet'!H121) ->  | F109: ='Trust - Frontsheet'!I121 -> 0 | G109: ='Trust - Frontsheet'!J121 -> 0 | H109: ='Trust - Frontsheet'!K121 -> 0 | I109: ='Trust - Frontsheet'!L121 -> 0 | J109: ='Trust - Frontsheet'!M121 -> 0 | K109: ='Trust - Frontsheet'!N121 -> 0 | L109: ='Trust - Frontsheet'!O121 -> 0 | M109: ='Trust - Frontsheet'!P121 -> 0 | N109: =IF('Trust - Frontsheet'!Q121="",0,('Trust - Frontsheet'!Q121)) -> 0 | O109: =IF('Trust - Frontsheet'!R121="",0,('Trust - Frontsheet'!R121)) -> 0 | P109: =IF('Trust - Frontsheet'!S121="",0,('Trust - Frontsheet'!S121)) -> 0 | Q109: =IF('Trust - Frontsheet'!T121="",0,('Trust - Frontsheet'!T121)) -> 0 | R109: ='Trust - Frontsheet'!U121 -> 0 | S109: =IF('Trust - Frontsheet'!V121="",0,('Trust - Frontsheet'!V121)) -> 0 | T109: =IF('Trust - Frontsheet'!W121="",0,('Trust - Frontsheet'!W121)) -> 0 | U109: =IF('Trust - Frontsheet'!X121="",0,('Trust - Frontsheet'!X121)) -> 0 | V109: =IF(A109="","",(IF(ISBLANK('Trust - Frontsheet'!F9),"",'Trust - Frontsheet'!F9))) -> 
A110: =IF('Trust - Frontsheet'!D122=0,"",IF('Trust - Frontsheet'!D122="","",'Trust - Frontsheet'!D122)) ->  | B110: =IF(ISBLANK('Trust - Frontsheet'!E122),"",'Trust - Frontsheet'!E122) ->  | C110: =IF(ISBLANK('Trust - Frontsheet'!F122),"",'Trust - Frontsheet'!F122) ->  | D110: =IF(ISBLANK('Trust - Frontsheet'!G122),"",'Trust - Frontsheet'!G122) ->  | E110: =IF(ISBLANK('Trust - Frontsheet'!H122),"",'Trust - Frontsheet'!H122) ->  | F110: ='Trust - Frontsheet'!I122 -> 0 | G110: ='Trust - Frontsheet'!J122 -> 0 | H110: ='Trust - Frontsheet'!K122 -> 0 | I110: ='Trust - Frontsheet'!L122 -> 0 | J110: ='Trust - Frontsheet'!M122 -> 0 | K110: ='Trust - Frontsheet'!N122 -> 0 | L110: ='Trust - Frontsheet'!O122 -> 0 | M110: ='Trust - Frontsheet'!P122 -> 0 | N110: =IF('Trust - Frontsheet'!Q122="",0,('Trust - Frontsheet'!Q122)) -> 0 | O110: =IF('Trust - Frontsheet'!R122="",0,('Trust - Frontsheet'!R122)) -> 0 | P110: =IF('Trust - Frontsheet'!S122="",0,('Trust - Frontsheet'!S122)) -> 0 | Q110: =IF('Trust - Frontsheet'!T122="",0,('Trust - Frontsheet'!T122)) -> 0 | R110: ='Trust - Frontsheet'!U122 -> 0 | S110: =IF('Trust - Frontsheet'!V122="",0,('Trust - Frontsheet'!V122)) -> 0 | T110: =IF('Trust - Frontsheet'!W122="",0,('Trust - Frontsheet'!W122)) -> 0 | U110: =IF('Trust - Frontsheet'!X122="",0,('Trust - Frontsheet'!X122)) -> 0 | V110: =IF(A110="","",(IF(ISBLANK('Trust - Frontsheet'!F9),"",'Trust - Frontsheet'!F9))) -> 
A111: =IF('Trust - Frontsheet'!D123=0,"",IF('Trust - Frontsheet'!D123="","",'Trust - Frontsheet'!D123)) ->  | B111: =IF(ISBLANK('Trust - Frontsheet'!E123),"",'Trust - Frontsheet'!E123) ->  | C111: =IF(ISBLANK('Trust - Frontsheet'!F123),"",'Trust - Frontsheet'!F123) ->  | D111: =IF(ISBLANK('Trust - Frontsheet'!G123),"",'Trust - Frontsheet'!G123) ->  | E111: =IF(ISBLANK('Trust - Frontsheet'!H123),"",'Trust - Frontsheet'!H123) ->  | F111: ='Trust - Frontsheet'!I123 -> 0 | G111: ='Trust - Frontsheet'!J123 -> 0 | H111: ='Trust - Frontsheet'!K123 -> 0 | I111: ='Trust - Frontsheet'!L123 -> 0 | J111: ='Trust - Frontsheet'!M123 -> 0 | K111: ='Trust - Frontsheet'!N123 -> 0 | L111: ='Trust - Frontsheet'!O123 -> 0 | M111: ='Trust - Frontsheet'!P123 -> 0 | N111: =IF('Trust - Frontsheet'!Q123="",0,('Trust - Frontsheet'!Q123)) -> 0 | O111: =IF('Trust - Frontsheet'!R123="",0,('Trust - Frontsheet'!R123)) -> 0 | P111: =IF('Trust - Frontsheet'!S123="",0,('Trust - Frontsheet'!S123)) -> 0 | Q111: =IF('Trust - Frontsheet'!T123="",0,('Trust - Frontsheet'!T123)) -> 0 | R111: ='Trust - Frontsheet'!U123 -> 0 | S111: =IF('Trust - Frontsheet'!V123="",0,('Trust - Frontsheet'!V123)) -> 0 | T111: =IF('Trust - Frontsheet'!W123="",0,('Trust - Frontsheet'!W123)) -> 0 | U111: =IF('Trust - Frontsheet'!X123="",0,('Trust - Frontsheet'!X123)) -> 0 | V111: =IF(A111="","",(IF(ISBLANK('Trust - Frontsheet'!F9),"",'Trust - Frontsheet'!F9))) -> 
A112: =IF('Trust - Frontsheet'!D124=0,"",IF('Trust - Frontsheet'!D124="","",'Trust - Frontsheet'!D124)) ->  | B112: =IF(ISBLANK('Trust - Frontsheet'!E124),"",'Trust - Frontsheet'!E124) ->  | C112: =IF(ISBLANK('Trust - Frontsheet'!F124),"",'Trust - Frontsheet'!F124) ->  | D112: =IF(ISBLANK('Trust - Frontsheet'!G124),"",'Trust - Frontsheet'!G124) ->  | E112: =IF(ISBLANK('Trust - Frontsheet'!H124),"",'Trust - Frontsheet'!H124) ->  | F112: ='Trust - Frontsheet'!I124 -> 0 | G112: ='Trust - Frontsheet'!J124 -> 0 | H112: ='Trust - Frontsheet'!K124 -> 0 | I112: ='Trust - Frontsheet'!L124 -> 0 | J112: ='Trust - Frontsheet'!M124 -> 0 | K112: ='Trust - Frontsheet'!N124 -> 0 | L112: ='Trust - Frontsheet'!O124 -> 0 | M112: ='Trust - Frontsheet'!P124 -> 0 | N112: =IF('Trust - Frontsheet'!Q124="",0,('Trust - Frontsheet'!Q124)) -> 0 | O112: =IF('Trust - Frontsheet'!R124="",0,('Trust - Frontsheet'!R124)) -> 0 | P112: =IF('Trust - Frontsheet'!S124="",0,('Trust - Frontsheet'!S124)) -> 0 | Q112: =IF('Trust - Frontsheet'!T124="",0,('Trust - Frontsheet'!T124)) -> 0 | R112: ='Trust - Frontsheet'!U124 -> 0 | S112: =IF('Trust - Frontsheet'!V124="",0,('Trust - Frontsheet'!V124)) -> 0 | T112: =IF('Trust - Frontsheet'!W124="",0,('Trust - Frontsheet'!W124)) -> 0 | U112: =IF('Trust - Frontsheet'!X124="",0,('Trust - Frontsheet'!X124)) -> 0 | V112: =IF(A112="","",(IF(ISBLANK('Trust - Frontsheet'!F9),"",'Trust - Frontsheet'!F9))) -> 
A113: =IF('Trust - Frontsheet'!D125=0,"",IF('Trust - Frontsheet'!D125="","",'Trust - Frontsheet'!D125)) ->  | B113: =IF(ISBLANK('Trust - Frontsheet'!E125),"",'Trust - Frontsheet'!E125) ->  | C113: =IF(ISBLANK('Trust - Frontsheet'!F125),"",'Trust - Frontsheet'!F125) ->  | D113: =IF(ISBLANK('Trust - Frontsheet'!G125),"",'Trust - Frontsheet'!G125) ->  | E113: =IF(ISBLANK('Trust - Frontsheet'!H125),"",'Trust - Frontsheet'!H125) ->  | F113: ='Trust - Frontsheet'!I125 -> 0 | G113: ='Trust - Frontsheet'!J125 -> 0 | H113: ='Trust - Frontsheet'!K125 -> 0 | I113: ='Trust - Frontsheet'!L125 -> 0 | J113: ='Trust - Frontsheet'!M125 -> 0 | K113: ='Trust - Frontsheet'!N125 -> 0 | L113: ='Trust - Frontsheet'!O125 -> 0 | M113: ='Trust - Frontsheet'!P125 -> 0 | N113: =IF('Trust - Frontsheet'!Q125="",0,('Trust - Frontsheet'!Q125)) -> 0 | O113: =IF('Trust - Frontsheet'!R125="",0,('Trust - Frontsheet'!R125)) -> 0 | P113: =IF('Trust - Frontsheet'!S125="",0,('Trust - Frontsheet'!S125)) -> 0 | Q113: =IF('Trust - Frontsheet'!T125="",0,('Trust - Frontsheet'!T125)) -> 0 | R113: ='Trust - Frontsheet'!U125 -> 0 | S113: =IF('Trust - Frontsheet'!V125="",0,('Trust - Frontsheet'!V125)) -> 0 | T113: =IF('Trust - Frontsheet'!W125="",0,('Trust - Frontsheet'!W125)) -> 0 | U113: =IF('Trust - Frontsheet'!X125="",0,('Trust - Frontsheet'!X125)) -> 0 | V113: =IF(A113="","",(IF(ISBLANK('Trust - Frontsheet'!F9),"",'Trust - Frontsheet'!F9))) -> 
A114: =IF('Trust - Frontsheet'!D126=0,"",IF('Trust - Frontsheet'!D126="","",'Trust - Frontsheet'!D126)) ->  | B114: =IF(ISBLANK('Trust - Frontsheet'!E126),"",'Trust - Frontsheet'!E126) ->  | C114: =IF(ISBLANK('Trust - Frontsheet'!F126),"",'Trust - Frontsheet'!F126) ->  | D114: =IF(ISBLANK('Trust - Frontsheet'!G126),"",'Trust - Frontsheet'!G126) ->  | E114: =IF(ISBLANK('Trust - Frontsheet'!H126),"",'Trust - Frontsheet'!H126) ->  | F114: ='Trust - Frontsheet'!I126 -> 0 | G114: ='Trust - Frontsheet'!J126 -> 0 | H114: ='Trust - Frontsheet'!K126 -> 0 | I114: ='Trust - Frontsheet'!L126 -> 0 | J114: ='Trust - Frontsheet'!M126 -> 0 | K114: ='Trust - Frontsheet'!N126 -> 0 | L114: ='Trust - Frontsheet'!O126 -> 0 | M114: ='Trust - Frontsheet'!P126 -> 0 | N114: =IF('Trust - Frontsheet'!Q126="",0,('Trust - Frontsheet'!Q126)) -> 0 | O114: =IF('Trust - Frontsheet'!R126="",0,('Trust - Frontsheet'!R126)) -> 0 | P114: =IF('Trust - Frontsheet'!S126="",0,('Trust - Frontsheet'!S126)) -> 0 | Q114: =IF('Trust - Frontsheet'!T126="",0,('Trust - Frontsheet'!T126)) -> 0 | R114: ='Trust - Frontsheet'!U126 -> 0 | S114: =IF('Trust - Frontsheet'!V126="",0,('Trust - Frontsheet'!V126)) -> 0 | T114: =IF('Trust - Frontsheet'!W126="",0,('Trust - Frontsheet'!W126)) -> 0 | U114: =IF('Trust - Frontsheet'!X126="",0,('Trust - Frontsheet'!X126)) -> 0 | V114: =IF(A114="","",(IF(ISBLANK('Trust - Frontsheet'!F9),"",'Trust - Frontsheet'!F9))) -> 
A115: =IF('Trust - Frontsheet'!D127=0,"",IF('Trust - Frontsheet'!D127="","",'Trust - Frontsheet'!D127)) ->  | B115: =IF(ISBLANK('Trust - Frontsheet'!E127),"",'Trust - Frontsheet'!E127) ->  | C115: =IF(ISBLANK('Trust - Frontsheet'!F127),"",'Trust - Frontsheet'!F127) ->  | D115: =IF(ISBLANK('Trust - Frontsheet'!G127),"",'Trust - Frontsheet'!G127) ->  | E115: =IF(ISBLANK('Trust - Frontsheet'!H127),"",'Trust - Frontsheet'!H127) ->  | F115: ='Trust - Frontsheet'!I127 -> 0 | G115: ='Trust - Frontsheet'!J127 -> 0 | H115: ='Trust - Frontsheet'!K127 -> 0 | I115: ='Trust - Frontsheet'!L127 -> 0 | J115: ='Trust - Frontsheet'!M127 -> 0 | K115: ='Trust - Frontsheet'!N127 -> 0 | L115: ='Trust - Frontsheet'!O127 -> 0 | M115: ='Trust - Frontsheet'!P127 -> 0 | N115: =IF('Trust - Frontsheet'!Q127="",0,('Trust - Frontsheet'!Q127)) -> 0 | O115: =IF('Trust - Frontsheet'!R127="",0,('Trust - Frontsheet'!R127)) -> 0 | P115: =IF('Trust - Frontsheet'!S127="",0,('Trust - Frontsheet'!S127)) -> 0 | Q115: =IF('Trust - Frontsheet'!T127="",0,('Trust - Frontsheet'!T127)) -> 0 | R115: ='Trust - Frontsheet'!U127 -> 0 | S115: =IF('Trust - Frontsheet'!V127="",0,('Trust - Frontsheet'!V127)) -> 0 | T115: =IF('Trust - Frontsheet'!W127="",0,('Trust - Frontsheet'!W127)) -> 0 | U115: =IF('Trust - Frontsheet'!X127="",0,('Trust - Frontsheet'!X127)) -> 0 | V115: =IF(A115="","",(IF(ISBLANK('Trust - Frontsheet'!F9),"",'Trust - Frontsheet'!F9))) -> 
A116: =IF('Trust - Frontsheet'!D128=0,"",IF('Trust - Frontsheet'!D128="","",'Trust - Frontsheet'!D128)) ->  | B116: =IF(ISBLANK('Trust - Frontsheet'!E128),"",'Trust - Frontsheet'!E128) ->  | C116: =IF(ISBLANK('Trust - Frontsheet'!F128),"",'Trust - Frontsheet'!F128) ->  | D116: =IF(ISBLANK('Trust - Frontsheet'!G128),"",'Trust - Frontsheet'!G128) ->  | E116: =IF(ISBLANK('Trust - Frontsheet'!H128),"",'Trust - Frontsheet'!H128) ->  | F116: ='Trust - Frontsheet'!I128 -> 0 | G116: ='Trust - Frontsheet'!J128 -> 0 | H116: ='Trust - Frontsheet'!K128 -> 0 | I116: ='Trust - Frontsheet'!L128 -> 0 | J116: ='Trust - Frontsheet'!M128 -> 0 | K116: ='Trust - Frontsheet'!N128 -> 0 | L116: ='Trust - Frontsheet'!O128 -> 0 | M116: ='Trust - Frontsheet'!P128 -> 0 | N116: =IF('Trust - Frontsheet'!Q128="",0,('Trust - Frontsheet'!Q128)) -> 0 | O116: =IF('Trust - Frontsheet'!R128="",0,('Trust - Frontsheet'!R128)) -> 0 | P116: =IF('Trust - Frontsheet'!S128="",0,('Trust - Frontsheet'!S128)) -> 0 | Q116: =IF('Trust - Frontsheet'!T128="",0,('Trust - Frontsheet'!T128)) -> 0 | R116: ='Trust - Frontsheet'!U128 -> 0 | S116: =IF('Trust - Frontsheet'!V128="",0,('Trust - Frontsheet'!V128)) -> 0 | T116: =IF('Trust - Frontsheet'!W128="",0,('Trust - Frontsheet'!W128)) -> 0 | U116: =IF('Trust - Frontsheet'!X128="",0,('Trust - Frontsheet'!X128)) -> 0 | V116: =IF(A116="","",(IF(ISBLANK('Trust - Frontsheet'!F9),"",'Trust - Frontsheet'!F9))) -> 
A117: =IF('Trust - Frontsheet'!D129=0,"",IF('Trust - Frontsheet'!D129="","",'Trust - Frontsheet'!D129)) ->  | B117: =IF(ISBLANK('Trust - Frontsheet'!E129),"",'Trust - Frontsheet'!E129) ->  | C117: =IF(ISBLANK('Trust - Frontsheet'!F129),"",'Trust - Frontsheet'!F129) ->  | D117: =IF(ISBLANK('Trust - Frontsheet'!G129),"",'Trust - Frontsheet'!G129) ->  | E117: =IF(ISBLANK('Trust - Frontsheet'!H129),"",'Trust - Frontsheet'!H129) ->  | F117: ='Trust - Frontsheet'!I129 -> 0 | G117: ='Trust - Frontsheet'!J129 -> 0 | H117: ='Trust - Frontsheet'!K129 -> 0 | I117: ='Trust - Frontsheet'!L129 -> 0 | J117: ='Trust - Frontsheet'!M129 -> 0 | K117: ='Trust - Frontsheet'!N129 -> 0 | L117: ='Trust - Frontsheet'!O129 -> 0 | M117: ='Trust - Frontsheet'!P129 -> 0 | N117: =IF('Trust - Frontsheet'!Q129="",0,('Trust - Frontsheet'!Q129)) -> 0 | O117: =IF('Trust - Frontsheet'!R129="",0,('Trust - Frontsheet'!R129)) -> 0 | P117: =IF('Trust - Frontsheet'!S129="",0,('Trust - Frontsheet'!S129)) -> 0 | Q117: =IF('Trust - Frontsheet'!T129="",0,('Trust - Frontsheet'!T129)) -> 0 | R117: ='Trust - Frontsheet'!U129 -> 0 | S117: =IF('Trust - Frontsheet'!V129="",0,('Trust - Frontsheet'!V129)) -> 0 | T117: =IF('Trust - Frontsheet'!W129="",0,('Trust - Frontsheet'!W129)) -> 0 | U117: =IF('Trust - Frontsheet'!X129="",0,('Trust - Frontsheet'!X129)) -> 0 | V117: =IF(A117="","",(IF(ISBLANK('Trust - Frontsheet'!F9),"",'Trust - Frontsheet'!F9))) -> 
A118: =IF('Trust - Frontsheet'!D130=0,"",IF('Trust - Frontsheet'!D130="","",'Trust - Frontsheet'!D130)) ->  | B118: =IF(ISBLANK('Trust - Frontsheet'!E130),"",'Trust - Frontsheet'!E130) ->  | C118: =IF(ISBLANK('Trust - Frontsheet'!F130),"",'Trust - Frontsheet'!F130) ->  | D118: =IF(ISBLANK('Trust - Frontsheet'!G130),"",'Trust - Frontsheet'!G130) ->  | E118: =IF(ISBLANK('Trust - Frontsheet'!H130),"",'Trust - Frontsheet'!H130) ->  | F118: ='Trust - Frontsheet'!I130 -> 0 | G118: ='Trust - Frontsheet'!J130 -> 0 | H118: ='Trust - Frontsheet'!K130 -> 0 | I118: ='Trust - Frontsheet'!L130 -> 0 | J118: ='Trust - Frontsheet'!M130 -> 0 | K118: ='Trust - Frontsheet'!N130 -> 0 | L118: ='Trust - Frontsheet'!O130 -> 0 | M118: ='Trust - Frontsheet'!P130 -> 0 | N118: =IF('Trust - Frontsheet'!Q130="",0,('Trust - Frontsheet'!Q130)) -> 0 | O118: =IF('Trust - Frontsheet'!R130="",0,('Trust - Frontsheet'!R130)) -> 0 | P118: =IF('Trust - Frontsheet'!S130="",0,('Trust - Frontsheet'!S130)) -> 0 | Q118: =IF('Trust - Frontsheet'!T130="",0,('Trust - Frontsheet'!T130)) -> 0 | R118: ='Trust - Frontsheet'!U130 -> 0 | S118: =IF('Trust - Frontsheet'!V130="",0,('Trust - Frontsheet'!V130)) -> 0 | T118: =IF('Trust - Frontsheet'!W130="",0,('Trust - Frontsheet'!W130)) -> 0 | U118: =IF('Trust - Frontsheet'!X130="",0,('Trust - Frontsheet'!X130)) -> 0 | V118: =IF(A118="","",(IF(ISBLANK('Trust - Frontsheet'!F9),"",'Trust - Frontsheet'!F9))) -> 
A119: =IF('Trust - Frontsheet'!D131=0,"",IF('Trust - Frontsheet'!D131="","",'Trust - Frontsheet'!D131)) ->  | B119: =IF(ISBLANK('Trust - Frontsheet'!E131),"",'Trust - Frontsheet'!E131) ->  | C119: =IF(ISBLANK('Trust - Frontsheet'!F131),"",'Trust - Frontsheet'!F131) ->  | D119: =IF(ISBLANK('Trust - Frontsheet'!G131),"",'Trust - Frontsheet'!G131) ->  | E119: =IF(ISBLANK('Trust - Frontsheet'!H131),"",'Trust - Frontsheet'!H131) ->  | F119: ='Trust - Frontsheet'!I131 -> 0 | G119: ='Trust - Frontsheet'!J131 -> 0 | H119: ='Trust - Frontsheet'!K131 -> 0 | I119: ='Trust - Frontsheet'!L131 -> 0 | J119: ='Trust - Frontsheet'!M131 -> 0 | K119: ='Trust - Frontsheet'!N131 -> 0 | L119: ='Trust - Frontsheet'!O131 -> 0 | M119: ='Trust - Frontsheet'!P131 -> 0 | N119: =IF('Trust - Frontsheet'!Q131="",0,('Trust - Frontsheet'!Q131)) -> 0 | O119: =IF('Trust - Frontsheet'!R131="",0,('Trust - Frontsheet'!R131)) -> 0 | P119: =IF('Trust - Frontsheet'!S131="",0,('Trust - Frontsheet'!S131)) -> 0 | Q119: =IF('Trust - Frontsheet'!T131="",0,('Trust - Frontsheet'!T131)) -> 0 | R119: ='Trust - Frontsheet'!U131 -> 0 | S119: =IF('Trust - Frontsheet'!V131="",0,('Trust - Frontsheet'!V131)) -> 0 | T119: =IF('Trust - Frontsheet'!W131="",0,('Trust - Frontsheet'!W131)) -> 0 | U119: =IF('Trust - Frontsheet'!X131="",0,('Trust - Frontsheet'!X131)) -> 0 | V119: =IF(A119="","",(IF(ISBLANK('Trust - Frontsheet'!F9),"",'Trust - Frontsheet'!F9))) -> 
A120: =IF('Trust - Frontsheet'!D132=0,"",IF('Trust - Frontsheet'!D132="","",'Trust - Frontsheet'!D132)) ->  | B120: =IF(ISBLANK('Trust - Frontsheet'!E132),"",'Trust - Frontsheet'!E132) ->  | C120: =IF(ISBLANK('Trust - Frontsheet'!F132),"",'Trust - Frontsheet'!F132) ->  | D120: =IF(ISBLANK('Trust - Frontsheet'!G132),"",'Trust - Frontsheet'!G132) ->  | E120: =IF(ISBLANK('Trust - Frontsheet'!H132),"",'Trust - Frontsheet'!H132) ->  | F120: ='Trust - Frontsheet'!I132 -> 0 | G120: ='Trust - Frontsheet'!J132 -> 0 | H120: ='Trust - Frontsheet'!K132 -> 0 | I120: ='Trust - Frontsheet'!L132 -> 0 | J120: ='Trust - Frontsheet'!M132 -> 0 | K120: ='Trust - Frontsheet'!N132 -> 0 | L120: ='Trust - Frontsheet'!O132 -> 0 | M120: ='Trust - Frontsheet'!P132 -> 0 | N120: =IF('Trust - Frontsheet'!Q132="",0,('Trust - Frontsheet'!Q132)) -> 0 | O120: =IF('Trust - Frontsheet'!R132="",0,('Trust - Frontsheet'!R132)) -> 0 | P120: =IF('Trust - Frontsheet'!S132="",0,('Trust - Frontsheet'!S132)) -> 0 | Q120: =IF('Trust - Frontsheet'!T132="",0,('Trust - Frontsheet'!T132)) -> 0 | R120: ='Trust - Frontsheet'!U132 -> 0 | S120: =IF('Trust - Frontsheet'!V132="",0,('Trust - Frontsheet'!V132)) -> 0 | T120: =IF('Trust - Frontsheet'!W132="",0,('Trust - Frontsheet'!W132)) -> 0 | U120: =IF('Trust - Frontsheet'!X132="",0,('Trust - Frontsheet'!X132)) -> 0 | V120: =IF(A120="","",(IF(ISBLANK('Trust - Frontsheet'!F9),"",'Trust - Frontsheet'!F9))) -> 
A121: =IF('Trust - Frontsheet'!D133=0,"",IF('Trust - Frontsheet'!D133="","",'Trust - Frontsheet'!D133)) ->  | B121: =IF(ISBLANK('Trust - Frontsheet'!E133),"",'Trust - Frontsheet'!E133) ->  | C121: =IF(ISBLANK('Trust - Frontsheet'!F133),"",'Trust - Frontsheet'!F133) ->  | D121: =IF(ISBLANK('Trust - Frontsheet'!G133),"",'Trust - Frontsheet'!G133) ->  | E121: =IF(ISBLANK('Trust - Frontsheet'!H133),"",'Trust - Frontsheet'!H133) ->  | F121: ='Trust - Frontsheet'!I133 -> 0 | G121: ='Trust - Frontsheet'!J133 -> 0 | H121: ='Trust - Frontsheet'!K133 -> 0 | I121: ='Trust - Frontsheet'!L133 -> 0 | J121: ='Trust - Frontsheet'!M133 -> 0 | K121: ='Trust - Frontsheet'!N133 -> 0 | L121: ='Trust - Frontsheet'!O133 -> 0 | M121: ='Trust - Frontsheet'!P133 -> 0 | N121: =IF('Trust - Frontsheet'!Q133="",0,('Trust - Frontsheet'!Q133)) -> 0 | O121: =IF('Trust - Frontsheet'!R133="",0,('Trust - Frontsheet'!R133)) -> 0 | P121: =IF('Trust - Frontsheet'!S133="",0,('Trust - Frontsheet'!S133)) -> 0 | Q121: =IF('Trust - Frontsheet'!T133="",0,('Trust - Frontsheet'!T133)) -> 0 | R121: ='Trust - Frontsheet'!U133 -> 0 | S121: =IF('Trust - Frontsheet'!V133="",0,('Trust - Frontsheet'!V133)) -> 0 | T121: =IF('Trust - Frontsheet'!W133="",0,('Trust - Frontsheet'!W133)) -> 0 | U121: =IF('Trust - Frontsheet'!X133="",0,('Trust - Frontsheet'!X133)) -> 0 | V121: =IF(A121="","",(IF(ISBLANK('Trust - Frontsheet'!F9),"",'Trust - Frontsheet'!F9))) -> 
A122: =IF('Trust - Frontsheet'!D134=0,"",IF('Trust - Frontsheet'!D134="","",'Trust - Frontsheet'!D134)) ->  | B122: =IF(ISBLANK('Trust - Frontsheet'!E134),"",'Trust - Frontsheet'!E134) ->  | C122: =IF(ISBLANK('Trust - Frontsheet'!F134),"",'Trust - Frontsheet'!F134) ->  | D122: =IF(ISBLANK('Trust - Frontsheet'!G134),"",'Trust - Frontsheet'!G134) ->  | E122: =IF(ISBLANK('Trust - Frontsheet'!H134),"",'Trust - Frontsheet'!H134) ->  | F122: ='Trust - Frontsheet'!I134 -> 0 | G122: ='Trust - Frontsheet'!J134 -> 0 | H122: ='Trust - Frontsheet'!K134 -> 0 | I122: ='Trust - Frontsheet'!L134 -> 0 | J122: ='Trust - Frontsheet'!M134 -> 0 | K122: ='Trust - Frontsheet'!N134 -> 0 | L122: ='Trust - Frontsheet'!O134 -> 0 | M122: ='Trust - Frontsheet'!P134 -> 0 | N122: =IF('Trust - Frontsheet'!Q134="",0,('Trust - Frontsheet'!Q134)) -> 0 | O122: =IF('Trust - Frontsheet'!R134="",0,('Trust - Frontsheet'!R134)) -> 0 | P122: =IF('Trust - Frontsheet'!S134="",0,('Trust - Frontsheet'!S134)) -> 0 | Q122: =IF('Trust - Frontsheet'!T134="",0,('Trust - Frontsheet'!T134)) -> 0 | R122: ='Trust - Frontsheet'!U134 -> 0 | S122: =IF('Trust - Frontsheet'!V134="",0,('Trust - Frontsheet'!V134)) -> 0 | T122: =IF('Trust - Frontsheet'!W134="",0,('Trust - Frontsheet'!W134)) -> 0 | U122: =IF('Trust - Frontsheet'!X134="",0,('Trust - Frontsheet'!X134)) -> 0 | V122: =IF(A122="","",(IF(ISBLANK('Trust - Frontsheet'!F9),"",'Trust - Frontsheet'!F9))) -> 
A123: =IF('Trust - Frontsheet'!D135=0,"",IF('Trust - Frontsheet'!D135="","",'Trust - Frontsheet'!D135)) ->  | B123: =IF(ISBLANK('Trust - Frontsheet'!E135),"",'Trust - Frontsheet'!E135) ->  | C123: =IF(ISBLANK('Trust - Frontsheet'!F135),"",'Trust - Frontsheet'!F135) ->  | D123: =IF(ISBLANK('Trust - Frontsheet'!G135),"",'Trust - Frontsheet'!G135) ->  | E123: =IF(ISBLANK('Trust - Frontsheet'!H135),"",'Trust - Frontsheet'!H135) ->  | F123: ='Trust - Frontsheet'!I135 -> 0 | G123: ='Trust - Frontsheet'!J135 -> 0 | H123: ='Trust - Frontsheet'!K135 -> 0 | I123: ='Trust - Frontsheet'!L135 -> 0 | J123: ='Trust - Frontsheet'!M135 -> 0 | K123: ='Trust - Frontsheet'!N135 -> 0 | L123: ='Trust - Frontsheet'!O135 -> 0 | M123: ='Trust - Frontsheet'!P135 -> 0 | N123: =IF('Trust - Frontsheet'!Q135="",0,('Trust - Frontsheet'!Q135)) -> 0 | O123: =IF('Trust - Frontsheet'!R135="",0,('Trust - Frontsheet'!R135)) -> 0 | P123: =IF('Trust - Frontsheet'!S135="",0,('Trust - Frontsheet'!S135)) -> 0 | Q123: =IF('Trust - Frontsheet'!T135="",0,('Trust - Frontsheet'!T135)) -> 0 | R123: ='Trust - Frontsheet'!U135 -> 0 | S123: =IF('Trust - Frontsheet'!V135="",0,('Trust - Frontsheet'!V135)) -> 0 | T123: =IF('Trust - Frontsheet'!W135="",0,('Trust - Frontsheet'!W135)) -> 0 | U123: =IF('Trust - Frontsheet'!X135="",0,('Trust - Frontsheet'!X135)) -> 0 | V123: =IF(A123="","",(IF(ISBLANK('Trust - Frontsheet'!F9),"",'Trust - Frontsheet'!F9))) -> 
A124: =IF('Trust - Frontsheet'!D136=0,"",IF('Trust - Frontsheet'!D136="","",'Trust - Frontsheet'!D136)) ->  | B124: =IF(ISBLANK('Trust - Frontsheet'!E136),"",'Trust - Frontsheet'!E136) ->  | C124: =IF(ISBLANK('Trust - Frontsheet'!F136),"",'Trust - Frontsheet'!F136) ->  | D124: =IF(ISBLANK('Trust - Frontsheet'!G136),"",'Trust - Frontsheet'!G136) ->  | E124: =IF(ISBLANK('Trust - Frontsheet'!H136),"",'Trust - Frontsheet'!H136) ->  | F124: ='Trust - Frontsheet'!I136 -> 0 | G124: ='Trust - Frontsheet'!J136 -> 0 | H124: ='Trust - Frontsheet'!K136 -> 0 | I124: ='Trust - Frontsheet'!L136 -> 0 | J124: ='Trust - Frontsheet'!M136 -> 0 | K124: ='Trust - Frontsheet'!N136 -> 0 | L124: ='Trust - Frontsheet'!O136 -> 0 | M124: ='Trust - Frontsheet'!P136 -> 0 | N124: =IF('Trust - Frontsheet'!Q136="",0,('Trust - Frontsheet'!Q136)) -> 0 | O124: =IF('Trust - Frontsheet'!R136="",0,('Trust - Frontsheet'!R136)) -> 0 | P124: =IF('Trust - Frontsheet'!S136="",0,('Trust - Frontsheet'!S136)) -> 0 | Q124: =IF('Trust - Frontsheet'!T136="",0,('Trust - Frontsheet'!T136)) -> 0 | R124: ='Trust - Frontsheet'!U136 -> 0 | S124: =IF('Trust - Frontsheet'!V136="",0,('Trust - Frontsheet'!V136)) -> 0 | T124: =IF('Trust - Frontsheet'!W136="",0,('Trust - Frontsheet'!W136)) -> 0 | U124: =IF('Trust - Frontsheet'!X136="",0,('Trust - Frontsheet'!X136)) -> 0 | V124: =IF(A124="","",(IF(ISBLANK('Trust - Frontsheet'!F9),"",'Trust - Frontsheet'!F9))) -> 
A125: =IF('Trust - Frontsheet'!D137=0,"",IF('Trust - Frontsheet'!D137="","",'Trust - Frontsheet'!D137)) ->  | B125: =IF(ISBLANK('Trust - Frontsheet'!E137),"",'Trust - Frontsheet'!E137) ->  | C125: =IF(ISBLANK('Trust - Frontsheet'!F137),"",'Trust - Frontsheet'!F137) ->  | D125: =IF(ISBLANK('Trust - Frontsheet'!G137),"",'Trust - Frontsheet'!G137) ->  | E125: =IF(ISBLANK('Trust - Frontsheet'!H137),"",'Trust - Frontsheet'!H137) ->  | F125: ='Trust - Frontsheet'!I137 -> 0 | G125: ='Trust - Frontsheet'!J137 -> 0 | H125: ='Trust - Frontsheet'!K137 -> 0 | I125: ='Trust - Frontsheet'!L137 -> 0 | J125: ='Trust - Frontsheet'!M137 -> 0 | K125: ='Trust - Frontsheet'!N137 -> 0 | L125: ='Trust - Frontsheet'!O137 -> 0 | M125: ='Trust - Frontsheet'!P137 -> 0 | N125: =IF('Trust - Frontsheet'!Q137="",0,('Trust - Frontsheet'!Q137)) -> 0 | O125: =IF('Trust - Frontsheet'!R137="",0,('Trust - Frontsheet'!R137)) -> 0 | P125: =IF('Trust - Frontsheet'!S137="",0,('Trust - Frontsheet'!S137)) -> 0 | Q125: =IF('Trust - Frontsheet'!T137="",0,('Trust - Frontsheet'!T137)) -> 0 | R125: ='Trust - Frontsheet'!U137 -> 0 | S125: =IF('Trust - Frontsheet'!V137="",0,('Trust - Frontsheet'!V137)) -> 0 | T125: =IF('Trust - Frontsheet'!W137="",0,('Trust - Frontsheet'!W137)) -> 0 | U125: =IF('Trust - Frontsheet'!X137="",0,('Trust - Frontsheet'!X137)) -> 0 | V125: =IF(A125="","",(IF(ISBLANK('Trust - Frontsheet'!F9),"",'Trust - Frontsheet'!F9))) -> 
A126: =IF('Trust - Frontsheet'!D138=0,"",IF('Trust - Frontsheet'!D138="","",'Trust - Frontsheet'!D138)) ->  | B126: =IF(ISBLANK('Trust - Frontsheet'!E138),"",'Trust - Frontsheet'!E138) ->  | C126: =IF(ISBLANK('Trust - Frontsheet'!F138),"",'Trust - Frontsheet'!F138) ->  | D126: =IF(ISBLANK('Trust - Frontsheet'!G138),"",'Trust - Frontsheet'!G138) ->  | E126: =IF(ISBLANK('Trust - Frontsheet'!H138),"",'Trust - Frontsheet'!H138) ->  | F126: ='Trust - Frontsheet'!I138 -> 0 | G126: ='Trust - Frontsheet'!J138 -> 0 | H126: ='Trust - Frontsheet'!K138 -> 0 | I126: ='Trust - Frontsheet'!L138 -> 0 | J126: ='Trust - Frontsheet'!M138 -> 0 | K126: ='Trust - Frontsheet'!N138 -> 0 | L126: ='Trust - Frontsheet'!O138 -> 0 | M126: ='Trust - Frontsheet'!P138 -> 0 | N126: =IF('Trust - Frontsheet'!Q138="",0,('Trust - Frontsheet'!Q138)) -> 0 | O126: =IF('Trust - Frontsheet'!R138="",0,('Trust - Frontsheet'!R138)) -> 0 | P126: =IF('Trust - Frontsheet'!S138="",0,('Trust - Frontsheet'!S138)) -> 0 | Q126: =IF('Trust - Frontsheet'!T138="",0,('Trust - Frontsheet'!T138)) -> 0 | R126: ='Trust - Frontsheet'!U138 -> 0 | S126: =IF('Trust - Frontsheet'!V138="",0,('Trust - Frontsheet'!V138)) -> 0 | T126: =IF('Trust - Frontsheet'!W138="",0,('Trust - Frontsheet'!W138)) -> 0 | U126: =IF('Trust - Frontsheet'!X138="",0,('Trust - Frontsheet'!X138)) -> 0 | V126: =IF(A126="","",(IF(ISBLANK('Trust - Frontsheet'!F9),"",'Trust - Frontsheet'!F9))) -> 
A127: =IF('Trust - Frontsheet'!D139=0,"",IF('Trust - Frontsheet'!D139="","",'Trust - Frontsheet'!D139)) ->  | B127: =IF(ISBLANK('Trust - Frontsheet'!E139),"",'Trust - Frontsheet'!E139) ->  | C127: =IF(ISBLANK('Trust - Frontsheet'!F139),"",'Trust - Frontsheet'!F139) ->  | D127: =IF(ISBLANK('Trust - Frontsheet'!G139),"",'Trust - Frontsheet'!G139) ->  | E127: =IF(ISBLANK('Trust - Frontsheet'!H139),"",'Trust - Frontsheet'!H139) ->  | F127: ='Trust - Frontsheet'!I139 -> 0 | G127: ='Trust - Frontsheet'!J139 -> 0 | H127: ='Trust - Frontsheet'!K139 -> 0 | I127: ='Trust - Frontsheet'!L139 -> 0 | J127: ='Trust - Frontsheet'!M139 -> 0 | K127: ='Trust - Frontsheet'!N139 -> 0 | L127: ='Trust - Frontsheet'!O139 -> 0 | M127: ='Trust - Frontsheet'!P139 -> 0 | N127: =IF('Trust - Frontsheet'!Q139="",0,('Trust - Frontsheet'!Q139)) -> 0 | O127: =IF('Trust - Frontsheet'!R139="",0,('Trust - Frontsheet'!R139)) -> 0 | P127: =IF('Trust - Frontsheet'!S139="",0,('Trust - Frontsheet'!S139)) -> 0 | Q127: =IF('Trust - Frontsheet'!T139="",0,('Trust - Frontsheet'!T139)) -> 0 | R127: ='Trust - Frontsheet'!U139 -> 0 | S127: =IF('Trust - Frontsheet'!V139="",0,('Trust - Frontsheet'!V139)) -> 0 | T127: =IF('Trust - Frontsheet'!W139="",0,('Trust - Frontsheet'!W139)) -> 0 | U127: =IF('Trust - Frontsheet'!X139="",0,('Trust - Frontsheet'!X139)) -> 0 | V127: =IF(A127="","",(IF(ISBLANK('Trust - Frontsheet'!F9),"",'Trust - Frontsheet'!F9))) -> 
A128: =IF('Trust - Frontsheet'!D140=0,"",IF('Trust - Frontsheet'!D140="","",'Trust - Frontsheet'!D140)) ->  | B128: =IF(ISBLANK('Trust - Frontsheet'!E140),"",'Trust - Frontsheet'!E140) ->  | C128: =IF(ISBLANK('Trust - Frontsheet'!F140),"",'Trust - Frontsheet'!F140) ->  | D128: =IF(ISBLANK('Trust - Frontsheet'!G140),"",'Trust - Frontsheet'!G140) ->  | E128: =IF(ISBLANK('Trust - Frontsheet'!H140),"",'Trust - Frontsheet'!H140) ->  | F128: ='Trust - Frontsheet'!I140 -> 0 | G128: ='Trust - Frontsheet'!J140 -> 0 | H128: ='Trust - Frontsheet'!K140 -> 0 | I128: ='Trust - Frontsheet'!L140 -> 0 | J128: ='Trust - Frontsheet'!M140 -> 0 | K128: ='Trust - Frontsheet'!N140 -> 0 | L128: ='Trust - Frontsheet'!O140 -> 0 | M128: ='Trust - Frontsheet'!P140 -> 0 | N128: =IF('Trust - Frontsheet'!Q140="",0,('Trust - Frontsheet'!Q140)) -> 0 | O128: =IF('Trust - Frontsheet'!R140="",0,('Trust - Frontsheet'!R140)) -> 0 | P128: =IF('Trust - Frontsheet'!S140="",0,('Trust - Frontsheet'!S140)) -> 0 | Q128: =IF('Trust - Frontsheet'!T140="",0,('Trust - Frontsheet'!T140)) -> 0 | R128: ='Trust - Frontsheet'!U140 -> 0 | S128: =IF('Trust - Frontsheet'!V140="",0,('Trust - Frontsheet'!V140)) -> 0 | T128: =IF('Trust - Frontsheet'!W140="",0,('Trust - Frontsheet'!W140)) -> 0 | U128: =IF('Trust - Frontsheet'!X140="",0,('Trust - Frontsheet'!X140)) -> 0 | V128: =IF(A128="","",(IF(ISBLANK('Trust - Frontsheet'!F9),"",'Trust - Frontsheet'!F9))) -> 
A129: =IF('Trust - Frontsheet'!D141=0,"",IF('Trust - Frontsheet'!D141="","",'Trust - Frontsheet'!D141)) ->  | B129: =IF(ISBLANK('Trust - Frontsheet'!E141),"",'Trust - Frontsheet'!E141) ->  | C129: =IF(ISBLANK('Trust - Frontsheet'!F141),"",'Trust - Frontsheet'!F141) ->  | D129: =IF(ISBLANK('Trust - Frontsheet'!G141),"",'Trust - Frontsheet'!G141) ->  | E129: =IF(ISBLANK('Trust - Frontsheet'!H141),"",'Trust - Frontsheet'!H141) ->  | F129: ='Trust - Frontsheet'!I141 -> 0 | G129: ='Trust - Frontsheet'!J141 -> 0 | H129: ='Trust - Frontsheet'!K141 -> 0 | I129: ='Trust - Frontsheet'!L141 -> 0 | J129: ='Trust - Frontsheet'!M141 -> 0 | K129: ='Trust - Frontsheet'!N141 -> 0 | L129: ='Trust - Frontsheet'!O141 -> 0 | M129: ='Trust - Frontsheet'!P141 -> 0 | N129: =IF('Trust - Frontsheet'!Q141="",0,('Trust - Frontsheet'!Q141)) -> 0 | O129: =IF('Trust - Frontsheet'!R141="",0,('Trust - Frontsheet'!R141)) -> 0 | P129: =IF('Trust - Frontsheet'!S141="",0,('Trust - Frontsheet'!S141)) -> 0 | Q129: =IF('Trust - Frontsheet'!T141="",0,('Trust - Frontsheet'!T141)) -> 0 | R129: ='Trust - Frontsheet'!U141 -> 0 | S129: =IF('Trust - Frontsheet'!V141="",0,('Trust - Frontsheet'!V141)) -> 0 | T129: =IF('Trust - Frontsheet'!W141="",0,('Trust - Frontsheet'!W141)) -> 0 | U129: =IF('Trust - Frontsheet'!X141="",0,('Trust - Frontsheet'!X141)) -> 0 | V129: =IF(A129="","",(IF(ISBLANK('Trust - Frontsheet'!F9),"",'Trust - Frontsheet'!F9))) -> 
A130: =IF('Trust - Frontsheet'!D142=0,"",IF('Trust - Frontsheet'!D142="","",'Trust - Frontsheet'!D142)) ->  | B130: =IF(ISBLANK('Trust - Frontsheet'!E142),"",'Trust - Frontsheet'!E142) ->  | C130: =IF(ISBLANK('Trust - Frontsheet'!F142),"",'Trust - Frontsheet'!F142) ->  | D130: =IF(ISBLANK('Trust - Frontsheet'!G142),"",'Trust - Frontsheet'!G142) ->  | E130: =IF(ISBLANK('Trust - Frontsheet'!H142),"",'Trust - Frontsheet'!H142) ->  | F130: ='Trust - Frontsheet'!I142 -> 0 | G130: ='Trust - Frontsheet'!J142 -> 0 | H130: ='Trust - Frontsheet'!K142 -> 0 | I130: ='Trust - Frontsheet'!L142 -> 0 | J130: ='Trust - Frontsheet'!M142 -> 0 | K130: ='Trust - Frontsheet'!N142 -> 0 | L130: ='Trust - Frontsheet'!O142 -> 0 | M130: ='Trust - Frontsheet'!P142 -> 0 | N130: =IF('Trust - Frontsheet'!Q142="",0,('Trust - Frontsheet'!Q142)) -> 0 | O130: =IF('Trust - Frontsheet'!R142="",0,('Trust - Frontsheet'!R142)) -> 0 | P130: =IF('Trust - Frontsheet'!S142="",0,('Trust - Frontsheet'!S142)) -> 0 | Q130: =IF('Trust - Frontsheet'!T142="",0,('Trust - Frontsheet'!T142)) -> 0 | R130: ='Trust - Frontsheet'!U142 -> 0 | S130: =IF('Trust - Frontsheet'!V142="",0,('Trust - Frontsheet'!V142)) -> 0 | T130: =IF('Trust - Frontsheet'!W142="",0,('Trust - Frontsheet'!W142)) -> 0 | U130: =IF('Trust - Frontsheet'!X142="",0,('Trust - Frontsheet'!X142)) -> 0 | V130: =IF(A130="","",(IF(ISBLANK('Trust - Frontsheet'!F9),"",'Trust - Frontsheet'!F9))) -> 
A131: =IF('Trust - Frontsheet'!D143=0,"",IF('Trust - Frontsheet'!D143="","",'Trust - Frontsheet'!D143)) ->  | B131: =IF(ISBLANK('Trust - Frontsheet'!E143),"",'Trust - Frontsheet'!E143) ->  | C131: =IF(ISBLANK('Trust - Frontsheet'!F143),"",'Trust - Frontsheet'!F143) ->  | D131: =IF(ISBLANK('Trust - Frontsheet'!G143),"",'Trust - Frontsheet'!G143) ->  | E131: =IF(ISBLANK('Trust - Frontsheet'!H143),"",'Trust - Frontsheet'!H143) ->  | F131: ='Trust - Frontsheet'!I143 -> 0 | G131: ='Trust - Frontsheet'!J143 -> 0 | H131: ='Trust - Frontsheet'!K143 -> 0 | I131: ='Trust - Frontsheet'!L143 -> 0 | J131: ='Trust - Frontsheet'!M143 -> 0 | K131: ='Trust - Frontsheet'!N143 -> 0 | L131: ='Trust - Frontsheet'!O143 -> 0 | M131: ='Trust - Frontsheet'!P143 -> 0 | N131: =IF('Trust - Frontsheet'!Q143="",0,('Trust - Frontsheet'!Q143)) -> 0 | O131: =IF('Trust - Frontsheet'!R143="",0,('Trust - Frontsheet'!R143)) -> 0 | P131: =IF('Trust - Frontsheet'!S143="",0,('Trust - Frontsheet'!S143)) -> 0 | Q131: =IF('Trust - Frontsheet'!T143="",0,('Trust - Frontsheet'!T143)) -> 0 | R131: ='Trust - Frontsheet'!U143 -> 0 | S131: =IF('Trust - Frontsheet'!V143="",0,('Trust - Frontsheet'!V143)) -> 0 | T131: =IF('Trust - Frontsheet'!W143="",0,('Trust - Frontsheet'!W143)) -> 0 | U131: =IF('Trust - Frontsheet'!X143="",0,('Trust - Frontsheet'!X143)) -> 0 | V131: =IF(A131="","",(IF(ISBLANK('Trust - Frontsheet'!F9),"",'Trust - Frontsheet'!F9))) -> 
A132: =IF('Trust - Frontsheet'!D144=0,"",IF('Trust - Frontsheet'!D144="","",'Trust - Frontsheet'!D144)) ->  | B132: =IF(ISBLANK('Trust - Frontsheet'!E144),"",'Trust - Frontsheet'!E144) ->  | C132: =IF(ISBLANK('Trust - Frontsheet'!F144),"",'Trust - Frontsheet'!F144) ->  | D132: =IF(ISBLANK('Trust - Frontsheet'!G144),"",'Trust - Frontsheet'!G144) ->  | E132: =IF(ISBLANK('Trust - Frontsheet'!H144),"",'Trust - Frontsheet'!H144) ->  | F132: ='Trust - Frontsheet'!I144 -> 0 | G132: ='Trust - Frontsheet'!J144 -> 0 | H132: ='Trust - Frontsheet'!K144 -> 0 | I132: ='Trust - Frontsheet'!L144 -> 0 | J132: ='Trust - Frontsheet'!M144 -> 0 | K132: ='Trust - Frontsheet'!N144 -> 0 | L132: ='Trust - Frontsheet'!O144 -> 0 | M132: ='Trust - Frontsheet'!P144 -> 0 | N132: =IF('Trust - Frontsheet'!Q144="",0,('Trust - Frontsheet'!Q144)) -> 0 | O132: =IF('Trust - Frontsheet'!R144="",0,('Trust - Frontsheet'!R144)) -> 0 | P132: =IF('Trust - Frontsheet'!S144="",0,('Trust - Frontsheet'!S144)) -> 0 | Q132: =IF('Trust - Frontsheet'!T144="",0,('Trust - Frontsheet'!T144)) -> 0 | R132: ='Trust - Frontsheet'!U144 -> 0 | S132: =IF('Trust - Frontsheet'!V144="",0,('Trust - Frontsheet'!V144)) -> 0 | T132: =IF('Trust - Frontsheet'!W144="",0,('Trust - Frontsheet'!W144)) -> 0 | U132: =IF('Trust - Frontsheet'!X144="",0,('Trust - Frontsheet'!X144)) -> 0 | V132: =IF(A132="","",(IF(ISBLANK('Trust - Frontsheet'!F9),"",'Trust - Frontsheet'!F9))) -> 
A133: =IF('Trust - Frontsheet'!D145=0,"",IF('Trust - Frontsheet'!D145="","",'Trust - Frontsheet'!D145)) ->  | B133: =IF(ISBLANK('Trust - Frontsheet'!E145),"",'Trust - Frontsheet'!E145) ->  | C133: =IF(ISBLANK('Trust - Frontsheet'!F145),"",'Trust - Frontsheet'!F145) ->  | D133: =IF(ISBLANK('Trust - Frontsheet'!G145),"",'Trust - Frontsheet'!G145) ->  | E133: =IF(ISBLANK('Trust - Frontsheet'!H145),"",'Trust - Frontsheet'!H145) ->  | F133: ='Trust - Frontsheet'!I145 -> 0 | G133: ='Trust - Frontsheet'!J145 -> 0 | H133: ='Trust - Frontsheet'!K145 -> 0 | I133: ='Trust - Frontsheet'!L145 -> 0 | J133: ='Trust - Frontsheet'!M145 -> 0 | K133: ='Trust - Frontsheet'!N145 -> 0 | L133: ='Trust - Frontsheet'!O145 -> 0 | M133: ='Trust - Frontsheet'!P145 -> 0 | N133: =IF('Trust - Frontsheet'!Q145="",0,('Trust - Frontsheet'!Q145)) -> 0 | O133: =IF('Trust - Frontsheet'!R145="",0,('Trust - Frontsheet'!R145)) -> 0 | P133: =IF('Trust - Frontsheet'!S145="",0,('Trust - Frontsheet'!S145)) -> 0 | Q133: =IF('Trust - Frontsheet'!T145="",0,('Trust - Frontsheet'!T145)) -> 0 | R133: ='Trust - Frontsheet'!U145 -> 0 | S133: =IF('Trust - Frontsheet'!V145="",0,('Trust - Frontsheet'!V145)) -> 0 | T133: =IF('Trust - Frontsheet'!W145="",0,('Trust - Frontsheet'!W145)) -> 0 | U133: =IF('Trust - Frontsheet'!X145="",0,('Trust - Frontsheet'!X145)) -> 0 | V133: =IF(A133="","",(IF(ISBLANK('Trust - Frontsheet'!F9),"",'Trust - Frontsheet'!F9))) -> 
A134: =IF('Trust - Frontsheet'!D146=0,"",IF('Trust - Frontsheet'!D146="","",'Trust - Frontsheet'!D146)) ->  | B134: =IF(ISBLANK('Trust - Frontsheet'!E146),"",'Trust - Frontsheet'!E146) ->  | C134: =IF(ISBLANK('Trust - Frontsheet'!F146),"",'Trust - Frontsheet'!F146) ->  | D134: =IF(ISBLANK('Trust - Frontsheet'!G146),"",'Trust - Frontsheet'!G146) ->  | E134: =IF(ISBLANK('Trust - Frontsheet'!H146),"",'Trust - Frontsheet'!H146) ->  | F134: ='Trust - Frontsheet'!I146 -> 0 | G134: ='Trust - Frontsheet'!J146 -> 0 | H134: ='Trust - Frontsheet'!K146 -> 0 | I134: ='Trust - Frontsheet'!L146 -> 0 | J134: ='Trust - Frontsheet'!M146 -> 0 | K134: ='Trust - Frontsheet'!N146 -> 0 | L134: ='Trust - Frontsheet'!O146 -> 0 | M134: ='Trust - Frontsheet'!P146 -> 0 | N134: =IF('Trust - Frontsheet'!Q146="",0,('Trust - Frontsheet'!Q146)) -> 0 | O134: =IF('Trust - Frontsheet'!R146="",0,('Trust - Frontsheet'!R146)) -> 0 | P134: =IF('Trust - Frontsheet'!S146="",0,('Trust - Frontsheet'!S146)) -> 0 | Q134: =IF('Trust - Frontsheet'!T146="",0,('Trust - Frontsheet'!T146)) -> 0 | R134: ='Trust - Frontsheet'!U146 -> 0 | S134: =IF('Trust - Frontsheet'!V146="",0,('Trust - Frontsheet'!V146)) -> 0 | T134: =IF('Trust - Frontsheet'!W146="",0,('Trust - Frontsheet'!W146)) -> 0 | U134: =IF('Trust - Frontsheet'!X146="",0,('Trust - Frontsheet'!X146)) -> 0 | V134: =IF(A134="","",(IF(ISBLANK('Trust - Frontsheet'!F9),"",'Trust - Frontsheet'!F9))) -> 
A135: =IF('Trust - Frontsheet'!D147=0,"",IF('Trust - Frontsheet'!D147="","",'Trust - Frontsheet'!D147)) ->  | B135: =IF(ISBLANK('Trust - Frontsheet'!E147),"",'Trust - Frontsheet'!E147) ->  | C135: =IF(ISBLANK('Trust - Frontsheet'!F147),"",'Trust - Frontsheet'!F147) ->  | D135: =IF(ISBLANK('Trust - Frontsheet'!G147),"",'Trust - Frontsheet'!G147) ->  | E135: =IF(ISBLANK('Trust - Frontsheet'!H147),"",'Trust - Frontsheet'!H147) ->  | F135: ='Trust - Frontsheet'!I147 -> 0 | G135: ='Trust - Frontsheet'!J147 -> 0 | H135: ='Trust - Frontsheet'!K147 -> 0 | I135: ='Trust - Frontsheet'!L147 -> 0 | J135: ='Trust - Frontsheet'!M147 -> 0 | K135: ='Trust - Frontsheet'!N147 -> 0 | L135: ='Trust - Frontsheet'!O147 -> 0 | M135: ='Trust - Frontsheet'!P147 -> 0 | N135: =IF('Trust - Frontsheet'!Q147="",0,('Trust - Frontsheet'!Q147)) -> 0 | O135: =IF('Trust - Frontsheet'!R147="",0,('Trust - Frontsheet'!R147)) -> 0 | P135: =IF('Trust - Frontsheet'!S147="",0,('Trust - Frontsheet'!S147)) -> 0 | Q135: =IF('Trust - Frontsheet'!T147="",0,('Trust - Frontsheet'!T147)) -> 0 | R135: ='Trust - Frontsheet'!U147 -> 0 | S135: =IF('Trust - Frontsheet'!V147="",0,('Trust - Frontsheet'!V147)) -> 0 | T135: =IF('Trust - Frontsheet'!W147="",0,('Trust - Frontsheet'!W147)) -> 0 | U135: =IF('Trust - Frontsheet'!X147="",0,('Trust - Frontsheet'!X147)) -> 0 | V135: =IF(A135="","",(IF(ISBLANK('Trust - Frontsheet'!F9),"",'Trust - Frontsheet'!F9))) -> 
A136: =IF('Trust - Frontsheet'!D148=0,"",IF('Trust - Frontsheet'!D148="","",'Trust - Frontsheet'!D148)) ->  | B136: =IF(ISBLANK('Trust - Frontsheet'!E148),"",'Trust - Frontsheet'!E148) ->  | C136: =IF(ISBLANK('Trust - Frontsheet'!F148),"",'Trust - Frontsheet'!F148) ->  | D136: =IF(ISBLANK('Trust - Frontsheet'!G148),"",'Trust - Frontsheet'!G148) ->  | E136: =IF(ISBLANK('Trust - Frontsheet'!H148),"",'Trust - Frontsheet'!H148) ->  | F136: ='Trust - Frontsheet'!I148 -> 0 | G136: ='Trust - Frontsheet'!J148 -> 0 | H136: ='Trust - Frontsheet'!K148 -> 0 | I136: ='Trust - Frontsheet'!L148 -> 0 | J136: ='Trust - Frontsheet'!M148 -> 0 | K136: ='Trust - Frontsheet'!N148 -> 0 | L136: ='Trust - Frontsheet'!O148 -> 0 | M136: ='Trust - Frontsheet'!P148 -> 0 | N136: =IF('Trust - Frontsheet'!Q148="",0,('Trust - Frontsheet'!Q148)) -> 0 | O136: =IF('Trust - Frontsheet'!R148="",0,('Trust - Frontsheet'!R148)) -> 0 | P136: =IF('Trust - Frontsheet'!S148="",0,('Trust - Frontsheet'!S148)) -> 0 | Q136: =IF('Trust - Frontsheet'!T148="",0,('Trust - Frontsheet'!T148)) -> 0 | R136: ='Trust - Frontsheet'!U148 -> 0 | S136: =IF('Trust - Frontsheet'!V148="",0,('Trust - Frontsheet'!V148)) -> 0 | T136: =IF('Trust - Frontsheet'!W148="",0,('Trust - Frontsheet'!W148)) -> 0 | U136: =IF('Trust - Frontsheet'!X148="",0,('Trust - Frontsheet'!X148)) -> 0 | V136: =IF(A136="","",(IF(ISBLANK('Trust - Frontsheet'!F9),"",'Trust - Frontsheet'!F9))) -> 
A137: =IF('Trust - Frontsheet'!D149=0,"",IF('Trust - Frontsheet'!D149="","",'Trust - Frontsheet'!D149)) ->  | B137: =IF(ISBLANK('Trust - Frontsheet'!E149),"",'Trust - Frontsheet'!E149) ->  | C137: =IF(ISBLANK('Trust - Frontsheet'!F149),"",'Trust - Frontsheet'!F149) ->  | D137: =IF(ISBLANK('Trust - Frontsheet'!G149),"",'Trust - Frontsheet'!G149) ->  | E137: =IF(ISBLANK('Trust - Frontsheet'!H149),"",'Trust - Frontsheet'!H149) ->  | F137: ='Trust - Frontsheet'!I149 -> 0 | G137: ='Trust - Frontsheet'!J149 -> 0 | H137: ='Trust - Frontsheet'!K149 -> 0 | I137: ='Trust - Frontsheet'!L149 -> 0 | J137: ='Trust - Frontsheet'!M149 -> 0 | K137: ='Trust - Frontsheet'!N149 -> 0 | L137: ='Trust - Frontsheet'!O149 -> 0 | M137: ='Trust - Frontsheet'!P149 -> 0 | N137: =IF('Trust - Frontsheet'!Q149="",0,('Trust - Frontsheet'!Q149)) -> 0 | O137: =IF('Trust - Frontsheet'!R149="",0,('Trust - Frontsheet'!R149)) -> 0 | P137: =IF('Trust - Frontsheet'!S149="",0,('Trust - Frontsheet'!S149)) -> 0 | Q137: =IF('Trust - Frontsheet'!T149="",0,('Trust - Frontsheet'!T149)) -> 0 | R137: ='Trust - Frontsheet'!U149 -> 0 | S137: =IF('Trust - Frontsheet'!V149="",0,('Trust - Frontsheet'!V149)) -> 0 | T137: =IF('Trust - Frontsheet'!W149="",0,('Trust - Frontsheet'!W149)) -> 0 | U137: =IF('Trust - Frontsheet'!X149="",0,('Trust - Frontsheet'!X149)) -> 0 | V137: =IF(A137="","",(IF(ISBLANK('Trust - Frontsheet'!F9),"",'Trust - Frontsheet'!F9))) -> 
A138: =IF('Trust - Frontsheet'!D150=0,"",IF('Trust - Frontsheet'!D150="","",'Trust - Frontsheet'!D150)) ->  | B138: =IF(ISBLANK('Trust - Frontsheet'!E150),"",'Trust - Frontsheet'!E150) ->  | C138: =IF(ISBLANK('Trust - Frontsheet'!F150),"",'Trust - Frontsheet'!F150) ->  | D138: =IF(ISBLANK('Trust - Frontsheet'!G150),"",'Trust - Frontsheet'!G150) ->  | E138: =IF(ISBLANK('Trust - Frontsheet'!H150),"",'Trust - Frontsheet'!H150) ->  | F138: ='Trust - Frontsheet'!I150 -> 0 | G138: ='Trust - Frontsheet'!J150 -> 0 | H138: ='Trust - Frontsheet'!K150 -> 0 | I138: ='Trust - Frontsheet'!L150 -> 0 | J138: ='Trust - Frontsheet'!M150 -> 0 | K138: ='Trust - Frontsheet'!N150 -> 0 | L138: ='Trust - Frontsheet'!O150 -> 0 | M138: ='Trust - Frontsheet'!P150 -> 0 | N138: =IF('Trust - Frontsheet'!Q150="",0,('Trust - Frontsheet'!Q150)) -> 0 | O138: =IF('Trust - Frontsheet'!R150="",0,('Trust - Frontsheet'!R150)) -> 0 | P138: =IF('Trust - Frontsheet'!S150="",0,('Trust - Frontsheet'!S150)) -> 0 | Q138: =IF('Trust - Frontsheet'!T150="",0,('Trust - Frontsheet'!T150)) -> 0 | R138: ='Trust - Frontsheet'!U150 -> 0 | S138: =IF('Trust - Frontsheet'!V150="",0,('Trust - Frontsheet'!V150)) -> 0 | T138: =IF('Trust - Frontsheet'!W150="",0,('Trust - Frontsheet'!W150)) -> 0 | U138: =IF('Trust - Frontsheet'!X150="",0,('Trust - Frontsheet'!X150)) -> 0 | V138: =IF(A138="","",(IF(ISBLANK('Trust - Frontsheet'!F9),"",'Trust - Frontsheet'!F9))) -> 
A139: =IF('Trust - Frontsheet'!D151=0,"",IF('Trust - Frontsheet'!D151="","",'Trust - Frontsheet'!D151)) ->  | B139: =IF(ISBLANK('Trust - Frontsheet'!E151),"",'Trust - Frontsheet'!E151) ->  | C139: =IF(ISBLANK('Trust - Frontsheet'!F151),"",'Trust - Frontsheet'!F151) ->  | D139: =IF(ISBLANK('Trust - Frontsheet'!G151),"",'Trust - Frontsheet'!G151) ->  | E139: =IF(ISBLANK('Trust - Frontsheet'!H151),"",'Trust - Frontsheet'!H151) ->  | F139: ='Trust - Frontsheet'!I151 -> 0 | G139: ='Trust - Frontsheet'!J151 -> 0 | H139: ='Trust - Frontsheet'!K151 -> 0 | I139: ='Trust - Frontsheet'!L151 -> 0 | J139: ='Trust - Frontsheet'!M151 -> 0 | K139: ='Trust - Frontsheet'!N151 -> 0 | L139: ='Trust - Frontsheet'!O151 -> 0 | M139: ='Trust - Frontsheet'!P151 -> 0 | N139: =IF('Trust - Frontsheet'!Q151="",0,('Trust - Frontsheet'!Q151)) -> 0 | O139: =IF('Trust - Frontsheet'!R151="",0,('Trust - Frontsheet'!R151)) -> 0 | P139: =IF('Trust - Frontsheet'!S151="",0,('Trust - Frontsheet'!S151)) -> 0 | Q139: =IF('Trust - Frontsheet'!T151="",0,('Trust - Frontsheet'!T151)) -> 0 | R139: ='Trust - Frontsheet'!U151 -> 0 | S139: =IF('Trust - Frontsheet'!V151="",0,('Trust - Frontsheet'!V151)) -> 0 | T139: =IF('Trust - Frontsheet'!W151="",0,('Trust - Frontsheet'!W151)) -> 0 | U139: =IF('Trust - Frontsheet'!X151="",0,('Trust - Frontsheet'!X151)) -> 0 | V139: =IF(A139="","",(IF(ISBLANK('Trust - Frontsheet'!F9),"",'Trust - Frontsheet'!F9))) -> 
A140: =IF('Trust - Frontsheet'!D152=0,"",IF('Trust - Frontsheet'!D152="","",'Trust - Frontsheet'!D152)) ->  | B140: =IF(ISBLANK('Trust - Frontsheet'!E152),"",'Trust - Frontsheet'!E152) ->  | C140: =IF(ISBLANK('Trust - Frontsheet'!F152),"",'Trust - Frontsheet'!F152) ->  | D140: =IF(ISBLANK('Trust - Frontsheet'!G152),"",'Trust - Frontsheet'!G152) ->  | E140: =IF(ISBLANK('Trust - Frontsheet'!H152),"",'Trust - Frontsheet'!H152) ->  | F140: ='Trust - Frontsheet'!I152 -> 0 | G140: ='Trust - Frontsheet'!J152 -> 0 | H140: ='Trust - Frontsheet'!K152 -> 0 | I140: ='Trust - Frontsheet'!L152 -> 0 | J140: ='Trust - Frontsheet'!M152 -> 0 | K140: ='Trust - Frontsheet'!N152 -> 0 | L140: ='Trust - Frontsheet'!O152 -> 0 | M140: ='Trust - Frontsheet'!P152 -> 0 | N140: =IF('Trust - Frontsheet'!Q152="",0,('Trust - Frontsheet'!Q152)) -> 0 | O140: =IF('Trust - Frontsheet'!R152="",0,('Trust - Frontsheet'!R152)) -> 0 | P140: =IF('Trust - Frontsheet'!S152="",0,('Trust - Frontsheet'!S152)) -> 0 | Q140: =IF('Trust - Frontsheet'!T152="",0,('Trust - Frontsheet'!T152)) -> 0 | R140: ='Trust - Frontsheet'!U152 -> 0 | S140: =IF('Trust - Frontsheet'!V152="",0,('Trust - Frontsheet'!V152)) -> 0 | T140: =IF('Trust - Frontsheet'!W152="",0,('Trust - Frontsheet'!W152)) -> 0 | U140: =IF('Trust - Frontsheet'!X152="",0,('Trust - Frontsheet'!X152)) -> 0 | V140: =IF(A140="","",(IF(ISBLANK('Trust - Frontsheet'!F9),"",'Trust - Frontsheet'!F9))) -> 
A141: =IF('Trust - Frontsheet'!D153=0,"",IF('Trust - Frontsheet'!D153="","",'Trust - Frontsheet'!D153)) ->  | B141: =IF(ISBLANK('Trust - Frontsheet'!E153),"",'Trust - Frontsheet'!E153) ->  | C141: =IF(ISBLANK('Trust - Frontsheet'!F153),"",'Trust - Frontsheet'!F153) ->  | D141: =IF(ISBLANK('Trust - Frontsheet'!G153),"",'Trust - Frontsheet'!G153) ->  | E141: =IF(ISBLANK('Trust - Frontsheet'!H153),"",'Trust - Frontsheet'!H153) ->  | F141: ='Trust - Frontsheet'!I153 -> 0 | G141: ='Trust - Frontsheet'!J153 -> 0 | H141: ='Trust - Frontsheet'!K153 -> 0 | I141: ='Trust - Frontsheet'!L153 -> 0 | J141: ='Trust - Frontsheet'!M153 -> 0 | K141: ='Trust - Frontsheet'!N153 -> 0 | L141: ='Trust - Frontsheet'!O153 -> 0 | M141: ='Trust - Frontsheet'!P153 -> 0 | N141: =IF('Trust - Frontsheet'!Q153="",0,('Trust - Frontsheet'!Q153)) -> 0 | O141: =IF('Trust - Frontsheet'!R153="",0,('Trust - Frontsheet'!R153)) -> 0 | P141: =IF('Trust - Frontsheet'!S153="",0,('Trust - Frontsheet'!S153)) -> 0 | Q141: =IF('Trust - Frontsheet'!T153="",0,('Trust - Frontsheet'!T153)) -> 0 | R141: ='Trust - Frontsheet'!U153 -> 0 | S141: =IF('Trust - Frontsheet'!V153="",0,('Trust - Frontsheet'!V153)) -> 0 | T141: =IF('Trust - Frontsheet'!W153="",0,('Trust - Frontsheet'!W153)) -> 0 | U141: =IF('Trust - Frontsheet'!X153="",0,('Trust - Frontsheet'!X153)) -> 0 | V141: =IF(A141="","",(IF(ISBLANK('Trust - Frontsheet'!F9),"",'Trust - Frontsheet'!F9))) -> 
A142: =IF('Trust - Frontsheet'!D154=0,"",IF('Trust - Frontsheet'!D154="","",'Trust - Frontsheet'!D154)) ->  | B142: =IF(ISBLANK('Trust - Frontsheet'!E154),"",'Trust - Frontsheet'!E154) ->  | C142: =IF(ISBLANK('Trust - Frontsheet'!F154),"",'Trust - Frontsheet'!F154) ->  | D142: =IF(ISBLANK('Trust - Frontsheet'!G154),"",'Trust - Frontsheet'!G154) ->  | E142: =IF(ISBLANK('Trust - Frontsheet'!H154),"",'Trust - Frontsheet'!H154) ->  | F142: ='Trust - Frontsheet'!I154 -> 0 | G142: ='Trust - Frontsheet'!J154 -> 0 | H142: ='Trust - Frontsheet'!K154 -> 0 | I142: ='Trust - Frontsheet'!L154 -> 0 | J142: ='Trust - Frontsheet'!M154 -> 0 | K142: ='Trust - Frontsheet'!N154 -> 0 | L142: ='Trust - Frontsheet'!O154 -> 0 | M142: ='Trust - Frontsheet'!P154 -> 0 | N142: =IF('Trust - Frontsheet'!Q154="",0,('Trust - Frontsheet'!Q154)) -> 0 | O142: =IF('Trust - Frontsheet'!R154="",0,('Trust - Frontsheet'!R154)) -> 0 | P142: =IF('Trust - Frontsheet'!S154="",0,('Trust - Frontsheet'!S154)) -> 0 | Q142: =IF('Trust - Frontsheet'!T154="",0,('Trust - Frontsheet'!T154)) -> 0 | R142: ='Trust - Frontsheet'!U154 -> 0 | S142: =IF('Trust - Frontsheet'!V154="",0,('Trust - Frontsheet'!V154)) -> 0 | T142: =IF('Trust - Frontsheet'!W154="",0,('Trust - Frontsheet'!W154)) -> 0 | U142: =IF('Trust - Frontsheet'!X154="",0,('Trust - Frontsheet'!X154)) -> 0 | V142: =IF(A142="","",(IF(ISBLANK('Trust - Frontsheet'!F9),"",'Trust - Frontsheet'!F9))) -> 
A143: =IF('Trust - Frontsheet'!D155=0,"",IF('Trust - Frontsheet'!D155="","",'Trust - Frontsheet'!D155)) ->  | B143: =IF(ISBLANK('Trust - Frontsheet'!E155),"",'Trust - Frontsheet'!E155) ->  | C143: =IF(ISBLANK('Trust - Frontsheet'!F155),"",'Trust - Frontsheet'!F155) ->  | D143: =IF(ISBLANK('Trust - Frontsheet'!G155),"",'Trust - Frontsheet'!G155) ->  | E143: =IF(ISBLANK('Trust - Frontsheet'!H155),"",'Trust - Frontsheet'!H155) ->  | F143: ='Trust - Frontsheet'!I155 -> 0 | G143: ='Trust - Frontsheet'!J155 -> 0 | H143: ='Trust - Frontsheet'!K155 -> 0 | I143: ='Trust - Frontsheet'!L155 -> 0 | J143: ='Trust - Frontsheet'!M155 -> 0 | K143: ='Trust - Frontsheet'!N155 -> 0 | L143: ='Trust - Frontsheet'!O155 -> 0 | M143: ='Trust - Frontsheet'!P155 -> 0 | N143: =IF('Trust - Frontsheet'!Q155="",0,('Trust - Frontsheet'!Q155)) -> 0 | O143: =IF('Trust - Frontsheet'!R155="",0,('Trust - Frontsheet'!R155)) -> 0 | P143: =IF('Trust - Frontsheet'!S155="",0,('Trust - Frontsheet'!S155)) -> 0 | Q143: =IF('Trust - Frontsheet'!T155="",0,('Trust - Frontsheet'!T155)) -> 0 | R143: ='Trust - Frontsheet'!U155 -> 0 | S143: =IF('Trust - Frontsheet'!V155="",0,('Trust - Frontsheet'!V155)) -> 0 | T143: =IF('Trust - Frontsheet'!W155="",0,('Trust - Frontsheet'!W155)) -> 0 | U143: =IF('Trust - Frontsheet'!X155="",0,('Trust - Frontsheet'!X155)) -> 0 | V143: =IF(A143="","",(IF(ISBLANK('Trust - Frontsheet'!F9),"",'Trust - Frontsheet'!F9))) -> 
A144: =IF('Trust - Frontsheet'!D156=0,"",IF('Trust - Frontsheet'!D156="","",'Trust - Frontsheet'!D156)) ->  | B144: =IF(ISBLANK('Trust - Frontsheet'!E156),"",'Trust - Frontsheet'!E156) ->  | C144: =IF(ISBLANK('Trust - Frontsheet'!F156),"",'Trust - Frontsheet'!F156) ->  | D144: =IF(ISBLANK('Trust - Frontsheet'!G156),"",'Trust - Frontsheet'!G156) ->  | E144: =IF(ISBLANK('Trust - Frontsheet'!H156),"",'Trust - Frontsheet'!H156) ->  | F144: ='Trust - Frontsheet'!I156 -> 0 | G144: ='Trust - Frontsheet'!J156 -> 0 | H144: ='Trust - Frontsheet'!K156 -> 0 | I144: ='Trust - Frontsheet'!L156 -> 0 | J144: ='Trust - Frontsheet'!M156 -> 0 | K144: ='Trust - Frontsheet'!N156 -> 0 | L144: ='Trust - Frontsheet'!O156 -> 0 | M144: ='Trust - Frontsheet'!P156 -> 0 | N144: =IF('Trust - Frontsheet'!Q156="",0,('Trust - Frontsheet'!Q156)) -> 0 | O144: =IF('Trust - Frontsheet'!R156="",0,('Trust - Frontsheet'!R156)) -> 0 | P144: =IF('Trust - Frontsheet'!S156="",0,('Trust - Frontsheet'!S156)) -> 0 | Q144: =IF('Trust - Frontsheet'!T156="",0,('Trust - Frontsheet'!T156)) -> 0 | R144: ='Trust - Frontsheet'!U156 -> 0 | S144: =IF('Trust - Frontsheet'!V156="",0,('Trust - Frontsheet'!V156)) -> 0 | T144: =IF('Trust - Frontsheet'!W156="",0,('Trust - Frontsheet'!W156)) -> 0 | U144: =IF('Trust - Frontsheet'!X156="",0,('Trust - Frontsheet'!X156)) -> 0 | V144: =IF(A144="","",(IF(ISBLANK('Trust - Frontsheet'!F9),"",'Trust - Frontsheet'!F9))) -> 
A145: =IF('Trust - Frontsheet'!D157=0,"",IF('Trust - Frontsheet'!D157="","",'Trust - Frontsheet'!D157)) ->  | B145: =IF(ISBLANK('Trust - Frontsheet'!E157),"",'Trust - Frontsheet'!E157) ->  | C145: =IF(ISBLANK('Trust - Frontsheet'!F157),"",'Trust - Frontsheet'!F157) ->  | D145: =IF(ISBLANK('Trust - Frontsheet'!G157),"",'Trust - Frontsheet'!G157) ->  | E145: =IF(ISBLANK('Trust - Frontsheet'!H157),"",'Trust - Frontsheet'!H157) ->  | F145: ='Trust - Frontsheet'!I157 -> 0 | G145: ='Trust - Frontsheet'!J157 -> 0 | H145: ='Trust - Frontsheet'!K157 -> 0 | I145: ='Trust - Frontsheet'!L157 -> 0 | J145: ='Trust - Frontsheet'!M157 -> 0 | K145: ='Trust - Frontsheet'!N157 -> 0 | L145: ='Trust - Frontsheet'!O157 -> 0 | M145: ='Trust - Frontsheet'!P157 -> 0 | N145: =IF('Trust - Frontsheet'!Q157="",0,('Trust - Frontsheet'!Q157)) -> 0 | O145: =IF('Trust - Frontsheet'!R157="",0,('Trust - Frontsheet'!R157)) -> 0 | P145: =IF('Trust - Frontsheet'!S157="",0,('Trust - Frontsheet'!S157)) -> 0 | Q145: =IF('Trust - Frontsheet'!T157="",0,('Trust - Frontsheet'!T157)) -> 0 | R145: ='Trust - Frontsheet'!U157 -> 0 | S145: =IF('Trust - Frontsheet'!V157="",0,('Trust - Frontsheet'!V157)) -> 0 | T145: =IF('Trust - Frontsheet'!W157="",0,('Trust - Frontsheet'!W157)) -> 0 | U145: =IF('Trust - Frontsheet'!X157="",0,('Trust - Frontsheet'!X157)) -> 0 | V145: =IF(A145="","",(IF(ISBLANK('Trust - Frontsheet'!F9),"",'Trust - Frontsheet'!F9))) -> 
A146: =IF('Trust - Frontsheet'!D158=0,"",IF('Trust - Frontsheet'!D158="","",'Trust - Frontsheet'!D158)) ->  | B146: =IF(ISBLANK('Trust - Frontsheet'!E158),"",'Trust - Frontsheet'!E158) ->  | C146: =IF(ISBLANK('Trust - Frontsheet'!F158),"",'Trust - Frontsheet'!F158) ->  | D146: =IF(ISBLANK('Trust - Frontsheet'!G158),"",'Trust - Frontsheet'!G158) ->  | E146: =IF(ISBLANK('Trust - Frontsheet'!H158),"",'Trust - Frontsheet'!H158) ->  | F146: ='Trust - Frontsheet'!I158 -> 0 | G146: ='Trust - Frontsheet'!J158 -> 0 | H146: ='Trust - Frontsheet'!K158 -> 0 | I146: ='Trust - Frontsheet'!L158 -> 0 | J146: ='Trust - Frontsheet'!M158 -> 0 | K146: ='Trust - Frontsheet'!N158 -> 0 | L146: ='Trust - Frontsheet'!O158 -> 0 | M146: ='Trust - Frontsheet'!P158 -> 0 | N146: =IF('Trust - Frontsheet'!Q158="",0,('Trust - Frontsheet'!Q158)) -> 0 | O146: =IF('Trust - Frontsheet'!R158="",0,('Trust - Frontsheet'!R158)) -> 0 | P146: =IF('Trust - Frontsheet'!S158="",0,('Trust - Frontsheet'!S158)) -> 0 | Q146: =IF('Trust - Frontsheet'!T158="",0,('Trust - Frontsheet'!T158)) -> 0 | R146: ='Trust - Frontsheet'!U158 -> 0 | S146: =IF('Trust - Frontsheet'!V158="",0,('Trust - Frontsheet'!V158)) -> 0 | T146: =IF('Trust - Frontsheet'!W158="",0,('Trust - Frontsheet'!W158)) -> 0 | U146: =IF('Trust - Frontsheet'!X158="",0,('Trust - Frontsheet'!X158)) -> 0 | V146: =IF(A146="","",(IF(ISBLANK('Trust - Frontsheet'!F9),"",'Trust - Frontsheet'!F9))) -> 
A147: =IF('Trust - Frontsheet'!D159=0,"",IF('Trust - Frontsheet'!D159="","",'Trust - Frontsheet'!D159)) ->  | B147: =IF(ISBLANK('Trust - Frontsheet'!E159),"",'Trust - Frontsheet'!E159) ->  | C147: =IF(ISBLANK('Trust - Frontsheet'!F159),"",'Trust - Frontsheet'!F159) ->  | D147: =IF(ISBLANK('Trust - Frontsheet'!G159),"",'Trust - Frontsheet'!G159) ->  | E147: =IF(ISBLANK('Trust - Frontsheet'!H159),"",'Trust - Frontsheet'!H159) ->  | F147: ='Trust - Frontsheet'!I159 -> 0 | G147: ='Trust - Frontsheet'!J159 -> 0 | H147: ='Trust - Frontsheet'!K159 -> 0 | I147: ='Trust - Frontsheet'!L159 -> 0 | J147: ='Trust - Frontsheet'!M159 -> 0 | K147: ='Trust - Frontsheet'!N159 -> 0 | L147: ='Trust - Frontsheet'!O159 -> 0 | M147: ='Trust - Frontsheet'!P159 -> 0 | N147: =IF('Trust - Frontsheet'!Q159="",0,('Trust - Frontsheet'!Q159)) -> 0 | O147: =IF('Trust - Frontsheet'!R159="",0,('Trust - Frontsheet'!R159)) -> 0 | P147: =IF('Trust - Frontsheet'!S159="",0,('Trust - Frontsheet'!S159)) -> 0 | Q147: =IF('Trust - Frontsheet'!T159="",0,('Trust - Frontsheet'!T159)) -> 0 | R147: ='Trust - Frontsheet'!U159 -> 0 | S147: =IF('Trust - Frontsheet'!V159="",0,('Trust - Frontsheet'!V159)) -> 0 | T147: =IF('Trust - Frontsheet'!W159="",0,('Trust - Frontsheet'!W159)) -> 0 | U147: =IF('Trust - Frontsheet'!X159="",0,('Trust - Frontsheet'!X159)) -> 0 | V147: =IF(A147="","",(IF(ISBLANK('Trust - Frontsheet'!F9),"",'Trust - Frontsheet'!F9))) -> 
A148: =IF('Trust - Frontsheet'!D160=0,"",IF('Trust - Frontsheet'!D160="","",'Trust - Frontsheet'!D160)) ->  | B148: =IF(ISBLANK('Trust - Frontsheet'!E160),"",'Trust - Frontsheet'!E160) ->  | C148: =IF(ISBLANK('Trust - Frontsheet'!F160),"",'Trust - Frontsheet'!F160) ->  | D148: =IF(ISBLANK('Trust - Frontsheet'!G160),"",'Trust - Frontsheet'!G160) ->  | E148: =IF(ISBLANK('Trust - Frontsheet'!H160),"",'Trust - Frontsheet'!H160) ->  | F148: ='Trust - Frontsheet'!I160 -> 0 | G148: ='Trust - Frontsheet'!J160 -> 0 | H148: ='Trust - Frontsheet'!K160 -> 0 | I148: ='Trust - Frontsheet'!L160 -> 0 | J148: ='Trust - Frontsheet'!M160 -> 0 | K148: ='Trust - Frontsheet'!N160 -> 0 | L148: ='Trust - Frontsheet'!O160 -> 0 | M148: ='Trust - Frontsheet'!P160 -> 0 | N148: =IF('Trust - Frontsheet'!Q160="",0,('Trust - Frontsheet'!Q160)) -> 0 | O148: =IF('Trust - Frontsheet'!R160="",0,('Trust - Frontsheet'!R160)) -> 0 | P148: =IF('Trust - Frontsheet'!S160="",0,('Trust - Frontsheet'!S160)) -> 0 | Q148: =IF('Trust - Frontsheet'!T160="",0,('Trust - Frontsheet'!T160)) -> 0 | R148: ='Trust - Frontsheet'!U160 -> 0 | S148: =IF('Trust - Frontsheet'!V160="",0,('Trust - Frontsheet'!V160)) -> 0 | T148: =IF('Trust - Frontsheet'!W160="",0,('Trust - Frontsheet'!W160)) -> 0 | U148: =IF('Trust - Frontsheet'!X160="",0,('Trust - Frontsheet'!X160)) -> 0 | V148: =IF(A148="","",(IF(ISBLANK('Trust - Frontsheet'!F9),"",'Trust - Frontsheet'!F9))) -> 
A149: =IF('Trust - Frontsheet'!D161=0,"",IF('Trust - Frontsheet'!D161="","",'Trust - Frontsheet'!D161)) ->  | B149: =IF(ISBLANK('Trust - Frontsheet'!E161),"",'Trust - Frontsheet'!E161) ->  | C149: =IF(ISBLANK('Trust - Frontsheet'!F161),"",'Trust - Frontsheet'!F161) ->  | D149: =IF(ISBLANK('Trust - Frontsheet'!G161),"",'Trust - Frontsheet'!G161) ->  | E149: =IF(ISBLANK('Trust - Frontsheet'!H161),"",'Trust - Frontsheet'!H161) ->  | F149: ='Trust - Frontsheet'!I161 -> 0 | G149: ='Trust - Frontsheet'!J161 -> 0 | H149: ='Trust - Frontsheet'!K161 -> 0 | I149: ='Trust - Frontsheet'!L161 -> 0 | J149: ='Trust - Frontsheet'!M161 -> 0 | K149: ='Trust - Frontsheet'!N161 -> 0 | L149: ='Trust - Frontsheet'!O161 -> 0 | M149: ='Trust - Frontsheet'!P161 -> 0 | N149: =IF('Trust - Frontsheet'!Q161="",0,('Trust - Frontsheet'!Q161)) -> 0 | O149: =IF('Trust - Frontsheet'!R161="",0,('Trust - Frontsheet'!R161)) -> 0 | P149: =IF('Trust - Frontsheet'!S161="",0,('Trust - Frontsheet'!S161)) -> 0 | Q149: =IF('Trust - Frontsheet'!T161="",0,('Trust - Frontsheet'!T161)) -> 0 | R149: ='Trust - Frontsheet'!U161 -> 0 | S149: =IF('Trust - Frontsheet'!V161="",0,('Trust - Frontsheet'!V161)) -> 0 | T149: =IF('Trust - Frontsheet'!W161="",0,('Trust - Frontsheet'!W161)) -> 0 | U149: =IF('Trust - Frontsheet'!X161="",0,('Trust - Frontsheet'!X161)) -> 0 | V149: =IF(A149="","",(IF(ISBLANK('Trust - Frontsheet'!F9),"",'Trust - Frontsheet'!F9))) -> 
A150: =IF('Trust - Frontsheet'!D162=0,"",IF('Trust - Frontsheet'!D162="","",'Trust - Frontsheet'!D162)) ->  | B150: =IF(ISBLANK('Trust - Frontsheet'!E162),"",'Trust - Frontsheet'!E162) ->  | C150: =IF(ISBLANK('Trust - Frontsheet'!F162),"",'Trust - Frontsheet'!F162) ->  | D150: =IF(ISBLANK('Trust - Frontsheet'!G162),"",'Trust - Frontsheet'!G162) ->  | E150: =IF(ISBLANK('Trust - Frontsheet'!H162),"",'Trust - Frontsheet'!H162) ->  | F150: ='Trust - Frontsheet'!I162 -> 0 | G150: ='Trust - Frontsheet'!J162 -> 0 | H150: ='Trust - Frontsheet'!K162 -> 0 | I150: ='Trust - Frontsheet'!L162 -> 0 | J150: ='Trust - Frontsheet'!M162 -> 0 | K150: ='Trust - Frontsheet'!N162 -> 0 | L150: ='Trust - Frontsheet'!O162 -> 0 | M150: ='Trust - Frontsheet'!P162 -> 0 | N150: =IF('Trust - Frontsheet'!Q162="",0,('Trust - Frontsheet'!Q162)) -> 0 | O150: =IF('Trust - Frontsheet'!R162="",0,('Trust - Frontsheet'!R162)) -> 0 | P150: =IF('Trust - Frontsheet'!S162="",0,('Trust - Frontsheet'!S162)) -> 0 | Q150: =IF('Trust - Frontsheet'!T162="",0,('Trust - Frontsheet'!T162)) -> 0 | R150: ='Trust - Frontsheet'!U162 -> 0 | S150: =IF('Trust - Frontsheet'!V162="",0,('Trust - Frontsheet'!V162)) -> 0 | T150: =IF('Trust - Frontsheet'!W162="",0,('Trust - Frontsheet'!W162)) -> 0 | U150: =IF('Trust - Frontsheet'!X162="",0,('Trust - Frontsheet'!X162)) -> 0 | V150: =IF(A150="","",(IF(ISBLANK('Trust - Frontsheet'!F9),"",'Trust - Frontsheet'!F9))) -> 
A151: =IF('Trust - Frontsheet'!D163=0,"",IF('Trust - Frontsheet'!D163="","",'Trust - Frontsheet'!D163)) ->  | B151: =IF(ISBLANK('Trust - Frontsheet'!E163),"",'Trust - Frontsheet'!E163) ->  | C151: =IF(ISBLANK('Trust - Frontsheet'!F163),"",'Trust - Frontsheet'!F163) ->  | D151: =IF(ISBLANK('Trust - Frontsheet'!G163),"",'Trust - Frontsheet'!G163) ->  | E151: =IF(ISBLANK('Trust - Frontsheet'!H163),"",'Trust - Frontsheet'!H163) ->  | F151: ='Trust - Frontsheet'!I163 -> 0 | G151: ='Trust - Frontsheet'!J163 -> 0 | H151: ='Trust - Frontsheet'!K163 -> 0 | I151: ='Trust - Frontsheet'!L163 -> 0 | J151: ='Trust - Frontsheet'!M163 -> 0 | K151: ='Trust - Frontsheet'!N163 -> 0 | L151: ='Trust - Frontsheet'!O163 -> 0 | M151: ='Trust - Frontsheet'!P163 -> 0 | N151: =IF('Trust - Frontsheet'!Q163="",0,('Trust - Frontsheet'!Q163)) -> 0 | O151: =IF('Trust - Frontsheet'!R163="",0,('Trust - Frontsheet'!R163)) -> 0 | P151: =IF('Trust - Frontsheet'!S163="",0,('Trust - Frontsheet'!S163)) -> 0 | Q151: =IF('Trust - Frontsheet'!T163="",0,('Trust - Frontsheet'!T163)) -> 0 | R151: ='Trust - Frontsheet'!U163 -> 0 | S151: =IF('Trust - Frontsheet'!V163="",0,('Trust - Frontsheet'!V163)) -> 0 | T151: =IF('Trust - Frontsheet'!W163="",0,('Trust - Frontsheet'!W163)) -> 0 | U151: =IF('Trust - Frontsheet'!X163="",0,('Trust - Frontsheet'!X163)) -> 0 | V151: =IF(A151="","",(IF(ISBLANK('Trust - Frontsheet'!F9),"",'Trust - Frontsheet'!F9))) -> 
A152: =IF('Trust - Frontsheet'!D164=0,"",IF('Trust - Frontsheet'!D164="","",'Trust - Frontsheet'!D164)) ->  | B152: =IF(ISBLANK('Trust - Frontsheet'!E164),"",'Trust - Frontsheet'!E164) ->  | C152: =IF(ISBLANK('Trust - Frontsheet'!F164),"",'Trust - Frontsheet'!F164) ->  | D152: =IF(ISBLANK('Trust - Frontsheet'!G164),"",'Trust - Frontsheet'!G164) ->  | E152: =IF(ISBLANK('Trust - Frontsheet'!H164),"",'Trust - Frontsheet'!H164) ->  | F152: ='Trust - Frontsheet'!I164 -> 0 | G152: ='Trust - Frontsheet'!J164 -> 0 | H152: ='Trust - Frontsheet'!K164 -> 0 | I152: ='Trust - Frontsheet'!L164 -> 0 | J152: ='Trust - Frontsheet'!M164 -> 0 | K152: ='Trust - Frontsheet'!N164 -> 0 | L152: ='Trust - Frontsheet'!O164 -> 0 | M152: ='Trust - Frontsheet'!P164 -> 0 | N152: =IF('Trust - Frontsheet'!Q164="",0,('Trust - Frontsheet'!Q164)) -> 0 | O152: =IF('Trust - Frontsheet'!R164="",0,('Trust - Frontsheet'!R164)) -> 0 | P152: =IF('Trust - Frontsheet'!S164="",0,('Trust - Frontsheet'!S164)) -> 0 | Q152: =IF('Trust - Frontsheet'!T164="",0,('Trust - Frontsheet'!T164)) -> 0 | R152: ='Trust - Frontsheet'!U164 -> 0 | S152: =IF('Trust - Frontsheet'!V164="",0,('Trust - Frontsheet'!V164)) -> 0 | T152: =IF('Trust - Frontsheet'!W164="",0,('Trust - Frontsheet'!W164)) -> 0 | U152: =IF('Trust - Frontsheet'!X164="",0,('Trust - Frontsheet'!X164)) -> 0 | V152: =IF(A152="","",(IF(ISBLANK('Trust - Frontsheet'!F9),"",'Trust - Frontsheet'!F9))) -> 
A153: =IF('Trust - Frontsheet'!D165=0,"",IF('Trust - Frontsheet'!D165="","",'Trust - Frontsheet'!D165)) ->  | B153: =IF(ISBLANK('Trust - Frontsheet'!E165),"",'Trust - Frontsheet'!E165) ->  | C153: =IF(ISBLANK('Trust - Frontsheet'!F165),"",'Trust - Frontsheet'!F165) ->  | D153: =IF(ISBLANK('Trust - Frontsheet'!G165),"",'Trust - Frontsheet'!G165) ->  | E153: =IF(ISBLANK('Trust - Frontsheet'!H165),"",'Trust - Frontsheet'!H165) ->  | F153: ='Trust - Frontsheet'!I165 -> 0 | G153: ='Trust - Frontsheet'!J165 -> 0 | H153: ='Trust - Frontsheet'!K165 -> 0 | I153: ='Trust - Frontsheet'!L165 -> 0 | J153: ='Trust - Frontsheet'!M165 -> 0 | K153: ='Trust - Frontsheet'!N165 -> 0 | L153: ='Trust - Frontsheet'!O165 -> 0 | M153: ='Trust - Frontsheet'!P165 -> 0 | N153: =IF('Trust - Frontsheet'!Q165="",0,('Trust - Frontsheet'!Q165)) -> 0 | O153: =IF('Trust - Frontsheet'!R165="",0,('Trust - Frontsheet'!R165)) -> 0 | P153: =IF('Trust - Frontsheet'!S165="",0,('Trust - Frontsheet'!S165)) -> 0 | Q153: =IF('Trust - Frontsheet'!T165="",0,('Trust - Frontsheet'!T165)) -> 0 | R153: ='Trust - Frontsheet'!U165 -> 0 | S153: =IF('Trust - Frontsheet'!V165="",0,('Trust - Frontsheet'!V165)) -> 0 | T153: =IF('Trust - Frontsheet'!W165="",0,('Trust - Frontsheet'!W165)) -> 0 | U153: =IF('Trust - Frontsheet'!X165="",0,('Trust - Frontsheet'!X165)) -> 0 | V153: =IF(A153="","",(IF(ISBLANK('Trust - Frontsheet'!F9),"",'Trust - Frontsheet'!F9))) -> 
A154: =IF('Trust - Frontsheet'!D166=0,"",IF('Trust - Frontsheet'!D166="","",'Trust - Frontsheet'!D166)) ->  | B154: =IF(ISBLANK('Trust - Frontsheet'!E166),"",'Trust - Frontsheet'!E166) ->  | C154: =IF(ISBLANK('Trust - Frontsheet'!F166),"",'Trust - Frontsheet'!F166) ->  | D154: =IF(ISBLANK('Trust - Frontsheet'!G166),"",'Trust - Frontsheet'!G166) ->  | E154: =IF(ISBLANK('Trust - Frontsheet'!H166),"",'Trust - Frontsheet'!H166) ->  | F154: ='Trust - Frontsheet'!I166 -> 0 | G154: ='Trust - Frontsheet'!J166 -> 0 | H154: ='Trust - Frontsheet'!K166 -> 0 | I154: ='Trust - Frontsheet'!L166 -> 0 | J154: ='Trust - Frontsheet'!M166 -> 0 | K154: ='Trust - Frontsheet'!N166 -> 0 | L154: ='Trust - Frontsheet'!O166 -> 0 | M154: ='Trust - Frontsheet'!P166 -> 0 | N154: =IF('Trust - Frontsheet'!Q166="",0,('Trust - Frontsheet'!Q166)) -> 0 | O154: =IF('Trust - Frontsheet'!R166="",0,('Trust - Frontsheet'!R166)) -> 0 | P154: =IF('Trust - Frontsheet'!S166="",0,('Trust - Frontsheet'!S166)) -> 0 | Q154: =IF('Trust - Frontsheet'!T166="",0,('Trust - Frontsheet'!T166)) -> 0 | R154: ='Trust - Frontsheet'!U166 -> 0 | S154: =IF('Trust - Frontsheet'!V166="",0,('Trust - Frontsheet'!V166)) -> 0 | T154: =IF('Trust - Frontsheet'!W166="",0,('Trust - Frontsheet'!W166)) -> 0 | U154: =IF('Trust - Frontsheet'!X166="",0,('Trust - Frontsheet'!X166)) -> 0 | V154: =IF(A154="","",(IF(ISBLANK('Trust - Frontsheet'!F9),"",'Trust - Frontsheet'!F9))) -> 
A155: =IF('Trust - Frontsheet'!D167=0,"",IF('Trust - Frontsheet'!D167="","",'Trust - Frontsheet'!D167)) ->  | B155: =IF(ISBLANK('Trust - Frontsheet'!E167),"",'Trust - Frontsheet'!E167) ->  | C155: =IF(ISBLANK('Trust - Frontsheet'!F167),"",'Trust - Frontsheet'!F167) ->  | D155: =IF(ISBLANK('Trust - Frontsheet'!G167),"",'Trust - Frontsheet'!G167) ->  | E155: =IF(ISBLANK('Trust - Frontsheet'!H167),"",'Trust - Frontsheet'!H167) ->  | F155: ='Trust - Frontsheet'!I167 -> 0 | G155: ='Trust - Frontsheet'!J167 -> 0 | H155: ='Trust - Frontsheet'!K167 -> 0 | I155: ='Trust - Frontsheet'!L167 -> 0 | J155: ='Trust - Frontsheet'!M167 -> 0 | K155: ='Trust - Frontsheet'!N167 -> 0 | L155: ='Trust - Frontsheet'!O167 -> 0 | M155: ='Trust - Frontsheet'!P167 -> 0 | N155: =IF('Trust - Frontsheet'!Q167="",0,('Trust - Frontsheet'!Q167)) -> 0 | O155: =IF('Trust - Frontsheet'!R167="",0,('Trust - Frontsheet'!R167)) -> 0 | P155: =IF('Trust - Frontsheet'!S167="",0,('Trust - Frontsheet'!S167)) -> 0 | Q155: =IF('Trust - Frontsheet'!T167="",0,('Trust - Frontsheet'!T167)) -> 0 | R155: ='Trust - Frontsheet'!U167 -> 0 | S155: =IF('Trust - Frontsheet'!V167="",0,('Trust - Frontsheet'!V167)) -> 0 | T155: =IF('Trust - Frontsheet'!W167="",0,('Trust - Frontsheet'!W167)) -> 0 | U155: =IF('Trust - Frontsheet'!X167="",0,('Trust - Frontsheet'!X167)) -> 0 | V155: =IF(A155="","",(IF(ISBLANK('Trust - Frontsheet'!F9),"",'Trust - Frontsheet'!F9))) -> 
A156: =IF('Trust - Frontsheet'!D168=0,"",IF('Trust - Frontsheet'!D168="","",'Trust - Frontsheet'!D168)) ->  | B156: =IF(ISBLANK('Trust - Frontsheet'!E168),"",'Trust - Frontsheet'!E168) ->  | C156: =IF(ISBLANK('Trust - Frontsheet'!F168),"",'Trust - Frontsheet'!F168) ->  | D156: =IF(ISBLANK('Trust - Frontsheet'!G168),"",'Trust - Frontsheet'!G168) ->  | E156: =IF(ISBLANK('Trust - Frontsheet'!H168),"",'Trust - Frontsheet'!H168) ->  | F156: ='Trust - Frontsheet'!I168 -> 0 | G156: ='Trust - Frontsheet'!J168 -> 0 | H156: ='Trust - Frontsheet'!K168 -> 0 | I156: ='Trust - Frontsheet'!L168 -> 0 | J156: ='Trust - Frontsheet'!M168 -> 0 | K156: ='Trust - Frontsheet'!N168 -> 0 | L156: ='Trust - Frontsheet'!O168 -> 0 | M156: ='Trust - Frontsheet'!P168 -> 0 | N156: =IF('Trust - Frontsheet'!Q168="",0,('Trust - Frontsheet'!Q168)) -> 0 | O156: =IF('Trust - Frontsheet'!R168="",0,('Trust - Frontsheet'!R168)) -> 0 | P156: =IF('Trust - Frontsheet'!S168="",0,('Trust - Frontsheet'!S168)) -> 0 | Q156: =IF('Trust - Frontsheet'!T168="",0,('Trust - Frontsheet'!T168)) -> 0 | R156: ='Trust - Frontsheet'!U168 -> 0 | S156: =IF('Trust - Frontsheet'!V168="",0,('Trust - Frontsheet'!V168)) -> 0 | T156: =IF('Trust - Frontsheet'!W168="",0,('Trust - Frontsheet'!W168)) -> 0 | U156: =IF('Trust - Frontsheet'!X168="",0,('Trust - Frontsheet'!X168)) -> 0 | V156: =IF(A156="","",(IF(ISBLANK('Trust - Frontsheet'!F9),"",'Trust - Frontsheet'!F9))) -> 
A157: =IF('Trust - Frontsheet'!D169=0,"",IF('Trust - Frontsheet'!D169="","",'Trust - Frontsheet'!D169)) ->  | B157: =IF(ISBLANK('Trust - Frontsheet'!E169),"",'Trust - Frontsheet'!E169) ->  | C157: =IF(ISBLANK('Trust - Frontsheet'!F169),"",'Trust - Frontsheet'!F169) ->  | D157: =IF(ISBLANK('Trust - Frontsheet'!G169),"",'Trust - Frontsheet'!G169) ->  | E157: =IF(ISBLANK('Trust - Frontsheet'!H169),"",'Trust - Frontsheet'!H169) ->  | F157: ='Trust - Frontsheet'!I169 -> 0 | G157: ='Trust - Frontsheet'!J169 -> 0 | H157: ='Trust - Frontsheet'!K169 -> 0 | I157: ='Trust - Frontsheet'!L169 -> 0 | J157: ='Trust - Frontsheet'!M169 -> 0 | K157: ='Trust - Frontsheet'!N169 -> 0 | L157: ='Trust - Frontsheet'!O169 -> 0 | M157: ='Trust - Frontsheet'!P169 -> 0 | N157: =IF('Trust - Frontsheet'!Q169="",0,('Trust - Frontsheet'!Q169)) -> 0 | O157: =IF('Trust - Frontsheet'!R169="",0,('Trust - Frontsheet'!R169)) -> 0 | P157: =IF('Trust - Frontsheet'!S169="",0,('Trust - Frontsheet'!S169)) -> 0 | Q157: =IF('Trust - Frontsheet'!T169="",0,('Trust - Frontsheet'!T169)) -> 0 | R157: ='Trust - Frontsheet'!U169 -> 0 | S157: =IF('Trust - Frontsheet'!V169="",0,('Trust - Frontsheet'!V169)) -> 0 | T157: =IF('Trust - Frontsheet'!W169="",0,('Trust - Frontsheet'!W169)) -> 0 | U157: =IF('Trust - Frontsheet'!X169="",0,('Trust - Frontsheet'!X169)) -> 0 | V157: =IF(A157="","",(IF(ISBLANK('Trust - Frontsheet'!F9),"",'Trust - Frontsheet'!F9))) -> 
A158: =IF('Trust - Frontsheet'!D170=0,"",IF('Trust - Frontsheet'!D170="","",'Trust - Frontsheet'!D170)) ->  | B158: =IF(ISBLANK('Trust - Frontsheet'!E170),"",'Trust - Frontsheet'!E170) ->  | C158: =IF(ISBLANK('Trust - Frontsheet'!F170),"",'Trust - Frontsheet'!F170) ->  | D158: =IF(ISBLANK('Trust - Frontsheet'!G170),"",'Trust - Frontsheet'!G170) ->  | E158: =IF(ISBLANK('Trust - Frontsheet'!H170),"",'Trust - Frontsheet'!H170) ->  | F158: ='Trust - Frontsheet'!I170 -> 0 | G158: ='Trust - Frontsheet'!J170 -> 0 | H158: ='Trust - Frontsheet'!K170 -> 0 | I158: ='Trust - Frontsheet'!L170 -> 0 | J158: ='Trust - Frontsheet'!M170 -> 0 | K158: ='Trust - Frontsheet'!N170 -> 0 | L158: ='Trust - Frontsheet'!O170 -> 0 | M158: ='Trust - Frontsheet'!P170 -> 0 | N158: =IF('Trust - Frontsheet'!Q170="",0,('Trust - Frontsheet'!Q170)) -> 0 | O158: =IF('Trust - Frontsheet'!R170="",0,('Trust - Frontsheet'!R170)) -> 0 | P158: =IF('Trust - Frontsheet'!S170="",0,('Trust - Frontsheet'!S170)) -> 0 | Q158: =IF('Trust - Frontsheet'!T170="",0,('Trust - Frontsheet'!T170)) -> 0 | R158: ='Trust - Frontsheet'!U170 -> 0 | S158: =IF('Trust - Frontsheet'!V170="",0,('Trust - Frontsheet'!V170)) -> 0 | T158: =IF('Trust - Frontsheet'!W170="",0,('Trust - Frontsheet'!W170)) -> 0 | U158: =IF('Trust - Frontsheet'!X170="",0,('Trust - Frontsheet'!X170)) -> 0 | V158: =IF(A158="","",(IF(ISBLANK('Trust - Frontsheet'!F9),"",'Trust - Frontsheet'!F9))) -> 
A159: =IF('Trust - Frontsheet'!D171=0,"",IF('Trust - Frontsheet'!D171="","",'Trust - Frontsheet'!D171)) ->  | B159: =IF(ISBLANK('Trust - Frontsheet'!E171),"",'Trust - Frontsheet'!E171) ->  | C159: =IF(ISBLANK('Trust - Frontsheet'!F171),"",'Trust - Frontsheet'!F171) ->  | D159: =IF(ISBLANK('Trust - Frontsheet'!G171),"",'Trust - Frontsheet'!G171) ->  | E159: =IF(ISBLANK('Trust - Frontsheet'!H171),"",'Trust - Frontsheet'!H171) ->  | F159: ='Trust - Frontsheet'!I171 -> 0 | G159: ='Trust - Frontsheet'!J171 -> 0 | H159: ='Trust - Frontsheet'!K171 -> 0 | I159: ='Trust - Frontsheet'!L171 -> 0 | J159: ='Trust - Frontsheet'!M171 -> 0 | K159: ='Trust - Frontsheet'!N171 -> 0 | L159: ='Trust - Frontsheet'!O171 -> 0 | M159: ='Trust - Frontsheet'!P171 -> 0 | N159: =IF('Trust - Frontsheet'!Q171="",0,('Trust - Frontsheet'!Q171)) -> 0 | O159: =IF('Trust - Frontsheet'!R171="",0,('Trust - Frontsheet'!R171)) -> 0 | P159: =IF('Trust - Frontsheet'!S171="",0,('Trust - Frontsheet'!S171)) -> 0 | Q159: =IF('Trust - Frontsheet'!T171="",0,('Trust - Frontsheet'!T171)) -> 0 | R159: ='Trust - Frontsheet'!U171 -> 0 | S159: =IF('Trust - Frontsheet'!V171="",0,('Trust - Frontsheet'!V171)) -> 0 | T159: =IF('Trust - Frontsheet'!W171="",0,('Trust - Frontsheet'!W171)) -> 0 | U159: =IF('Trust - Frontsheet'!X171="",0,('Trust - Frontsheet'!X171)) -> 0 | V159: =IF(A159="","",(IF(ISBLANK('Trust - Frontsheet'!F9),"",'Trust - Frontsheet'!F9))) -> 
A160: =IF('Trust - Frontsheet'!D172=0,"",IF('Trust - Frontsheet'!D172="","",'Trust - Frontsheet'!D172)) ->  | B160: =IF(ISBLANK('Trust - Frontsheet'!E172),"",'Trust - Frontsheet'!E172) ->  | C160: =IF(ISBLANK('Trust - Frontsheet'!F172),"",'Trust - Frontsheet'!F172) ->  | D160: =IF(ISBLANK('Trust - Frontsheet'!G172),"",'Trust - Frontsheet'!G172) ->  | E160: =IF(ISBLANK('Trust - Frontsheet'!H172),"",'Trust - Frontsheet'!H172) ->  | F160: ='Trust - Frontsheet'!I172 -> 0 | G160: ='Trust - Frontsheet'!J172 -> 0 | H160: ='Trust - Frontsheet'!K172 -> 0 | I160: ='Trust - Frontsheet'!L172 -> 0 | J160: ='Trust - Frontsheet'!M172 -> 0 | K160: ='Trust - Frontsheet'!N172 -> 0 | L160: ='Trust - Frontsheet'!O172 -> 0 | M160: ='Trust - Frontsheet'!P172 -> 0 | N160: =IF('Trust - Frontsheet'!Q172="",0,('Trust - Frontsheet'!Q172)) -> 0 | O160: =IF('Trust - Frontsheet'!R172="",0,('Trust - Frontsheet'!R172)) -> 0 | P160: =IF('Trust - Frontsheet'!S172="",0,('Trust - Frontsheet'!S172)) -> 0 | Q160: =IF('Trust - Frontsheet'!T172="",0,('Trust - Frontsheet'!T172)) -> 0 | R160: ='Trust - Frontsheet'!U172 -> 0 | S160: =IF('Trust - Frontsheet'!V172="",0,('Trust - Frontsheet'!V172)) -> 0 | T160: =IF('Trust - Frontsheet'!W172="",0,('Trust - Frontsheet'!W172)) -> 0 | U160: =IF('Trust - Frontsheet'!X172="",0,('Trust - Frontsheet'!X172)) -> 0 | V160: =IF(A160="","",(IF(ISBLANK('Trust - Frontsheet'!F9),"",'Trust - Frontsheet'!F9))) -> 
A161: =IF('Trust - Frontsheet'!D173=0,"",IF('Trust - Frontsheet'!D173="","",'Trust - Frontsheet'!D173)) ->  | B161: =IF(ISBLANK('Trust - Frontsheet'!E173),"",'Trust - Frontsheet'!E173) ->  | C161: =IF(ISBLANK('Trust - Frontsheet'!F173),"",'Trust - Frontsheet'!F173) ->  | D161: =IF(ISBLANK('Trust - Frontsheet'!G173),"",'Trust - Frontsheet'!G173) ->  | E161: =IF(ISBLANK('Trust - Frontsheet'!H173),"",'Trust - Frontsheet'!H173) ->  | F161: ='Trust - Frontsheet'!I173 -> 0 | G161: ='Trust - Frontsheet'!J173 -> 0 | H161: ='Trust - Frontsheet'!K173 -> 0 | I161: ='Trust - Frontsheet'!L173 -> 0 | J161: ='Trust - Frontsheet'!M173 -> 0 | K161: ='Trust - Frontsheet'!N173 -> 0 | L161: ='Trust - Frontsheet'!O173 -> 0 | M161: ='Trust - Frontsheet'!P173 -> 0 | N161: =IF('Trust - Frontsheet'!Q173="",0,('Trust - Frontsheet'!Q173)) -> 0 | O161: =IF('Trust - Frontsheet'!R173="",0,('Trust - Frontsheet'!R173)) -> 0 | P161: =IF('Trust - Frontsheet'!S173="",0,('Trust - Frontsheet'!S173)) -> 0 | Q161: =IF('Trust - Frontsheet'!T173="",0,('Trust - Frontsheet'!T173)) -> 0 | R161: ='Trust - Frontsheet'!U173 -> 0 | S161: =IF('Trust - Frontsheet'!V173="",0,('Trust - Frontsheet'!V173)) -> 0 | T161: =IF('Trust - Frontsheet'!W173="",0,('Trust - Frontsheet'!W173)) -> 0 | U161: =IF('Trust - Frontsheet'!X173="",0,('Trust - Frontsheet'!X173)) -> 0 | V161: =IF(A161="","",(IF(ISBLANK('Trust - Frontsheet'!F9),"",'Trust - Frontsheet'!F9))) -> 
